Workbook

Sheet Company Master (hidden)
B1: Company Master
B2: Company Name | C2: EXCELHUB.ORG
B3: Address 1 | C3: NO-4,
B4: Address 2 | C4: 1ST CROSS
B5: Address 3 | C5: BANGALORE
B6: PIN | C6: 560078
B9: Salary Components Master
B10: Income | C10: Deduction | D10: company contribution
B11: Basic | C11: PF | D11: PF
B12: ADDL Basic | C12: VPF | D12: Pension
B13: DA | C13: Professional Tax | D13: EDLI
B14: House Rent Allowance | C14: Insurance | D14: Superannuation
B15: Medical Allowance | C15: Income Tax | D15: PF Admin charges
B16: Conveyance Allowance | C16: Loan | D16: EDLI admin charges
B17: Special Allowance
B18: CCA
B19: LTA
B20: Shift allowance
B21: Miscellaneous earnings
B22: Children Edu. Allowance
B23: Other Earnings
B24: Non-Taxable Allowance
B27: Payroll Period | E27: INCOME TAX LIMITS FOR THE YEAR
B28: Month | C28: Payroll Status | E28: Housing Loan Int | G28: -200000 | H28: PY | J28: Payslip/statement | K28: Salary process
B29: April-2018 | E29: 80C | G29: 150000 | H29: PY | J29: 36 | K29: B6:AM105
B30: May-2018 | E30: 80D | G30: 60000 | H30: PY | J30: 74 | K30: AN6:BY105
B31: June-2018 | E31: 80TTA | G31: 10000 | H31: PY | J31: 112 | K31: BZ6:DK105
B32: July-2018 | E32: 80CCD 1(b) | G32: 50000 | H32: PY | J32: 150 | K32: DL6:EW105
B33: August-2018 | E33: Conveyance Allowance Exempted | G33: 0 | H33: PM | J33: 188 | K33: EX6:GI105
B34: September-2018 | E34: Children Edu. Allowance | G34: 200 | H34: PM | J34: 226 | K34: GJ6:HU105
B35: October-2018 | E35: Children Hostel Allowance | G35: 600 | H35: PM | J35: 264 | K35: HV6:JG105
B36: November-2018 | E36: Medical Allowance Exempted | G36: 0 | H36: PY | J36: 302 | K36: JH6:KS105
B37: December-2018 | E37: Superannuation Perq Limit | G37: 150000 | H37: PY | J37: 340 | K37: KT6:ME105
B38: January-2019 | J38: 378 | K38: MF6:NQ105
B39: February-2019 | J39: 416 | K39: NR6:PC105
B40: March-2019 | J40: 454 | K40: PD6:QO105
B42: Done | C42: =12-COUNTIF($C$29:$C$40,B42) -> 12

Sheet IT Cal (hidden)
B2: 2 | C2: 3 | D2: 4 | E2: 5 | F2: 6 | G2: 7 | H2: 8 | I2: 9 | J2: 10 | K2: 11 | L2: 12 | M2: 13 | N2: 14 | O2: 15 | P2: 16 | Q2: 17 | R2: 18 | S2: 19 | T2: 20 | U2: 21 | V2: 22 | W2: 23 | X2: 24 | Y2: 25 | Z2: 26 | AA2: 27 | AB2: 28 | AC2: 29 | AD2: 30 | AE2: 31 | AF2: 32 | AG2: 33 | AH2: 34 | AI2: 35 | AJ2: 36 | AK2: 37 | AL2: 38 | AM2: 39 | AN2: 40 | AO2: 41 | AP2: 42 | AQ2: 43 | AR2: 44 | AS2: 45 | AT2: 46 | AU2: 47 | AV2: 48 | AW2: 49 | AX2: 50 | AY2: 51 | AZ2: 52 | BA2: 53 | BB2: 54 | BC2: 55 | BD2: 56 | BE2: 57 | BF2: 58 | BG2: 59 | BH2: 60 | BI2: 61 | BJ2: 62 | BK2: 63 | BL2: 64 | BM2: 65 | BN2: 66 | BO2: 67 | BP2: 68 | BQ2: 69 | BR2: 70 | BS2: 71 | BT2: 72 | BU2: 73 | BV2: 74 | BW2: 75 | BX2: 76 | BY2: 77 | BZ2: 78 | CA2: 79 | CB2: 80 | CC2: 81 | CD2: 82 | CE2: 83 | CF2: 84 | CG2: 85 | CH2: 86 | CI2: 87 | CJ2: 88 | CK2: 89 | CL2: 90 | CM2: 91 | CN2: 92 | CO2: 93 | CP2: 94 | CQ2: 95 | CR2: 96 | CS2: 97 | CT2: 98 | CU2: 99 | CV2: 100 | CW2: 101 | CX2: 102 | CY2: 103 | CZ2: 104 | DA2: 105 | DB2: 106 | DC2: 107 | DD2: 108 | DE2: 109 | DF2: 110 | DG2: 111 | DH2: 112 | DI2: 113 | DJ2: 114 | DK2: 115 | DL2: 116 | DM2: 117 | DN2: 118 | DO2: 119 | DP2: 120 | DQ2: 121 | DR2: 122 | DS2: 123 | DT2: 124 | DU2: 125 | DV2: 126 | DW2: 127 | DX2: 128 | DY2: 129 | DZ2: 130 | EA2: 131 | EB2: 132 | EC2: 133 | ED2: 134 | EE2: 135 | EF2: 136 | EG2: 137 | EH2: 138 | EI2: 139 | EJ2: 140 | EK2: 141 | EL2: 142 | EM2: 143 | EN2: 144 | EO2: 145 | EP2: 146 | EQ2: 147 | ER2: 148 | ES2: 149 | ET2: 150 | EU2: 151 | EV2: 152 | EW2: 153 | EX2: 154 | EY2: 155 | EZ2: 156 | FA2: 157 | FB2: 158 | FC2: 159 | FD2: 160 | FE2: 161 | FF2: 162 | FG2: 163 | FH2: 164 | FI2: 165 | FJ2: 166 | FK2: 167 | FL2: 168 | FM2: 169 | FN2: 170 | FO2: 171 | FP2: 172 | FQ2: 173 | FR2: 174 | FS2: 175 | FT2: 176 | FU2: 177 | FV2: 178 | FW2: 179 | FX2: 180 | FY2: 181 | FZ2: 182 | GA2: 183 | GB2: 184 | GC2: 185 | GD2: 186 | GE2: 187 | GF2: 188 | GG2: 189 | GH2: 190 | GI2: 191 | GJ2: 192 | GK2: 193 | GL2: 194 | GM2: 195 | GN2: 196 | GO2: 197 | GP2: 198 | GQ2: 199 | GR2: 200 | GS2: 201 | GT2: 202 | GU2: 203 | GV2: 204 | GW2: 205 | GX2: 206 | GY2: 207 | GZ2: 208 | HA2: 209 | HB2: 210 | HC2: 211 | HD2: 212 | HE2: 213 | HF2: 214 | HG2: 215 | HH2: 216 | HI2: 217 | HJ2: 218 | HK2: 219 | HL2: 220 | HM2: 221 | HN2: 222 | HO2: 223 | HP2: 224 | HQ2: 225 | HR2: 226 | HS2: 227 | HT2: 228 | HU2: 229 | HV2: 230 | HW2: 231 | HX2: 232 | HY2: 233 | HZ2: 234 | IA2: 235 | IB2: 236 | IC2: 237 | ID2: 238 | IE2: 239 | IF2: 240 | IG2: 241 | IH2: 242 | II2: 243 | IJ2: 244 | IK2: 245 | IL2: 246 | IM2: 247 | IN2: 248 | IO2: 249 | IP2: 250 | IQ2: 251 | IR2: 252 | IS2: 253 | IT2: 254 | IU2: 255 | IV2: 256 | IW2: 257 | IX2: 258 | IY2: 259 | IZ2: 260 | JA2: 261 | JB2: 262 | JC2: 263 | JD2: 264 | JE2: 265 | JF2: 266 | JG2: 267 | JH2: 268 | JI2: 269 | JJ2: 270 | JK2: 271 | JL2: 272 | JM2: 273 | JN2: 274 | JO2: 275 | JP2: 276 | JQ2: 277 | JR2: 278 | JS2: 279 | JT2: 280 | JU2: 281 | JV2: 282 | JW2: 283 | JX2: 284 | JY2: 285 | JZ2: 286 | KA2: 287 | KB2: 288 | KC2: 289 | KD2: 290 | KE2: 291 | KF2: 292 | KG2: 293 | KH2: 294 | KI2: 295 | KJ2: 296 | KK2: 297 | KL2: 298 | KM2: 299 | KN2: 300 | KO2: 301 | KP2: 302 | KQ2: 303 | KR2: 304 | KS2: 305 | KT2: 306 | KU2: 307 | KV2: 308 | KW2: 309 | KX2: 310 | KY2: 311 | KZ2: 312 | LA2: 313 | LB2: 314 | LC2: 315 | LD2: 316 | LE2: 317 | LF2: 318 | LG2: 319 | LH2: 320 | LI2: 321 | LJ2: 322 | LK2: 323 | LL2: 324 | LM2: 325 | LN2: 326 | LO2: 327 | LP2: 328 | LQ2: 329 | LR2: 330 | LS2: 331 | LT2: 332 | LU2: 333 | LV2: 334 | LW2: 335 | LX2: 336 | LY2: 337 | LZ2: 338 | MA2: 339 | MB2: 340 | MC2: 341 | MD2: 342 | ME2: 343 | MF2: 344 | MG2: 345 | MH2: 346 | MI2: 347 | MJ2: 348 | MK2: 349 | ML2: 350 | MM2: 351 | MN2: 352 | MO2: 353 | MP2: 354 | MQ2: 355 | MR2: 356 | MS2: 357 | MT2: 358 | MU2: 359 | MV2: 360 | MW2: 361 | MX2: 362 | MY2: 363 | MZ2: 364 | NA2: 365 | NB2: 366 | NC2: 367 | ND2: 368 | NE2: 369 | NF2: 370 | NG2: 371 | NH2: 372 | NI2: 373 | NJ2: 374 | NK2: 375 | NL2: 376 | NM2: 377 | NN2: 378 | NO2: 379 | NP2: 380 | NQ2: 381 | NR2: 382 | NS2: 383 | NT2: 384 | NU2: 385 | NV2: 386 | NW2: 387 | NX2: 388 | NY2: 389 | NZ2: 390 | OA2: 391 | OB2: 392 | OC2: 393 | OD2: 394 | OE2: 395 | OF2: 396 | OG2: 397 | OH2: 398 | OI2: 399 | OJ2: 400 | OK2: 401 | OL2: 402 | OM2: 403 | ON2: 404 | OO2: 405 | OP2: 406 | OQ2: 407 | OR2: 408 | OS2: 409 | OT2: 410 | OU2: 411 | OV2: 412 | OW2: 413 | OX2: 414 | OY2: 415 | OZ2: 416 | PA2: 417 | PB2: 418 | PC2: 419 | PD2: 420 | PE2: 421 | PF2: 422 | PG2: 423 | PH2: 424 | PI2: 425 | PJ2: 426 | PK2: 427 | PL2: 428 | PM2: 429 | PN2: 430 | PO2: 431 | PP2: 432 | PQ2: 433 | PR2: 434 | PS2: 435 | PT2: 436 | PU2: 437 | PV2: 438 | PW2: 439 | PX2: 440 | PY2: 441 | PZ2: 442 | QA2: 443 | QB2: 444 | QC2: 445 | QD2: 446 | QE2: 447 | QF2: 448 | QG2: 449 | QH2: 450 | QI2: 451 | QJ2: 452 | QK2: 453 | QL2: 454 | QM2: 455 | QN2: 456 | QO2: 457 | QP2: 458 | QQ2: 459 | QR2: 460 | QS2: 461 | QT2: 462 | QU2: 463 | QV2: 464 | QW2: 465 | QX2: 466 | QY2: 467 | QZ2: 468 | RA2: 469 | RB2: 470 | RC2: 471 | RD2: 472 | RE2: 473 | RF2: 474 | RG2: 475 | RH2: 476 | RI2: 477 | RJ2: 478 | RK2: 479 | RL2: 480 | RM2: 481 | RN2: 482 | RO2: 483 | RP2: 484 | RQ2: 485 | RR2: 486 | RS2: 487 | RT2: 488 | RU2: 489 | RV2: 490 | RW2: 491 | RX2: 492 | RY2: 493 | RZ2: 494 | SA2: 495 | SB2: 496 | SC2: 497 | SD2: 498 | SE2: 499 | SF2: 500 | SG2: 501 | SH2: 502 | SI2: 503 | SJ2: 504 | SK2: 505 | SL2: 506 | SM2: 507 | SN2: 508 | SO2: 509 | SP2: 510 | SQ2: 511 | SR2: 512 | SS2: 513 | ST2: 514 | SU2: 515 | SV2: 516 | SW2: 517 | SX2: 518 | SY2: 519 | SZ2: 520 | TA2: 521 | TB2: 522 | TC2: 523 | TD2: 524 | TE2: 525 | TF2: 526 | TG2: 527 | TH2: 528 | TI2: 529 | TJ2: 530 | TK2: 531 | TL2: 532 | TM2: 533 | TN2: 534 | TO2: 535 | TP2: 536
B3: April | C3: April | D3: April | E3: April | F3: April | G3: April | H3: April | I3: April | J3: April | K3: April | L3: April | M3: April | N3: April | O3: April | P3: April | Q3: April | R3: April | S3: April | T3: April | U3: April | V3: April | W3: April | X3: April | Y3: April | Z3: April | AA3: April | AB3: April | AC3: April | AD3: April | AE3: April | AF3: April | AG3: April | AH3: April | AI3: April | AJ3: April | AK3: April | AL3: April | AM3: April | AN3: May | AO3: May | AP3: May | AQ3: May | AR3: May | AS3: May | AT3: May | AU3: May | AV3: May | AW3: May | AX3: May | AY3: May | AZ3: May | BA3: May | BB3: May | BC3: May | BD3: May | BE3: May | BF3: May | BG3: May | BH3: May | BI3: May | BJ3: May | BK3: May | BL3: May | BM3: May | BN3: May | BO3: May | BP3: May | BQ3: May | BR3: May | BS3: May | BT3: May | BU3: May | BV3: May | BW3: May | BX3: May | BY3: May | BZ3: June | CA3: June | CB3: June | CC3: June | CD3: June | CE3: June | CF3: June | CG3: June | CH3: June | CI3: June | CJ3: June | CK3: June | CL3: June | CM3: June | CN3: June | CO3: June | CP3: June | CQ3: June | CR3: June | CS3: June | CT3: June | CU3: June | CV3: June | CW3: June | CX3: June | CY3: June | CZ3: June | DA3: June | DB3: June | DC3: June | DD3: June | DE3: June | DF3: June | DG3: June | DH3: June | DI3: June | DJ3: June | DK3: June | DL3: July | DM3: July | DN3: July | DO3: July | DP3: July | DQ3: July | DR3: July | DS3: July | DT3: July | DU3: July | DV3: July | DW3: July | DX3: July | DY3: July | DZ3: July | EA3: July | EB3: July | EC3: July | ED3: July | EE3: July | EF3: July | EG3: July | EH3: July | EI3: July | EJ3: July | EK3: July | EL3: July | EM3: July | EN3: July | EO3: July | EP3: July | EQ3: July | ER3: July | ES3: July | ET3: July | EU3: July | EV3: July | EW3: July | EX3: August | EY3: August | EZ3: August | FA3: August | FB3: August | FC3: August | FD3: August | FE3: August | FF3: August | FG3: August | FH3: August | FI3: August | FJ3: August | FK3: August | FL3: August | FM3: August | FN3: August | FO3: August | FP3: August | FQ3: August | FR3: August | FS3: August | FT3: August | FU3: August | FV3: August | FW3: August | FX3: August | FY3: August | FZ3: August | GA3: August | GB3: August | GC3: August | GD3: August | GE3: August | GF3: August | GG3: August | GH3: August | GI3: August | GJ3: September | GK3: September | GL3: September | GM3: September | GN3: September | GO3: September | GP3: September | GQ3: September | GR3: September | GS3: September | GT3: September | GU3: September | GV3: September | GW3: September | GX3: September | GY3: September | GZ3: September | HA3: September | HB3: September | HC3: September | HD3: September | HE3: September | HF3: September | HG3: September | HH3: September | HI3: September | HJ3: September | HK3: September | HL3: September | HM3: September | HN3: September | HO3: September | HP3: September | HQ3: September | HR3: September | HS3: September | HT3: September | HU3: September | HV3: October | HW3: October | HX3: October | HY3: October | HZ3: October | IA3: October | IB3: October | IC3: October | ID3: October | IE3: October | IF3: October | IG3: October | IH3: October | II3: October | IJ3: October | IK3: October | IL3: October | IM3: October | IN3: October | IO3: October | IP3: October | IQ3: October | IR3: October | IS3: October | IT3: October | IU3: October | IV3: October | IW3: October | IX3: October | IY3: October | IZ3: October | JA3: October | JB3: October | JC3: October | JD3: October | JE3: October | JF3: October | JG3: October | JH3: November | JI3: November | JJ3: November | JK3: November | JL3: November | JM3: November | JN3: November | JO3: November | JP3: November | JQ3: November | JR3: November | JS3: November | JT3: November | JU3: November | JV3: November | JW3: November | JX3: November | JY3: November | JZ3: November | KA3: November | KB3: November | KC3: November | KD3: November | KE3: November | KF3: November | KG3: November | KH3: November | KI3: November | KJ3: November | KK3: November | KL3: November | KM3: November | KN3: November | KO3: November | KP3: November | KQ3: November | KR3: November | KS3: November | KT3: December | KU3: December | KV3: December | KW3: December | KX3: December | KY3: December | KZ3: December | LA3: December | LB3: December | LC3: December | LD3: December | LE3: December | LF3: December | LG3: December | LH3: December | LI3: December | LJ3: December | LK3: December | LL3: December | LM3: December | LN3: December | LO3: December | LP3: December | LQ3: December | LR3: December | LS3: December | LT3: December | LU3: December | LV3: December | LW3: December | LX3: December | LY3: December | LZ3: December | MA3: December | MB3: December | MC3: December | MD3: December | ME3: December | MF3: January | MG3: January | MH3: January | MI3: January | MJ3: January | MK3: January | ML3: January | MM3: January | MN3: January | MO3: January | MP3: January | MQ3: January | MR3: January | MS3: January | MT3: January | MU3: January | MV3: January | MW3: January | MX3: January | MY3: January | MZ3: January | NA3: January | NB3: January | NC3: January | ND3: January | NE3: January | NF3: January | NG3: January | NH3: January | NI3: January | NJ3: January | NK3: January | NL3: January | NM3: January | NN3: January | NO3: January | NP3: January | NQ3: January | NR3: February | NS3: February | NT3: February | NU3: February | NV3: February | NW3: February | NX3: February | NY3: February | NZ3: February | OA3: February | OB3: February | OC3: February | OD3: February | OE3: February | OF3: February | OG3: February | OH3: February | OI3: February | OJ3: February | OK3: February | OL3: February | OM3: February | ON3: February | OO3: February | OP3: February | OQ3: February | OR3: February | OS3: February | OT3: February | OU3: February | OV3: February | OW3: February | OX3: February | OY3: February | OZ3: February | PA3: February | PB3: February | PC3: February | PD3: March | PE3: March | PF3: March | PG3: March | PH3: March | PI3: March | PJ3: March | PK3: March | PL3: March | PM3: March | PN3: March | PO3: March | PP3: March | PQ3: March | PR3: March | PS3: March | PT3: March | PU3: March | PV3: March | PW3: March | PX3: March | PY3: March | PZ3: March | QA3: March | QB3: March | QC3: March | QD3: March | QE3: March | QF3: March | QG3: March | QH3: March | QI3: March | QJ3: March | QK3: March | QL3: March | QM3: March | QN3: March | QO3: March | QP3: Total | QQ3: Total | QR3: Total | QS3: Total | QT3: Total | QU3: Total | QV3: Total | QW3: Total | QX3: Total | QY3: Total | QZ3: Total | RA3: Total | RB3: Total | RC3: Total | RD3: Total | RE3: Total | RF3: Total | RG3: Total | RH3: Total | RI3: Total | RJ3: Total | RK3: Total | RL3: Total | RM3: Total | RN3: Total | RO3: Total | RP3: Total | RQ3: Total | RR3: Total | RS3: Total | RT3: Total | RU3: Total | RV3: Total | RW3: Total | RX3: Total | RY3: Total | RZ3: Total | SA3: Total
A4: Sl No. | B4: Income | P4: Deductions | AD4: Net Salary | AE4: Company Contributions | AK4: Others | AN4: Income | BB4: Deductions | BP4: Net Salary | BQ4: Company Contributions | BW4: Others | BZ4: Income | CN4: Deductions | DB4: Net Salary | DC4: Company Contributions | DI4: Others | DL4: Income | DZ4: Deductions | EN4: Net Salary | EO4: Company Contributions | EU4: Others | EX4: Income | FL4: Deductions | FZ4: Net Salary | GA4: Company Contributions | GG4: Others | GJ4: Income | GX4: Deductions | HL4: Net Salary | HM4: Company Contributions | HS4: Others | HV4: Income | IJ4: Deductions | IX4: Net Salary | IY4: Company Contributions | JE4: Others | JH4: Income | JV4: Deductions | KJ4: Net Salary | KK4: Company Contributions | KQ4: Others | KT4: Income | LH4: Deductions | LV4: Net Salary | LW4: Company Contributions | MC4: Others | MF4: Income | MT4: Deductions | NH4: Net Salary | NI4: Company Contributions | NO4: Others | NR4: Income | OF4: Deductions | OT4: Net Salary | OU4: Company Contributions | PA4: Others | PD4: Income | PR4: Deductions | QF4: Net Salary | QG4: Company Contributions | QM4: Others | QP4: Income | RD4: Deductions | RR4: Net Salary | RS4: Company Contributions | RY4: Others
B5: =IN_1 -> Basic | C5: =IN_2 -> ADDL Basic | D5: =IN_3 -> DA | E5: =IN_4 -> House Rent Allowance | F5: =IN_5 -> Medical Allowance | G5: =IN_6 -> Conveyance Allowance | H5: =IN_7 -> Special Allowance | I5: =IN_8 -> CCA | J5: =IN_9 -> LTA | K5: =IN_10 -> Shift allowance | L5: =IN_11 -> Miscellaneous earnings | M5: =IN_12 -> Children Edu. Allowance | N5: =IN_13 -> Other Earnings | O5: =IN_14 -> Non-Taxable Allowance | P5: =DED_1 -> PF | Q5: =DED_2 -> VPF | R5: =DED_3 -> Professional Tax | S5: =DED_4 -> Insurance | T5: =DED_5 -> Income Tax | U5: =DED_6 -> Loan | V5: =DED_7 -> 0 | W5: =DED_8 -> 0 | X5: =DED_9 -> 0 | Y5: =DED_10 -> 0 | Z5: =DED_11 -> 0 | AA5: =DED_12 -> 0 | AB5: =DED_13 -> 0 | AC5: =DED_14 -> 0 | AE5: =COMP_1 -> PF | AF5: =COMP_2 -> Pension | AG5: =COMP_3 -> EDLI | AH5: =COMP_4 -> Superannuation | AI5: =COMP_5 -> PF Admin charges | AJ5: =COMP_6 -> EDLI admin charges | AK5: Attn. | AL5: Status | AM5: Note | AN5: =IN_1 -> Basic | AO5: =IN_2 -> ADDL Basic | AP5: =IN_3 -> DA | AQ5: =IN_4 -> House Rent Allowance | AR5: =IN_5 -> Medical Allowance | AS5: =IN_6 -> Conveyance Allowance | AT5: =IN_7 -> Special Allowance | AU5: =IN_8 -> CCA | AV5: =IN_9 -> LTA | AW5: =IN_10 -> Shift allowance | AX5: =IN_11 -> Miscellaneous earnings | AY5: =IN_12 -> Children Edu. Allowance | AZ5: =IN_13 -> Other Earnings | BA5: =IN_14 -> Non-Taxable Allowance | BB5: =DED_1 -> PF | BC5: =DED_2 -> VPF | BD5: =DED_3 -> Professional Tax | BE5: =DED_4 -> Insurance | BF5: =DED_5 -> Income Tax | BG5: =DED_6 -> Loan | BH5: =DED_7 -> 0 | BI5: =DED_8 -> 0 | BJ5: =DED_9 -> 0 | BK5: =DED_10 -> 0 | BL5: =DED_11 -> 0 | BM5: =DED_12 -> 0 | BN5: =DED_13 -> 0 | BO5: =DED_14 -> 0 | BQ5: =COMP_1 -> PF | BR5: =COMP_2 -> Pension | BS5: =COMP_3 -> EDLI | BT5: =COMP_4 -> Superannuation | BU5: =COMP_5 -> PF Admin charges | BV5: =COMP_6 -> EDLI admin charges | BW5: Attn. | BX5: Status | BY5: Note | BZ5: =IN_1 -> Basic | CA5: =IN_2 -> ADDL Basic | CB5: =IN_3 -> DA | CC5: =IN_4 -> House Rent Allowance | CD5: =IN_5 -> Medical Allowance | CE5: =IN_6 -> Conveyance Allowance | CF5: =IN_7 -> Special Allowance | CG5: =IN_8 -> CCA | CH5: =IN_9 -> LTA | CI5: =IN_10 -> Shift allowance | CJ5: =IN_11 -> Miscellaneous earnings | CK5: =IN_12 -> Children Edu. Allowance | CL5: =IN_13 -> Other Earnings | CM5: =IN_14 -> Non-Taxable Allowance | CN5: =DED_1 -> PF | CO5: =DED_2 -> VPF | CP5: =DED_3 -> Professional Tax | CQ5: =DED_4 -> Insurance | CR5: =DED_5 -> Income Tax | CS5: =DED_6 -> Loan | CT5: =DED_7 -> 0 | CU5: =DED_8 -> 0 | CV5: =DED_9 -> 0 | CW5: =DED_10 -> 0 | CX5: =DED_11 -> 0 | CY5: =DED_12 -> 0 | CZ5: =DED_13 -> 0 | DA5: =DED_14 -> 0 | DC5: =COMP_1 -> PF | DD5: =COMP_2 -> Pension | DE5: =COMP_3 -> EDLI | DF5: =COMP_4 -> Superannuation | DG5: =COMP_5 -> PF Admin charges | DH5: =COMP_6 -> EDLI admin charges | DI5: Attn. | DJ5: Status | DK5: Note | DL5: =IN_1 -> Basic | DM5: =IN_2 -> ADDL Basic | DN5: =IN_3 -> DA | DO5: =IN_4 -> House Rent Allowance | DP5: =IN_5 -> Medical Allowance | DQ5: =IN_6 -> Conveyance Allowance | DR5: =IN_7 -> Special Allowance | DS5: =IN_8 -> CCA | DT5: =IN_9 -> LTA | DU5: =IN_10 -> Shift allowance | DV5: =IN_11 -> Miscellaneous earnings | DW5: =IN_12 -> Children Edu. Allowance | DX5: =IN_13 -> Other Earnings | DY5: =IN_14 -> Non-Taxable Allowance | DZ5: =DED_1 -> PF | EA5: =DED_2 -> VPF | EB5: =DED_3 -> Professional Tax | EC5: =DED_4 -> Insurance | ED5: =DED_5 -> Income Tax | EE5: =DED_6 -> Loan | EF5: =DED_7 -> 0 | EG5: =DED_8 -> 0 | EH5: =DED_9 -> 0 | EI5: =DED_10 -> 0 | EJ5: =DED_11 -> 0 | EK5: =DED_12 -> 0 | EL5: =DED_13 -> 0 | EM5: =DED_14 -> 0 | EO5: =COMP_1 -> PF | EP5: =COMP_2 -> Pension | EQ5: =COMP_3 -> EDLI | ER5: =COMP_4 -> Superannuation | ES5: =COMP_5 -> PF Admin charges | ET5: =COMP_6 -> EDLI admin charges | EU5: Attn. | EV5: Status | EW5: Note | EX5: =IN_1 -> Basic | EY5: =IN_2 -> ADDL Basic | EZ5: =IN_3 -> DA | FA5: =IN_4 -> House Rent Allowance | FB5: =IN_5 -> Medical Allowance | FC5: =IN_6 -> Conveyance Allowance | FD5: =IN_7 -> Special Allowance | FE5: =IN_8 -> CCA | FF5: =IN_9 -> LTA | FG5: =IN_10 -> Shift allowance | FH5: =IN_11 -> Miscellaneous earnings | FI5: =IN_12 -> Children Edu. Allowance | FJ5: =IN_13 -> Other Earnings | FK5: =IN_14 -> Non-Taxable Allowance | FL5: =DED_1 -> PF | FM5: =DED_2 -> VPF | FN5: =DED_3 -> Professional Tax | FO5: =DED_4 -> Insurance | FP5: =DED_5 -> Income Tax | FQ5: =DED_6 -> Loan | FR5: =DED_7 -> 0 | FS5: =DED_8 -> 0 | FT5: =DED_9 -> 0 | FU5: =DED_10 -> 0 | FV5: =DED_11 -> 0 | FW5: =DED_12 -> 0 | FX5: =DED_13 -> 0 | FY5: =DED_14 -> 0 | GA5: =COMP_1 -> PF | GB5: =COMP_2 -> Pension | GC5: =COMP_3 -> EDLI | GD5: =COMP_4 -> Superannuation | GE5: =COMP_5 -> PF Admin charges | GF5: =COMP_6 -> EDLI admin charges | GG5: Attn. | GH5: Status | GI5: Note | GJ5: =IN_1 -> Basic | GK5: =IN_2 -> ADDL Basic | GL5: =IN_3 -> DA | GM5: =IN_4 -> House Rent Allowance | GN5: =IN_5 -> Medical Allowance | GO5: =IN_6 -> Conveyance Allowance | GP5: =IN_7 -> Special Allowance | GQ5: =IN_8 -> CCA | GR5: =IN_9 -> LTA | GS5: =IN_10 -> Shift allowance | GT5: =IN_11 -> Miscellaneous earnings | GU5: =IN_12 -> Children Edu. Allowance | GV5: =IN_13 -> Other Earnings | GW5: =IN_14 -> Non-Taxable Allowance | GX5: =DED_1 -> PF | GY5: =DED_2 -> VPF | GZ5: =DED_3 -> Professional Tax | HA5: =DED_4 -> Insurance | HB5: =DED_5 -> Income Tax | HC5: =DED_6 -> Loan | HD5: =DED_7 -> 0 | HE5: =DED_8 -> 0 | HF5: =DED_9 -> 0 | HG5: =DED_10 -> 0 | HH5: =DED_11 -> 0 | HI5: =DED_12 -> 0 | HJ5: =DED_13 -> 0 | HK5: =DED_14 -> 0 | HM5: =COMP_1 -> PF | HN5: =COMP_2 -> Pension | HO5: =COMP_3 -> EDLI | HP5: =COMP_4 -> Superannuation | HQ5: =COMP_5 -> PF Admin charges | HR5: =COMP_6 -> EDLI admin charges | HS5: Attn. | HT5: Status | HU5: Note | HV5: =IN_1 -> Basic | HW5: =IN_2 -> ADDL Basic | HX5: =IN_3 -> DA | HY5: =IN_4 -> House Rent Allowance | HZ5: =IN_5 -> Medical Allowance | IA5: =IN_6 -> Conveyance Allowance | IB5: =IN_7 -> Special Allowance | IC5: =IN_8 -> CCA | ID5: =IN_9 -> LTA | IE5: =IN_10 -> Shift allowance | IF5: =IN_11 -> Miscellaneous earnings | IG5: =IN_12 -> Children Edu. Allowance | IH5: =IN_13 -> Other Earnings | II5: =IN_14 -> Non-Taxable Allowance | IJ5: =DED_1 -> PF | IK5: =DED_2 -> VPF | IL5: =DED_3 -> Professional Tax | IM5: =DED_4 -> Insurance | IN5: =DED_5 -> Income Tax | IO5: =DED_6 -> Loan | IP5: =DED_7 -> 0 | IQ5: =DED_8 -> 0 | IR5: =DED_9 -> 0 | IS5: =DED_10 -> 0 | IT5: =DED_11 -> 0 | IU5: =DED_12 -> 0 | IV5: =DED_13 -> 0 | IW5: =DED_14 -> 0 | IY5: =COMP_1 -> PF | IZ5: =COMP_2 -> Pension | JA5: =COMP_3 -> EDLI | JB5: =COMP_4 -> Superannuation | JC5: =COMP_5 -> PF Admin charges | JD5: =COMP_6 -> EDLI admin charges | JE5: Attn. | JF5: Status | JG5: Note | JH5: =IN_1 -> Basic | JI5: =IN_2 -> ADDL Basic | JJ5: =IN_3 -> DA | JK5: =IN_4 -> House Rent Allowance | JL5: =IN_5 -> Medical Allowance | JM5: =IN_6 -> Conveyance Allowance | JN5: =IN_7 -> Special Allowance | JO5: =IN_8 -> CCA | JP5: =IN_9 -> LTA | JQ5: =IN_10 -> Shift allowance | JR5: =IN_11 -> Miscellaneous earnings | JS5: =IN_12 -> Children Edu. Allowance | JT5: =IN_13 -> Other Earnings | JU5: =IN_14 -> Non-Taxable Allowance | JV5: =DED_1 -> PF | JW5: =DED_2 -> VPF | JX5: =DED_3 -> Professional Tax | JY5: =DED_4 -> Insurance | JZ5: =DED_5 -> Income Tax | KA5: =DED_6 -> Loan | KB5: =DED_7 -> 0 | KC5: =DED_8 -> 0 | KD5: =DED_9 -> 0 | KE5: =DED_10 -> 0 | KF5: =DED_11 -> 0 | KG5: =DED_12 -> 0 | KH5: =DED_13 -> 0 | KI5: =DED_14 -> 0 | KK5: =COMP_1 -> PF | KL5: =COMP_2 -> Pension | KM5: =COMP_3 -> EDLI | KN5: =COMP_4 -> Superannuation | KO5: =COMP_5 -> PF Admin charges | KP5: =COMP_6 -> EDLI admin charges | KQ5: Attn. | KR5: Status | KS5: Note | KT5: =IN_1 -> Basic | KU5: =IN_2 -> ADDL Basic | KV5: =IN_3 -> DA | KW5: =IN_4 -> House Rent Allowance | KX5: =IN_5 -> Medical Allowance | KY5: =IN_6 -> Conveyance Allowance | KZ5: =IN_7 -> Special Allowance | LA5: =IN_8 -> CCA | LB5: =IN_9 -> LTA | LC5: =IN_10 -> Shift allowance | LD5: =IN_11 -> Miscellaneous earnings | LE5: =IN_12 -> Children Edu. Allowance | LF5: =IN_13 -> Other Earnings | LG5: =IN_14 -> Non-Taxable Allowance | LH5: =DED_1 -> PF | LI5: =DED_2 -> VPF | LJ5: =DED_3 -> Professional Tax | LK5: =DED_4 -> Insurance | LL5: =DED_5 -> Income Tax | LM5: =DED_6 -> Loan | LN5: =DED_7 -> 0 | LO5: =DED_8 -> 0 | LP5: =DED_9 -> 0 | LQ5: =DED_10 -> 0 | LR5: =DED_11 -> 0 | LS5: =DED_12 -> 0 | LT5: =DED_13 -> 0 | LU5: =DED_14 -> 0 | LW5: =COMP_1 -> PF | LX5: =COMP_2 -> Pension | LY5: =COMP_3 -> EDLI | LZ5: =COMP_4 -> Superannuation | MA5: =COMP_5 -> PF Admin charges | MB5: =COMP_6 -> EDLI admin charges | MC5: Attn. | MD5: Status | ME5: Note | MF5: =IN_1 -> Basic | MG5: =IN_2 -> ADDL Basic | MH5: =IN_3 -> DA | MI5: =IN_4 -> House Rent Allowance | MJ5: =IN_5 -> Medical Allowance | MK5: =IN_6 -> Conveyance Allowance | ML5: =IN_7 -> Special Allowance | MM5: =IN_8 -> CCA | MN5: =IN_9 -> LTA | MO5: =IN_10 -> Shift allowance | MP5: =IN_11 -> Miscellaneous earnings | MQ5: =IN_12 -> Children Edu. Allowance | MR5: =IN_13 -> Other Earnings | MS5: =IN_14 -> Non-Taxable Allowance | MT5: =DED_1 -> PF | MU5: =DED_2 -> VPF | MV5: =DED_3 -> Professional Tax | MW5: =DED_4 -> Insurance | MX5: =DED_5 -> Income Tax | MY5: =DED_6 -> Loan | MZ5: =DED_7 -> 0 | NA5: =DED_8 -> 0 | NB5: =DED_9 -> 0 | NC5: =DED_10 -> 0 | ND5: =DED_11 -> 0 | NE5: =DED_12 -> 0 | NF5: =DED_13 -> 0 | NG5: =DED_14 -> 0 | NI5: =COMP_1 -> PF | NJ5: =COMP_2 -> Pension | NK5: =COMP_3 -> EDLI | NL5: =COMP_4 -> Superannuation | NM5: =COMP_5 -> PF Admin charges | NN5: =COMP_6 -> EDLI admin charges | NO5: Attn. | NP5: Status | NQ5: Note | NR5: =IN_1 -> Basic | NS5: =IN_2 -> ADDL Basic | NT5: =IN_3 -> DA | NU5: =IN_4 -> House Rent Allowance | NV5: =IN_5 -> Medical Allowance | NW5: =IN_6 -> Conveyance Allowance | NX5: =IN_7 -> Special Allowance | NY5: =IN_8 -> CCA | NZ5: =IN_9 -> LTA | OA5: =IN_10 -> Shift allowance | OB5: =IN_11 -> Miscellaneous earnings | OC5: =IN_12 -> Children Edu. Allowance | OD5: =IN_13 -> Other Earnings | OE5: =IN_14 -> Non-Taxable Allowance | OF5: =DED_1 -> PF | OG5: =DED_2 -> VPF | OH5: =DED_3 -> Professional Tax | OI5: =DED_4 -> Insurance | OJ5: =DED_5 -> Income Tax | OK5: =DED_6 -> Loan | OL5: =DED_7 -> 0 | OM5: =DED_8 -> 0 | ON5: =DED_9 -> 0 | OO5: =DED_10 -> 0 | OP5: =DED_11 -> 0 | OQ5: =DED_12 -> 0 | OR5: =DED_13 -> 0 | OS5: =DED_14 -> 0 | OU5: =COMP_1 -> PF | OV5: =COMP_2 -> Pension | OW5: =COMP_3 -> EDLI | OX5: =COMP_4 -> Superannuation | OY5: =COMP_5 -> PF Admin charges | OZ5: =COMP_6 -> EDLI admin charges | PA5: Attn. | PB5: Status | PC5: Note | PD5: =IN_1 -> Basic | PE5: =IN_2 -> ADDL Basic | PF5: =IN_3 -> DA | PG5: =IN_4 -> House Rent Allowance | PH5: =IN_5 -> Medical Allowance | PI5: =IN_6 -> Conveyance Allowance | PJ5: =IN_7 -> Special Allowance | PK5: =IN_8 -> CCA | PL5: =IN_9 -> LTA | PM5: =IN_10 -> Shift allowance | PN5: =IN_11 -> Miscellaneous earnings | PO5: =IN_12 -> Children Edu. Allowance | PP5: =IN_13 -> Other Earnings | PQ5: =IN_14 -> Non-Taxable Allowance | PR5: =DED_1 -> PF | PS5: =DED_2 -> VPF | PT5: =DED_3 -> Professional Tax | PU5: =DED_4 -> Insurance | PV5: =DED_5 -> Income Tax | PW5: =DED_6 -> Loan | PX5: =DED_7 -> 0 | PY5: =DED_8 -> 0 | PZ5: =DED_9 -> 0 | QA5: =DED_10 -> 0 | QB5: =DED_11 -> 0 | QC5: =DED_12 -> 0 | QD5: =DED_13 -> 0 | QE5: =DED_14 -> 0 | QG5: =COMP_1 -> PF | QH5: =COMP_2 -> Pension | QI5: =COMP_3 -> EDLI | QJ5: =COMP_4 -> Superannuation | QK5: =COMP_5 -> PF Admin charges | QL5: =COMP_6 -> EDLI admin charges | QM5: Attn. | QN5: Status | QO5: Note | QP5: =IN_1 -> Basic | QQ5: =IN_2 -> ADDL Basic | QR5: =IN_3 -> DA | QS5: =IN_4 -> House Rent Allowance | QT5: =IN_5 -> Medical Allowance | QU5: =IN_6 -> Conveyance Allowance | QV5: =IN_7 -> Special Allowance | QW5: =IN_8 -> CCA | QX5: =IN_9 -> LTA | QY5: =IN_10 -> Shift allowance | QZ5: =IN_11 -> Miscellaneous earnings | RA5: =IN_12 -> Children Edu. Allowance | RB5: =IN_13 -> Other Earnings | RC5: =IN_14 -> Non-Taxable Allowance | RD5: =DED_1 -> PF | RE5: =DED_2 -> VPF | RF5: =DED_3 -> Professional Tax | RG5: =DED_4 -> Insurance | RH5: =DED_5 -> Income Tax | RI5: =DED_6 -> Loan | RJ5: =DED_7 -> 0 | RK5: =DED_8 -> 0 | RL5: =DED_9 -> 0 | RM5: =DED_10 -> 0 | RN5: =DED_11 -> 0 | RO5: =DED_12 -> 0 | RP5: =DED_13 -> 0 | RQ5: =DED_14 -> 0 | RS5: =COMP_1 -> PF | RT5: =COMP_2 -> Pension | RU5: =COMP_3 -> EDLI | RV5: =COMP_4 -> Superannuation | RW5: =COMP_5 -> PF Admin charges | RX5: =COMP_6 -> EDLI admin charges | RY5: Attn. | RZ5: Status | SA5: Note | SB5: Total Salary Income | SC5: Superannuation Contribution | SD5: Perquisites-1 | SE5: Perquisites-2 | SF5: LTA Income Projected | SG5: Conveyance Allowance Exempted | SH5: Children Edu. Allowance | SI5: Medical Allowance Exempted | SJ5: LTA Claim | SK5: HRA | SL5: Professional Tax | SM5: Income from previous employer | SN5: Income from Salary | SO5: Income from HP | SP5: Income from OS | SQ5: Gross Total Income | SR5: PF Contribution (80C) | SS5: LIC Deduction in Salary | ST5: Other Deductions under 80C, 80CCC& 80CCD | SU5: Limited to Rs. 15,0000 | SV5: Contribution to NPS (Sec 80CCD (1b) | SW5: 80CCG (RGESS) | SX5: 80D (Medical Insurance) | SY5: 80DD (Rehabilitation of Handicapped Dependent) | SZ5: 80DDB (Medical Expenditure on Self or Dependent) | TA5: 80E (Interest on Loan for Higher Studies) | TB5: 80TTA (Interest on Savings account) | TC5: 80U (Physical Disability) | TD5: Total Deduction | TE5: Total Income (A-B) | TF5: Tax on Total Income | TG5: Rebate U/S 87A | TH5: Tax Payable after rebate | TI5: Education Cess @4% | TJ5: Tax Payable | TK5: Less: Relief under section 89(1) | TL5: Tax Payable after relief | TM5: TDS Deducted by Others | TN5: Tax Deducted till now | TO5: Balance Tax Payable/ (Refundable) | TP5: TDS Per Month for balance period | TR5: Standard Deduction
A6: 1 | B6: =IF(STATUS1="Done",DATABASE!B6,IF(STATUS1="This Month",'Salary Process'!D5,'Salary Master'!D4)) -> 50000 | C6: =IF(STATUS1="Done",DATABASE!C6,IF(STATUS1="This Month",'Salary Process'!E5,'Salary Master'!E4)) -> 2000 | D6: =IF(STATUS1="Done",DATABASE!D6,IF(STATUS1="This Month",'Salary Process'!F5,'Salary Master'!F4)) -> 0 | E6: =IF(STATUS1="Done",DATABASE!E6,IF(STATUS1="This Month",'Salary Process'!G5,'Salary Master'!G4)) -> 25000 | F6: =IF(STATUS1="Done",DATABASE!F6,IF(STATUS1="This Month",'Salary Process'!H5,'Salary Master'!H4)) -> 2000 | G6: =IF(STATUS1="Done",DATABASE!G6,IF(STATUS1="This Month",'Salary Process'!I5,'Salary Master'!I4)) -> 5000 | H6: =IF(STATUS1="Done",DATABASE!H6,IF(STATUS1="This Month",'Salary Process'!J5,'Salary Master'!J4)) -> 38621 | I6: =IF(STATUS1="Done",DATABASE!I6,IF(STATUS1="This Month",'Salary Process'!K5,'Salary Master'!K4)) -> 3000 | J6: =IF(STATUS1="Done",DATABASE!J6,IF(STATUS1="This Month",'Salary Process'!L5,'Salary Master'!L4)) -> 0 | K6: =IF(STATUS1="Done",DATABASE!K6,IF(STATUS1="This Month",'Salary Process'!M5,'Salary Master'!M4)) -> 0 | L6: =IF(STATUS1="Done",DATABASE!L6,IF(STATUS1="This Month",'Salary Process'!N5,'Salary Master'!N4)) -> 0 | M6: =IF(STATUS1="Done",DATABASE!M6,IF(STATUS1="This Month",'Salary Process'!O5,'Salary Master'!O4)) -> 0 | N6: =IF(STATUS1="Done",DATABASE!N6,IF(STATUS1="This Month",'Salary Process'!P5,'Salary Master'!P4)) -> 0 | O6: =IF(STATUS1="Done",DATABASE!O6,IF(STATUS1="This Month",'Salary Process'!Q5,'Salary Master'!Q4)) -> 0 | P6: =IF(STATUS1="Done",DATABASE!P6,IF(STATUS1="This Month",'Salary Process'!R5,'Salary Master'!R4)) -> 6240 | Q6: =IF(STATUS1="Done",DATABASE!Q6,IF(STATUS1="This Month",'Salary Process'!S5,'Salary Master'!S4)) -> 0 | R6: =IF(STATUS1="Done",DATABASE!R6,IF(STATUS1="This Month",'Salary Process'!T5,'Salary Master'!T4)) -> 200 | S6: =IF(STATUS1="Done",DATABASE!S6,IF(STATUS1="This Month",'Salary Process'!U5,'Salary Master'!U4)) -> 0 | T6: =IF(STATUS1="Done",DATABASE!T6,IF(STATUS1="This Month",'Salary Process'!V5,'Salary Master'!V4)) -> 0 | U6: =IF(STATUS1="Done",DATABASE!U6,IF(STATUS1="This Month",'Salary Process'!W5,'Salary Master'!W4)) -> 0 | V6: =IF(STATUS1="Done",DATABASE!V6,IF(STATUS1="This Month",'Salary Process'!X5,'Salary Master'!X4)) -> 108 | W6: =IF(STATUS1="Done",DATABASE!W6,IF(STATUS1="This Month",'Salary Process'!Y5,'Salary Master'!Y4)) -> 0 | X6: =IF(STATUS1="Done",DATABASE!X6,IF(STATUS1="This Month",'Salary Process'!Z5,'Salary Master'!Z4)) -> 0 | Y6: =IF(STATUS1="Done",DATABASE!Y6,IF(STATUS1="This Month",'Salary Process'!AA5,'Salary Master'!AA4)) -> 0 | Z6: =IF(STATUS1="Done",DATABASE!Z6,IF(STATUS1="This Month",'Salary Process'!AB5,'Salary Master'!AB4)) -> 0 | AA6: =IF(STATUS1="Done",DATABASE!AA6,IF(STATUS1="This Month",'Salary Process'!AC5,'Salary Master'!AC4)) -> 0 | AB6: =IF(STATUS1="Done",DATABASE!AB6,IF(STATUS1="This Month",'Salary Process'!AD5,'Salary Master'!AD4)) -> 0 | AC6: =IF(STATUS1="Done",DATABASE!AC6,IF(STATUS1="This Month",'Salary Process'!AE5,'Salary Master'!AE4)) -> 0 | AD6: =IF(STATUS1="Done",DATABASE!AD6,IF(STATUS1="This Month",'Salary Process'!AF5,'Salary Master'!AF4)) -> 119073 | AE6: =IF(STATUS1="Done",DATABASE!AE6,IF(STATUS1="This Month",'Salary Process'!AG5,'Salary Master'!AG4)) -> 4990 | AF6: =IF(STATUS1="Done",DATABASE!AF6,IF(STATUS1="This Month",'Salary Process'!AH5,'Salary Master'!AH4)) -> 1250 | AG6: =IF(STATUS1="Done",DATABASE!AG6,IF(STATUS1="This Month",'Salary Process'!AI5,'Salary Master'!AI4)) -> 75 | AH6: =IF(STATUS1="Done",DATABASE!AH6,IF(STATUS1="This Month",'Salary Process'!AJ5,'Salary Master'!AJ4)) -> 5200 | AI6: =IF(STATUS1="Done",DATABASE!AI6,IF(STATUS1="This Month",'Salary Process'!AK5,'Salary Master'!AK4)) -> 442 | AJ6: =IF(STATUS1="Done",DATABASE!AJ6,IF(STATUS1="This Month",'Salary Process'!AL5,'Salary Master'!AL4)) -> 1.5 | AN6: =IF(STATUS2="Done",DATABASE!AN6,IF(STATUS2="This Month",'Salary Process'!D5,'Salary Master'!D4)) -> 50000 | AO6: =IF(STATUS2="Done",DATABASE!AO6,IF(STATUS2="This Month",'Salary Process'!E5,'Salary Master'!E4)) -> 2000 | AP6: =IF(STATUS2="Done",DATABASE!AP6,IF(STATUS2="This Month",'Salary Process'!F5,'Salary Master'!F4)) -> 0 | AQ6: =IF(STATUS2="Done",DATABASE!AQ6,IF(STATUS2="This Month",'Salary Process'!G5,'Salary Master'!G4)) -> 25000 | AR6: =IF(STATUS2="Done",DATABASE!AR6,IF(STATUS2="This Month",'Salary Process'!H5,'Salary Master'!H4)) -> 2000 | AS6: =IF(STATUS2="Done",DATABASE!AS6,IF(STATUS2="This Month",'Salary Process'!I5,'Salary Master'!I4)) -> 5000 | AT6: =IF(STATUS2="Done",DATABASE!AT6,IF(STATUS2="This Month",'Salary Process'!J5,'Salary Master'!J4)) -> 38621 | AU6: =IF(STATUS2="Done",DATABASE!AU6,IF(STATUS2="This Month",'Salary Process'!K5,'Salary Master'!K4)) -> 3000 | AV6: =IF(STATUS2="Done",DATABASE!AV6,IF(STATUS2="This Month",'Salary Process'!L5,'Salary Master'!L4)) -> 0 | AW6: =IF(STATUS2="Done",DATABASE!AW6,IF(STATUS2="This Month",'Salary Process'!M5,'Salary Master'!M4)) -> 0 | AX6: =IF(STATUS2="Done",DATABASE!AX6,IF(STATUS2="This Month",'Salary Process'!N5,'Salary Master'!N4)) -> 0 | AY6: =IF(STATUS2="Done",DATABASE!AY6,IF(STATUS2="This Month",'Salary Process'!O5,'Salary Master'!O4)) -> 0 | AZ6: =IF(STATUS2="Done",DATABASE!AZ6,IF(STATUS2="This Month",'Salary Process'!P5,'Salary Master'!P4)) -> 0 | BA6: =IF(STATUS2="Done",DATABASE!BA6,IF(STATUS2="This Month",'Salary Process'!Q5,'Salary Master'!Q4)) -> 0 | BB6: =IF(STATUS2="Done",DATABASE!BB6,IF(STATUS2="This Month",'Salary Process'!R5,'Salary Master'!R4)) -> 6240 | BC6: =IF(STATUS2="Done",DATABASE!BC6,IF(STATUS2="This Month",'Salary Process'!S5,'Salary Master'!S4)) -> 0 | BD6: =IF(STATUS2="Done",DATABASE!BD6,IF(STATUS2="This Month",'Salary Process'!T5,'Salary Master'!T4)) -> 200 | BE6: =IF(STATUS2="Done",DATABASE!BE6,IF(STATUS2="This Month",'Salary Process'!U5,'Salary Master'!U4)) -> 0 | BF6: =IF(STATUS2="Done",DATABASE!BF6,IF(STATUS2="This Month",'Salary Process'!V5,'Salary Master'!V4)) -> 0 | BG6: =IF(STATUS2="Done",DATABASE!BG6,IF(STATUS2="This Month",'Salary Process'!W5,'Salary Master'!W4)) -> 0 | BH6: =IF(STATUS2="Done",DATABASE!BH6,IF(STATUS2="This Month",'Salary Process'!X5,'Salary Master'!X4)) -> 108 | BI6: =IF(STATUS2="Done",DATABASE!BI6,IF(STATUS2="This Month",'Salary Process'!Y5,'Salary Master'!Y4)) -> 0 | BJ6: =IF(STATUS2="Done",DATABASE!BJ6,IF(STATUS2="This Month",'Salary Process'!Z5,'Salary Master'!Z4)) -> 0 | BK6: =IF(STATUS2="Done",DATABASE!BK6,IF(STATUS2="This Month",'Salary Process'!AA5,'Salary Master'!AA4)) -> 0 | BL6: =IF(STATUS2="Done",DATABASE!BL6,IF(STATUS2="This Month",'Salary Process'!AB5,'Salary Master'!AB4)) -> 0 | BM6: =IF(STATUS2="Done",DATABASE!BM6,IF(STATUS2="This Month",'Salary Process'!AC5,'Salary Master'!AC4)) -> 0 | BN6: =IF(STATUS2="Done",DATABASE!BN6,IF(STATUS2="This Month",'Salary Process'!AD5,'Salary Master'!AD4)) -> 0 | BO6: =IF(STATUS2="Done",DATABASE!BO6,IF(STATUS2="This Month",'Salary Process'!AE5,'Salary Master'!AE4)) -> 0 | BP6: =IF(STATUS2="Done",DATABASE!BP6,IF(STATUS2="This Month",'Salary Process'!AF5,'Salary Master'!AF4)) -> 119073 | BQ6: =IF(STATUS2="Done",DATABASE!BQ6,IF(STATUS2="This Month",'Salary Process'!AG5,'Salary Master'!AG4)) -> 4990 | BR6: =IF(STATUS2="Done",DATABASE!BR6,IF(STATUS2="This Month",'Salary Process'!AH5,'Salary Master'!AH4)) -> 1250 | BS6: =IF(STATUS2="Done",DATABASE!BS6,IF(STATUS2="This Month",'Salary Process'!AI5,'Salary Master'!AI4)) -> 75 | BT6: =IF(STATUS2="Done",DATABASE!BT6,IF(STATUS2="This Month",'Salary Process'!AJ5,'Salary Master'!AJ4)) -> 5200 | BU6: =IF(STATUS2="Done",DATABASE!BU6,IF(STATUS2="This Month",'Salary Process'!AK5,'Salary Master'!AK4)) -> 442 | BV6: =IF(STATUS2="Done",DATABASE!BV6,IF(STATUS2="This Month",'Salary Process'!AL5,'Salary Master'!AL4)) -> 1.5 | BZ6: =IF(STATUS3="Done",DATABASE!BZ6,IF(STATUS3="This Month",'Salary Process'!D5,'Salary Master'!D4)) -> 50000 | CA6: =IF(STATUS3="Done",DATABASE!CA6,IF(STATUS3="This Month",'Salary Process'!E5,'Salary Master'!E4)) -> 2000 | CB6: =IF(STATUS3="Done",DATABASE!CB6,IF(STATUS3="This Month",'Salary Process'!F5,'Salary Master'!F4)) -> 0 | CC6: =IF(STATUS3="Done",DATABASE!CC6,IF(STATUS3="This Month",'Salary Process'!G5,'Salary Master'!G4)) -> 25000 | CD6: =IF(STATUS3="Done",DATABASE!CD6,IF(STATUS3="This Month",'Salary Process'!H5,'Salary Master'!H4)) -> 2000 | CE6: =IF(STATUS3="Done",DATABASE!CE6,IF(STATUS3="This Month",'Salary Process'!I5,'Salary Master'!I4)) -> 5000 | CF6: =IF(STATUS3="Done",DATABASE!CF6,IF(STATUS3="This Month",'Salary Process'!J5,'Salary Master'!J4)) -> 38621 | CG6: =IF(STATUS3="Done",DATABASE!CG6,IF(STATUS3="This Month",'Salary Process'!K5,'Salary Master'!K4)) -> 3000 | CH6: =IF(STATUS3="Done",DATABASE!CH6,IF(STATUS3="This Month",'Salary Process'!L5,'Salary Master'!L4)) -> 0 | CI6: =IF(STATUS3="Done",DATABASE!CI6,IF(STATUS3="This Month",'Salary Process'!M5,'Salary Master'!M4)) -> 0 | CJ6: =IF(STATUS3="Done",DATABASE!CJ6,IF(STATUS3="This Month",'Salary Process'!N5,'Salary Master'!N4)) -> 0 | CK6: =IF(STATUS3="Done",DATABASE!CK6,IF(STATUS3="This Month",'Salary Process'!O5,'Salary Master'!O4)) -> 0 | CL6: =IF(STATUS3="Done",DATABASE!CL6,IF(STATUS3="This Month",'Salary Process'!P5,'Salary Master'!P4)) -> 0 | CM6: =IF(STATUS3="Done",DATABASE!CM6,IF(STATUS3="This Month",'Salary Process'!Q5,'Salary Master'!Q4)) -> 0 | CN6: =IF(STATUS3="Done",DATABASE!CN6,IF(STATUS3="This Month",'Salary Process'!R5,'Salary Master'!R4)) -> 6240 | CO6: =IF(STATUS3="Done",DATABASE!CO6,IF(STATUS3="This Month",'Salary Process'!S5,'Salary Master'!S4)) -> 0 | CP6: =IF(STATUS3="Done",DATABASE!CP6,IF(STATUS3="This Month",'Salary Process'!T5,'Salary Master'!T4)) -> 200 | CQ6: =IF(STATUS3="Done",DATABASE!CQ6,IF(STATUS3="This Month",'Salary Process'!U5,'Salary Master'!U4)) -> 0 | CR6: =IF(STATUS3="Done",DATABASE!CR6,IF(STATUS3="This Month",'Salary Process'!V5,'Salary Master'!V4)) -> 0 | CS6: =IF(STATUS3="Done",DATABASE!CS6,IF(STATUS3="This Month",'Salary Process'!W5,'Salary Master'!W4)) -> 0 | CT6: =IF(STATUS3="Done",DATABASE!CT6,IF(STATUS3="This Month",'Salary Process'!X5,'Salary Master'!X4)) -> 108 | CU6: =IF(STATUS3="Done",DATABASE!CU6,IF(STATUS3="This Month",'Salary Process'!Y5,'Salary Master'!Y4)) -> 0 | CV6: =IF(STATUS3="Done",DATABASE!CV6,IF(STATUS3="This Month",'Salary Process'!Z5,'Salary Master'!Z4)) -> 0 | CW6: =IF(STATUS3="Done",DATABASE!CW6,IF(STATUS3="This Month",'Salary Process'!AA5,'Salary Master'!AA4)) -> 0 | CX6: =IF(STATUS3="Done",DATABASE!CX6,IF(STATUS3="This Month",'Salary Process'!AB5,'Salary Master'!AB4)) -> 0 | CY6: =IF(STATUS3="Done",DATABASE!CY6,IF(STATUS3="This Month",'Salary Process'!AC5,'Salary Master'!AC4)) -> 0 | CZ6: =IF(STATUS3="Done",DATABASE!CZ6,IF(STATUS3="This Month",'Salary Process'!AD5,'Salary Master'!AD4)) -> 0 | DA6: =IF(STATUS3="Done",DATABASE!DA6,IF(STATUS3="This Month",'Salary Process'!AE5,'Salary Master'!AE4)) -> 0 | DB6: =IF(STATUS3="Done",DATABASE!DB6,IF(STATUS3="This Month",'Salary Process'!AF5,'Salary Master'!AF4)) -> 119073 | DC6: =IF(STATUS3="Done",DATABASE!DC6,IF(STATUS3="This Month",'Salary Process'!AG5,'Salary Master'!AG4)) -> 4990 | DD6: =IF(STATUS3="Done",DATABASE!DD6,IF(STATUS3="This Month",'Salary Process'!AH5,'Salary Master'!AH4)) -> 1250 | DE6: =IF(STATUS3="Done",DATABASE!DE6,IF(STATUS3="This Month",'Salary Process'!AI5,'Salary Master'!AI4)) -> 75 | DF6: =IF(STATUS3="Done",DATABASE!DF6,IF(STATUS3="This Month",'Salary Process'!AJ5,'Salary Master'!AJ4)) -> 5200 | DG6: =IF(STATUS3="Done",DATABASE!DG6,IF(STATUS3="This Month",'Salary Process'!AK5,'Salary Master'!AK4)) -> 442 | DH6: =IF(STATUS3="Done",DATABASE!DH6,IF(STATUS3="This Month",'Salary Process'!AL5,'Salary Master'!AL4)) -> 1.5 | DL6: =IF(STATUS4="Done",DATABASE!DL6,IF(STATUS4="This Month",'Salary Process'!D5,'Salary Master'!D4)) -> 50000 | DM6: =IF(STATUS4="Done",DATABASE!DM6,IF(STATUS4="This Month",'Salary Process'!E5,'Salary Master'!E4)) -> 2000 | DN6: =IF(STATUS4="Done",DATABASE!DN6,IF(STATUS4="This Month",'Salary Process'!F5,'Salary Master'!F4)) -> 0 | DO6: =IF(STATUS4="Done",DATABASE!DO6,IF(STATUS4="This Month",'Salary Process'!G5,'Salary Master'!G4)) -> 25000 | DP6: =IF(STATUS4="Done",DATABASE!DP6,IF(STATUS4="This Month",'Salary Process'!H5,'Salary Master'!H4)) -> 2000 | DQ6: =IF(STATUS4="Done",DATABASE!DQ6,IF(STATUS4="This Month",'Salary Process'!I5,'Salary Master'!I4)) -> 5000 | DR6: =IF(STATUS4="Done",DATABASE!DR6,IF(STATUS4="This Month",'Salary Process'!J5,'Salary Master'!J4)) -> 38621 | DS6: =IF(STATUS4="Done",DATABASE!DS6,IF(STATUS4="This Month",'Salary Process'!K5,'Salary Master'!K4)) -> 3000 | DT6: =IF(STATUS4="Done",DATABASE!DT6,IF(STATUS4="This Month",'Salary Process'!L5,'Salary Master'!L4)) -> 0 | DU6: =IF(STATUS4="Done",DATABASE!DU6,IF(STATUS4="This Month",'Salary Process'!M5,'Salary Master'!M4)) -> 0 | DV6: =IF(STATUS4="Done",DATABASE!DV6,IF(STATUS4="This Month",'Salary Process'!N5,'Salary Master'!N4)) -> 0 | DW6: =IF(STATUS4="Done",DATABASE!DW6,IF(STATUS4="This Month",'Salary Process'!O5,'Salary Master'!O4)) -> 0 | DX6: =IF(STATUS4="Done",DATABASE!DX6,IF(STATUS4="This Month",'Salary Process'!P5,'Salary Master'!P4)) -> 0 | DY6: =IF(STATUS4="Done",DATABASE!DY6,IF(STATUS4="This Month",'Salary Process'!Q5,'Salary Master'!Q4)) -> 0 | DZ6: =IF(STATUS4="Done",DATABASE!DZ6,IF(STATUS4="This Month",'Salary Process'!R5,'Salary Master'!R4)) -> 6240 | EA6: =IF(STATUS4="Done",DATABASE!EA6,IF(STATUS4="This Month",'Salary Process'!S5,'Salary Master'!S4)) -> 0 | EB6: =IF(STATUS4="Done",DATABASE!EB6,IF(STATUS4="This Month",'Salary Process'!T5,'Salary Master'!T4)) -> 200 | EC6: =IF(STATUS4="Done",DATABASE!EC6,IF(STATUS4="This Month",'Salary Process'!U5,'Salary Master'!U4)) -> 0 | ED6: =IF(STATUS4="Done",DATABASE!ED6,IF(STATUS4="This Month",'Salary Process'!V5,'Salary Master'!V4)) -> 0 | EE6: =IF(STATUS4="Done",DATABASE!EE6,IF(STATUS4="This Month",'Salary Process'!W5,'Salary Master'!W4)) -> 0 | EF6: =IF(STATUS4="Done",DATABASE!EF6,IF(STATUS4="This Month",'Salary Process'!X5,'Salary Master'!X4)) -> 108 | EG6: =IF(STATUS4="Done",DATABASE!EG6,IF(STATUS4="This Month",'Salary Process'!Y5,'Salary Master'!Y4)) -> 0 | EH6: =IF(STATUS4="Done",DATABASE!EH6,IF(STATUS4="This Month",'Salary Process'!Z5,'Salary Master'!Z4)) -> 0 | EI6: =IF(STATUS4="Done",DATABASE!EI6,IF(STATUS4="This Month",'Salary Process'!AA5,'Salary Master'!AA4)) -> 0 | EJ6: =IF(STATUS4="Done",DATABASE!EJ6,IF(STATUS4="This Month",'Salary Process'!AB5,'Salary Master'!AB4)) -> 0 | EK6: =IF(STATUS4="Done",DATABASE!EK6,IF(STATUS4="This Month",'Salary Process'!AC5,'Salary Master'!AC4)) -> 0 | EL6: =IF(STATUS4="Done",DATABASE!EL6,IF(STATUS4="This Month",'Salary Process'!AD5,'Salary Master'!AD4)) -> 0 | EM6: =IF(STATUS4="Done",DATABASE!EM6,IF(STATUS4="This Month",'Salary Process'!AE5,'Salary Master'!AE4)) -> 0 | EN6: =IF(STATUS4="Done",DATABASE!EN6,IF(STATUS4="This Month",'Salary Process'!AF5,'Salary Master'!AF4)) -> 119073 | EO6: =IF(STATUS4="Done",DATABASE!EO6,IF(STATUS4="This Month",'Salary Process'!AG5,'Salary Master'!AG4)) -> 4990 | EP6: =IF(STATUS4="Done",DATABASE!EP6,IF(STATUS4="This Month",'Salary Process'!AH5,'Salary Master'!AH4)) -> 1250 | EQ6: =IF(STATUS4="Done",DATABASE!EQ6,IF(STATUS4="This Month",'Salary Process'!AI5,'Salary Master'!AI4)) -> 75 | ER6: =IF(STATUS4="Done",DATABASE!ER6,IF(STATUS4="This Month",'Salary Process'!AJ5,'Salary Master'!AJ4)) -> 5200 | ES6: =IF(STATUS4="Done",DATABASE!ES6,IF(STATUS4="This Month",'Salary Process'!AK5,'Salary Master'!AK4)) -> 442 | ET6: =IF(STATUS4="Done",DATABASE!ET6,IF(STATUS4="This Month",'Salary Process'!AL5,'Salary Master'!AL4)) -> 1.5 | EX6: =IF(STATUS5="Done",DATABASE!EX6,IF(STATUS5="This Month",'Salary Process'!D5,'Salary Master'!D4)) -> 50000 | EY6: =IF(STATUS5="Done",DATABASE!EY6,IF(STATUS5="This Month",'Salary Process'!E5,'Salary Master'!E4)) -> 2000 | EZ6: =IF(STATUS5="Done",DATABASE!EZ6,IF(STATUS5="This Month",'Salary Process'!F5,'Salary Master'!F4)) -> 0 | FA6: =IF(STATUS5="Done",DATABASE!FA6,IF(STATUS5="This Month",'Salary Process'!G5,'Salary Master'!G4)) -> 25000 | FB6: =IF(STATUS5="Done",DATABASE!FB6,IF(STATUS5="This Month",'Salary Process'!H5,'Salary Master'!H4)) -> 2000 | FC6: =IF(STATUS5="Done",DATABASE!FC6,IF(STATUS5="This Month",'Salary Process'!I5,'Salary Master'!I4)) -> 5000 | FD6: =IF(STATUS5="Done",DATABASE!FD6,IF(STATUS5="This Month",'Salary Process'!J5,'Salary Master'!J4)) -> 38621 | FE6: =IF(STATUS5="Done",DATABASE!FE6,IF(STATUS5="This Month",'Salary Process'!K5,'Salary Master'!K4)) -> 3000 | FF6: =IF(STATUS5="Done",DATABASE!FF6,IF(STATUS5="This Month",'Salary Process'!L5,'Salary Master'!L4)) -> 0 | FG6: =IF(STATUS5="Done",DATABASE!FG6,IF(STATUS5="This Month",'Salary Process'!M5,'Salary Master'!M4)) -> 0 | FH6: =IF(STATUS5="Done",DATABASE!FH6,IF(STATUS5="This Month",'Salary Process'!N5,'Salary Master'!N4)) -> 0 | FI6: =IF(STATUS5="Done",DATABASE!FI6,IF(STATUS5="This Month",'Salary Process'!O5,'Salary Master'!O4)) -> 0 | FJ6: =IF(STATUS5="Done",DATABASE!FJ6,IF(STATUS5="This Month",'Salary Process'!P5,'Salary Master'!P4)) -> 0 | FK6: =IF(STATUS5="Done",DATABASE!FK6,IF(STATUS5="This Month",'Salary Process'!Q5,'Salary Master'!Q4)) -> 0 | FL6: =IF(STATUS5="Done",DATABASE!FL6,IF(STATUS5="This Month",'Salary Process'!R5,'Salary Master'!R4)) -> 6240 | FM6: =IF(STATUS5="Done",DATABASE!FM6,IF(STATUS5="This Month",'Salary Process'!S5,'Salary Master'!S4)) -> 0 | FN6: =IF(STATUS5="Done",DATABASE!FN6,IF(STATUS5="This Month",'Salary Process'!T5,'Salary Master'!T4)) -> 200 | FO6: =IF(STATUS5="Done",DATABASE!FO6,IF(STATUS5="This Month",'Salary Process'!U5,'Salary Master'!U4)) -> 0 | FP6: =IF(STATUS5="Done",DATABASE!FP6,IF(STATUS5="This Month",'Salary Process'!V5,'Salary Master'!V4)) -> 0 | FQ6: =IF(STATUS5="Done",DATABASE!FQ6,IF(STATUS5="This Month",'Salary Process'!W5,'Salary Master'!W4)) -> 0 | FR6: =IF(STATUS5="Done",DATABASE!FR6,IF(STATUS5="This Month",'Salary Process'!X5,'Salary Master'!X4)) -> 108 | FS6: =IF(STATUS5="Done",DATABASE!FS6,IF(STATUS5="This Month",'Salary Process'!Y5,'Salary Master'!Y4)) -> 0 | FT6: =IF(STATUS5="Done",DATABASE!FT6,IF(STATUS5="This Month",'Salary Process'!Z5,'Salary Master'!Z4)) -> 0 | FU6: =IF(STATUS5="Done",DATABASE!FU6,IF(STATUS5="This Month",'Salary Process'!AA5,'Salary Master'!AA4)) -> 0 | FV6: =IF(STATUS5="Done",DATABASE!FV6,IF(STATUS5="This Month",'Salary Process'!AB5,'Salary Master'!AB4)) -> 0 | FW6: =IF(STATUS5="Done",DATABASE!FW6,IF(STATUS5="This Month",'Salary Process'!AC5,'Salary Master'!AC4)) -> 0 | FX6: =IF(STATUS5="Done",DATABASE!FX6,IF(STATUS5="This Month",'Salary Process'!AD5,'Salary Master'!AD4)) -> 0 | FY6: =IF(STATUS5="Done",DATABASE!FY6,IF(STATUS5="This Month",'Salary Process'!AE5,'Salary Master'!AE4)) -> 0 | FZ6: =IF(STATUS5="Done",DATABASE!FZ6,IF(STATUS5="This Month",'Salary Process'!AF5,'Salary Master'!AF4)) -> 119073 | GA6: =IF(STATUS5="Done",DATABASE!GA6,IF(STATUS5="This Month",'Salary Process'!AG5,'Salary Master'!AG4)) -> 4990 | GB6: =IF(STATUS5="Done",DATABASE!GB6,IF(STATUS5="This Month",'Salary Process'!AH5,'Salary Master'!AH4)) -> 1250 | GC6: =IF(STATUS5="Done",DATABASE!GC6,IF(STATUS5="This Month",'Salary Process'!AI5,'Salary Master'!AI4)) -> 75 | GD6: =IF(STATUS5="Done",DATABASE!GD6,IF(STATUS5="This Month",'Salary Process'!AJ5,'Salary Master'!AJ4)) -> 5200 | GE6: =IF(STATUS5="Done",DATABASE!GE6,IF(STATUS5="This Month",'Salary Process'!AK5,'Salary Master'!AK4)) -> 442 | GF6: =IF(STATUS5="Done",DATABASE!GF6,IF(STATUS5="This Month",'Salary Process'!AL5,'Salary Master'!AL4)) -> 1.5 | GJ6: =IF(STATUS6="Done",DATABASE!GJ6,IF(STATUS6="This Month",'Salary Process'!D5,'Salary Master'!D4)) -> 50000 | GK6: =IF(STATUS6="Done",DATABASE!GK6,IF(STATUS6="This Month",'Salary Process'!E5,'Salary Master'!E4)) -> 2000 | GL6: =IF(STATUS6="Done",DATABASE!GL6,IF(STATUS6="This Month",'Salary Process'!F5,'Salary Master'!F4)) -> 0 | GM6: =IF(STATUS6="Done",DATABASE!GM6,IF(STATUS6="This Month",'Salary Process'!G5,'Salary Master'!G4)) -> 25000 | GN6: =IF(STATUS6="Done",DATABASE!GN6,IF(STATUS6="This Month",'Salary Process'!H5,'Salary Master'!H4)) -> 2000 | GO6: =IF(STATUS6="Done",DATABASE!GO6,IF(STATUS6="This Month",'Salary Process'!I5,'Salary Master'!I4)) -> 5000 | GP6: =IF(STATUS6="Done",DATABASE!GP6,IF(STATUS6="This Month",'Salary Process'!J5,'Salary Master'!J4)) -> 38621 | GQ6: =IF(STATUS6="Done",DATABASE!GQ6,IF(STATUS6="This Month",'Salary Process'!K5,'Salary Master'!K4)) -> 3000 | GR6: =IF(STATUS6="Done",DATABASE!GR6,IF(STATUS6="This Month",'Salary Process'!L5,'Salary Master'!L4)) -> 0 | GS6: =IF(STATUS6="Done",DATABASE!GS6,IF(STATUS6="This Month",'Salary Process'!M5,'Salary Master'!M4)) -> 0 | GT6: =IF(STATUS6="Done",DATABASE!GT6,IF(STATUS6="This Month",'Salary Process'!N5,'Salary Master'!N4)) -> 0 | GU6: =IF(STATUS6="Done",DATABASE!GU6,IF(STATUS6="This Month",'Salary Process'!O5,'Salary Master'!O4)) -> 0 | GV6: =IF(STATUS6="Done",DATABASE!GV6,IF(STATUS6="This Month",'Salary Process'!P5,'Salary Master'!P4)) -> 0 | GW6: =IF(STATUS6="Done",DATABASE!GW6,IF(STATUS6="This Month",'Salary Process'!Q5,'Salary Master'!Q4)) -> 0 | GX6: =IF(STATUS6="Done",DATABASE!GX6,IF(STATUS6="This Month",'Salary Process'!R5,'Salary Master'!R4)) -> 6240 | GY6: =IF(STATUS6="Done",DATABASE!GY6,IF(STATUS6="This Month",'Salary Process'!S5,'Salary Master'!S4)) -> 0 | GZ6: =IF(STATUS6="Done",DATABASE!GZ6,IF(STATUS6="This Month",'Salary Process'!T5,'Salary Master'!T4)) -> 200 | HA6: =IF(STATUS6="Done",DATABASE!HA6,IF(STATUS6="This Month",'Salary Process'!U5,'Salary Master'!U4)) -> 0 | HB6: =IF(STATUS6="Done",DATABASE!HB6,IF(STATUS6="This Month",'Salary Process'!V5,'Salary Master'!V4)) -> 0 | HC6: =IF(STATUS6="Done",DATABASE!HC6,IF(STATUS6="This Month",'Salary Process'!W5,'Salary Master'!W4)) -> 0 | HD6: =IF(STATUS6="Done",DATABASE!HD6,IF(STATUS6="This Month",'Salary Process'!X5,'Salary Master'!X4)) -> 108 | HE6: =IF(STATUS6="Done",DATABASE!HE6,IF(STATUS6="This Month",'Salary Process'!Y5,'Salary Master'!Y4)) -> 0 | HF6: =IF(STATUS6="Done",DATABASE!HF6,IF(STATUS6="This Month",'Salary Process'!Z5,'Salary Master'!Z4)) -> 0 | HG6: =IF(STATUS6="Done",DATABASE!HG6,IF(STATUS6="This Month",'Salary Process'!AA5,'Salary Master'!AA4)) -> 0 | HH6: =IF(STATUS6="Done",DATABASE!HH6,IF(STATUS6="This Month",'Salary Process'!AB5,'Salary Master'!AB4)) -> 0 | HI6: =IF(STATUS6="Done",DATABASE!HI6,IF(STATUS6="This Month",'Salary Process'!AC5,'Salary Master'!AC4)) -> 0 | HJ6: =IF(STATUS6="Done",DATABASE!HJ6,IF(STATUS6="This Month",'Salary Process'!AD5,'Salary Master'!AD4)) -> 0 | HK6: =IF(STATUS6="Done",DATABASE!HK6,IF(STATUS6="This Month",'Salary Process'!AE5,'Salary Master'!AE4)) -> 0 | HL6: =IF(STATUS6="Done",DATABASE!HL6,IF(STATUS6="This Month",'Salary Process'!AF5,'Salary Master'!AF4)) -> 119073 | HM6: =IF(STATUS6="Done",DATABASE!HM6,IF(STATUS6="This Month",'Salary Process'!AG5,'Salary Master'!AG4)) -> 4990 | HN6: =IF(STATUS6="Done",DATABASE!HN6,IF(STATUS6="This Month",'Salary Process'!AH5,'Salary Master'!AH4)) -> 1250 | HO6: =IF(STATUS6="Done",DATABASE!HO6,IF(STATUS6="This Month",'Salary Process'!AI5,'Salary Master'!AI4)) -> 75 | HP6: =IF(STATUS6="Done",DATABASE!HP6,IF(STATUS6="This Month",'Salary Process'!AJ5,'Salary Master'!AJ4)) -> 5200 | HQ6: =IF(STATUS6="Done",DATABASE!HQ6,IF(STATUS6="This Month",'Salary Process'!AK5,'Salary Master'!AK4)) -> 442 | HR6: =IF(STATUS6="Done",DATABASE!HR6,IF(STATUS6="This Month",'Salary Process'!AL5,'Salary Master'!AL4)) -> 1.5 | HV6: =IF(STATUS7="Done",DATABASE!HV6,IF(STATUS7="This Month",'Salary Process'!D5,'Salary Master'!D4)) -> 50000 | HW6: =IF(STATUS7="Done",DATABASE!HW6,IF(STATUS7="This Month",'Salary Process'!E5,'Salary Master'!E4)) -> 2000 | HX6: =IF(STATUS7="Done",DATABASE!HX6,IF(STATUS7="This Month",'Salary Process'!F5,'Salary Master'!F4)) -> 0 | HY6: =IF(STATUS7="Done",DATABASE!HY6,IF(STATUS7="This Month",'Salary Process'!G5,'Salary Master'!G4)) -> 25000 | HZ6: =IF(STATUS7="Done",DATABASE!HZ6,IF(STATUS7="This Month",'Salary Process'!H5,'Salary Master'!H4)) -> 2000 | IA6: =IF(STATUS7="Done",DATABASE!IA6,IF(STATUS7="This Month",'Salary Process'!I5,'Salary Master'!I4)) -> 5000 | IB6: =IF(STATUS7="Done",DATABASE!IB6,IF(STATUS7="This Month",'Salary Process'!J5,'Salary Master'!J4)) -> 38621 | IC6: =IF(STATUS7="Done",DATABASE!IC6,IF(STATUS7="This Month",'Salary Process'!K5,'Salary Master'!K4)) -> 3000 | ID6: =IF(STATUS7="Done",DATABASE!ID6,IF(STATUS7="This Month",'Salary Process'!L5,'Salary Master'!L4)) -> 0 | IE6: =IF(STATUS7="Done",DATABASE!IE6,IF(STATUS7="This Month",'Salary Process'!M5,'Salary Master'!M4)) -> 0 | IF6: =IF(STATUS7="Done",DATABASE!IF6,IF(STATUS7="This Month",'Salary Process'!N5,'Salary Master'!N4)) -> 0 | IG6: =IF(STATUS7="Done",DATABASE!IG6,IF(STATUS7="This Month",'Salary Process'!O5,'Salary Master'!O4)) -> 0 | IH6: =IF(STATUS7="Done",DATABASE!IH6,IF(STATUS7="This Month",'Salary Process'!P5,'Salary Master'!P4)) -> 0 | II6: =IF(STATUS7="Done",DATABASE!II6,IF(STATUS7="This Month",'Salary Process'!Q5,'Salary Master'!Q4)) -> 0 | IJ6: =IF(STATUS7="Done",DATABASE!IJ6,IF(STATUS7="This Month",'Salary Process'!R5,'Salary Master'!R4)) -> 6240 | IK6: =IF(STATUS7="Done",DATABASE!IK6,IF(STATUS7="This Month",'Salary Process'!S5,'Salary Master'!S4)) -> 0 | IL6: =IF(STATUS7="Done",DATABASE!IL6,IF(STATUS7="This Month",'Salary Process'!T5,'Salary Master'!T4)) -> 200 | IM6: =IF(STATUS7="Done",DATABASE!IM6,IF(STATUS7="This Month",'Salary Process'!U5,'Salary Master'!U4)) -> 0 | IN6: =IF(STATUS7="Done",DATABASE!IN6,IF(STATUS7="This Month",'Salary Process'!V5,'Salary Master'!V4)) -> 0 | IO6: =IF(STATUS7="Done",DATABASE!IO6,IF(STATUS7="This Month",'Salary Process'!W5,'Salary Master'!W4)) -> 0 | IP6: =IF(STATUS7="Done",DATABASE!IP6,IF(STATUS7="This Month",'Salary Process'!X5,'Salary Master'!X4)) -> 108 | IQ6: =IF(STATUS7="Done",DATABASE!IQ6,IF(STATUS7="This Month",'Salary Process'!Y5,'Salary Master'!Y4)) -> 0 | IR6: =IF(STATUS7="Done",DATABASE!IR6,IF(STATUS7="This Month",'Salary Process'!Z5,'Salary Master'!Z4)) -> 0 | IS6: =IF(STATUS7="Done",DATABASE!IS6,IF(STATUS7="This Month",'Salary Process'!AA5,'Salary Master'!AA4)) -> 0 | IT6: =IF(STATUS7="Done",DATABASE!IT6,IF(STATUS7="This Month",'Salary Process'!AB5,'Salary Master'!AB4)) -> 0 | IU6: =IF(STATUS7="Done",DATABASE!IU6,IF(STATUS7="This Month",'Salary Process'!AC5,'Salary Master'!AC4)) -> 0 | IV6: =IF(STATUS7="Done",DATABASE!IV6,IF(STATUS7="This Month",'Salary Process'!AD5,'Salary Master'!AD4)) -> 0 | IW6: =IF(STATUS7="Done",DATABASE!IW6,IF(STATUS7="This Month",'Salary Process'!AE5,'Salary Master'!AE4)) -> 0 | IX6: =IF(STATUS7="Done",DATABASE!IX6,IF(STATUS7="This Month",'Salary Process'!AF5,'Salary Master'!AF4)) -> 119073 | IY6: =IF(STATUS7="Done",DATABASE!IY6,IF(STATUS7="This Month",'Salary Process'!AG5,'Salary Master'!AG4)) -> 4990 | IZ6: =IF(STATUS7="Done",DATABASE!IZ6,IF(STATUS7="This Month",'Salary Process'!AH5,'Salary Master'!AH4)) -> 1250 | JA6: =IF(STATUS7="Done",DATABASE!JA6,IF(STATUS7="This Month",'Salary Process'!AI5,'Salary Master'!AI4)) -> 75 | JB6: =IF(STATUS7="Done",DATABASE!JB6,IF(STATUS7="This Month",'Salary Process'!AJ5,'Salary Master'!AJ4)) -> 5200 | JC6: =IF(STATUS7="Done",DATABASE!JC6,IF(STATUS7="This Month",'Salary Process'!AK5,'Salary Master'!AK4)) -> 442 | JD6: =IF(STATUS7="Done",DATABASE!JD6,IF(STATUS7="This Month",'Salary Process'!AL5,'Salary Master'!AL4)) -> 1.5 | JH6: =IF(STATUS8="Done",DATABASE!JH6,IF(STATUS8="This Month",'Salary Process'!D5,'Salary Master'!D4)) -> 50000 | JI6: =IF(STATUS8="Done",DATABASE!JI6,IF(STATUS8="This Month",'Salary Process'!E5,'Salary Master'!E4)) -> 2000 | JJ6: =IF(STATUS8="Done",DATABASE!JJ6,IF(STATUS8="This Month",'Salary Process'!F5,'Salary Master'!F4)) -> 0 | JK6: =IF(STATUS8="Done",DATABASE!JK6,IF(STATUS8="This Month",'Salary Process'!G5,'Salary Master'!G4)) -> 25000 | JL6: =IF(STATUS8="Done",DATABASE!JL6,IF(STATUS8="This Month",'Salary Process'!H5,'Salary Master'!H4)) -> 2000 | JM6: =IF(STATUS8="Done",DATABASE!JM6,IF(STATUS8="This Month",'Salary Process'!I5,'Salary Master'!I4)) -> 5000 | JN6: =IF(STATUS8="Done",DATABASE!JN6,IF(STATUS8="This Month",'Salary Process'!J5,'Salary Master'!J4)) -> 38621 | JO6: =IF(STATUS8="Done",DATABASE!JO6,IF(STATUS8="This Month",'Salary Process'!K5,'Salary Master'!K4)) -> 3000 | JP6: =IF(STATUS8="Done",DATABASE!JP6,IF(STATUS8="This Month",'Salary Process'!L5,'Salary Master'!L4)) -> 0 | JQ6: =IF(STATUS8="Done",DATABASE!JQ6,IF(STATUS8="This Month",'Salary Process'!M5,'Salary Master'!M4)) -> 0 | JR6: =IF(STATUS8="Done",DATABASE!JR6,IF(STATUS8="This Month",'Salary Process'!N5,'Salary Master'!N4)) -> 0 | JS6: =IF(STATUS8="Done",DATABASE!JS6,IF(STATUS8="This Month",'Salary Process'!O5,'Salary Master'!O4)) -> 0 | JT6: =IF(STATUS8="Done",DATABASE!JT6,IF(STATUS8="This Month",'Salary Process'!P5,'Salary Master'!P4)) -> 0 | JU6: =IF(STATUS8="Done",DATABASE!JU6,IF(STATUS8="This Month",'Salary Process'!Q5,'Salary Master'!Q4)) -> 0 | JV6: =IF(STATUS8="Done",DATABASE!JV6,IF(STATUS8="This Month",'Salary Process'!R5,'Salary Master'!R4)) -> 6240 | JW6: =IF(STATUS8="Done",DATABASE!JW6,IF(STATUS8="This Month",'Salary Process'!S5,'Salary Master'!S4)) -> 0 | JX6: =IF(STATUS8="Done",DATABASE!JX6,IF(STATUS8="This Month",'Salary Process'!T5,'Salary Master'!T4)) -> 200 | JY6: =IF(STATUS8="Done",DATABASE!JY6,IF(STATUS8="This Month",'Salary Process'!U5,'Salary Master'!U4)) -> 0 | JZ6: =IF(STATUS8="Done",DATABASE!JZ6,IF(STATUS8="This Month",'Salary Process'!V5,'Salary Master'!V4)) -> 0 | KA6: =IF(STATUS8="Done",DATABASE!KA6,IF(STATUS8="This Month",'Salary Process'!W5,'Salary Master'!W4)) -> 0 | KB6: =IF(STATUS8="Done",DATABASE!KB6,IF(STATUS8="This Month",'Salary Process'!X5,'Salary Master'!X4)) -> 108 | KC6: =IF(STATUS8="Done",DATABASE!KC6,IF(STATUS8="This Month",'Salary Process'!Y5,'Salary Master'!Y4)) -> 0 | KD6: =IF(STATUS8="Done",DATABASE!KD6,IF(STATUS8="This Month",'Salary Process'!Z5,'Salary Master'!Z4)) -> 0 | KE6: =IF(STATUS8="Done",DATABASE!KE6,IF(STATUS8="This Month",'Salary Process'!AA5,'Salary Master'!AA4)) -> 0 | KF6: =IF(STATUS8="Done",DATABASE!KF6,IF(STATUS8="This Month",'Salary Process'!AB5,'Salary Master'!AB4)) -> 0 | KG6: =IF(STATUS8="Done",DATABASE!KG6,IF(STATUS8="This Month",'Salary Process'!AC5,'Salary Master'!AC4)) -> 0 | KH6: =IF(STATUS8="Done",DATABASE!KH6,IF(STATUS8="This Month",'Salary Process'!AD5,'Salary Master'!AD4)) -> 0 | KI6: =IF(STATUS8="Done",DATABASE!KI6,IF(STATUS8="This Month",'Salary Process'!AE5,'Salary Master'!AE4)) -> 0 | KJ6: =IF(STATUS8="Done",DATABASE!KJ6,IF(STATUS8="This Month",'Salary Process'!AF5,'Salary Master'!AF4)) -> 119073 | KK6: =IF(STATUS8="Done",DATABASE!KK6,IF(STATUS8="This Month",'Salary Process'!AG5,'Salary Master'!AG4)) -> 4990 | KL6: =IF(STATUS8="Done",DATABASE!KL6,IF(STATUS8="This Month",'Salary Process'!AH5,'Salary Master'!AH4)) -> 1250 | KM6: =IF(STATUS8="Done",DATABASE!KM6,IF(STATUS8="This Month",'Salary Process'!AI5,'Salary Master'!AI4)) -> 75 | KN6: =IF(STATUS8="Done",DATABASE!KN6,IF(STATUS8="This Month",'Salary Process'!AJ5,'Salary Master'!AJ4)) -> 5200 | KO6: =IF(STATUS8="Done",DATABASE!KO6,IF(STATUS8="This Month",'Salary Process'!AK5,'Salary Master'!AK4)) -> 442 | KP6: =IF(STATUS8="Done",DATABASE!KP6,IF(STATUS8="This Month",'Salary Process'!AL5,'Salary Master'!AL4)) -> 1.5 | KT6: =IF(STATUS9="Done",DATABASE!KT6,IF(STATUS9="This Month",'Salary Process'!D5,'Salary Master'!D4)) -> 50000 | KU6: =IF(STATUS9="Done",DATABASE!KU6,IF(STATUS9="This Month",'Salary Process'!E5,'Salary Master'!E4)) -> 2000 | KV6: =IF(STATUS9="Done",DATABASE!KV6,IF(STATUS9="This Month",'Salary Process'!F5,'Salary Master'!F4)) -> 0 | KW6: =IF(STATUS9="Done",DATABASE!KW6,IF(STATUS9="This Month",'Salary Process'!G5,'Salary Master'!G4)) -> 25000 | KX6: =IF(STATUS9="Done",DATABASE!KX6,IF(STATUS9="This Month",'Salary Process'!H5,'Salary Master'!H4)) -> 2000 | KY6: =IF(STATUS9="Done",DATABASE!KY6,IF(STATUS9="This Month",'Salary Process'!I5,'Salary Master'!I4)) -> 5000 | KZ6: =IF(STATUS9="Done",DATABASE!KZ6,IF(STATUS9="This Month",'Salary Process'!J5,'Salary Master'!J4)) -> 38621 | LA6: =IF(STATUS9="Done",DATABASE!LA6,IF(STATUS9="This Month",'Salary Process'!K5,'Salary Master'!K4)) -> 3000 | LB6: =IF(STATUS9="Done",DATABASE!LB6,IF(STATUS9="This Month",'Salary Process'!L5,'Salary Master'!L4)) -> 0 | LC6: =IF(STATUS9="Done",DATABASE!LC6,IF(STATUS9="This Month",'Salary Process'!M5,'Salary Master'!M4)) -> 0 | LD6: =IF(STATUS9="Done",DATABASE!LD6,IF(STATUS9="This Month",'Salary Process'!N5,'Salary Master'!N4)) -> 0 | LE6: =IF(STATUS9="Done",DATABASE!LE6,IF(STATUS9="This Month",'Salary Process'!O5,'Salary Master'!O4)) -> 0 | LF6: =IF(STATUS9="Done",DATABASE!LF6,IF(STATUS9="This Month",'Salary Process'!P5,'Salary Master'!P4)) -> 0 | LG6: =IF(STATUS9="Done",DATABASE!LG6,IF(STATUS9="This Month",'Salary Process'!Q5,'Salary Master'!Q4)) -> 0 | LH6: =IF(STATUS9="Done",DATABASE!LH6,IF(STATUS9="This Month",'Salary Process'!R5,'Salary Master'!R4)) -> 6240 | LI6: =IF(STATUS9="Done",DATABASE!LI6,IF(STATUS9="This Month",'Salary Process'!S5,'Salary Master'!S4)) -> 0 | LJ6: =IF(STATUS9="Done",DATABASE!LJ6,IF(STATUS9="This Month",'Salary Process'!T5,'Salary Master'!T4)) -> 200 | LK6: =IF(STATUS9="Done",DATABASE!LK6,IF(STATUS9="This Month",'Salary Process'!U5,'Salary Master'!U4)) -> 0 | LL6: =IF(STATUS9="Done",DATABASE!LL6,IF(STATUS9="This Month",'Salary Process'!V5,'Salary Master'!V4)) -> 0 | LM6: =IF(STATUS9="Done",DATABASE!LM6,IF(STATUS9="This Month",'Salary Process'!W5,'Salary Master'!W4)) -> 0 | LN6: =IF(STATUS9="Done",DATABASE!LN6,IF(STATUS9="This Month",'Salary Process'!X5,'Salary Master'!X4)) -> 108 | LO6: =IF(STATUS9="Done",DATABASE!LO6,IF(STATUS9="This Month",'Salary Process'!Y5,'Salary Master'!Y4)) -> 0 | LP6: =IF(STATUS9="Done",DATABASE!LP6,IF(STATUS9="This Month",'Salary Process'!Z5,'Salary Master'!Z4)) -> 0 | LQ6: =IF(STATUS9="Done",DATABASE!LQ6,IF(STATUS9="This Month",'Salary Process'!AA5,'Salary Master'!AA4)) -> 0 | LR6: =IF(STATUS9="Done",DATABASE!LR6,IF(STATUS9="This Month",'Salary Process'!AB5,'Salary Master'!AB4)) -> 0 | LS6: =IF(STATUS9="Done",DATABASE!LS6,IF(STATUS9="This Month",'Salary Process'!AC5,'Salary Master'!AC4)) -> 0 | LT6: =IF(STATUS9="Done",DATABASE!LT6,IF(STATUS9="This Month",'Salary Process'!AD5,'Salary Master'!AD4)) -> 0 | LU6: =IF(STATUS9="Done",DATABASE!LU6,IF(STATUS9="This Month",'Salary Process'!AE5,'Salary Master'!AE4)) -> 0 | LV6: =IF(STATUS9="Done",DATABASE!LV6,IF(STATUS9="This Month",'Salary Process'!AF5,'Salary Master'!AF4)) -> 119073 | LW6: =IF(STATUS9="Done",DATABASE!LW6,IF(STATUS9="This Month",'Salary Process'!AG5,'Salary Master'!AG4)) -> 4990 | LX6: =IF(STATUS9="Done",DATABASE!LX6,IF(STATUS9="This Month",'Salary Process'!AH5,'Salary Master'!AH4)) -> 1250 | LY6: =IF(STATUS9="Done",DATABASE!LY6,IF(STATUS9="This Month",'Salary Process'!AI5,'Salary Master'!AI4)) -> 75 | LZ6: =IF(STATUS9="Done",DATABASE!LZ6,IF(STATUS9="This Month",'Salary Process'!AJ5,'Salary Master'!AJ4)) -> 5200 | MA6: =IF(STATUS9="Done",DATABASE!MA6,IF(STATUS9="This Month",'Salary Process'!AK5,'Salary Master'!AK4)) -> 442 | MB6: =IF(STATUS9="Done",DATABASE!MB6,IF(STATUS9="This Month",'Salary Process'!AL5,'Salary Master'!AL4)) -> 1.5 | MF6: =IF(STATUS10="Done",DATABASE!MF6,IF(STATUS10="This Month",'Salary Process'!D5,'Salary Master'!D4)) -> 50000 | MG6: =IF(STATUS10="Done",DATABASE!MG6,IF(STATUS10="This Month",'Salary Process'!E5,'Salary Master'!E4)) -> 2000 | MH6: =IF(STATUS10="Done",DATABASE!MH6,IF(STATUS10="This Month",'Salary Process'!F5,'Salary Master'!F4)) -> 0 | MI6: =IF(STATUS10="Done",DATABASE!MI6,IF(STATUS10="This Month",'Salary Process'!G5,'Salary Master'!G4)) -> 25000 | MJ6: =IF(STATUS10="Done",DATABASE!MJ6,IF(STATUS10="This Month",'Salary Process'!H5,'Salary Master'!H4)) -> 2000 | MK6: =IF(STATUS10="Done",DATABASE!MK6,IF(STATUS10="This Month",'Salary Process'!I5,'Salary Master'!I4)) -> 5000 | ML6: =IF(STATUS10="Done",DATABASE!ML6,IF(STATUS10="This Month",'Salary Process'!J5,'Salary Master'!J4)) -> 38621 | MM6: =IF(STATUS10="Done",DATABASE!MM6,IF(STATUS10="This Month",'Salary Process'!K5,'Salary Master'!K4)) -> 3000 | MN6: =IF(STATUS10="Done",DATABASE!MN6,IF(STATUS10="This Month",'Salary Process'!L5,'Salary Master'!L4)) -> 0 | MO6: =IF(STATUS10="Done",DATABASE!MO6,IF(STATUS10="This Month",'Salary Process'!M5,'Salary Master'!M4)) -> 0 | MP6: =IF(STATUS10="Done",DATABASE!MP6,IF(STATUS10="This Month",'Salary Process'!N5,'Salary Master'!N4)) -> 0 | MQ6: =IF(STATUS10="Done",DATABASE!MQ6,IF(STATUS10="This Month",'Salary Process'!O5,'Salary Master'!O4)) -> 0 | MR6: =IF(STATUS10="Done",DATABASE!MR6,IF(STATUS10="This Month",'Salary Process'!P5,'Salary Master'!P4)) -> 0 | MS6: =IF(STATUS10="Done",DATABASE!MS6,IF(STATUS10="This Month",'Salary Process'!Q5,'Salary Master'!Q4)) -> 0 | MT6: =IF(STATUS10="Done",DATABASE!MT6,IF(STATUS10="This Month",'Salary Process'!R5,'Salary Master'!R4)) -> 6240 | MU6: =IF(STATUS10="Done",DATABASE!MU6,IF(STATUS10="This Month",'Salary Process'!S5,'Salary Master'!S4)) -> 0 | MV6: =IF(STATUS10="Done",DATABASE!MV6,IF(STATUS10="This Month",'Salary Process'!T5,'Salary Master'!T4)) -> 200 | MW6: =IF(STATUS10="Done",DATABASE!MW6,IF(STATUS10="This Month",'Salary Process'!U5,'Salary Master'!U4)) -> 0 | MX6: =IF(STATUS10="Done",DATABASE!MX6,IF(STATUS10="This Month",'Salary Process'!V5,'Salary Master'!V4)) -> 0 | MY6: =IF(STATUS10="Done",DATABASE!MY6,IF(STATUS10="This Month",'Salary Process'!W5,'Salary Master'!W4)) -> 0 | MZ6: =IF(STATUS10="Done",DATABASE!MZ6,IF(STATUS10="This Month",'Salary Process'!X5,'Salary Master'!X4)) -> 108 | NA6: =IF(STATUS10="Done",DATABASE!NA6,IF(STATUS10="This Month",'Salary Process'!Y5,'Salary Master'!Y4)) -> 0 | NB6: =IF(STATUS10="Done",DATABASE!NB6,IF(STATUS10="This Month",'Salary Process'!Z5,'Salary Master'!Z4)) -> 0 | NC6: =IF(STATUS10="Done",DATABASE!NC6,IF(STATUS10="This Month",'Salary Process'!AA5,'Salary Master'!AA4)) -> 0 | ND6: =IF(STATUS10="Done",DATABASE!ND6,IF(STATUS10="This Month",'Salary Process'!AB5,'Salary Master'!AB4)) -> 0 | NE6: =IF(STATUS10="Done",DATABASE!NE6,IF(STATUS10="This Month",'Salary Process'!AC5,'Salary Master'!AC4)) -> 0 | NF6: =IF(STATUS10="Done",DATABASE!NF6,IF(STATUS10="This Month",'Salary Process'!AD5,'Salary Master'!AD4)) -> 0 | NG6: =IF(STATUS10="Done",DATABASE!NG6,IF(STATUS10="This Month",'Salary Process'!AE5,'Salary Master'!AE4)) -> 0 | NH6: =IF(STATUS10="Done",DATABASE!NH6,IF(STATUS10="This Month",'Salary Process'!AF5,'Salary Master'!AF4)) -> 119073 | NI6: =IF(STATUS10="Done",DATABASE!NI6,IF(STATUS10="This Month",'Salary Process'!AG5,'Salary Master'!AG4)) -> 4990 | NJ6: =IF(STATUS10="Done",DATABASE!NJ6,IF(STATUS10="This Month",'Salary Process'!AH5,'Salary Master'!AH4)) -> 1250 | NK6: =IF(STATUS10="Done",DATABASE!NK6,IF(STATUS10="This Month",'Salary Process'!AI5,'Salary Master'!AI4)) -> 75 | NL6: =IF(STATUS10="Done",DATABASE!NL6,IF(STATUS10="This Month",'Salary Process'!AJ5,'Salary Master'!AJ4)) -> 5200 | NM6: =IF(STATUS10="Done",DATABASE!NM6,IF(STATUS10="This Month",'Salary Process'!AK5,'Salary Master'!AK4)) -> 442 | NN6: =IF(STATUS10="Done",DATABASE!NN6,IF(STATUS10="This Month",'Salary Process'!AL5,'Salary Master'!AL4)) -> 1.5 | NR6: =IF(STATUS11="Done",DATABASE!NR6,IF(STATUS11="This Month",'Salary Process'!D5,'Salary Master'!D4)) -> 50000 | NS6: =IF(STATUS11="Done",DATABASE!NS6,IF(STATUS11="This Month",'Salary Process'!E5,'Salary Master'!E4)) -> 2000 | NT6: =IF(STATUS11="Done",DATABASE!NT6,IF(STATUS11="This Month",'Salary Process'!F5,'Salary Master'!F4)) -> 0 | NU6: =IF(STATUS11="Done",DATABASE!NU6,IF(STATUS11="This Month",'Salary Process'!G5,'Salary Master'!G4)) -> 25000 | NV6: =IF(STATUS11="Done",DATABASE!NV6,IF(STATUS11="This Month",'Salary Process'!H5,'Salary Master'!H4)) -> 2000 | NW6: =IF(STATUS11="Done",DATABASE!NW6,IF(STATUS11="This Month",'Salary Process'!I5,'Salary Master'!I4)) -> 5000 | NX6: =IF(STATUS11="Done",DATABASE!NX6,IF(STATUS11="This Month",'Salary Process'!J5,'Salary Master'!J4)) -> 38621 | NY6: =IF(STATUS11="Done",DATABASE!NY6,IF(STATUS11="This Month",'Salary Process'!K5,'Salary Master'!K4)) -> 3000 | NZ6: =IF(STATUS11="Done",DATABASE!NZ6,IF(STATUS11="This Month",'Salary Process'!L5,'Salary Master'!L4)) -> 0 | OA6: =IF(STATUS11="Done",DATABASE!OA6,IF(STATUS11="This Month",'Salary Process'!M5,'Salary Master'!M4)) -> 0 | OB6: =IF(STATUS11="Done",DATABASE!OB6,IF(STATUS11="This Month",'Salary Process'!N5,'Salary Master'!N4)) -> 0 | OC6: =IF(STATUS11="Done",DATABASE!OC6,IF(STATUS11="This Month",'Salary Process'!O5,'Salary Master'!O4)) -> 0 | OD6: =IF(STATUS11="Done",DATABASE!OD6,IF(STATUS11="This Month",'Salary Process'!P5,'Salary Master'!P4)) -> 0 | OE6: =IF(STATUS11="Done",DATABASE!OE6,IF(STATUS11="This Month",'Salary Process'!Q5,'Salary Master'!Q4)) -> 0 | OF6: =IF(STATUS11="Done",DATABASE!OF6,IF(STATUS11="This Month",'Salary Process'!R5,'Salary Master'!R4)) -> 6240 | OG6: =IF(STATUS11="Done",DATABASE!OG6,IF(STATUS11="This Month",'Salary Process'!S5,'Salary Master'!S4)) -> 0 | OH6: =IF(STATUS11="Done",DATABASE!OH6,IF(STATUS11="This Month",'Salary Process'!T5,'Salary Master'!T4)) -> 200 | OI6: =IF(STATUS11="Done",DATABASE!OI6,IF(STATUS11="This Month",'Salary Process'!U5,'Salary Master'!U4)) -> 0 | OJ6: =IF(STATUS11="Done",DATABASE!OJ6,IF(STATUS11="This Month",'Salary Process'!V5,'Salary Master'!V4)) -> 0 | OK6: =IF(STATUS11="Done",DATABASE!OK6,IF(STATUS11="This Month",'Salary Process'!W5,'Salary Master'!W4)) -> 0 | OL6: =IF(STATUS11="Done",DATABASE!OL6,IF(STATUS11="This Month",'Salary Process'!X5,'Salary Master'!X4)) -> 108 | OM6: =IF(STATUS11="Done",DATABASE!OM6,IF(STATUS11="This Month",'Salary Process'!Y5,'Salary Master'!Y4)) -> 0 | ON6: =IF(STATUS11="Done",DATABASE!ON6,IF(STATUS11="This Month",'Salary Process'!Z5,'Salary Master'!Z4)) -> 0 | OO6: =IF(STATUS11="Done",DATABASE!OO6,IF(STATUS11="This Month",'Salary Process'!AA5,'Salary Master'!AA4)) -> 0 | OP6: =IF(STATUS11="Done",DATABASE!OP6,IF(STATUS11="This Month",'Salary Process'!AB5,'Salary Master'!AB4)) -> 0 | OQ6: =IF(STATUS11="Done",DATABASE!OQ6,IF(STATUS11="This Month",'Salary Process'!AC5,'Salary Master'!AC4)) -> 0 | OR6: =IF(STATUS11="Done",DATABASE!OR6,IF(STATUS11="This Month",'Salary Process'!AD5,'Salary Master'!AD4)) -> 0 | OS6: =IF(STATUS11="Done",DATABASE!OS6,IF(STATUS11="This Month",'Salary Process'!AE5,'Salary Master'!AE4)) -> 0 | OT6: =IF(STATUS11="Done",DATABASE!OT6,IF(STATUS11="This Month",'Salary Process'!AF5,'Salary Master'!AF4)) -> 119073 | OU6: =IF(STATUS11="Done",DATABASE!OU6,IF(STATUS11="This Month",'Salary Process'!AG5,'Salary Master'!AG4)) -> 4990 | OV6: =IF(STATUS11="Done",DATABASE!OV6,IF(STATUS11="This Month",'Salary Process'!AH5,'Salary Master'!AH4)) -> 1250 | OW6: =IF(STATUS11="Done",DATABASE!OW6,IF(STATUS11="This Month",'Salary Process'!AI5,'Salary Master'!AI4)) -> 75 | OX6: =IF(STATUS11="Done",DATABASE!OX6,IF(STATUS11="This Month",'Salary Process'!AJ5,'Salary Master'!AJ4)) -> 5200 | OY6: =IF(STATUS11="Done",DATABASE!OY6,IF(STATUS11="This Month",'Salary Process'!AK5,'Salary Master'!AK4)) -> 442 | OZ6: =IF(STATUS11="Done",DATABASE!OZ6,IF(STATUS11="This Month",'Salary Process'!AL5,'Salary Master'!AL4)) -> 1.5 | PD6: =IF(STATUS12="Done",DATABASE!PD6,IF(STATUS12="This Month",'Salary Process'!D5,'Salary Master'!D4)) -> 50000 | PE6: =IF(STATUS12="Done",DATABASE!PE6,IF(STATUS12="This Month",'Salary Process'!E5,'Salary Master'!E4)) -> 2000 | PF6: =IF(STATUS12="Done",DATABASE!PF6,IF(STATUS12="This Month",'Salary Process'!F5,'Salary Master'!F4)) -> 0 | PG6: =IF(STATUS12="Done",DATABASE!PG6,IF(STATUS12="This Month",'Salary Process'!G5,'Salary Master'!G4)) -> 25000 | PH6: =IF(STATUS12="Done",DATABASE!PH6,IF(STATUS12="This Month",'Salary Process'!H5,'Salary Master'!H4)) -> 2000 | PI6: =IF(STATUS12="Done",DATABASE!PI6,IF(STATUS12="This Month",'Salary Process'!I5,'Salary Master'!I4)) -> 5000 | PJ6: =IF(STATUS12="Done",DATABASE!PJ6,IF(STATUS12="This Month",'Salary Process'!J5,'Salary Master'!J4)) -> 38621 | PK6: =IF(STATUS12="Done",DATABASE!PK6,IF(STATUS12="This Month",'Salary Process'!K5,'Salary Master'!K4)) -> 3000 | PL6: =IF(STATUS12="Done",DATABASE!PL6,IF(STATUS12="This Month",'Salary Process'!L5,'Salary Master'!L4)) -> 0 | PM6: =IF(STATUS12="Done",DATABASE!PM6,IF(STATUS12="This Month",'Salary Process'!M5,'Salary Master'!M4)) -> 0 | PN6: =IF(STATUS12="Done",DATABASE!PN6,IF(STATUS12="This Month",'Salary Process'!N5,'Salary Master'!N4)) -> 0 | PO6: =IF(STATUS12="Done",DATABASE!PO6,IF(STATUS12="This Month",'Salary Process'!O5,'Salary Master'!O4)) -> 0 | PP6: =IF(STATUS12="Done",DATABASE!PP6,IF(STATUS12="This Month",'Salary Process'!P5,'Salary Master'!P4)) -> 0 | PQ6: =IF(STATUS12="Done",DATABASE!PQ6,IF(STATUS12="This Month",'Salary Process'!Q5,'Salary Master'!Q4)) -> 0 | PR6: =IF(STATUS12="Done",DATABASE!PR6,IF(STATUS12="This Month",'Salary Process'!R5,'Salary Master'!R4)) -> 6240 | PS6: =IF(STATUS12="Done",DATABASE!PS6,IF(STATUS12="This Month",'Salary Process'!S5,'Salary Master'!S4)) -> 0 | PT6: =IF(STATUS12="Done",DATABASE!PT6,IF(STATUS12="This Month",'Salary Process'!T5,'Salary Master'!T4)) -> 200 | PU6: =IF(STATUS12="Done",DATABASE!PU6,IF(STATUS12="This Month",'Salary Process'!U5,'Salary Master'!U4)) -> 0 | PV6: =IF(STATUS12="Done",DATABASE!PV6,IF(STATUS12="This Month",'Salary Process'!V5,'Salary Master'!V4)) -> 0 | PW6: =IF(STATUS12="Done",DATABASE!PW6,IF(STATUS12="This Month",'Salary Process'!W5,'Salary Master'!W4)) -> 0 | PX6: =IF(STATUS12="Done",DATABASE!PX6,IF(STATUS12="This Month",'Salary Process'!X5,'Salary Master'!X4)) -> 108 | PY6: =IF(STATUS12="Done",DATABASE!PY6,IF(STATUS12="This Month",'Salary Process'!Y5,'Salary Master'!Y4)) -> 0 | PZ6: =IF(STATUS12="Done",DATABASE!PZ6,IF(STATUS12="This Month",'Salary Process'!Z5,'Salary Master'!Z4)) -> 0 | QA6: =IF(STATUS12="Done",DATABASE!QA6,IF(STATUS12="This Month",'Salary Process'!AA5,'Salary Master'!AA4)) -> 0 | QB6: =IF(STATUS12="Done",DATABASE!QB6,IF(STATUS12="This Month",'Salary Process'!AB5,'Salary Master'!AB4)) -> 0 | QC6: =IF(STATUS12="Done",DATABASE!QC6,IF(STATUS12="This Month",'Salary Process'!AC5,'Salary Master'!AC4)) -> 0 | QD6: =IF(STATUS12="Done",DATABASE!QD6,IF(STATUS12="This Month",'Salary Process'!AD5,'Salary Master'!AD4)) -> 0 | QE6: =IF(STATUS12="Done",DATABASE!QE6,IF(STATUS12="This Month",'Salary Process'!AE5,'Salary Master'!AE4)) -> 0 | QF6: =IF(STATUS12="Done",DATABASE!QF6,IF(STATUS12="This Month",'Salary Process'!AF5,'Salary Master'!AF4)) -> 119073 | QG6: =IF(STATUS12="Done",DATABASE!QG6,IF(STATUS12="This Month",'Salary Process'!AG5,'Salary Master'!AG4)) -> 4990 | QH6: =IF(STATUS12="Done",DATABASE!QH6,IF(STATUS12="This Month",'Salary Process'!AH5,'Salary Master'!AH4)) -> 1250 | QI6: =IF(STATUS12="Done",DATABASE!QI6,IF(STATUS12="This Month",'Salary Process'!AI5,'Salary Master'!AI4)) -> 75 | QJ6: =IF(STATUS12="Done",DATABASE!QJ6,IF(STATUS12="This Month",'Salary Process'!AJ5,'Salary Master'!AJ4)) -> 5200 | QK6: =IF(STATUS12="Done",DATABASE!QK6,IF(STATUS12="This Month",'Salary Process'!AK5,'Salary Master'!AK4)) -> 442 | QL6: =IF(STATUS12="Done",DATABASE!QL6,IF(STATUS12="This Month",'Salary Process'!AL5,'Salary Master'!AL4)) -> 1.5 | QP6: =SUM(B6,AN6,BZ6,DL6,EX6,GJ6,HV6,JH6,KT6,MF6,NR6,PD6,) -> 600000 | QQ6: =SUM(C6,AO6,CA6,DM6,EY6,GK6,HW6,JI6,KU6,MG6,NS6,PE6,) -> 24000 | QR6: 0 | QS6: 300000 | QT6: 24000 | QU6: 60000 | QV6: 463452 | QW6: 36000 | QX6: 0 | QY6: 0 | QZ6: 0 | RA6: 0 | RB6: 0 | RC6: 0 | RD6: 74880 | RE6: 0 | RF6: 2400 | RG6: 0 | RH6: 0 | RI6: 0 | RJ6: 1296 | RK6: 0 | RL6: 0 | RM6: 0 | RN6: 0 | RO6: 0 | RP6: 0 | RQ6: 0 | RR6: 1428876 | RS6: 59880 | RT6: 15000 | RU6: 900 | RV6: 62400 | RW6: 5304 | RX6: 18 | SB6: =SUM(QP6:RB6) -> 1507452 | SC6: =IF(RV6>Sup_Limit,RV6-Sup_Limit,0) -> 0 | SD6: =VLOOKUP(A6,'Tax Master'!A:AD,5,0) -> 0 | SE6: =VLOOKUP(A6,'Tax Master'!A:AD,6,0) -> 36532 | SF6: =VLOOKUP(A6,'Tax Master'!A:AD,7,0) -> 24000 | SG6: 0 | SH6: =VLOOKUP(A6,'Tax Master'!A:AD,12,0) -> 0 | SI6: 0 | SJ6: =VLOOKUP(A6,'Tax Master'!A:AD,14,0) -> 0 | SK6: =MIN(((QP6+QQ6)*VLOOKUP(A6,'Tax Master'!A:P,16,0)),QS6,(MAX((VLOOKUP(A6,'Tax Master'!$A:$P,15,0)-(QP6+QQ6)*10%),0))) -> 120000 | SL6: =RF6 -> 2400 | SM6: =VLOOKUP(A6,'Tax Master'!A:AD,4,0) -> 0 | SN6: =SUM(SB6:SF6)-SUM(SG6:SL6)+SM6-TR6 -> 1405584 | SO6: =VLOOKUP(A6,'Tax Master'!A:J,9,0) -> -200000 | SP6: =VLOOKUP(A6,'Tax Master'!A:J,10,0) -> 0 | SQ6: =SUM(SN6:SP6) -> 1205584 | SR6: =RD6+RE6 -> 74880 | SS6: =RG6 -> 0 | ST6: =VLOOKUP(A6,'Tax Master'!A:T,20,0) -> 0 | SU6: =MIN(SUM(SR6:ST6),_80C_Limit) -> 74880 | SV6: =MIN(VLOOKUP(A6,'Tax Master'!A:U,21,0),_80CCD_1) -> 0 | SW6: =VLOOKUP(A6,'Tax Master'!A:AD,22,0)/2 -> 0 | SX6: =VLOOKUP(A6,'Tax Master'!A:AD,23,0) -> 0 | SY6: =VLOOKUP(A6,'Tax Master'!A:AD,24,0) -> 0 | SZ6: =VLOOKUP(A6,'Tax Master'!A:AD,25,0) -> 0 | TA6: =VLOOKUP(A6,'Tax Master'!A:AD,26,0) -> 0 | TB6: =VLOOKUP(A6,'Tax Master'!A:AD,27,0) -> 0 | TC6: =VLOOKUP(A6,'Tax Master'!A:AD,28,0) -> 0 | TD6: =SUM(SU6:TC6) -> 74880 | TE6: =MAX((SQ6-TD6),0) -> 1130704 | TF6: =IF(TE6>1000000,(112500+(TE6-1000000)*30%),IF(TE6>500000,(12500+(TE6-500000)*20%),IF(TE6>250000,((TE6-250000)*5%),0))) -> 151711.2 | TG6: =IF(TE6<350001,(MIN(TF6,2500)),0) -> 0 | TH6: =+TF6-TG6 -> 151711.2 | TI6: =+TH6*4% -> 6068.448 | TJ6: =+TH6+TI6 -> 157779.648 | TK6: =VLOOKUP(A6,'Tax Master'!A:AD,29,0) -> 0 | TL6: =TJ6-TK6 -> 157779.648 | TM6: =VLOOKUP(A6,'Tax Master'!A:AD,30,0) -> 0 | TN6: =IF(STATUS1="Done",DATABASE!T6,0)+IF(STATUS2="Done",DATABASE!BF6,0)+IF(STATUS3="Done",DATABASE!CR6,0)+IF(STATUS4="Done",DATABASE!ED6,0)+IF(STATUS5="Done",DATABASE!FP6,0)+IF(STATUS6="Done",DATABASE!HB6,0)+IF(STATUS7="Done",DATABASE!IN6,0)+IF(STATUS8="Done",DATABASE!JZ6,0)+IF(STATUS9="Done",DATABASE!LL6,0)+IF(STATUS10="Done",DATABASE!MX6,0)+IF(STATUS11="Done",DATABASE!OJ6,0)+IF(STATUS12="Done",DATABASE!PV6,0) -> 0 | TO6: =TL6-TM6-TN6 -> 157779.648 | TP6: =ROUNDUP(IF(TO6>0,TO6/Bal_Month,0),0) -> 13149 | TR6: =MIN((SUM(SB6:SF6)-SUM(SG6:SL6)+SM6),40000) -> 40000
A7: 2 | B7: =IF(STATUS1="Done",DATABASE!B7,IF(STATUS1="This Month",'Salary Process'!D6,'Salary Master'!D5)) -> 0 | C7: =IF(STATUS1="Done",DATABASE!C7,IF(STATUS1="This Month",'Salary Process'!E6,'Salary Master'!E5)) -> 0 | D7: =IF(STATUS1="Done",DATABASE!D7,IF(STATUS1="This Month",'Salary Process'!F6,'Salary Master'!F5)) -> 0 | E7: =IF(STATUS1="Done",DATABASE!E7,IF(STATUS1="This Month",'Salary Process'!G6,'Salary Master'!G5)) -> 0 | F7: =IF(STATUS1="Done",DATABASE!F7,IF(STATUS1="This Month",'Salary Process'!H6,'Salary Master'!H5)) -> 0 | G7: =IF(STATUS1="Done",DATABASE!G7,IF(STATUS1="This Month",'Salary Process'!I6,'Salary Master'!I5)) -> 0 | H7: =IF(STATUS1="Done",DATABASE!H7,IF(STATUS1="This Month",'Salary Process'!J6,'Salary Master'!J5)) -> 0 | I7: =IF(STATUS1="Done",DATABASE!I7,IF(STATUS1="This Month",'Salary Process'!K6,'Salary Master'!K5)) -> 0 | J7: =IF(STATUS1="Done",DATABASE!J7,IF(STATUS1="This Month",'Salary Process'!L6,'Salary Master'!L5)) -> 0 | K7: =IF(STATUS1="Done",DATABASE!K7,IF(STATUS1="This Month",'Salary Process'!M6,'Salary Master'!M5)) -> 0 | L7: =IF(STATUS1="Done",DATABASE!L7,IF(STATUS1="This Month",'Salary Process'!N6,'Salary Master'!N5)) -> 0 | M7: =IF(STATUS1="Done",DATABASE!M7,IF(STATUS1="This Month",'Salary Process'!O6,'Salary Master'!O5)) -> 0 | N7: =IF(STATUS1="Done",DATABASE!N7,IF(STATUS1="This Month",'Salary Process'!P6,'Salary Master'!P5)) -> 0 | O7: =IF(STATUS1="Done",DATABASE!O7,IF(STATUS1="This Month",'Salary Process'!Q6,'Salary Master'!Q5)) -> 0 | P7: =IF(STATUS1="Done",DATABASE!P7,IF(STATUS1="This Month",'Salary Process'!R6,'Salary Master'!R5)) -> 0 | Q7: =IF(STATUS1="Done",DATABASE!Q7,IF(STATUS1="This Month",'Salary Process'!S6,'Salary Master'!S5)) -> 0 | R7: =IF(STATUS1="Done",DATABASE!R7,IF(STATUS1="This Month",'Salary Process'!T6,'Salary Master'!T5)) -> 0 | S7: =IF(STATUS1="Done",DATABASE!S7,IF(STATUS1="This Month",'Salary Process'!U6,'Salary Master'!U5)) -> 0 | T7: =IF(STATUS1="Done",DATABASE!T7,IF(STATUS1="This Month",'Salary Process'!V6,'Salary Master'!V5)) -> 0 | U7: =IF(STATUS1="Done",DATABASE!U7,IF(STATUS1="This Month",'Salary Process'!W6,'Salary Master'!W5)) -> 0 | V7: =IF(STATUS1="Done",DATABASE!V7,IF(STATUS1="This Month",'Salary Process'!X6,'Salary Master'!X5)) -> 0 | W7: =IF(STATUS1="Done",DATABASE!W7,IF(STATUS1="This Month",'Salary Process'!Y6,'Salary Master'!Y5)) -> 0 | X7: =IF(STATUS1="Done",DATABASE!X7,IF(STATUS1="This Month",'Salary Process'!Z6,'Salary Master'!Z5)) -> 0 | Y7: =IF(STATUS1="Done",DATABASE!Y7,IF(STATUS1="This Month",'Salary Process'!AA6,'Salary Master'!AA5)) -> 0 | Z7: =IF(STATUS1="Done",DATABASE!Z7,IF(STATUS1="This Month",'Salary Process'!AB6,'Salary Master'!AB5)) -> 0 | AA7: =IF(STATUS1="Done",DATABASE!AA7,IF(STATUS1="This Month",'Salary Process'!AC6,'Salary Master'!AC5)) -> 0 | AB7: =IF(STATUS1="Done",DATABASE!AB7,IF(STATUS1="This Month",'Salary Process'!AD6,'Salary Master'!AD5)) -> 0 | AC7: =IF(STATUS1="Done",DATABASE!AC7,IF(STATUS1="This Month",'Salary Process'!AE6,'Salary Master'!AE5)) -> 0 | AD7: =IF(STATUS1="Done",DATABASE!AD7,IF(STATUS1="This Month",'Salary Process'!AF6,'Salary Master'!AF5)) -> 0 | AE7: =IF(STATUS1="Done",DATABASE!AE7,IF(STATUS1="This Month",'Salary Process'!AG6,'Salary Master'!AG5)) -> 0 | AF7: =IF(STATUS1="Done",DATABASE!AF7,IF(STATUS1="This Month",'Salary Process'!AH6,'Salary Master'!AH5)) -> 0 | AG7: =IF(STATUS1="Done",DATABASE!AG7,IF(STATUS1="This Month",'Salary Process'!AI6,'Salary Master'!AI5)) -> 0 | AH7: =IF(STATUS1="Done",DATABASE!AH7,IF(STATUS1="This Month",'Salary Process'!AJ6,'Salary Master'!AJ5)) -> 0 | AI7: =IF(STATUS1="Done",DATABASE!AI7,IF(STATUS1="This Month",'Salary Process'!AK6,'Salary Master'!AK5)) -> 0 | AJ7: =IF(STATUS1="Done",DATABASE!AJ7,IF(STATUS1="This Month",'Salary Process'!AL6,'Salary Master'!AL5)) -> 0 | AN7: =IF(STATUS2="Done",DATABASE!AN7,IF(STATUS2="This Month",'Salary Process'!D6,'Salary Master'!D5)) -> 0 | AO7: =IF(STATUS2="Done",DATABASE!AO7,IF(STATUS2="This Month",'Salary Process'!E6,'Salary Master'!E5)) -> 0 | AP7: =IF(STATUS2="Done",DATABASE!AP7,IF(STATUS2="This Month",'Salary Process'!F6,'Salary Master'!F5)) -> 0 | AQ7: =IF(STATUS2="Done",DATABASE!AQ7,IF(STATUS2="This Month",'Salary Process'!G6,'Salary Master'!G5)) -> 0 | AR7: =IF(STATUS2="Done",DATABASE!AR7,IF(STATUS2="This Month",'Salary Process'!H6,'Salary Master'!H5)) -> 0 | AS7: =IF(STATUS2="Done",DATABASE!AS7,IF(STATUS2="This Month",'Salary Process'!I6,'Salary Master'!I5)) -> 0 | AT7: =IF(STATUS2="Done",DATABASE!AT7,IF(STATUS2="This Month",'Salary Process'!J6,'Salary Master'!J5)) -> 0 | AU7: =IF(STATUS2="Done",DATABASE!AU7,IF(STATUS2="This Month",'Salary Process'!K6,'Salary Master'!K5)) -> 0 | AV7: =IF(STATUS2="Done",DATABASE!AV7,IF(STATUS2="This Month",'Salary Process'!L6,'Salary Master'!L5)) -> 0 | AW7: =IF(STATUS2="Done",DATABASE!AW7,IF(STATUS2="This Month",'Salary Process'!M6,'Salary Master'!M5)) -> 0 | AX7: =IF(STATUS2="Done",DATABASE!AX7,IF(STATUS2="This Month",'Salary Process'!N6,'Salary Master'!N5)) -> 0 | AY7: =IF(STATUS2="Done",DATABASE!AY7,IF(STATUS2="This Month",'Salary Process'!O6,'Salary Master'!O5)) -> 0 | AZ7: =IF(STATUS2="Done",DATABASE!AZ7,IF(STATUS2="This Month",'Salary Process'!P6,'Salary Master'!P5)) -> 0 | BA7: =IF(STATUS2="Done",DATABASE!BA7,IF(STATUS2="This Month",'Salary Process'!Q6,'Salary Master'!Q5)) -> 0 | BB7: =IF(STATUS2="Done",DATABASE!BB7,IF(STATUS2="This Month",'Salary Process'!R6,'Salary Master'!R5)) -> 0 | BC7: =IF(STATUS2="Done",DATABASE!BC7,IF(STATUS2="This Month",'Salary Process'!S6,'Salary Master'!S5)) -> 0 | BD7: =IF(STATUS2="Done",DATABASE!BD7,IF(STATUS2="This Month",'Salary Process'!T6,'Salary Master'!T5)) -> 0 | BE7: =IF(STATUS2="Done",DATABASE!BE7,IF(STATUS2="This Month",'Salary Process'!U6,'Salary Master'!U5)) -> 0 | BF7: =IF(STATUS2="Done",DATABASE!BF7,IF(STATUS2="This Month",'Salary Process'!V6,'Salary Master'!V5)) -> 0 | BG7: =IF(STATUS2="Done",DATABASE!BG7,IF(STATUS2="This Month",'Salary Process'!W6,'Salary Master'!W5)) -> 0 | BH7: =IF(STATUS2="Done",DATABASE!BH7,IF(STATUS2="This Month",'Salary Process'!X6,'Salary Master'!X5)) -> 0 | BI7: =IF(STATUS2="Done",DATABASE!BI7,IF(STATUS2="This Month",'Salary Process'!Y6,'Salary Master'!Y5)) -> 0 | BJ7: =IF(STATUS2="Done",DATABASE!BJ7,IF(STATUS2="This Month",'Salary Process'!Z6,'Salary Master'!Z5)) -> 0 | BK7: =IF(STATUS2="Done",DATABASE!BK7,IF(STATUS2="This Month",'Salary Process'!AA6,'Salary Master'!AA5)) -> 0 | BL7: =IF(STATUS2="Done",DATABASE!BL7,IF(STATUS2="This Month",'Salary Process'!AB6,'Salary Master'!AB5)) -> 0 | BM7: =IF(STATUS2="Done",DATABASE!BM7,IF(STATUS2="This Month",'Salary Process'!AC6,'Salary Master'!AC5)) -> 0 | BN7: =IF(STATUS2="Done",DATABASE!BN7,IF(STATUS2="This Month",'Salary Process'!AD6,'Salary Master'!AD5)) -> 0 | BO7: =IF(STATUS2="Done",DATABASE!BO7,IF(STATUS2="This Month",'Salary Process'!AE6,'Salary Master'!AE5)) -> 0 | BP7: =IF(STATUS2="Done",DATABASE!BP7,IF(STATUS2="This Month",'Salary Process'!AF6,'Salary Master'!AF5)) -> 0 | BQ7: =IF(STATUS2="Done",DATABASE!BQ7,IF(STATUS2="This Month",'Salary Process'!AG6,'Salary Master'!AG5)) -> 0 | BR7: =IF(STATUS2="Done",DATABASE!BR7,IF(STATUS2="This Month",'Salary Process'!AH6,'Salary Master'!AH5)) -> 0 | BS7: =IF(STATUS2="Done",DATABASE!BS7,IF(STATUS2="This Month",'Salary Process'!AI6,'Salary Master'!AI5)) -> 0 | BT7: =IF(STATUS2="Done",DATABASE!BT7,IF(STATUS2="This Month",'Salary Process'!AJ6,'Salary Master'!AJ5)) -> 0 | BU7: =IF(STATUS2="Done",DATABASE!BU7,IF(STATUS2="This Month",'Salary Process'!AK6,'Salary Master'!AK5)) -> 0 | BV7: =IF(STATUS2="Done",DATABASE!BV7,IF(STATUS2="This Month",'Salary Process'!AL6,'Salary Master'!AL5)) -> 0 | BZ7: =IF(STATUS3="Done",DATABASE!BZ7,IF(STATUS3="This Month",'Salary Process'!D6,'Salary Master'!D5)) -> 0 | CA7: =IF(STATUS3="Done",DATABASE!CA7,IF(STATUS3="This Month",'Salary Process'!E6,'Salary Master'!E5)) -> 0 | CB7: =IF(STATUS3="Done",DATABASE!CB7,IF(STATUS3="This Month",'Salary Process'!F6,'Salary Master'!F5)) -> 0 | CC7: =IF(STATUS3="Done",DATABASE!CC7,IF(STATUS3="This Month",'Salary Process'!G6,'Salary Master'!G5)) -> 0 | CD7: =IF(STATUS3="Done",DATABASE!CD7,IF(STATUS3="This Month",'Salary Process'!H6,'Salary Master'!H5)) -> 0 | CE7: =IF(STATUS3="Done",DATABASE!CE7,IF(STATUS3="This Month",'Salary Process'!I6,'Salary Master'!I5)) -> 0 | CF7: =IF(STATUS3="Done",DATABASE!CF7,IF(STATUS3="This Month",'Salary Process'!J6,'Salary Master'!J5)) -> 0 | CG7: =IF(STATUS3="Done",DATABASE!CG7,IF(STATUS3="This Month",'Salary Process'!K6,'Salary Master'!K5)) -> 0 | CH7: =IF(STATUS3="Done",DATABASE!CH7,IF(STATUS3="This Month",'Salary Process'!L6,'Salary Master'!L5)) -> 0 | CI7: =IF(STATUS3="Done",DATABASE!CI7,IF(STATUS3="This Month",'Salary Process'!M6,'Salary Master'!M5)) -> 0 | CJ7: =IF(STATUS3="Done",DATABASE!CJ7,IF(STATUS3="This Month",'Salary Process'!N6,'Salary Master'!N5)) -> 0 | CK7: =IF(STATUS3="Done",DATABASE!CK7,IF(STATUS3="This Month",'Salary Process'!O6,'Salary Master'!O5)) -> 0 | CL7: =IF(STATUS3="Done",DATABASE!CL7,IF(STATUS3="This Month",'Salary Process'!P6,'Salary Master'!P5)) -> 0 | CM7: =IF(STATUS3="Done",DATABASE!CM7,IF(STATUS3="This Month",'Salary Process'!Q6,'Salary Master'!Q5)) -> 0 | CN7: =IF(STATUS3="Done",DATABASE!CN7,IF(STATUS3="This Month",'Salary Process'!R6,'Salary Master'!R5)) -> 0 | CO7: =IF(STATUS3="Done",DATABASE!CO7,IF(STATUS3="This Month",'Salary Process'!S6,'Salary Master'!S5)) -> 0 | CP7: =IF(STATUS3="Done",DATABASE!CP7,IF(STATUS3="This Month",'Salary Process'!T6,'Salary Master'!T5)) -> 0 | CQ7: =IF(STATUS3="Done",DATABASE!CQ7,IF(STATUS3="This Month",'Salary Process'!U6,'Salary Master'!U5)) -> 0 | CR7: =IF(STATUS3="Done",DATABASE!CR7,IF(STATUS3="This Month",'Salary Process'!V6,'Salary Master'!V5)) -> 0 | CS7: =IF(STATUS3="Done",DATABASE!CS7,IF(STATUS3="This Month",'Salary Process'!W6,'Salary Master'!W5)) -> 0 | CT7: =IF(STATUS3="Done",DATABASE!CT7,IF(STATUS3="This Month",'Salary Process'!X6,'Salary Master'!X5)) -> 0 | CU7: =IF(STATUS3="Done",DATABASE!CU7,IF(STATUS3="This Month",'Salary Process'!Y6,'Salary Master'!Y5)) -> 0 | CV7: =IF(STATUS3="Done",DATABASE!CV7,IF(STATUS3="This Month",'Salary Process'!Z6,'Salary Master'!Z5)) -> 0 | CW7: =IF(STATUS3="Done",DATABASE!CW7,IF(STATUS3="This Month",'Salary Process'!AA6,'Salary Master'!AA5)) -> 0 | CX7: =IF(STATUS3="Done",DATABASE!CX7,IF(STATUS3="This Month",'Salary Process'!AB6,'Salary Master'!AB5)) -> 0 | CY7: =IF(STATUS3="Done",DATABASE!CY7,IF(STATUS3="This Month",'Salary Process'!AC6,'Salary Master'!AC5)) -> 0 | CZ7: =IF(STATUS3="Done",DATABASE!CZ7,IF(STATUS3="This Month",'Salary Process'!AD6,'Salary Master'!AD5)) -> 0 | DA7: =IF(STATUS3="Done",DATABASE!DA7,IF(STATUS3="This Month",'Salary Process'!AE6,'Salary Master'!AE5)) -> 0 | DB7: =IF(STATUS3="Done",DATABASE!DB7,IF(STATUS3="This Month",'Salary Process'!AF6,'Salary Master'!AF5)) -> 0 | DC7: =IF(STATUS3="Done",DATABASE!DC7,IF(STATUS3="This Month",'Salary Process'!AG6,'Salary Master'!AG5)) -> 0 | DD7: =IF(STATUS3="Done",DATABASE!DD7,IF(STATUS3="This Month",'Salary Process'!AH6,'Salary Master'!AH5)) -> 0 | DE7: =IF(STATUS3="Done",DATABASE!DE7,IF(STATUS3="This Month",'Salary Process'!AI6,'Salary Master'!AI5)) -> 0 | DF7: =IF(STATUS3="Done",DATABASE!DF7,IF(STATUS3="This Month",'Salary Process'!AJ6,'Salary Master'!AJ5)) -> 0 | DG7: =IF(STATUS3="Done",DATABASE!DG7,IF(STATUS3="This Month",'Salary Process'!AK6,'Salary Master'!AK5)) -> 0 | DH7: =IF(STATUS3="Done",DATABASE!DH7,IF(STATUS3="This Month",'Salary Process'!AL6,'Salary Master'!AL5)) -> 0 | DL7: =IF(STATUS4="Done",DATABASE!DL7,IF(STATUS4="This Month",'Salary Process'!D6,'Salary Master'!D5)) -> 0 | DM7: =IF(STATUS4="Done",DATABASE!DM7,IF(STATUS4="This Month",'Salary Process'!E6,'Salary Master'!E5)) -> 0 | DN7: =IF(STATUS4="Done",DATABASE!DN7,IF(STATUS4="This Month",'Salary Process'!F6,'Salary Master'!F5)) -> 0 | DO7: =IF(STATUS4="Done",DATABASE!DO7,IF(STATUS4="This Month",'Salary Process'!G6,'Salary Master'!G5)) -> 0 | DP7: =IF(STATUS4="Done",DATABASE!DP7,IF(STATUS4="This Month",'Salary Process'!H6,'Salary Master'!H5)) -> 0 | DQ7: =IF(STATUS4="Done",DATABASE!DQ7,IF(STATUS4="This Month",'Salary Process'!I6,'Salary Master'!I5)) -> 0 | DR7: =IF(STATUS4="Done",DATABASE!DR7,IF(STATUS4="This Month",'Salary Process'!J6,'Salary Master'!J5)) -> 0 | DS7: =IF(STATUS4="Done",DATABASE!DS7,IF(STATUS4="This Month",'Salary Process'!K6,'Salary Master'!K5)) -> 0 | DT7: =IF(STATUS4="Done",DATABASE!DT7,IF(STATUS4="This Month",'Salary Process'!L6,'Salary Master'!L5)) -> 0 | DU7: =IF(STATUS4="Done",DATABASE!DU7,IF(STATUS4="This Month",'Salary Process'!M6,'Salary Master'!M5)) -> 0 | DV7: =IF(STATUS4="Done",DATABASE!DV7,IF(STATUS4="This Month",'Salary Process'!N6,'Salary Master'!N5)) -> 0 | DW7: =IF(STATUS4="Done",DATABASE!DW7,IF(STATUS4="This Month",'Salary Process'!O6,'Salary Master'!O5)) -> 0 | DX7: =IF(STATUS4="Done",DATABASE!DX7,IF(STATUS4="This Month",'Salary Process'!P6,'Salary Master'!P5)) -> 0 | DY7: =IF(STATUS4="Done",DATABASE!DY7,IF(STATUS4="This Month",'Salary Process'!Q6,'Salary Master'!Q5)) -> 0 | DZ7: =IF(STATUS4="Done",DATABASE!DZ7,IF(STATUS4="This Month",'Salary Process'!R6,'Salary Master'!R5)) -> 0 | EA7: =IF(STATUS4="Done",DATABASE!EA7,IF(STATUS4="This Month",'Salary Process'!S6,'Salary Master'!S5)) -> 0 | EB7: =IF(STATUS4="Done",DATABASE!EB7,IF(STATUS4="This Month",'Salary Process'!T6,'Salary Master'!T5)) -> 0 | EC7: =IF(STATUS4="Done",DATABASE!EC7,IF(STATUS4="This Month",'Salary Process'!U6,'Salary Master'!U5)) -> 0 | ED7: =IF(STATUS4="Done",DATABASE!ED7,IF(STATUS4="This Month",'Salary Process'!V6,'Salary Master'!V5)) -> 0 | EE7: =IF(STATUS4="Done",DATABASE!EE7,IF(STATUS4="This Month",'Salary Process'!W6,'Salary Master'!W5)) -> 0 | EF7: =IF(STATUS4="Done",DATABASE!EF7,IF(STATUS4="This Month",'Salary Process'!X6,'Salary Master'!X5)) -> 0 | EG7: =IF(STATUS4="Done",DATABASE!EG7,IF(STATUS4="This Month",'Salary Process'!Y6,'Salary Master'!Y5)) -> 0 | EH7: =IF(STATUS4="Done",DATABASE!EH7,IF(STATUS4="This Month",'Salary Process'!Z6,'Salary Master'!Z5)) -> 0 | EI7: =IF(STATUS4="Done",DATABASE!EI7,IF(STATUS4="This Month",'Salary Process'!AA6,'Salary Master'!AA5)) -> 0 | EJ7: =IF(STATUS4="Done",DATABASE!EJ7,IF(STATUS4="This Month",'Salary Process'!AB6,'Salary Master'!AB5)) -> 0 | EK7: =IF(STATUS4="Done",DATABASE!EK7,IF(STATUS4="This Month",'Salary Process'!AC6,'Salary Master'!AC5)) -> 0 | EL7: =IF(STATUS4="Done",DATABASE!EL7,IF(STATUS4="This Month",'Salary Process'!AD6,'Salary Master'!AD5)) -> 0 | EM7: =IF(STATUS4="Done",DATABASE!EM7,IF(STATUS4="This Month",'Salary Process'!AE6,'Salary Master'!AE5)) -> 0 | EN7: =IF(STATUS4="Done",DATABASE!EN7,IF(STATUS4="This Month",'Salary Process'!AF6,'Salary Master'!AF5)) -> 0 | EO7: =IF(STATUS4="Done",DATABASE!EO7,IF(STATUS4="This Month",'Salary Process'!AG6,'Salary Master'!AG5)) -> 0 | EP7: =IF(STATUS4="Done",DATABASE!EP7,IF(STATUS4="This Month",'Salary Process'!AH6,'Salary Master'!AH5)) -> 0 | EQ7: =IF(STATUS4="Done",DATABASE!EQ7,IF(STATUS4="This Month",'Salary Process'!AI6,'Salary Master'!AI5)) -> 0 | ER7: =IF(STATUS4="Done",DATABASE!ER7,IF(STATUS4="This Month",'Salary Process'!AJ6,'Salary Master'!AJ5)) -> 0 | ES7: =IF(STATUS4="Done",DATABASE!ES7,IF(STATUS4="This Month",'Salary Process'!AK6,'Salary Master'!AK5)) -> 0 | ET7: =IF(STATUS4="Done",DATABASE!ET7,IF(STATUS4="This Month",'Salary Process'!AL6,'Salary Master'!AL5)) -> 0 | EX7: =IF(STATUS5="Done",DATABASE!EX7,IF(STATUS5="This Month",'Salary Process'!D6,'Salary Master'!D5)) -> 0 | EY7: =IF(STATUS5="Done",DATABASE!EY7,IF(STATUS5="This Month",'Salary Process'!E6,'Salary Master'!E5)) -> 0 | EZ7: =IF(STATUS5="Done",DATABASE!EZ7,IF(STATUS5="This Month",'Salary Process'!F6,'Salary Master'!F5)) -> 0 | FA7: =IF(STATUS5="Done",DATABASE!FA7,IF(STATUS5="This Month",'Salary Process'!G6,'Salary Master'!G5)) -> 0 | FB7: =IF(STATUS5="Done",DATABASE!FB7,IF(STATUS5="This Month",'Salary Process'!H6,'Salary Master'!H5)) -> 0 | FC7: =IF(STATUS5="Done",DATABASE!FC7,IF(STATUS5="This Month",'Salary Process'!I6,'Salary Master'!I5)) -> 0 | FD7: =IF(STATUS5="Done",DATABASE!FD7,IF(STATUS5="This Month",'Salary Process'!J6,'Salary Master'!J5)) -> 0 | FE7: =IF(STATUS5="Done",DATABASE!FE7,IF(STATUS5="This Month",'Salary Process'!K6,'Salary Master'!K5)) -> 0 | FF7: =IF(STATUS5="Done",DATABASE!FF7,IF(STATUS5="This Month",'Salary Process'!L6,'Salary Master'!L5)) -> 0 | FG7: =IF(STATUS5="Done",DATABASE!FG7,IF(STATUS5="This Month",'Salary Process'!M6,'Salary Master'!M5)) -> 0 | FH7: =IF(STATUS5="Done",DATABASE!FH7,IF(STATUS5="This Month",'Salary Process'!N6,'Salary Master'!N5)) -> 0 | FI7: =IF(STATUS5="Done",DATABASE!FI7,IF(STATUS5="This Month",'Salary Process'!O6,'Salary Master'!O5)) -> 0 | FJ7: =IF(STATUS5="Done",DATABASE!FJ7,IF(STATUS5="This Month",'Salary Process'!P6,'Salary Master'!P5)) -> 0 | FK7: =IF(STATUS5="Done",DATABASE!FK7,IF(STATUS5="This Month",'Salary Process'!Q6,'Salary Master'!Q5)) -> 0 | FL7: =IF(STATUS5="Done",DATABASE!FL7,IF(STATUS5="This Month",'Salary Process'!R6,'Salary Master'!R5)) -> 0 | FM7: =IF(STATUS5="Done",DATABASE!FM7,IF(STATUS5="This Month",'Salary Process'!S6,'Salary Master'!S5)) -> 0 | FN7: =IF(STATUS5="Done",DATABASE!FN7,IF(STATUS5="This Month",'Salary Process'!T6,'Salary Master'!T5)) -> 0 | FO7: =IF(STATUS5="Done",DATABASE!FO7,IF(STATUS5="This Month",'Salary Process'!U6,'Salary Master'!U5)) -> 0 | FP7: =IF(STATUS5="Done",DATABASE!FP7,IF(STATUS5="This Month",'Salary Process'!V6,'Salary Master'!V5)) -> 0 | FQ7: =IF(STATUS5="Done",DATABASE!FQ7,IF(STATUS5="This Month",'Salary Process'!W6,'Salary Master'!W5)) -> 0 | FR7: =IF(STATUS5="Done",DATABASE!FR7,IF(STATUS5="This Month",'Salary Process'!X6,'Salary Master'!X5)) -> 0 | FS7: =IF(STATUS5="Done",DATABASE!FS7,IF(STATUS5="This Month",'Salary Process'!Y6,'Salary Master'!Y5)) -> 0 | FT7: =IF(STATUS5="Done",DATABASE!FT7,IF(STATUS5="This Month",'Salary Process'!Z6,'Salary Master'!Z5)) -> 0 | FU7: =IF(STATUS5="Done",DATABASE!FU7,IF(STATUS5="This Month",'Salary Process'!AA6,'Salary Master'!AA5)) -> 0 | FV7: =IF(STATUS5="Done",DATABASE!FV7,IF(STATUS5="This Month",'Salary Process'!AB6,'Salary Master'!AB5)) -> 0 | FW7: =IF(STATUS5="Done",DATABASE!FW7,IF(STATUS5="This Month",'Salary Process'!AC6,'Salary Master'!AC5)) -> 0 | FX7: =IF(STATUS5="Done",DATABASE!FX7,IF(STATUS5="This Month",'Salary Process'!AD6,'Salary Master'!AD5)) -> 0 | FY7: =IF(STATUS5="Done",DATABASE!FY7,IF(STATUS5="This Month",'Salary Process'!AE6,'Salary Master'!AE5)) -> 0 | FZ7: =IF(STATUS5="Done",DATABASE!FZ7,IF(STATUS5="This Month",'Salary Process'!AF6,'Salary Master'!AF5)) -> 0 | GA7: =IF(STATUS5="Done",DATABASE!GA7,IF(STATUS5="This Month",'Salary Process'!AG6,'Salary Master'!AG5)) -> 0 | GB7: =IF(STATUS5="Done",DATABASE!GB7,IF(STATUS5="This Month",'Salary Process'!AH6,'Salary Master'!AH5)) -> 0 | GC7: =IF(STATUS5="Done",DATABASE!GC7,IF(STATUS5="This Month",'Salary Process'!AI6,'Salary Master'!AI5)) -> 0 | GD7: =IF(STATUS5="Done",DATABASE!GD7,IF(STATUS5="This Month",'Salary Process'!AJ6,'Salary Master'!AJ5)) -> 0 | GE7: =IF(STATUS5="Done",DATABASE!GE7,IF(STATUS5="This Month",'Salary Process'!AK6,'Salary Master'!AK5)) -> 0 | GF7: =IF(STATUS5="Done",DATABASE!GF7,IF(STATUS5="This Month",'Salary Process'!AL6,'Salary Master'!AL5)) -> 0 | GJ7: =IF(STATUS6="Done",DATABASE!GJ7,IF(STATUS6="This Month",'Salary Process'!D6,'Salary Master'!D5)) -> 0 | GK7: =IF(STATUS6="Done",DATABASE!GK7,IF(STATUS6="This Month",'Salary Process'!E6,'Salary Master'!E5)) -> 0 | GL7: =IF(STATUS6="Done",DATABASE!GL7,IF(STATUS6="This Month",'Salary Process'!F6,'Salary Master'!F5)) -> 0 | GM7: =IF(STATUS6="Done",DATABASE!GM7,IF(STATUS6="This Month",'Salary Process'!G6,'Salary Master'!G5)) -> 0 | GN7: =IF(STATUS6="Done",DATABASE!GN7,IF(STATUS6="This Month",'Salary Process'!H6,'Salary Master'!H5)) -> 0 | GO7: =IF(STATUS6="Done",DATABASE!GO7,IF(STATUS6="This Month",'Salary Process'!I6,'Salary Master'!I5)) -> 0 | GP7: =IF(STATUS6="Done",DATABASE!GP7,IF(STATUS6="This Month",'Salary Process'!J6,'Salary Master'!J5)) -> 0 | GQ7: =IF(STATUS6="Done",DATABASE!GQ7,IF(STATUS6="This Month",'Salary Process'!K6,'Salary Master'!K5)) -> 0 | GR7: =IF(STATUS6="Done",DATABASE!GR7,IF(STATUS6="This Month",'Salary Process'!L6,'Salary Master'!L5)) -> 0 | GS7: =IF(STATUS6="Done",DATABASE!GS7,IF(STATUS6="This Month",'Salary Process'!M6,'Salary Master'!M5)) -> 0 | GT7: =IF(STATUS6="Done",DATABASE!GT7,IF(STATUS6="This Month",'Salary Process'!N6,'Salary Master'!N5)) -> 0 | GU7: =IF(STATUS6="Done",DATABASE!GU7,IF(STATUS6="This Month",'Salary Process'!O6,'Salary Master'!O5)) -> 0 | GV7: =IF(STATUS6="Done",DATABASE!GV7,IF(STATUS6="This Month",'Salary Process'!P6,'Salary Master'!P5)) -> 0 | GW7: =IF(STATUS6="Done",DATABASE!GW7,IF(STATUS6="This Month",'Salary Process'!Q6,'Salary Master'!Q5)) -> 0 | GX7: =IF(STATUS6="Done",DATABASE!GX7,IF(STATUS6="This Month",'Salary Process'!R6,'Salary Master'!R5)) -> 0 | GY7: =IF(STATUS6="Done",DATABASE!GY7,IF(STATUS6="This Month",'Salary Process'!S6,'Salary Master'!S5)) -> 0 | GZ7: =IF(STATUS6="Done",DATABASE!GZ7,IF(STATUS6="This Month",'Salary Process'!T6,'Salary Master'!T5)) -> 0 | HA7: =IF(STATUS6="Done",DATABASE!HA7,IF(STATUS6="This Month",'Salary Process'!U6,'Salary Master'!U5)) -> 0 | HB7: =IF(STATUS6="Done",DATABASE!HB7,IF(STATUS6="This Month",'Salary Process'!V6,'Salary Master'!V5)) -> 0 | HC7: =IF(STATUS6="Done",DATABASE!HC7,IF(STATUS6="This Month",'Salary Process'!W6,'Salary Master'!W5)) -> 0 | HD7: =IF(STATUS6="Done",DATABASE!HD7,IF(STATUS6="This Month",'Salary Process'!X6,'Salary Master'!X5)) -> 0 | HE7: =IF(STATUS6="Done",DATABASE!HE7,IF(STATUS6="This Month",'Salary Process'!Y6,'Salary Master'!Y5)) -> 0 | HF7: =IF(STATUS6="Done",DATABASE!HF7,IF(STATUS6="This Month",'Salary Process'!Z6,'Salary Master'!Z5)) -> 0 | HG7: =IF(STATUS6="Done",DATABASE!HG7,IF(STATUS6="This Month",'Salary Process'!AA6,'Salary Master'!AA5)) -> 0 | HH7: =IF(STATUS6="Done",DATABASE!HH7,IF(STATUS6="This Month",'Salary Process'!AB6,'Salary Master'!AB5)) -> 0 | HI7: =IF(STATUS6="Done",DATABASE!HI7,IF(STATUS6="This Month",'Salary Process'!AC6,'Salary Master'!AC5)) -> 0 | HJ7: =IF(STATUS6="Done",DATABASE!HJ7,IF(STATUS6="This Month",'Salary Process'!AD6,'Salary Master'!AD5)) -> 0 | HK7: =IF(STATUS6="Done",DATABASE!HK7,IF(STATUS6="This Month",'Salary Process'!AE6,'Salary Master'!AE5)) -> 0 | HL7: =IF(STATUS6="Done",DATABASE!HL7,IF(STATUS6="This Month",'Salary Process'!AF6,'Salary Master'!AF5)) -> 0 | HM7: =IF(STATUS6="Done",DATABASE!HM7,IF(STATUS6="This Month",'Salary Process'!AG6,'Salary Master'!AG5)) -> 0 | HN7: =IF(STATUS6="Done",DATABASE!HN7,IF(STATUS6="This Month",'Salary Process'!AH6,'Salary Master'!AH5)) -> 0 | HO7: =IF(STATUS6="Done",DATABASE!HO7,IF(STATUS6="This Month",'Salary Process'!AI6,'Salary Master'!AI5)) -> 0 | HP7: =IF(STATUS6="Done",DATABASE!HP7,IF(STATUS6="This Month",'Salary Process'!AJ6,'Salary Master'!AJ5)) -> 0 | HQ7: =IF(STATUS6="Done",DATABASE!HQ7,IF(STATUS6="This Month",'Salary Process'!AK6,'Salary Master'!AK5)) -> 0 | HR7: =IF(STATUS6="Done",DATABASE!HR7,IF(STATUS6="This Month",'Salary Process'!AL6,'Salary Master'!AL5)) -> 0 | HV7: =IF(STATUS7="Done",DATABASE!HV7,IF(STATUS7="This Month",'Salary Process'!D6,'Salary Master'!D5)) -> 0 | HW7: =IF(STATUS7="Done",DATABASE!HW7,IF(STATUS7="This Month",'Salary Process'!E6,'Salary Master'!E5)) -> 0 | HX7: =IF(STATUS7="Done",DATABASE!HX7,IF(STATUS7="This Month",'Salary Process'!F6,'Salary Master'!F5)) -> 0 | HY7: =IF(STATUS7="Done",DATABASE!HY7,IF(STATUS7="This Month",'Salary Process'!G6,'Salary Master'!G5)) -> 0 | HZ7: =IF(STATUS7="Done",DATABASE!HZ7,IF(STATUS7="This Month",'Salary Process'!H6,'Salary Master'!H5)) -> 0 | IA7: =IF(STATUS7="Done",DATABASE!IA7,IF(STATUS7="This Month",'Salary Process'!I6,'Salary Master'!I5)) -> 0 | IB7: =IF(STATUS7="Done",DATABASE!IB7,IF(STATUS7="This Month",'Salary Process'!J6,'Salary Master'!J5)) -> 0 | IC7: =IF(STATUS7="Done",DATABASE!IC7,IF(STATUS7="This Month",'Salary Process'!K6,'Salary Master'!K5)) -> 0 | ID7: =IF(STATUS7="Done",DATABASE!ID7,IF(STATUS7="This Month",'Salary Process'!L6,'Salary Master'!L5)) -> 0 | IE7: =IF(STATUS7="Done",DATABASE!IE7,IF(STATUS7="This Month",'Salary Process'!M6,'Salary Master'!M5)) -> 0 | IF7: =IF(STATUS7="Done",DATABASE!IF7,IF(STATUS7="This Month",'Salary Process'!N6,'Salary Master'!N5)) -> 0 | IG7: =IF(STATUS7="Done",DATABASE!IG7,IF(STATUS7="This Month",'Salary Process'!O6,'Salary Master'!O5)) -> 0 | IH7: =IF(STATUS7="Done",DATABASE!IH7,IF(STATUS7="This Month",'Salary Process'!P6,'Salary Master'!P5)) -> 0 | II7: =IF(STATUS7="Done",DATABASE!II7,IF(STATUS7="This Month",'Salary Process'!Q6,'Salary Master'!Q5)) -> 0 | IJ7: =IF(STATUS7="Done",DATABASE!IJ7,IF(STATUS7="This Month",'Salary Process'!R6,'Salary Master'!R5)) -> 0 | IK7: =IF(STATUS7="Done",DATABASE!IK7,IF(STATUS7="This Month",'Salary Process'!S6,'Salary Master'!S5)) -> 0 | IL7: =IF(STATUS7="Done",DATABASE!IL7,IF(STATUS7="This Month",'Salary Process'!T6,'Salary Master'!T5)) -> 0 | IM7: =IF(STATUS7="Done",DATABASE!IM7,IF(STATUS7="This Month",'Salary Process'!U6,'Salary Master'!U5)) -> 0 | IN7: =IF(STATUS7="Done",DATABASE!IN7,IF(STATUS7="This Month",'Salary Process'!V6,'Salary Master'!V5)) -> 0 | IO7: =IF(STATUS7="Done",DATABASE!IO7,IF(STATUS7="This Month",'Salary Process'!W6,'Salary Master'!W5)) -> 0 | IP7: =IF(STATUS7="Done",DATABASE!IP7,IF(STATUS7="This Month",'Salary Process'!X6,'Salary Master'!X5)) -> 0 | IQ7: =IF(STATUS7="Done",DATABASE!IQ7,IF(STATUS7="This Month",'Salary Process'!Y6,'Salary Master'!Y5)) -> 0 | IR7: =IF(STATUS7="Done",DATABASE!IR7,IF(STATUS7="This Month",'Salary Process'!Z6,'Salary Master'!Z5)) -> 0 | IS7: =IF(STATUS7="Done",DATABASE!IS7,IF(STATUS7="This Month",'Salary Process'!AA6,'Salary Master'!AA5)) -> 0 | IT7: =IF(STATUS7="Done",DATABASE!IT7,IF(STATUS7="This Month",'Salary Process'!AB6,'Salary Master'!AB5)) -> 0 | IU7: =IF(STATUS7="Done",DATABASE!IU7,IF(STATUS7="This Month",'Salary Process'!AC6,'Salary Master'!AC5)) -> 0 | IV7: =IF(STATUS7="Done",DATABASE!IV7,IF(STATUS7="This Month",'Salary Process'!AD6,'Salary Master'!AD5)) -> 0 | IW7: =IF(STATUS7="Done",DATABASE!IW7,IF(STATUS7="This Month",'Salary Process'!AE6,'Salary Master'!AE5)) -> 0 | IX7: =IF(STATUS7="Done",DATABASE!IX7,IF(STATUS7="This Month",'Salary Process'!AF6,'Salary Master'!AF5)) -> 0 | IY7: =IF(STATUS7="Done",DATABASE!IY7,IF(STATUS7="This Month",'Salary Process'!AG6,'Salary Master'!AG5)) -> 0 | IZ7: =IF(STATUS7="Done",DATABASE!IZ7,IF(STATUS7="This Month",'Salary Process'!AH6,'Salary Master'!AH5)) -> 0 | JA7: =IF(STATUS7="Done",DATABASE!JA7,IF(STATUS7="This Month",'Salary Process'!AI6,'Salary Master'!AI5)) -> 0 | JB7: =IF(STATUS7="Done",DATABASE!JB7,IF(STATUS7="This Month",'Salary Process'!AJ6,'Salary Master'!AJ5)) -> 0 | JC7: =IF(STATUS7="Done",DATABASE!JC7,IF(STATUS7="This Month",'Salary Process'!AK6,'Salary Master'!AK5)) -> 0 | JD7: =IF(STATUS7="Done",DATABASE!JD7,IF(STATUS7="This Month",'Salary Process'!AL6,'Salary Master'!AL5)) -> 0 | JH7: =IF(STATUS8="Done",DATABASE!JH7,IF(STATUS8="This Month",'Salary Process'!D6,'Salary Master'!D5)) -> 0 | JI7: =IF(STATUS8="Done",DATABASE!JI7,IF(STATUS8="This Month",'Salary Process'!E6,'Salary Master'!E5)) -> 0 | JJ7: =IF(STATUS8="Done",DATABASE!JJ7,IF(STATUS8="This Month",'Salary Process'!F6,'Salary Master'!F5)) -> 0 | JK7: =IF(STATUS8="Done",DATABASE!JK7,IF(STATUS8="This Month",'Salary Process'!G6,'Salary Master'!G5)) -> 0 | JL7: =IF(STATUS8="Done",DATABASE!JL7,IF(STATUS8="This Month",'Salary Process'!H6,'Salary Master'!H5)) -> 0 | JM7: =IF(STATUS8="Done",DATABASE!JM7,IF(STATUS8="This Month",'Salary Process'!I6,'Salary Master'!I5)) -> 0 | JN7: =IF(STATUS8="Done",DATABASE!JN7,IF(STATUS8="This Month",'Salary Process'!J6,'Salary Master'!J5)) -> 0 | JO7: =IF(STATUS8="Done",DATABASE!JO7,IF(STATUS8="This Month",'Salary Process'!K6,'Salary Master'!K5)) -> 0 | JP7: =IF(STATUS8="Done",DATABASE!JP7,IF(STATUS8="This Month",'Salary Process'!L6,'Salary Master'!L5)) -> 0 | JQ7: =IF(STATUS8="Done",DATABASE!JQ7,IF(STATUS8="This Month",'Salary Process'!M6,'Salary Master'!M5)) -> 0 | JR7: =IF(STATUS8="Done",DATABASE!JR7,IF(STATUS8="This Month",'Salary Process'!N6,'Salary Master'!N5)) -> 0 | JS7: =IF(STATUS8="Done",DATABASE!JS7,IF(STATUS8="This Month",'Salary Process'!O6,'Salary Master'!O5)) -> 0 | JT7: =IF(STATUS8="Done",DATABASE!JT7,IF(STATUS8="This Month",'Salary Process'!P6,'Salary Master'!P5)) -> 0 | JU7: =IF(STATUS8="Done",DATABASE!JU7,IF(STATUS8="This Month",'Salary Process'!Q6,'Salary Master'!Q5)) -> 0 | JV7: =IF(STATUS8="Done",DATABASE!JV7,IF(STATUS8="This Month",'Salary Process'!R6,'Salary Master'!R5)) -> 0 | JW7: =IF(STATUS8="Done",DATABASE!JW7,IF(STATUS8="This Month",'Salary Process'!S6,'Salary Master'!S5)) -> 0 | JX7: =IF(STATUS8="Done",DATABASE!JX7,IF(STATUS8="This Month",'Salary Process'!T6,'Salary Master'!T5)) -> 0 | JY7: =IF(STATUS8="Done",DATABASE!JY7,IF(STATUS8="This Month",'Salary Process'!U6,'Salary Master'!U5)) -> 0 | JZ7: =IF(STATUS8="Done",DATABASE!JZ7,IF(STATUS8="This Month",'Salary Process'!V6,'Salary Master'!V5)) -> 0 | KA7: =IF(STATUS8="Done",DATABASE!KA7,IF(STATUS8="This Month",'Salary Process'!W6,'Salary Master'!W5)) -> 0 | KB7: =IF(STATUS8="Done",DATABASE!KB7,IF(STATUS8="This Month",'Salary Process'!X6,'Salary Master'!X5)) -> 0 | KC7: =IF(STATUS8="Done",DATABASE!KC7,IF(STATUS8="This Month",'Salary Process'!Y6,'Salary Master'!Y5)) -> 0 | KD7: =IF(STATUS8="Done",DATABASE!KD7,IF(STATUS8="This Month",'Salary Process'!Z6,'Salary Master'!Z5)) -> 0 | KE7: =IF(STATUS8="Done",DATABASE!KE7,IF(STATUS8="This Month",'Salary Process'!AA6,'Salary Master'!AA5)) -> 0 | KF7: =IF(STATUS8="Done",DATABASE!KF7,IF(STATUS8="This Month",'Salary Process'!AB6,'Salary Master'!AB5)) -> 0 | KG7: =IF(STATUS8="Done",DATABASE!KG7,IF(STATUS8="This Month",'Salary Process'!AC6,'Salary Master'!AC5)) -> 0 | KH7: =IF(STATUS8="Done",DATABASE!KH7,IF(STATUS8="This Month",'Salary Process'!AD6,'Salary Master'!AD5)) -> 0 | KI7: =IF(STATUS8="Done",DATABASE!KI7,IF(STATUS8="This Month",'Salary Process'!AE6,'Salary Master'!AE5)) -> 0 | KJ7: =IF(STATUS8="Done",DATABASE!KJ7,IF(STATUS8="This Month",'Salary Process'!AF6,'Salary Master'!AF5)) -> 0 | KK7: =IF(STATUS8="Done",DATABASE!KK7,IF(STATUS8="This Month",'Salary Process'!AG6,'Salary Master'!AG5)) -> 0 | KL7: =IF(STATUS8="Done",DATABASE!KL7,IF(STATUS8="This Month",'Salary Process'!AH6,'Salary Master'!AH5)) -> 0 | KM7: =IF(STATUS8="Done",DATABASE!KM7,IF(STATUS8="This Month",'Salary Process'!AI6,'Salary Master'!AI5)) -> 0 | KN7: =IF(STATUS8="Done",DATABASE!KN7,IF(STATUS8="This Month",'Salary Process'!AJ6,'Salary Master'!AJ5)) -> 0 | KO7: =IF(STATUS8="Done",DATABASE!KO7,IF(STATUS8="This Month",'Salary Process'!AK6,'Salary Master'!AK5)) -> 0 | KP7: =IF(STATUS8="Done",DATABASE!KP7,IF(STATUS8="This Month",'Salary Process'!AL6,'Salary Master'!AL5)) -> 0 | KT7: =IF(STATUS9="Done",DATABASE!KT7,IF(STATUS9="This Month",'Salary Process'!D6,'Salary Master'!D5)) -> 0 | KU7: =IF(STATUS9="Done",DATABASE!KU7,IF(STATUS9="This Month",'Salary Process'!E6,'Salary Master'!E5)) -> 0 | KV7: =IF(STATUS9="Done",DATABASE!KV7,IF(STATUS9="This Month",'Salary Process'!F6,'Salary Master'!F5)) -> 0 | KW7: =IF(STATUS9="Done",DATABASE!KW7,IF(STATUS9="This Month",'Salary Process'!G6,'Salary Master'!G5)) -> 0 | KX7: =IF(STATUS9="Done",DATABASE!KX7,IF(STATUS9="This Month",'Salary Process'!H6,'Salary Master'!H5)) -> 0 | KY7: =IF(STATUS9="Done",DATABASE!KY7,IF(STATUS9="This Month",'Salary Process'!I6,'Salary Master'!I5)) -> 0 | KZ7: =IF(STATUS9="Done",DATABASE!KZ7,IF(STATUS9="This Month",'Salary Process'!J6,'Salary Master'!J5)) -> 0 | LA7: =IF(STATUS9="Done",DATABASE!LA7,IF(STATUS9="This Month",'Salary Process'!K6,'Salary Master'!K5)) -> 0 | LB7: =IF(STATUS9="Done",DATABASE!LB7,IF(STATUS9="This Month",'Salary Process'!L6,'Salary Master'!L5)) -> 0 | LC7: =IF(STATUS9="Done",DATABASE!LC7,IF(STATUS9="This Month",'Salary Process'!M6,'Salary Master'!M5)) -> 0 | LD7: =IF(STATUS9="Done",DATABASE!LD7,IF(STATUS9="This Month",'Salary Process'!N6,'Salary Master'!N5)) -> 0 | LE7: =IF(STATUS9="Done",DATABASE!LE7,IF(STATUS9="This Month",'Salary Process'!O6,'Salary Master'!O5)) -> 0 | LF7: =IF(STATUS9="Done",DATABASE!LF7,IF(STATUS9="This Month",'Salary Process'!P6,'Salary Master'!P5)) -> 0 | LG7: =IF(STATUS9="Done",DATABASE!LG7,IF(STATUS9="This Month",'Salary Process'!Q6,'Salary Master'!Q5)) -> 0 | LH7: =IF(STATUS9="Done",DATABASE!LH7,IF(STATUS9="This Month",'Salary Process'!R6,'Salary Master'!R5)) -> 0 | LI7: =IF(STATUS9="Done",DATABASE!LI7,IF(STATUS9="This Month",'Salary Process'!S6,'Salary Master'!S5)) -> 0 | LJ7: =IF(STATUS9="Done",DATABASE!LJ7,IF(STATUS9="This Month",'Salary Process'!T6,'Salary Master'!T5)) -> 0 | LK7: =IF(STATUS9="Done",DATABASE!LK7,IF(STATUS9="This Month",'Salary Process'!U6,'Salary Master'!U5)) -> 0 | LL7: =IF(STATUS9="Done",DATABASE!LL7,IF(STATUS9="This Month",'Salary Process'!V6,'Salary Master'!V5)) -> 0 | LM7: =IF(STATUS9="Done",DATABASE!LM7,IF(STATUS9="This Month",'Salary Process'!W6,'Salary Master'!W5)) -> 0 | LN7: =IF(STATUS9="Done",DATABASE!LN7,IF(STATUS9="This Month",'Salary Process'!X6,'Salary Master'!X5)) -> 0 | LO7: =IF(STATUS9="Done",DATABASE!LO7,IF(STATUS9="This Month",'Salary Process'!Y6,'Salary Master'!Y5)) -> 0 | LP7: =IF(STATUS9="Done",DATABASE!LP7,IF(STATUS9="This Month",'Salary Process'!Z6,'Salary Master'!Z5)) -> 0 | LQ7: =IF(STATUS9="Done",DATABASE!LQ7,IF(STATUS9="This Month",'Salary Process'!AA6,'Salary Master'!AA5)) -> 0 | LR7: =IF(STATUS9="Done",DATABASE!LR7,IF(STATUS9="This Month",'Salary Process'!AB6,'Salary Master'!AB5)) -> 0 | LS7: =IF(STATUS9="Done",DATABASE!LS7,IF(STATUS9="This Month",'Salary Process'!AC6,'Salary Master'!AC5)) -> 0 | LT7: =IF(STATUS9="Done",DATABASE!LT7,IF(STATUS9="This Month",'Salary Process'!AD6,'Salary Master'!AD5)) -> 0 | LU7: =IF(STATUS9="Done",DATABASE!LU7,IF(STATUS9="This Month",'Salary Process'!AE6,'Salary Master'!AE5)) -> 0 | LV7: =IF(STATUS9="Done",DATABASE!LV7,IF(STATUS9="This Month",'Salary Process'!AF6,'Salary Master'!AF5)) -> 0 | LW7: =IF(STATUS9="Done",DATABASE!LW7,IF(STATUS9="This Month",'Salary Process'!AG6,'Salary Master'!AG5)) -> 0 | LX7: =IF(STATUS9="Done",DATABASE!LX7,IF(STATUS9="This Month",'Salary Process'!AH6,'Salary Master'!AH5)) -> 0 | LY7: =IF(STATUS9="Done",DATABASE!LY7,IF(STATUS9="This Month",'Salary Process'!AI6,'Salary Master'!AI5)) -> 0 | LZ7: =IF(STATUS9="Done",DATABASE!LZ7,IF(STATUS9="This Month",'Salary Process'!AJ6,'Salary Master'!AJ5)) -> 0 | MA7: =IF(STATUS9="Done",DATABASE!MA7,IF(STATUS9="This Month",'Salary Process'!AK6,'Salary Master'!AK5)) -> 0 | MB7: =IF(STATUS9="Done",DATABASE!MB7,IF(STATUS9="This Month",'Salary Process'!AL6,'Salary Master'!AL5)) -> 0 | MF7: =IF(STATUS10="Done",DATABASE!MF7,IF(STATUS10="This Month",'Salary Process'!D6,'Salary Master'!D5)) -> 0 | MG7: =IF(STATUS10="Done",DATABASE!MG7,IF(STATUS10="This Month",'Salary Process'!E6,'Salary Master'!E5)) -> 0 | MH7: =IF(STATUS10="Done",DATABASE!MH7,IF(STATUS10="This Month",'Salary Process'!F6,'Salary Master'!F5)) -> 0 | MI7: =IF(STATUS10="Done",DATABASE!MI7,IF(STATUS10="This Month",'Salary Process'!G6,'Salary Master'!G5)) -> 0 | MJ7: =IF(STATUS10="Done",DATABASE!MJ7,IF(STATUS10="This Month",'Salary Process'!H6,'Salary Master'!H5)) -> 0 | MK7: =IF(STATUS10="Done",DATABASE!MK7,IF(STATUS10="This Month",'Salary Process'!I6,'Salary Master'!I5)) -> 0 | ML7: =IF(STATUS10="Done",DATABASE!ML7,IF(STATUS10="This Month",'Salary Process'!J6,'Salary Master'!J5)) -> 0 | MM7: =IF(STATUS10="Done",DATABASE!MM7,IF(STATUS10="This Month",'Salary Process'!K6,'Salary Master'!K5)) -> 0 | MN7: =IF(STATUS10="Done",DATABASE!MN7,IF(STATUS10="This Month",'Salary Process'!L6,'Salary Master'!L5)) -> 0 | MO7: =IF(STATUS10="Done",DATABASE!MO7,IF(STATUS10="This Month",'Salary Process'!M6,'Salary Master'!M5)) -> 0 | MP7: =IF(STATUS10="Done",DATABASE!MP7,IF(STATUS10="This Month",'Salary Process'!N6,'Salary Master'!N5)) -> 0 | MQ7: =IF(STATUS10="Done",DATABASE!MQ7,IF(STATUS10="This Month",'Salary Process'!O6,'Salary Master'!O5)) -> 0 | MR7: =IF(STATUS10="Done",DATABASE!MR7,IF(STATUS10="This Month",'Salary Process'!P6,'Salary Master'!P5)) -> 0 | MS7: =IF(STATUS10="Done",DATABASE!MS7,IF(STATUS10="This Month",'Salary Process'!Q6,'Salary Master'!Q5)) -> 0 | MT7: =IF(STATUS10="Done",DATABASE!MT7,IF(STATUS10="This Month",'Salary Process'!R6,'Salary Master'!R5)) -> 0 | MU7: =IF(STATUS10="Done",DATABASE!MU7,IF(STATUS10="This Month",'Salary Process'!S6,'Salary Master'!S5)) -> 0 | MV7: =IF(STATUS10="Done",DATABASE!MV7,IF(STATUS10="This Month",'Salary Process'!T6,'Salary Master'!T5)) -> 0 | MW7: =IF(STATUS10="Done",DATABASE!MW7,IF(STATUS10="This Month",'Salary Process'!U6,'Salary Master'!U5)) -> 0 | MX7: =IF(STATUS10="Done",DATABASE!MX7,IF(STATUS10="This Month",'Salary Process'!V6,'Salary Master'!V5)) -> 0 | MY7: =IF(STATUS10="Done",DATABASE!MY7,IF(STATUS10="This Month",'Salary Process'!W6,'Salary Master'!W5)) -> 0 | MZ7: =IF(STATUS10="Done",DATABASE!MZ7,IF(STATUS10="This Month",'Salary Process'!X6,'Salary Master'!X5)) -> 0 | NA7: =IF(STATUS10="Done",DATABASE!NA7,IF(STATUS10="This Month",'Salary Process'!Y6,'Salary Master'!Y5)) -> 0 | NB7: =IF(STATUS10="Done",DATABASE!NB7,IF(STATUS10="This Month",'Salary Process'!Z6,'Salary Master'!Z5)) -> 0 | NC7: =IF(STATUS10="Done",DATABASE!NC7,IF(STATUS10="This Month",'Salary Process'!AA6,'Salary Master'!AA5)) -> 0 | ND7: =IF(STATUS10="Done",DATABASE!ND7,IF(STATUS10="This Month",'Salary Process'!AB6,'Salary Master'!AB5)) -> 0 | NE7: =IF(STATUS10="Done",DATABASE!NE7,IF(STATUS10="This Month",'Salary Process'!AC6,'Salary Master'!AC5)) -> 0 | NF7: =IF(STATUS10="Done",DATABASE!NF7,IF(STATUS10="This Month",'Salary Process'!AD6,'Salary Master'!AD5)) -> 0 | NG7: =IF(STATUS10="Done",DATABASE!NG7,IF(STATUS10="This Month",'Salary Process'!AE6,'Salary Master'!AE5)) -> 0 | NH7: =IF(STATUS10="Done",DATABASE!NH7,IF(STATUS10="This Month",'Salary Process'!AF6,'Salary Master'!AF5)) -> 0 | NI7: =IF(STATUS10="Done",DATABASE!NI7,IF(STATUS10="This Month",'Salary Process'!AG6,'Salary Master'!AG5)) -> 0 | NJ7: =IF(STATUS10="Done",DATABASE!NJ7,IF(STATUS10="This Month",'Salary Process'!AH6,'Salary Master'!AH5)) -> 0 | NK7: =IF(STATUS10="Done",DATABASE!NK7,IF(STATUS10="This Month",'Salary Process'!AI6,'Salary Master'!AI5)) -> 0 | NL7: =IF(STATUS10="Done",DATABASE!NL7,IF(STATUS10="This Month",'Salary Process'!AJ6,'Salary Master'!AJ5)) -> 0 | NM7: =IF(STATUS10="Done",DATABASE!NM7,IF(STATUS10="This Month",'Salary Process'!AK6,'Salary Master'!AK5)) -> 0 | NN7: =IF(STATUS10="Done",DATABASE!NN7,IF(STATUS10="This Month",'Salary Process'!AL6,'Salary Master'!AL5)) -> 0 | NR7: =IF(STATUS11="Done",DATABASE!NR7,IF(STATUS11="This Month",'Salary Process'!D6,'Salary Master'!D5)) -> 0 | NS7: =IF(STATUS11="Done",DATABASE!NS7,IF(STATUS11="This Month",'Salary Process'!E6,'Salary Master'!E5)) -> 0 | NT7: =IF(STATUS11="Done",DATABASE!NT7,IF(STATUS11="This Month",'Salary Process'!F6,'Salary Master'!F5)) -> 0 | NU7: =IF(STATUS11="Done",DATABASE!NU7,IF(STATUS11="This Month",'Salary Process'!G6,'Salary Master'!G5)) -> 0 | NV7: =IF(STATUS11="Done",DATABASE!NV7,IF(STATUS11="This Month",'Salary Process'!H6,'Salary Master'!H5)) -> 0 | NW7: =IF(STATUS11="Done",DATABASE!NW7,IF(STATUS11="This Month",'Salary Process'!I6,'Salary Master'!I5)) -> 0 | NX7: =IF(STATUS11="Done",DATABASE!NX7,IF(STATUS11="This Month",'Salary Process'!J6,'Salary Master'!J5)) -> 0 | NY7: =IF(STATUS11="Done",DATABASE!NY7,IF(STATUS11="This Month",'Salary Process'!K6,'Salary Master'!K5)) -> 0 | NZ7: =IF(STATUS11="Done",DATABASE!NZ7,IF(STATUS11="This Month",'Salary Process'!L6,'Salary Master'!L5)) -> 0 | OA7: =IF(STATUS11="Done",DATABASE!OA7,IF(STATUS11="This Month",'Salary Process'!M6,'Salary Master'!M5)) -> 0 | OB7: =IF(STATUS11="Done",DATABASE!OB7,IF(STATUS11="This Month",'Salary Process'!N6,'Salary Master'!N5)) -> 0 | OC7: =IF(STATUS11="Done",DATABASE!OC7,IF(STATUS11="This Month",'Salary Process'!O6,'Salary Master'!O5)) -> 0 | OD7: =IF(STATUS11="Done",DATABASE!OD7,IF(STATUS11="This Month",'Salary Process'!P6,'Salary Master'!P5)) -> 0 | OE7: =IF(STATUS11="Done",DATABASE!OE7,IF(STATUS11="This Month",'Salary Process'!Q6,'Salary Master'!Q5)) -> 0 | OF7: =IF(STATUS11="Done",DATABASE!OF7,IF(STATUS11="This Month",'Salary Process'!R6,'Salary Master'!R5)) -> 0 | OG7: =IF(STATUS11="Done",DATABASE!OG7,IF(STATUS11="This Month",'Salary Process'!S6,'Salary Master'!S5)) -> 0 | OH7: =IF(STATUS11="Done",DATABASE!OH7,IF(STATUS11="This Month",'Salary Process'!T6,'Salary Master'!T5)) -> 0 | OI7: =IF(STATUS11="Done",DATABASE!OI7,IF(STATUS11="This Month",'Salary Process'!U6,'Salary Master'!U5)) -> 0 | OJ7: =IF(STATUS11="Done",DATABASE!OJ7,IF(STATUS11="This Month",'Salary Process'!V6,'Salary Master'!V5)) -> 0 | OK7: =IF(STATUS11="Done",DATABASE!OK7,IF(STATUS11="This Month",'Salary Process'!W6,'Salary Master'!W5)) -> 0 | OL7: =IF(STATUS11="Done",DATABASE!OL7,IF(STATUS11="This Month",'Salary Process'!X6,'Salary Master'!X5)) -> 0 | OM7: =IF(STATUS11="Done",DATABASE!OM7,IF(STATUS11="This Month",'Salary Process'!Y6,'Salary Master'!Y5)) -> 0 | ON7: =IF(STATUS11="Done",DATABASE!ON7,IF(STATUS11="This Month",'Salary Process'!Z6,'Salary Master'!Z5)) -> 0 | OO7: =IF(STATUS11="Done",DATABASE!OO7,IF(STATUS11="This Month",'Salary Process'!AA6,'Salary Master'!AA5)) -> 0 | OP7: =IF(STATUS11="Done",DATABASE!OP7,IF(STATUS11="This Month",'Salary Process'!AB6,'Salary Master'!AB5)) -> 0 | OQ7: =IF(STATUS11="Done",DATABASE!OQ7,IF(STATUS11="This Month",'Salary Process'!AC6,'Salary Master'!AC5)) -> 0 | OR7: =IF(STATUS11="Done",DATABASE!OR7,IF(STATUS11="This Month",'Salary Process'!AD6,'Salary Master'!AD5)) -> 0 | OS7: =IF(STATUS11="Done",DATABASE!OS7,IF(STATUS11="This Month",'Salary Process'!AE6,'Salary Master'!AE5)) -> 0 | OT7: =IF(STATUS11="Done",DATABASE!OT7,IF(STATUS11="This Month",'Salary Process'!AF6,'Salary Master'!AF5)) -> 0 | OU7: =IF(STATUS11="Done",DATABASE!OU7,IF(STATUS11="This Month",'Salary Process'!AG6,'Salary Master'!AG5)) -> 0 | OV7: =IF(STATUS11="Done",DATABASE!OV7,IF(STATUS11="This Month",'Salary Process'!AH6,'Salary Master'!AH5)) -> 0 | OW7: =IF(STATUS11="Done",DATABASE!OW7,IF(STATUS11="This Month",'Salary Process'!AI6,'Salary Master'!AI5)) -> 0 | OX7: =IF(STATUS11="Done",DATABASE!OX7,IF(STATUS11="This Month",'Salary Process'!AJ6,'Salary Master'!AJ5)) -> 0 | OY7: =IF(STATUS11="Done",DATABASE!OY7,IF(STATUS11="This Month",'Salary Process'!AK6,'Salary Master'!AK5)) -> 0 | OZ7: =IF(STATUS11="Done",DATABASE!OZ7,IF(STATUS11="This Month",'Salary Process'!AL6,'Salary Master'!AL5)) -> 0 | PD7: =IF(STATUS12="Done",DATABASE!PD7,IF(STATUS12="This Month",'Salary Process'!D6,'Salary Master'!D5)) -> 0 | PE7: =IF(STATUS12="Done",DATABASE!PE7,IF(STATUS12="This Month",'Salary Process'!E6,'Salary Master'!E5)) -> 0 | PF7: =IF(STATUS12="Done",DATABASE!PF7,IF(STATUS12="This Month",'Salary Process'!F6,'Salary Master'!F5)) -> 0 | PG7: =IF(STATUS12="Done",DATABASE!PG7,IF(STATUS12="This Month",'Salary Process'!G6,'Salary Master'!G5)) -> 0 | PH7: =IF(STATUS12="Done",DATABASE!PH7,IF(STATUS12="This Month",'Salary Process'!H6,'Salary Master'!H5)) -> 0 | PI7: =IF(STATUS12="Done",DATABASE!PI7,IF(STATUS12="This Month",'Salary Process'!I6,'Salary Master'!I5)) -> 0 | PJ7: =IF(STATUS12="Done",DATABASE!PJ7,IF(STATUS12="This Month",'Salary Process'!J6,'Salary Master'!J5)) -> 0 | PK7: =IF(STATUS12="Done",DATABASE!PK7,IF(STATUS12="This Month",'Salary Process'!K6,'Salary Master'!K5)) -> 0 | PL7: =IF(STATUS12="Done",DATABASE!PL7,IF(STATUS12="This Month",'Salary Process'!L6,'Salary Master'!L5)) -> 0 | PM7: =IF(STATUS12="Done",DATABASE!PM7,IF(STATUS12="This Month",'Salary Process'!M6,'Salary Master'!M5)) -> 0 | PN7: =IF(STATUS12="Done",DATABASE!PN7,IF(STATUS12="This Month",'Salary Process'!N6,'Salary Master'!N5)) -> 0 | PO7: =IF(STATUS12="Done",DATABASE!PO7,IF(STATUS12="This Month",'Salary Process'!O6,'Salary Master'!O5)) -> 0 | PP7: =IF(STATUS12="Done",DATABASE!PP7,IF(STATUS12="This Month",'Salary Process'!P6,'Salary Master'!P5)) -> 0 | PQ7: =IF(STATUS12="Done",DATABASE!PQ7,IF(STATUS12="This Month",'Salary Process'!Q6,'Salary Master'!Q5)) -> 0 | PR7: =IF(STATUS12="Done",DATABASE!PR7,IF(STATUS12="This Month",'Salary Process'!R6,'Salary Master'!R5)) -> 0 | PS7: =IF(STATUS12="Done",DATABASE!PS7,IF(STATUS12="This Month",'Salary Process'!S6,'Salary Master'!S5)) -> 0 | PT7: =IF(STATUS12="Done",DATABASE!PT7,IF(STATUS12="This Month",'Salary Process'!T6,'Salary Master'!T5)) -> 0 | PU7: =IF(STATUS12="Done",DATABASE!PU7,IF(STATUS12="This Month",'Salary Process'!U6,'Salary Master'!U5)) -> 0 | PV7: =IF(STATUS12="Done",DATABASE!PV7,IF(STATUS12="This Month",'Salary Process'!V6,'Salary Master'!V5)) -> 0 | PW7: =IF(STATUS12="Done",DATABASE!PW7,IF(STATUS12="This Month",'Salary Process'!W6,'Salary Master'!W5)) -> 0 | PX7: =IF(STATUS12="Done",DATABASE!PX7,IF(STATUS12="This Month",'Salary Process'!X6,'Salary Master'!X5)) -> 0 | PY7: =IF(STATUS12="Done",DATABASE!PY7,IF(STATUS12="This Month",'Salary Process'!Y6,'Salary Master'!Y5)) -> 0 | PZ7: =IF(STATUS12="Done",DATABASE!PZ7,IF(STATUS12="This Month",'Salary Process'!Z6,'Salary Master'!Z5)) -> 0 | QA7: =IF(STATUS12="Done",DATABASE!QA7,IF(STATUS12="This Month",'Salary Process'!AA6,'Salary Master'!AA5)) -> 0 | QB7: =IF(STATUS12="Done",DATABASE!QB7,IF(STATUS12="This Month",'Salary Process'!AB6,'Salary Master'!AB5)) -> 0 | QC7: =IF(STATUS12="Done",DATABASE!QC7,IF(STATUS12="This Month",'Salary Process'!AC6,'Salary Master'!AC5)) -> 0 | QD7: =IF(STATUS12="Done",DATABASE!QD7,IF(STATUS12="This Month",'Salary Process'!AD6,'Salary Master'!AD5)) -> 0 | QE7: =IF(STATUS12="Done",DATABASE!QE7,IF(STATUS12="This Month",'Salary Process'!AE6,'Salary Master'!AE5)) -> 0 | QF7: =IF(STATUS12="Done",DATABASE!QF7,IF(STATUS12="This Month",'Salary Process'!AF6,'Salary Master'!AF5)) -> 0 | QG7: =IF(STATUS12="Done",DATABASE!QG7,IF(STATUS12="This Month",'Salary Process'!AG6,'Salary Master'!AG5)) -> 0 | QH7: =IF(STATUS12="Done",DATABASE!QH7,IF(STATUS12="This Month",'Salary Process'!AH6,'Salary Master'!AH5)) -> 0 | QI7: =IF(STATUS12="Done",DATABASE!QI7,IF(STATUS12="This Month",'Salary Process'!AI6,'Salary Master'!AI5)) -> 0 | QJ7: =IF(STATUS12="Done",DATABASE!QJ7,IF(STATUS12="This Month",'Salary Process'!AJ6,'Salary Master'!AJ5)) -> 0 | QK7: =IF(STATUS12="Done",DATABASE!QK7,IF(STATUS12="This Month",'Salary Process'!AK6,'Salary Master'!AK5)) -> 0 | QL7: =IF(STATUS12="Done",DATABASE!QL7,IF(STATUS12="This Month",'Salary Process'!AL6,'Salary Master'!AL5)) -> 0 | QP7: =SUM(B7,AN7,BZ7,DL7,EX7,GJ7,HV7,JH7,KT7,MF7,NR7,PD7,) -> 0 | QQ7: =SUM(C7,AO7,CA7,DM7,EY7,GK7,HW7,JI7,KU7,MG7,NS7,PE7,) -> 0 | QR7: =SUM(D7,AP7,CB7,DN7,EZ7,GL7,HX7,JJ7,KV7,MH7,NT7,PF7,) -> 0 | QS7: =SUM(E7,AQ7,CC7,DO7,FA7,GM7,HY7,JK7,KW7,MI7,NU7,PG7,) -> 0 | QT7: =SUM(F7,AR7,CD7,DP7,FB7,GN7,HZ7,JL7,KX7,MJ7,NV7,PH7,) -> 0 | QU7: =SUM(G7,AS7,CE7,DQ7,FC7,GO7,IA7,JM7,KY7,MK7,NW7,PI7,) -> 0 | QV7: =SUM(H7,AT7,CF7,DR7,FD7,GP7,IB7,JN7,KZ7,ML7,NX7,PJ7,) -> 0 | QW7: =SUM(I7,AU7,CG7,DS7,FE7,GQ7,IC7,JO7,LA7,MM7,NY7,PK7,) -> 0 | QX7: =SUM(J7,AV7,CH7,DT7,FF7,GR7,ID7,JP7,LB7,MN7,NZ7,PL7,) -> 0 | QY7: =SUM(K7,AW7,CI7,DU7,FG7,GS7,IE7,JQ7,LC7,MO7,OA7,PM7,) -> 0 | QZ7: =SUM(L7,AX7,CJ7,DV7,FH7,GT7,IF7,JR7,LD7,MP7,OB7,PN7,) -> 0 | RA7: =SUM(M7,AY7,CK7,DW7,FI7,GU7,IG7,JS7,LE7,MQ7,OC7,PO7,) -> 0 | RB7: =SUM(N7,AZ7,CL7,DX7,FJ7,GV7,IH7,JT7,LF7,MR7,OD7,PP7,) -> 0 | RC7: =SUM(O7,BA7,CM7,DY7,FK7,GW7,II7,JU7,LG7,MS7,OE7,PQ7,) -> 0 | RD7: =SUM(P7,BB7,CN7,DZ7,FL7,GX7,IJ7,JV7,LH7,MT7,OF7,PR7,) -> 0 | RE7: =SUM(Q7,BC7,CO7,EA7,FM7,GY7,IK7,JW7,LI7,MU7,OG7,PS7,) -> 0 | RF7: =SUM(R7,BD7,CP7,EB7,FN7,GZ7,IL7,JX7,LJ7,MV7,OH7,PT7,) -> 0 | RG7: =SUM(S7,BE7,CQ7,EC7,FO7,HA7,IM7,JY7,LK7,MW7,OI7,PU7,) -> 0 | RH7: =SUM(T7,BF7,CR7,ED7,FP7,HB7,IN7,JZ7,LL7,MX7,OJ7,PV7,) -> 0 | RI7: =SUM(U7,BG7,CS7,EE7,FQ7,HC7,IO7,KA7,LM7,MY7,OK7,PW7,) -> 0 | RJ7: =SUM(V7,BH7,CT7,EF7,FR7,HD7,IP7,KB7,LN7,MZ7,OL7,PX7,) -> 0 | RK7: =SUM(W7,BI7,CU7,EG7,FS7,HE7,IQ7,KC7,LO7,NA7,OM7,PY7,) -> 0 | RL7: =SUM(X7,BJ7,CV7,EH7,FT7,HF7,IR7,KD7,LP7,NB7,ON7,PZ7,) -> 0 | RM7: =SUM(Y7,BK7,CW7,EI7,FU7,HG7,IS7,KE7,LQ7,NC7,OO7,QA7,) -> 0 | RN7: =SUM(Z7,BL7,CX7,EJ7,FV7,HH7,IT7,KF7,LR7,ND7,OP7,QB7,) -> 0 | RO7: =SUM(AA7,BM7,CY7,EK7,FW7,HI7,IU7,KG7,LS7,NE7,OQ7,QC7,) -> 0 | RP7: =SUM(AB7,BN7,CZ7,EL7,FX7,HJ7,IV7,KH7,LT7,NF7,OR7,QD7,) -> 0 | RQ7: =SUM(AC7,BO7,DA7,EM7,FY7,HK7,IW7,KI7,LU7,NG7,OS7,QE7,) -> 0 | RR7: =SUM(AD7,BP7,DB7,EN7,FZ7,HL7,IX7,KJ7,LV7,NH7,OT7,QF7,) -> 0 | RS7: =SUM(AE7,BQ7,DC7,EO7,GA7,HM7,IY7,KK7,LW7,NI7,OU7,QG7,) -> 0 | RT7: =SUM(AF7,BR7,DD7,EP7,GB7,HN7,IZ7,KL7,LX7,NJ7,OV7,QH7,) -> 0 | RU7: =SUM(AG7,BS7,DE7,EQ7,GC7,HO7,JA7,KM7,LY7,NK7,OW7,QI7,) -> 0 | RV7: =SUM(AH7,BT7,DF7,ER7,GD7,HP7,JB7,KN7,LZ7,NL7,OX7,QJ7,) -> 0 | RW7: =SUM(AI7,BU7,DG7,ES7,GE7,HQ7,JC7,KO7,MA7,NM7,OY7,QK7,) -> 0 | RX7: =SUM(AJ7,BV7,DH7,ET7,GF7,HR7,JD7,KP7,MB7,NN7,OZ7,QL7,) -> 0 | SB7: =SUM(QP7:RB7) -> 0 | SC7: 0 | SD7: =VLOOKUP(A7,'Tax Master'!A:AD,5,0) -> 0 | SE7: =VLOOKUP(A7,'Tax Master'!A:AD,6,0) -> 0 | SF7: =VLOOKUP(A7,'Tax Master'!A:AD,7,0) -> 0 | SG7: 0 | SH7: =VLOOKUP(A7,'Tax Master'!A:AD,12,0) -> 0 | SI7: 0 | SJ7: =VLOOKUP(A7,'Tax Master'!A:AD,14,0) -> 0 | SK7: =MIN(((QP7+QQ7)*VLOOKUP(A7,'Tax Master'!A:P,16,0)),QS7,(MAX((VLOOKUP(A7,'Tax Master'!$A:$P,15,0)-(QP7+QQ7)*10%),0))) -> 0 | SL7: =RF7 -> 0 | SM7: =VLOOKUP(A7,'Tax Master'!A:AD,4,0) -> 0 | SN7: =SUM(SB7:SF7)-SUM(SG7:SL7)+SM7-TR7 -> 0 | SO7: =VLOOKUP(A7,'Tax Master'!A:J,9,0) -> 0 | SP7: =VLOOKUP(A7,'Tax Master'!A:J,10,0) -> 0 | SQ7: =SUM(SN7:SP7) -> 0 | SR7: =RD7+RE7 -> 0 | SS7: =RG7 -> 0 | ST7: =VLOOKUP(A7,'Tax Master'!A:T,20,0) -> 0 | SU7: 0 | SV7: =MIN(VLOOKUP(A7,'Tax Master'!A:U,21,0),_80CCD_1) -> 0 | SW7: =VLOOKUP(A7,'Tax Master'!A:AD,22,0)/2 -> 0 | SX7: =VLOOKUP(A7,'Tax Master'!A:AD,23,0) -> 0 | SY7: =VLOOKUP(A7,'Tax Master'!A:AD,24,0) -> 0 | SZ7: =VLOOKUP(A7,'Tax Master'!A:AD,25,0) -> 0 | TA7: =VLOOKUP(A7,'Tax Master'!A:AD,26,0) -> 0 | TB7: =VLOOKUP(A7,'Tax Master'!A:AD,27,0) -> 0 | TC7: =VLOOKUP(A7,'Tax Master'!A:AD,28,0) -> 0 | TD7: =SUM(SU7:TC7) -> 0 | TE7: =MAX((SQ7-TD7),0) -> 0 | TF7: =IF(TE7>1000000,(112500+(TE7-1000000)*30%),IF(TE7>500000,(12500+(TE7-500000)*20%),IF(TE7>250000,((TE7-250000)*5%),0))) -> 0 | TG7: =IF(TE7<350001,(MIN(TF7,2500)),0) -> 0 | TH7: =+TF7-TG7 -> 0 | TI7: =+TH7*4% -> 0 | TJ7: =+TH7+TI7 -> 0 | TK7: =VLOOKUP(A7,'Tax Master'!A:AD,29,0) -> 0 | TL7: =TJ7-TK7 -> 0 | TM7: =VLOOKUP(A7,'Tax Master'!A:AD,30,0) -> 0 | TN7: =IF(STATUS1="Done",DATABASE!T7,0)+IF(STATUS2="Done",DATABASE!BF7,0)+IF(STATUS3="Done",DATABASE!CR7,0)+IF(STATUS4="Done",DATABASE!ED7,0)+IF(STATUS5="Done",DATABASE!FP7,0)+IF(STATUS6="Done",DATABASE!HB7,0)+IF(STATUS7="Done",DATABASE!IN7,0)+IF(STATUS8="Done",DATABASE!JZ7,0)+IF(STATUS9="Done",DATABASE!LL7,0)+IF(STATUS10="Done",DATABASE!MX7,0)+IF(STATUS11="Done",DATABASE!OJ7,0)+IF(STATUS12="Done",DATABASE!PV7,0) -> 0 | TO7: =TL7-TM7-TN7 -> 0 | TP7: =ROUNDUP(IF(TO7>0,TO7/Bal_Month,0),0) -> 0 | TR7: =MIN((SUM(SB7:SF7)-SUM(SG7:SL7)+SM7),40000) -> 0
A8: 3 | B8: =IF(STATUS1="Done",DATABASE!B8,IF(STATUS1="This Month",'Salary Process'!D7,'Salary Master'!D6)) -> 0 | C8: =IF(STATUS1="Done",DATABASE!C8,IF(STATUS1="This Month",'Salary Process'!E7,'Salary Master'!E6)) -> 0 | D8: =IF(STATUS1="Done",DATABASE!D8,IF(STATUS1="This Month",'Salary Process'!F7,'Salary Master'!F6)) -> 0 | E8: =IF(STATUS1="Done",DATABASE!E8,IF(STATUS1="This Month",'Salary Process'!G7,'Salary Master'!G6)) -> 0 | F8: =IF(STATUS1="Done",DATABASE!F8,IF(STATUS1="This Month",'Salary Process'!H7,'Salary Master'!H6)) -> 0 | G8: =IF(STATUS1="Done",DATABASE!G8,IF(STATUS1="This Month",'Salary Process'!I7,'Salary Master'!I6)) -> 0 | H8: =IF(STATUS1="Done",DATABASE!H8,IF(STATUS1="This Month",'Salary Process'!J7,'Salary Master'!J6)) -> 0 | I8: =IF(STATUS1="Done",DATABASE!I8,IF(STATUS1="This Month",'Salary Process'!K7,'Salary Master'!K6)) -> 0 | J8: =IF(STATUS1="Done",DATABASE!J8,IF(STATUS1="This Month",'Salary Process'!L7,'Salary Master'!L6)) -> 0 | K8: =IF(STATUS1="Done",DATABASE!K8,IF(STATUS1="This Month",'Salary Process'!M7,'Salary Master'!M6)) -> 0 | L8: =IF(STATUS1="Done",DATABASE!L8,IF(STATUS1="This Month",'Salary Process'!N7,'Salary Master'!N6)) -> 0 | M8: =IF(STATUS1="Done",DATABASE!M8,IF(STATUS1="This Month",'Salary Process'!O7,'Salary Master'!O6)) -> 0 | N8: =IF(STATUS1="Done",DATABASE!N8,IF(STATUS1="This Month",'Salary Process'!P7,'Salary Master'!P6)) -> 0 | O8: =IF(STATUS1="Done",DATABASE!O8,IF(STATUS1="This Month",'Salary Process'!Q7,'Salary Master'!Q6)) -> 0 | P8: =IF(STATUS1="Done",DATABASE!P8,IF(STATUS1="This Month",'Salary Process'!R7,'Salary Master'!R6)) -> 0 | Q8: =IF(STATUS1="Done",DATABASE!Q8,IF(STATUS1="This Month",'Salary Process'!S7,'Salary Master'!S6)) -> 0 | R8: =IF(STATUS1="Done",DATABASE!R8,IF(STATUS1="This Month",'Salary Process'!T7,'Salary Master'!T6)) -> 0 | S8: =IF(STATUS1="Done",DATABASE!S8,IF(STATUS1="This Month",'Salary Process'!U7,'Salary Master'!U6)) -> 0 | T8: =IF(STATUS1="Done",DATABASE!T8,IF(STATUS1="This Month",'Salary Process'!V7,'Salary Master'!V6)) -> 0 | U8: =IF(STATUS1="Done",DATABASE!U8,IF(STATUS1="This Month",'Salary Process'!W7,'Salary Master'!W6)) -> 0 | V8: =IF(STATUS1="Done",DATABASE!V8,IF(STATUS1="This Month",'Salary Process'!X7,'Salary Master'!X6)) -> 0 | W8: =IF(STATUS1="Done",DATABASE!W8,IF(STATUS1="This Month",'Salary Process'!Y7,'Salary Master'!Y6)) -> 0 | X8: =IF(STATUS1="Done",DATABASE!X8,IF(STATUS1="This Month",'Salary Process'!Z7,'Salary Master'!Z6)) -> 0 | Y8: =IF(STATUS1="Done",DATABASE!Y8,IF(STATUS1="This Month",'Salary Process'!AA7,'Salary Master'!AA6)) -> 0 | Z8: =IF(STATUS1="Done",DATABASE!Z8,IF(STATUS1="This Month",'Salary Process'!AB7,'Salary Master'!AB6)) -> 0 | AA8: =IF(STATUS1="Done",DATABASE!AA8,IF(STATUS1="This Month",'Salary Process'!AC7,'Salary Master'!AC6)) -> 0 | AB8: =IF(STATUS1="Done",DATABASE!AB8,IF(STATUS1="This Month",'Salary Process'!AD7,'Salary Master'!AD6)) -> 0 | AC8: =IF(STATUS1="Done",DATABASE!AC8,IF(STATUS1="This Month",'Salary Process'!AE7,'Salary Master'!AE6)) -> 0 | AD8: =IF(STATUS1="Done",DATABASE!AD8,IF(STATUS1="This Month",'Salary Process'!AF7,'Salary Master'!AF6)) -> 0 | AE8: =IF(STATUS1="Done",DATABASE!AE8,IF(STATUS1="This Month",'Salary Process'!AG7,'Salary Master'!AG6)) -> 0 | AF8: =IF(STATUS1="Done",DATABASE!AF8,IF(STATUS1="This Month",'Salary Process'!AH7,'Salary Master'!AH6)) -> 0 | AG8: =IF(STATUS1="Done",DATABASE!AG8,IF(STATUS1="This Month",'Salary Process'!AI7,'Salary Master'!AI6)) -> 0 | AH8: =IF(STATUS1="Done",DATABASE!AH8,IF(STATUS1="This Month",'Salary Process'!AJ7,'Salary Master'!AJ6)) -> 0 | AI8: =IF(STATUS1="Done",DATABASE!AI8,IF(STATUS1="This Month",'Salary Process'!AK7,'Salary Master'!AK6)) -> 0 | AJ8: =IF(STATUS1="Done",DATABASE!AJ8,IF(STATUS1="This Month",'Salary Process'!AL7,'Salary Master'!AL6)) -> 0 | AN8: =IF(STATUS2="Done",DATABASE!AN8,IF(STATUS2="This Month",'Salary Process'!D7,'Salary Master'!D6)) -> 0 | AO8: =IF(STATUS2="Done",DATABASE!AO8,IF(STATUS2="This Month",'Salary Process'!E7,'Salary Master'!E6)) -> 0 | AP8: =IF(STATUS2="Done",DATABASE!AP8,IF(STATUS2="This Month",'Salary Process'!F7,'Salary Master'!F6)) -> 0 | AQ8: =IF(STATUS2="Done",DATABASE!AQ8,IF(STATUS2="This Month",'Salary Process'!G7,'Salary Master'!G6)) -> 0 | AR8: =IF(STATUS2="Done",DATABASE!AR8,IF(STATUS2="This Month",'Salary Process'!H7,'Salary Master'!H6)) -> 0 | AS8: =IF(STATUS2="Done",DATABASE!AS8,IF(STATUS2="This Month",'Salary Process'!I7,'Salary Master'!I6)) -> 0 | AT8: =IF(STATUS2="Done",DATABASE!AT8,IF(STATUS2="This Month",'Salary Process'!J7,'Salary Master'!J6)) -> 0 | AU8: =IF(STATUS2="Done",DATABASE!AU8,IF(STATUS2="This Month",'Salary Process'!K7,'Salary Master'!K6)) -> 0 | AV8: =IF(STATUS2="Done",DATABASE!AV8,IF(STATUS2="This Month",'Salary Process'!L7,'Salary Master'!L6)) -> 0 | AW8: =IF(STATUS2="Done",DATABASE!AW8,IF(STATUS2="This Month",'Salary Process'!M7,'Salary Master'!M6)) -> 0 | AX8: =IF(STATUS2="Done",DATABASE!AX8,IF(STATUS2="This Month",'Salary Process'!N7,'Salary Master'!N6)) -> 0 | AY8: =IF(STATUS2="Done",DATABASE!AY8,IF(STATUS2="This Month",'Salary Process'!O7,'Salary Master'!O6)) -> 0 | AZ8: =IF(STATUS2="Done",DATABASE!AZ8,IF(STATUS2="This Month",'Salary Process'!P7,'Salary Master'!P6)) -> 0 | BA8: =IF(STATUS2="Done",DATABASE!BA8,IF(STATUS2="This Month",'Salary Process'!Q7,'Salary Master'!Q6)) -> 0 | BB8: =IF(STATUS2="Done",DATABASE!BB8,IF(STATUS2="This Month",'Salary Process'!R7,'Salary Master'!R6)) -> 0 | BC8: =IF(STATUS2="Done",DATABASE!BC8,IF(STATUS2="This Month",'Salary Process'!S7,'Salary Master'!S6)) -> 0 | BD8: =IF(STATUS2="Done",DATABASE!BD8,IF(STATUS2="This Month",'Salary Process'!T7,'Salary Master'!T6)) -> 0 | BE8: =IF(STATUS2="Done",DATABASE!BE8,IF(STATUS2="This Month",'Salary Process'!U7,'Salary Master'!U6)) -> 0 | BF8: =IF(STATUS2="Done",DATABASE!BF8,IF(STATUS2="This Month",'Salary Process'!V7,'Salary Master'!V6)) -> 0 | BG8: =IF(STATUS2="Done",DATABASE!BG8,IF(STATUS2="This Month",'Salary Process'!W7,'Salary Master'!W6)) -> 0 | BH8: =IF(STATUS2="Done",DATABASE!BH8,IF(STATUS2="This Month",'Salary Process'!X7,'Salary Master'!X6)) -> 0 | BI8: =IF(STATUS2="Done",DATABASE!BI8,IF(STATUS2="This Month",'Salary Process'!Y7,'Salary Master'!Y6)) -> 0 | BJ8: =IF(STATUS2="Done",DATABASE!BJ8,IF(STATUS2="This Month",'Salary Process'!Z7,'Salary Master'!Z6)) -> 0 | BK8: =IF(STATUS2="Done",DATABASE!BK8,IF(STATUS2="This Month",'Salary Process'!AA7,'Salary Master'!AA6)) -> 0 | BL8: =IF(STATUS2="Done",DATABASE!BL8,IF(STATUS2="This Month",'Salary Process'!AB7,'Salary Master'!AB6)) -> 0 | BM8: =IF(STATUS2="Done",DATABASE!BM8,IF(STATUS2="This Month",'Salary Process'!AC7,'Salary Master'!AC6)) -> 0 | BN8: =IF(STATUS2="Done",DATABASE!BN8,IF(STATUS2="This Month",'Salary Process'!AD7,'Salary Master'!AD6)) -> 0 | BO8: =IF(STATUS2="Done",DATABASE!BO8,IF(STATUS2="This Month",'Salary Process'!AE7,'Salary Master'!AE6)) -> 0 | BP8: =IF(STATUS2="Done",DATABASE!BP8,IF(STATUS2="This Month",'Salary Process'!AF7,'Salary Master'!AF6)) -> 0 | BQ8: =IF(STATUS2="Done",DATABASE!BQ8,IF(STATUS2="This Month",'Salary Process'!AG7,'Salary Master'!AG6)) -> 0 | BR8: =IF(STATUS2="Done",DATABASE!BR8,IF(STATUS2="This Month",'Salary Process'!AH7,'Salary Master'!AH6)) -> 0 | BS8: =IF(STATUS2="Done",DATABASE!BS8,IF(STATUS2="This Month",'Salary Process'!AI7,'Salary Master'!AI6)) -> 0 | BT8: =IF(STATUS2="Done",DATABASE!BT8,IF(STATUS2="This Month",'Salary Process'!AJ7,'Salary Master'!AJ6)) -> 0 | BU8: =IF(STATUS2="Done",DATABASE!BU8,IF(STATUS2="This Month",'Salary Process'!AK7,'Salary Master'!AK6)) -> 0 | BV8: =IF(STATUS2="Done",DATABASE!BV8,IF(STATUS2="This Month",'Salary Process'!AL7,'Salary Master'!AL6)) -> 0 | BZ8: =IF(STATUS3="Done",DATABASE!BZ8,IF(STATUS3="This Month",'Salary Process'!D7,'Salary Master'!D6)) -> 0 | CA8: =IF(STATUS3="Done",DATABASE!CA8,IF(STATUS3="This Month",'Salary Process'!E7,'Salary Master'!E6)) -> 0 | CB8: =IF(STATUS3="Done",DATABASE!CB8,IF(STATUS3="This Month",'Salary Process'!F7,'Salary Master'!F6)) -> 0 | CC8: =IF(STATUS3="Done",DATABASE!CC8,IF(STATUS3="This Month",'Salary Process'!G7,'Salary Master'!G6)) -> 0 | CD8: =IF(STATUS3="Done",DATABASE!CD8,IF(STATUS3="This Month",'Salary Process'!H7,'Salary Master'!H6)) -> 0 | CE8: =IF(STATUS3="Done",DATABASE!CE8,IF(STATUS3="This Month",'Salary Process'!I7,'Salary Master'!I6)) -> 0 | CF8: =IF(STATUS3="Done",DATABASE!CF8,IF(STATUS3="This Month",'Salary Process'!J7,'Salary Master'!J6)) -> 0 | CG8: =IF(STATUS3="Done",DATABASE!CG8,IF(STATUS3="This Month",'Salary Process'!K7,'Salary Master'!K6)) -> 0 | CH8: =IF(STATUS3="Done",DATABASE!CH8,IF(STATUS3="This Month",'Salary Process'!L7,'Salary Master'!L6)) -> 0 | CI8: =IF(STATUS3="Done",DATABASE!CI8,IF(STATUS3="This Month",'Salary Process'!M7,'Salary Master'!M6)) -> 0 | CJ8: =IF(STATUS3="Done",DATABASE!CJ8,IF(STATUS3="This Month",'Salary Process'!N7,'Salary Master'!N6)) -> 0 | CK8: =IF(STATUS3="Done",DATABASE!CK8,IF(STATUS3="This Month",'Salary Process'!O7,'Salary Master'!O6)) -> 0 | CL8: =IF(STATUS3="Done",DATABASE!CL8,IF(STATUS3="This Month",'Salary Process'!P7,'Salary Master'!P6)) -> 0 | CM8: =IF(STATUS3="Done",DATABASE!CM8,IF(STATUS3="This Month",'Salary Process'!Q7,'Salary Master'!Q6)) -> 0 | CN8: =IF(STATUS3="Done",DATABASE!CN8,IF(STATUS3="This Month",'Salary Process'!R7,'Salary Master'!R6)) -> 0 | CO8: =IF(STATUS3="Done",DATABASE!CO8,IF(STATUS3="This Month",'Salary Process'!S7,'Salary Master'!S6)) -> 0 | CP8: =IF(STATUS3="Done",DATABASE!CP8,IF(STATUS3="This Month",'Salary Process'!T7,'Salary Master'!T6)) -> 0 | CQ8: =IF(STATUS3="Done",DATABASE!CQ8,IF(STATUS3="This Month",'Salary Process'!U7,'Salary Master'!U6)) -> 0 | CR8: =IF(STATUS3="Done",DATABASE!CR8,IF(STATUS3="This Month",'Salary Process'!V7,'Salary Master'!V6)) -> 0 | CS8: =IF(STATUS3="Done",DATABASE!CS8,IF(STATUS3="This Month",'Salary Process'!W7,'Salary Master'!W6)) -> 0 | CT8: =IF(STATUS3="Done",DATABASE!CT8,IF(STATUS3="This Month",'Salary Process'!X7,'Salary Master'!X6)) -> 0 | CU8: =IF(STATUS3="Done",DATABASE!CU8,IF(STATUS3="This Month",'Salary Process'!Y7,'Salary Master'!Y6)) -> 0 | CV8: =IF(STATUS3="Done",DATABASE!CV8,IF(STATUS3="This Month",'Salary Process'!Z7,'Salary Master'!Z6)) -> 0 | CW8: =IF(STATUS3="Done",DATABASE!CW8,IF(STATUS3="This Month",'Salary Process'!AA7,'Salary Master'!AA6)) -> 0 | CX8: =IF(STATUS3="Done",DATABASE!CX8,IF(STATUS3="This Month",'Salary Process'!AB7,'Salary Master'!AB6)) -> 0 | CY8: =IF(STATUS3="Done",DATABASE!CY8,IF(STATUS3="This Month",'Salary Process'!AC7,'Salary Master'!AC6)) -> 0 | CZ8: =IF(STATUS3="Done",DATABASE!CZ8,IF(STATUS3="This Month",'Salary Process'!AD7,'Salary Master'!AD6)) -> 0 | DA8: =IF(STATUS3="Done",DATABASE!DA8,IF(STATUS3="This Month",'Salary Process'!AE7,'Salary Master'!AE6)) -> 0 | DB8: =IF(STATUS3="Done",DATABASE!DB8,IF(STATUS3="This Month",'Salary Process'!AF7,'Salary Master'!AF6)) -> 0 | DC8: =IF(STATUS3="Done",DATABASE!DC8,IF(STATUS3="This Month",'Salary Process'!AG7,'Salary Master'!AG6)) -> 0 | DD8: =IF(STATUS3="Done",DATABASE!DD8,IF(STATUS3="This Month",'Salary Process'!AH7,'Salary Master'!AH6)) -> 0 | DE8: =IF(STATUS3="Done",DATABASE!DE8,IF(STATUS3="This Month",'Salary Process'!AI7,'Salary Master'!AI6)) -> 0 | DF8: =IF(STATUS3="Done",DATABASE!DF8,IF(STATUS3="This Month",'Salary Process'!AJ7,'Salary Master'!AJ6)) -> 0 | DG8: =IF(STATUS3="Done",DATABASE!DG8,IF(STATUS3="This Month",'Salary Process'!AK7,'Salary Master'!AK6)) -> 0 | DH8: =IF(STATUS3="Done",DATABASE!DH8,IF(STATUS3="This Month",'Salary Process'!AL7,'Salary Master'!AL6)) -> 0 | DL8: =IF(STATUS4="Done",DATABASE!DL8,IF(STATUS4="This Month",'Salary Process'!D7,'Salary Master'!D6)) -> 0 | DM8: =IF(STATUS4="Done",DATABASE!DM8,IF(STATUS4="This Month",'Salary Process'!E7,'Salary Master'!E6)) -> 0 | DN8: =IF(STATUS4="Done",DATABASE!DN8,IF(STATUS4="This Month",'Salary Process'!F7,'Salary Master'!F6)) -> 0 | DO8: =IF(STATUS4="Done",DATABASE!DO8,IF(STATUS4="This Month",'Salary Process'!G7,'Salary Master'!G6)) -> 0 | DP8: =IF(STATUS4="Done",DATABASE!DP8,IF(STATUS4="This Month",'Salary Process'!H7,'Salary Master'!H6)) -> 0 | DQ8: =IF(STATUS4="Done",DATABASE!DQ8,IF(STATUS4="This Month",'Salary Process'!I7,'Salary Master'!I6)) -> 0 | DR8: =IF(STATUS4="Done",DATABASE!DR8,IF(STATUS4="This Month",'Salary Process'!J7,'Salary Master'!J6)) -> 0 | DS8: =IF(STATUS4="Done",DATABASE!DS8,IF(STATUS4="This Month",'Salary Process'!K7,'Salary Master'!K6)) -> 0 | DT8: =IF(STATUS4="Done",DATABASE!DT8,IF(STATUS4="This Month",'Salary Process'!L7,'Salary Master'!L6)) -> 0 | DU8: =IF(STATUS4="Done",DATABASE!DU8,IF(STATUS4="This Month",'Salary Process'!M7,'Salary Master'!M6)) -> 0 | DV8: =IF(STATUS4="Done",DATABASE!DV8,IF(STATUS4="This Month",'Salary Process'!N7,'Salary Master'!N6)) -> 0 | DW8: =IF(STATUS4="Done",DATABASE!DW8,IF(STATUS4="This Month",'Salary Process'!O7,'Salary Master'!O6)) -> 0 | DX8: =IF(STATUS4="Done",DATABASE!DX8,IF(STATUS4="This Month",'Salary Process'!P7,'Salary Master'!P6)) -> 0 | DY8: =IF(STATUS4="Done",DATABASE!DY8,IF(STATUS4="This Month",'Salary Process'!Q7,'Salary Master'!Q6)) -> 0 | DZ8: =IF(STATUS4="Done",DATABASE!DZ8,IF(STATUS4="This Month",'Salary Process'!R7,'Salary Master'!R6)) -> 0 | EA8: =IF(STATUS4="Done",DATABASE!EA8,IF(STATUS4="This Month",'Salary Process'!S7,'Salary Master'!S6)) -> 0 | EB8: =IF(STATUS4="Done",DATABASE!EB8,IF(STATUS4="This Month",'Salary Process'!T7,'Salary Master'!T6)) -> 0 | EC8: =IF(STATUS4="Done",DATABASE!EC8,IF(STATUS4="This Month",'Salary Process'!U7,'Salary Master'!U6)) -> 0 | ED8: =IF(STATUS4="Done",DATABASE!ED8,IF(STATUS4="This Month",'Salary Process'!V7,'Salary Master'!V6)) -> 0 | EE8: =IF(STATUS4="Done",DATABASE!EE8,IF(STATUS4="This Month",'Salary Process'!W7,'Salary Master'!W6)) -> 0 | EF8: =IF(STATUS4="Done",DATABASE!EF8,IF(STATUS4="This Month",'Salary Process'!X7,'Salary Master'!X6)) -> 0 | EG8: =IF(STATUS4="Done",DATABASE!EG8,IF(STATUS4="This Month",'Salary Process'!Y7,'Salary Master'!Y6)) -> 0 | EH8: =IF(STATUS4="Done",DATABASE!EH8,IF(STATUS4="This Month",'Salary Process'!Z7,'Salary Master'!Z6)) -> 0 | EI8: =IF(STATUS4="Done",DATABASE!EI8,IF(STATUS4="This Month",'Salary Process'!AA7,'Salary Master'!AA6)) -> 0 | EJ8: =IF(STATUS4="Done",DATABASE!EJ8,IF(STATUS4="This Month",'Salary Process'!AB7,'Salary Master'!AB6)) -> 0 | EK8: =IF(STATUS4="Done",DATABASE!EK8,IF(STATUS4="This Month",'Salary Process'!AC7,'Salary Master'!AC6)) -> 0 | EL8: =IF(STATUS4="Done",DATABASE!EL8,IF(STATUS4="This Month",'Salary Process'!AD7,'Salary Master'!AD6)) -> 0 | EM8: =IF(STATUS4="Done",DATABASE!EM8,IF(STATUS4="This Month",'Salary Process'!AE7,'Salary Master'!AE6)) -> 0 | EN8: =IF(STATUS4="Done",DATABASE!EN8,IF(STATUS4="This Month",'Salary Process'!AF7,'Salary Master'!AF6)) -> 0 | EO8: =IF(STATUS4="Done",DATABASE!EO8,IF(STATUS4="This Month",'Salary Process'!AG7,'Salary Master'!AG6)) -> 0 | EP8: =IF(STATUS4="Done",DATABASE!EP8,IF(STATUS4="This Month",'Salary Process'!AH7,'Salary Master'!AH6)) -> 0 | EQ8: =IF(STATUS4="Done",DATABASE!EQ8,IF(STATUS4="This Month",'Salary Process'!AI7,'Salary Master'!AI6)) -> 0 | ER8: =IF(STATUS4="Done",DATABASE!ER8,IF(STATUS4="This Month",'Salary Process'!AJ7,'Salary Master'!AJ6)) -> 0 | ES8: =IF(STATUS4="Done",DATABASE!ES8,IF(STATUS4="This Month",'Salary Process'!AK7,'Salary Master'!AK6)) -> 0 | ET8: =IF(STATUS4="Done",DATABASE!ET8,IF(STATUS4="This Month",'Salary Process'!AL7,'Salary Master'!AL6)) -> 0 | EX8: =IF(STATUS5="Done",DATABASE!EX8,IF(STATUS5="This Month",'Salary Process'!D7,'Salary Master'!D6)) -> 0 | EY8: =IF(STATUS5="Done",DATABASE!EY8,IF(STATUS5="This Month",'Salary Process'!E7,'Salary Master'!E6)) -> 0 | EZ8: =IF(STATUS5="Done",DATABASE!EZ8,IF(STATUS5="This Month",'Salary Process'!F7,'Salary Master'!F6)) -> 0 | FA8: =IF(STATUS5="Done",DATABASE!FA8,IF(STATUS5="This Month",'Salary Process'!G7,'Salary Master'!G6)) -> 0 | FB8: =IF(STATUS5="Done",DATABASE!FB8,IF(STATUS5="This Month",'Salary Process'!H7,'Salary Master'!H6)) -> 0 | FC8: =IF(STATUS5="Done",DATABASE!FC8,IF(STATUS5="This Month",'Salary Process'!I7,'Salary Master'!I6)) -> 0 | FD8: =IF(STATUS5="Done",DATABASE!FD8,IF(STATUS5="This Month",'Salary Process'!J7,'Salary Master'!J6)) -> 0 | FE8: =IF(STATUS5="Done",DATABASE!FE8,IF(STATUS5="This Month",'Salary Process'!K7,'Salary Master'!K6)) -> 0 | FF8: =IF(STATUS5="Done",DATABASE!FF8,IF(STATUS5="This Month",'Salary Process'!L7,'Salary Master'!L6)) -> 0 | FG8: =IF(STATUS5="Done",DATABASE!FG8,IF(STATUS5="This Month",'Salary Process'!M7,'Salary Master'!M6)) -> 0 | FH8: =IF(STATUS5="Done",DATABASE!FH8,IF(STATUS5="This Month",'Salary Process'!N7,'Salary Master'!N6)) -> 0 | FI8: =IF(STATUS5="Done",DATABASE!FI8,IF(STATUS5="This Month",'Salary Process'!O7,'Salary Master'!O6)) -> 0 | FJ8: =IF(STATUS5="Done",DATABASE!FJ8,IF(STATUS5="This Month",'Salary Process'!P7,'Salary Master'!P6)) -> 0 | FK8: =IF(STATUS5="Done",DATABASE!FK8,IF(STATUS5="This Month",'Salary Process'!Q7,'Salary Master'!Q6)) -> 0 | FL8: =IF(STATUS5="Done",DATABASE!FL8,IF(STATUS5="This Month",'Salary Process'!R7,'Salary Master'!R6)) -> 0 | FM8: =IF(STATUS5="Done",DATABASE!FM8,IF(STATUS5="This Month",'Salary Process'!S7,'Salary Master'!S6)) -> 0 | FN8: =IF(STATUS5="Done",DATABASE!FN8,IF(STATUS5="This Month",'Salary Process'!T7,'Salary Master'!T6)) -> 0 | FO8: =IF(STATUS5="Done",DATABASE!FO8,IF(STATUS5="This Month",'Salary Process'!U7,'Salary Master'!U6)) -> 0 | FP8: =IF(STATUS5="Done",DATABASE!FP8,IF(STATUS5="This Month",'Salary Process'!V7,'Salary Master'!V6)) -> 0 | FQ8: =IF(STATUS5="Done",DATABASE!FQ8,IF(STATUS5="This Month",'Salary Process'!W7,'Salary Master'!W6)) -> 0 | FR8: =IF(STATUS5="Done",DATABASE!FR8,IF(STATUS5="This Month",'Salary Process'!X7,'Salary Master'!X6)) -> 0 | FS8: =IF(STATUS5="Done",DATABASE!FS8,IF(STATUS5="This Month",'Salary Process'!Y7,'Salary Master'!Y6)) -> 0 | FT8: =IF(STATUS5="Done",DATABASE!FT8,IF(STATUS5="This Month",'Salary Process'!Z7,'Salary Master'!Z6)) -> 0 | FU8: =IF(STATUS5="Done",DATABASE!FU8,IF(STATUS5="This Month",'Salary Process'!AA7,'Salary Master'!AA6)) -> 0 | FV8: =IF(STATUS5="Done",DATABASE!FV8,IF(STATUS5="This Month",'Salary Process'!AB7,'Salary Master'!AB6)) -> 0 | FW8: =IF(STATUS5="Done",DATABASE!FW8,IF(STATUS5="This Month",'Salary Process'!AC7,'Salary Master'!AC6)) -> 0 | FX8: =IF(STATUS5="Done",DATABASE!FX8,IF(STATUS5="This Month",'Salary Process'!AD7,'Salary Master'!AD6)) -> 0 | FY8: =IF(STATUS5="Done",DATABASE!FY8,IF(STATUS5="This Month",'Salary Process'!AE7,'Salary Master'!AE6)) -> 0 | FZ8: =IF(STATUS5="Done",DATABASE!FZ8,IF(STATUS5="This Month",'Salary Process'!AF7,'Salary Master'!AF6)) -> 0 | GA8: =IF(STATUS5="Done",DATABASE!GA8,IF(STATUS5="This Month",'Salary Process'!AG7,'Salary Master'!AG6)) -> 0 | GB8: =IF(STATUS5="Done",DATABASE!GB8,IF(STATUS5="This Month",'Salary Process'!AH7,'Salary Master'!AH6)) -> 0 | GC8: =IF(STATUS5="Done",DATABASE!GC8,IF(STATUS5="This Month",'Salary Process'!AI7,'Salary Master'!AI6)) -> 0 | GD8: =IF(STATUS5="Done",DATABASE!GD8,IF(STATUS5="This Month",'Salary Process'!AJ7,'Salary Master'!AJ6)) -> 0 | GE8: =IF(STATUS5="Done",DATABASE!GE8,IF(STATUS5="This Month",'Salary Process'!AK7,'Salary Master'!AK6)) -> 0 | GF8: =IF(STATUS5="Done",DATABASE!GF8,IF(STATUS5="This Month",'Salary Process'!AL7,'Salary Master'!AL6)) -> 0 | GJ8: =IF(STATUS6="Done",DATABASE!GJ8,IF(STATUS6="This Month",'Salary Process'!D7,'Salary Master'!D6)) -> 0 | GK8: =IF(STATUS6="Done",DATABASE!GK8,IF(STATUS6="This Month",'Salary Process'!E7,'Salary Master'!E6)) -> 0 | GL8: =IF(STATUS6="Done",DATABASE!GL8,IF(STATUS6="This Month",'Salary Process'!F7,'Salary Master'!F6)) -> 0 | GM8: =IF(STATUS6="Done",DATABASE!GM8,IF(STATUS6="This Month",'Salary Process'!G7,'Salary Master'!G6)) -> 0 | GN8: =IF(STATUS6="Done",DATABASE!GN8,IF(STATUS6="This Month",'Salary Process'!H7,'Salary Master'!H6)) -> 0 | GO8: =IF(STATUS6="Done",DATABASE!GO8,IF(STATUS6="This Month",'Salary Process'!I7,'Salary Master'!I6)) -> 0 | GP8: =IF(STATUS6="Done",DATABASE!GP8,IF(STATUS6="This Month",'Salary Process'!J7,'Salary Master'!J6)) -> 0 | GQ8: =IF(STATUS6="Done",DATABASE!GQ8,IF(STATUS6="This Month",'Salary Process'!K7,'Salary Master'!K6)) -> 0 | GR8: =IF(STATUS6="Done",DATABASE!GR8,IF(STATUS6="This Month",'Salary Process'!L7,'Salary Master'!L6)) -> 0 | GS8: =IF(STATUS6="Done",DATABASE!GS8,IF(STATUS6="This Month",'Salary Process'!M7,'Salary Master'!M6)) -> 0 | GT8: =IF(STATUS6="Done",DATABASE!GT8,IF(STATUS6="This Month",'Salary Process'!N7,'Salary Master'!N6)) -> 0 | GU8: =IF(STATUS6="Done",DATABASE!GU8,IF(STATUS6="This Month",'Salary Process'!O7,'Salary Master'!O6)) -> 0 | GV8: =IF(STATUS6="Done",DATABASE!GV8,IF(STATUS6="This Month",'Salary Process'!P7,'Salary Master'!P6)) -> 0 | GW8: =IF(STATUS6="Done",DATABASE!GW8,IF(STATUS6="This Month",'Salary Process'!Q7,'Salary Master'!Q6)) -> 0 | GX8: =IF(STATUS6="Done",DATABASE!GX8,IF(STATUS6="This Month",'Salary Process'!R7,'Salary Master'!R6)) -> 0 | GY8: =IF(STATUS6="Done",DATABASE!GY8,IF(STATUS6="This Month",'Salary Process'!S7,'Salary Master'!S6)) -> 0 | GZ8: =IF(STATUS6="Done",DATABASE!GZ8,IF(STATUS6="This Month",'Salary Process'!T7,'Salary Master'!T6)) -> 0 | HA8: =IF(STATUS6="Done",DATABASE!HA8,IF(STATUS6="This Month",'Salary Process'!U7,'Salary Master'!U6)) -> 0 | HB8: =IF(STATUS6="Done",DATABASE!HB8,IF(STATUS6="This Month",'Salary Process'!V7,'Salary Master'!V6)) -> 0 | HC8: =IF(STATUS6="Done",DATABASE!HC8,IF(STATUS6="This Month",'Salary Process'!W7,'Salary Master'!W6)) -> 0 | HD8: =IF(STATUS6="Done",DATABASE!HD8,IF(STATUS6="This Month",'Salary Process'!X7,'Salary Master'!X6)) -> 0 | HE8: =IF(STATUS6="Done",DATABASE!HE8,IF(STATUS6="This Month",'Salary Process'!Y7,'Salary Master'!Y6)) -> 0 | HF8: =IF(STATUS6="Done",DATABASE!HF8,IF(STATUS6="This Month",'Salary Process'!Z7,'Salary Master'!Z6)) -> 0 | HG8: =IF(STATUS6="Done",DATABASE!HG8,IF(STATUS6="This Month",'Salary Process'!AA7,'Salary Master'!AA6)) -> 0 | HH8: =IF(STATUS6="Done",DATABASE!HH8,IF(STATUS6="This Month",'Salary Process'!AB7,'Salary Master'!AB6)) -> 0 | HI8: =IF(STATUS6="Done",DATABASE!HI8,IF(STATUS6="This Month",'Salary Process'!AC7,'Salary Master'!AC6)) -> 0 | HJ8: =IF(STATUS6="Done",DATABASE!HJ8,IF(STATUS6="This Month",'Salary Process'!AD7,'Salary Master'!AD6)) -> 0 | HK8: =IF(STATUS6="Done",DATABASE!HK8,IF(STATUS6="This Month",'Salary Process'!AE7,'Salary Master'!AE6)) -> 0 | HL8: =IF(STATUS6="Done",DATABASE!HL8,IF(STATUS6="This Month",'Salary Process'!AF7,'Salary Master'!AF6)) -> 0 | HM8: =IF(STATUS6="Done",DATABASE!HM8,IF(STATUS6="This Month",'Salary Process'!AG7,'Salary Master'!AG6)) -> 0 | HN8: =IF(STATUS6="Done",DATABASE!HN8,IF(STATUS6="This Month",'Salary Process'!AH7,'Salary Master'!AH6)) -> 0 | HO8: =IF(STATUS6="Done",DATABASE!HO8,IF(STATUS6="This Month",'Salary Process'!AI7,'Salary Master'!AI6)) -> 0 | HP8: =IF(STATUS6="Done",DATABASE!HP8,IF(STATUS6="This Month",'Salary Process'!AJ7,'Salary Master'!AJ6)) -> 0 | HQ8: =IF(STATUS6="Done",DATABASE!HQ8,IF(STATUS6="This Month",'Salary Process'!AK7,'Salary Master'!AK6)) -> 0 | HR8: =IF(STATUS6="Done",DATABASE!HR8,IF(STATUS6="This Month",'Salary Process'!AL7,'Salary Master'!AL6)) -> 0 | HV8: =IF(STATUS7="Done",DATABASE!HV8,IF(STATUS7="This Month",'Salary Process'!D7,'Salary Master'!D6)) -> 0 | HW8: =IF(STATUS7="Done",DATABASE!HW8,IF(STATUS7="This Month",'Salary Process'!E7,'Salary Master'!E6)) -> 0 | HX8: =IF(STATUS7="Done",DATABASE!HX8,IF(STATUS7="This Month",'Salary Process'!F7,'Salary Master'!F6)) -> 0 | HY8: =IF(STATUS7="Done",DATABASE!HY8,IF(STATUS7="This Month",'Salary Process'!G7,'Salary Master'!G6)) -> 0 | HZ8: =IF(STATUS7="Done",DATABASE!HZ8,IF(STATUS7="This Month",'Salary Process'!H7,'Salary Master'!H6)) -> 0 | IA8: =IF(STATUS7="Done",DATABASE!IA8,IF(STATUS7="This Month",'Salary Process'!I7,'Salary Master'!I6)) -> 0 | IB8: =IF(STATUS7="Done",DATABASE!IB8,IF(STATUS7="This Month",'Salary Process'!J7,'Salary Master'!J6)) -> 0 | IC8: =IF(STATUS7="Done",DATABASE!IC8,IF(STATUS7="This Month",'Salary Process'!K7,'Salary Master'!K6)) -> 0 | ID8: =IF(STATUS7="Done",DATABASE!ID8,IF(STATUS7="This Month",'Salary Process'!L7,'Salary Master'!L6)) -> 0 | IE8: =IF(STATUS7="Done",DATABASE!IE8,IF(STATUS7="This Month",'Salary Process'!M7,'Salary Master'!M6)) -> 0 | IF8: =IF(STATUS7="Done",DATABASE!IF8,IF(STATUS7="This Month",'Salary Process'!N7,'Salary Master'!N6)) -> 0 | IG8: =IF(STATUS7="Done",DATABASE!IG8,IF(STATUS7="This Month",'Salary Process'!O7,'Salary Master'!O6)) -> 0 | IH8: =IF(STATUS7="Done",DATABASE!IH8,IF(STATUS7="This Month",'Salary Process'!P7,'Salary Master'!P6)) -> 0 | II8: =IF(STATUS7="Done",DATABASE!II8,IF(STATUS7="This Month",'Salary Process'!Q7,'Salary Master'!Q6)) -> 0 | IJ8: =IF(STATUS7="Done",DATABASE!IJ8,IF(STATUS7="This Month",'Salary Process'!R7,'Salary Master'!R6)) -> 0 | IK8: =IF(STATUS7="Done",DATABASE!IK8,IF(STATUS7="This Month",'Salary Process'!S7,'Salary Master'!S6)) -> 0 | IL8: =IF(STATUS7="Done",DATABASE!IL8,IF(STATUS7="This Month",'Salary Process'!T7,'Salary Master'!T6)) -> 0 | IM8: =IF(STATUS7="Done",DATABASE!IM8,IF(STATUS7="This Month",'Salary Process'!U7,'Salary Master'!U6)) -> 0 | IN8: =IF(STATUS7="Done",DATABASE!IN8,IF(STATUS7="This Month",'Salary Process'!V7,'Salary Master'!V6)) -> 0 | IO8: =IF(STATUS7="Done",DATABASE!IO8,IF(STATUS7="This Month",'Salary Process'!W7,'Salary Master'!W6)) -> 0 | IP8: =IF(STATUS7="Done",DATABASE!IP8,IF(STATUS7="This Month",'Salary Process'!X7,'Salary Master'!X6)) -> 0 | IQ8: =IF(STATUS7="Done",DATABASE!IQ8,IF(STATUS7="This Month",'Salary Process'!Y7,'Salary Master'!Y6)) -> 0 | IR8: =IF(STATUS7="Done",DATABASE!IR8,IF(STATUS7="This Month",'Salary Process'!Z7,'Salary Master'!Z6)) -> 0 | IS8: =IF(STATUS7="Done",DATABASE!IS8,IF(STATUS7="This Month",'Salary Process'!AA7,'Salary Master'!AA6)) -> 0 | IT8: =IF(STATUS7="Done",DATABASE!IT8,IF(STATUS7="This Month",'Salary Process'!AB7,'Salary Master'!AB6)) -> 0 | IU8: =IF(STATUS7="Done",DATABASE!IU8,IF(STATUS7="This Month",'Salary Process'!AC7,'Salary Master'!AC6)) -> 0 | IV8: =IF(STATUS7="Done",DATABASE!IV8,IF(STATUS7="This Month",'Salary Process'!AD7,'Salary Master'!AD6)) -> 0 | IW8: =IF(STATUS7="Done",DATABASE!IW8,IF(STATUS7="This Month",'Salary Process'!AE7,'Salary Master'!AE6)) -> 0 | IX8: =IF(STATUS7="Done",DATABASE!IX8,IF(STATUS7="This Month",'Salary Process'!AF7,'Salary Master'!AF6)) -> 0 | IY8: =IF(STATUS7="Done",DATABASE!IY8,IF(STATUS7="This Month",'Salary Process'!AG7,'Salary Master'!AG6)) -> 0 | IZ8: =IF(STATUS7="Done",DATABASE!IZ8,IF(STATUS7="This Month",'Salary Process'!AH7,'Salary Master'!AH6)) -> 0 | JA8: =IF(STATUS7="Done",DATABASE!JA8,IF(STATUS7="This Month",'Salary Process'!AI7,'Salary Master'!AI6)) -> 0 | JB8: =IF(STATUS7="Done",DATABASE!JB8,IF(STATUS7="This Month",'Salary Process'!AJ7,'Salary Master'!AJ6)) -> 0 | JC8: =IF(STATUS7="Done",DATABASE!JC8,IF(STATUS7="This Month",'Salary Process'!AK7,'Salary Master'!AK6)) -> 0 | JD8: =IF(STATUS7="Done",DATABASE!JD8,IF(STATUS7="This Month",'Salary Process'!AL7,'Salary Master'!AL6)) -> 0 | JH8: =IF(STATUS8="Done",DATABASE!JH8,IF(STATUS8="This Month",'Salary Process'!D7,'Salary Master'!D6)) -> 0 | JI8: =IF(STATUS8="Done",DATABASE!JI8,IF(STATUS8="This Month",'Salary Process'!E7,'Salary Master'!E6)) -> 0 | JJ8: =IF(STATUS8="Done",DATABASE!JJ8,IF(STATUS8="This Month",'Salary Process'!F7,'Salary Master'!F6)) -> 0 | JK8: =IF(STATUS8="Done",DATABASE!JK8,IF(STATUS8="This Month",'Salary Process'!G7,'Salary Master'!G6)) -> 0 | JL8: =IF(STATUS8="Done",DATABASE!JL8,IF(STATUS8="This Month",'Salary Process'!H7,'Salary Master'!H6)) -> 0 | JM8: =IF(STATUS8="Done",DATABASE!JM8,IF(STATUS8="This Month",'Salary Process'!I7,'Salary Master'!I6)) -> 0 | JN8: =IF(STATUS8="Done",DATABASE!JN8,IF(STATUS8="This Month",'Salary Process'!J7,'Salary Master'!J6)) -> 0 | JO8: =IF(STATUS8="Done",DATABASE!JO8,IF(STATUS8="This Month",'Salary Process'!K7,'Salary Master'!K6)) -> 0 | JP8: =IF(STATUS8="Done",DATABASE!JP8,IF(STATUS8="This Month",'Salary Process'!L7,'Salary Master'!L6)) -> 0 | JQ8: =IF(STATUS8="Done",DATABASE!JQ8,IF(STATUS8="This Month",'Salary Process'!M7,'Salary Master'!M6)) -> 0 | JR8: =IF(STATUS8="Done",DATABASE!JR8,IF(STATUS8="This Month",'Salary Process'!N7,'Salary Master'!N6)) -> 0 | JS8: =IF(STATUS8="Done",DATABASE!JS8,IF(STATUS8="This Month",'Salary Process'!O7,'Salary Master'!O6)) -> 0 | JT8: =IF(STATUS8="Done",DATABASE!JT8,IF(STATUS8="This Month",'Salary Process'!P7,'Salary Master'!P6)) -> 0 | JU8: =IF(STATUS8="Done",DATABASE!JU8,IF(STATUS8="This Month",'Salary Process'!Q7,'Salary Master'!Q6)) -> 0 | JV8: =IF(STATUS8="Done",DATABASE!JV8,IF(STATUS8="This Month",'Salary Process'!R7,'Salary Master'!R6)) -> 0 | JW8: =IF(STATUS8="Done",DATABASE!JW8,IF(STATUS8="This Month",'Salary Process'!S7,'Salary Master'!S6)) -> 0 | JX8: =IF(STATUS8="Done",DATABASE!JX8,IF(STATUS8="This Month",'Salary Process'!T7,'Salary Master'!T6)) -> 0 | JY8: =IF(STATUS8="Done",DATABASE!JY8,IF(STATUS8="This Month",'Salary Process'!U7,'Salary Master'!U6)) -> 0 | JZ8: =IF(STATUS8="Done",DATABASE!JZ8,IF(STATUS8="This Month",'Salary Process'!V7,'Salary Master'!V6)) -> 0 | KA8: =IF(STATUS8="Done",DATABASE!KA8,IF(STATUS8="This Month",'Salary Process'!W7,'Salary Master'!W6)) -> 0 | KB8: =IF(STATUS8="Done",DATABASE!KB8,IF(STATUS8="This Month",'Salary Process'!X7,'Salary Master'!X6)) -> 0 | KC8: =IF(STATUS8="Done",DATABASE!KC8,IF(STATUS8="This Month",'Salary Process'!Y7,'Salary Master'!Y6)) -> 0 | KD8: =IF(STATUS8="Done",DATABASE!KD8,IF(STATUS8="This Month",'Salary Process'!Z7,'Salary Master'!Z6)) -> 0 | KE8: =IF(STATUS8="Done",DATABASE!KE8,IF(STATUS8="This Month",'Salary Process'!AA7,'Salary Master'!AA6)) -> 0 | KF8: =IF(STATUS8="Done",DATABASE!KF8,IF(STATUS8="This Month",'Salary Process'!AB7,'Salary Master'!AB6)) -> 0 | KG8: =IF(STATUS8="Done",DATABASE!KG8,IF(STATUS8="This Month",'Salary Process'!AC7,'Salary Master'!AC6)) -> 0 | KH8: =IF(STATUS8="Done",DATABASE!KH8,IF(STATUS8="This Month",'Salary Process'!AD7,'Salary Master'!AD6)) -> 0 | KI8: =IF(STATUS8="Done",DATABASE!KI8,IF(STATUS8="This Month",'Salary Process'!AE7,'Salary Master'!AE6)) -> 0 | KJ8: =IF(STATUS8="Done",DATABASE!KJ8,IF(STATUS8="This Month",'Salary Process'!AF7,'Salary Master'!AF6)) -> 0 | KK8: =IF(STATUS8="Done",DATABASE!KK8,IF(STATUS8="This Month",'Salary Process'!AG7,'Salary Master'!AG6)) -> 0 | KL8: =IF(STATUS8="Done",DATABASE!KL8,IF(STATUS8="This Month",'Salary Process'!AH7,'Salary Master'!AH6)) -> 0 | KM8: =IF(STATUS8="Done",DATABASE!KM8,IF(STATUS8="This Month",'Salary Process'!AI7,'Salary Master'!AI6)) -> 0 | KN8: =IF(STATUS8="Done",DATABASE!KN8,IF(STATUS8="This Month",'Salary Process'!AJ7,'Salary Master'!AJ6)) -> 0 | KO8: =IF(STATUS8="Done",DATABASE!KO8,IF(STATUS8="This Month",'Salary Process'!AK7,'Salary Master'!AK6)) -> 0 | KP8: =IF(STATUS8="Done",DATABASE!KP8,IF(STATUS8="This Month",'Salary Process'!AL7,'Salary Master'!AL6)) -> 0 | KT8: =IF(STATUS9="Done",DATABASE!KT8,IF(STATUS9="This Month",'Salary Process'!D7,'Salary Master'!D6)) -> 0 | KU8: =IF(STATUS9="Done",DATABASE!KU8,IF(STATUS9="This Month",'Salary Process'!E7,'Salary Master'!E6)) -> 0 | KV8: =IF(STATUS9="Done",DATABASE!KV8,IF(STATUS9="This Month",'Salary Process'!F7,'Salary Master'!F6)) -> 0 | KW8: =IF(STATUS9="Done",DATABASE!KW8,IF(STATUS9="This Month",'Salary Process'!G7,'Salary Master'!G6)) -> 0 | KX8: =IF(STATUS9="Done",DATABASE!KX8,IF(STATUS9="This Month",'Salary Process'!H7,'Salary Master'!H6)) -> 0 | KY8: =IF(STATUS9="Done",DATABASE!KY8,IF(STATUS9="This Month",'Salary Process'!I7,'Salary Master'!I6)) -> 0 | KZ8: =IF(STATUS9="Done",DATABASE!KZ8,IF(STATUS9="This Month",'Salary Process'!J7,'Salary Master'!J6)) -> 0 | LA8: =IF(STATUS9="Done",DATABASE!LA8,IF(STATUS9="This Month",'Salary Process'!K7,'Salary Master'!K6)) -> 0 | LB8: =IF(STATUS9="Done",DATABASE!LB8,IF(STATUS9="This Month",'Salary Process'!L7,'Salary Master'!L6)) -> 0 | LC8: =IF(STATUS9="Done",DATABASE!LC8,IF(STATUS9="This Month",'Salary Process'!M7,'Salary Master'!M6)) -> 0 | LD8: =IF(STATUS9="Done",DATABASE!LD8,IF(STATUS9="This Month",'Salary Process'!N7,'Salary Master'!N6)) -> 0 | LE8: =IF(STATUS9="Done",DATABASE!LE8,IF(STATUS9="This Month",'Salary Process'!O7,'Salary Master'!O6)) -> 0 | LF8: =IF(STATUS9="Done",DATABASE!LF8,IF(STATUS9="This Month",'Salary Process'!P7,'Salary Master'!P6)) -> 0 | LG8: =IF(STATUS9="Done",DATABASE!LG8,IF(STATUS9="This Month",'Salary Process'!Q7,'Salary Master'!Q6)) -> 0 | LH8: =IF(STATUS9="Done",DATABASE!LH8,IF(STATUS9="This Month",'Salary Process'!R7,'Salary Master'!R6)) -> 0 | LI8: =IF(STATUS9="Done",DATABASE!LI8,IF(STATUS9="This Month",'Salary Process'!S7,'Salary Master'!S6)) -> 0 | LJ8: =IF(STATUS9="Done",DATABASE!LJ8,IF(STATUS9="This Month",'Salary Process'!T7,'Salary Master'!T6)) -> 0 | LK8: =IF(STATUS9="Done",DATABASE!LK8,IF(STATUS9="This Month",'Salary Process'!U7,'Salary Master'!U6)) -> 0 | LL8: =IF(STATUS9="Done",DATABASE!LL8,IF(STATUS9="This Month",'Salary Process'!V7,'Salary Master'!V6)) -> 0 | LM8: =IF(STATUS9="Done",DATABASE!LM8,IF(STATUS9="This Month",'Salary Process'!W7,'Salary Master'!W6)) -> 0 | LN8: =IF(STATUS9="Done",DATABASE!LN8,IF(STATUS9="This Month",'Salary Process'!X7,'Salary Master'!X6)) -> 0 | LO8: =IF(STATUS9="Done",DATABASE!LO8,IF(STATUS9="This Month",'Salary Process'!Y7,'Salary Master'!Y6)) -> 0 | LP8: =IF(STATUS9="Done",DATABASE!LP8,IF(STATUS9="This Month",'Salary Process'!Z7,'Salary Master'!Z6)) -> 0 | LQ8: =IF(STATUS9="Done",DATABASE!LQ8,IF(STATUS9="This Month",'Salary Process'!AA7,'Salary Master'!AA6)) -> 0 | LR8: =IF(STATUS9="Done",DATABASE!LR8,IF(STATUS9="This Month",'Salary Process'!AB7,'Salary Master'!AB6)) -> 0 | LS8: =IF(STATUS9="Done",DATABASE!LS8,IF(STATUS9="This Month",'Salary Process'!AC7,'Salary Master'!AC6)) -> 0 | LT8: =IF(STATUS9="Done",DATABASE!LT8,IF(STATUS9="This Month",'Salary Process'!AD7,'Salary Master'!AD6)) -> 0 | LU8: =IF(STATUS9="Done",DATABASE!LU8,IF(STATUS9="This Month",'Salary Process'!AE7,'Salary Master'!AE6)) -> 0 | LV8: =IF(STATUS9="Done",DATABASE!LV8,IF(STATUS9="This Month",'Salary Process'!AF7,'Salary Master'!AF6)) -> 0 | LW8: =IF(STATUS9="Done",DATABASE!LW8,IF(STATUS9="This Month",'Salary Process'!AG7,'Salary Master'!AG6)) -> 0 | LX8: =IF(STATUS9="Done",DATABASE!LX8,IF(STATUS9="This Month",'Salary Process'!AH7,'Salary Master'!AH6)) -> 0 | LY8: =IF(STATUS9="Done",DATABASE!LY8,IF(STATUS9="This Month",'Salary Process'!AI7,'Salary Master'!AI6)) -> 0 | LZ8: =IF(STATUS9="Done",DATABASE!LZ8,IF(STATUS9="This Month",'Salary Process'!AJ7,'Salary Master'!AJ6)) -> 0 | MA8: =IF(STATUS9="Done",DATABASE!MA8,IF(STATUS9="This Month",'Salary Process'!AK7,'Salary Master'!AK6)) -> 0 | MB8: =IF(STATUS9="Done",DATABASE!MB8,IF(STATUS9="This Month",'Salary Process'!AL7,'Salary Master'!AL6)) -> 0 | MF8: =IF(STATUS10="Done",DATABASE!MF8,IF(STATUS10="This Month",'Salary Process'!D7,'Salary Master'!D6)) -> 0 | MG8: =IF(STATUS10="Done",DATABASE!MG8,IF(STATUS10="This Month",'Salary Process'!E7,'Salary Master'!E6)) -> 0 | MH8: =IF(STATUS10="Done",DATABASE!MH8,IF(STATUS10="This Month",'Salary Process'!F7,'Salary Master'!F6)) -> 0 | MI8: =IF(STATUS10="Done",DATABASE!MI8,IF(STATUS10="This Month",'Salary Process'!G7,'Salary Master'!G6)) -> 0 | MJ8: =IF(STATUS10="Done",DATABASE!MJ8,IF(STATUS10="This Month",'Salary Process'!H7,'Salary Master'!H6)) -> 0 | MK8: =IF(STATUS10="Done",DATABASE!MK8,IF(STATUS10="This Month",'Salary Process'!I7,'Salary Master'!I6)) -> 0 | ML8: =IF(STATUS10="Done",DATABASE!ML8,IF(STATUS10="This Month",'Salary Process'!J7,'Salary Master'!J6)) -> 0 | MM8: =IF(STATUS10="Done",DATABASE!MM8,IF(STATUS10="This Month",'Salary Process'!K7,'Salary Master'!K6)) -> 0 | MN8: =IF(STATUS10="Done",DATABASE!MN8,IF(STATUS10="This Month",'Salary Process'!L7,'Salary Master'!L6)) -> 0 | MO8: =IF(STATUS10="Done",DATABASE!MO8,IF(STATUS10="This Month",'Salary Process'!M7,'Salary Master'!M6)) -> 0 | MP8: =IF(STATUS10="Done",DATABASE!MP8,IF(STATUS10="This Month",'Salary Process'!N7,'Salary Master'!N6)) -> 0 | MQ8: =IF(STATUS10="Done",DATABASE!MQ8,IF(STATUS10="This Month",'Salary Process'!O7,'Salary Master'!O6)) -> 0 | MR8: =IF(STATUS10="Done",DATABASE!MR8,IF(STATUS10="This Month",'Salary Process'!P7,'Salary Master'!P6)) -> 0 | MS8: =IF(STATUS10="Done",DATABASE!MS8,IF(STATUS10="This Month",'Salary Process'!Q7,'Salary Master'!Q6)) -> 0 | MT8: =IF(STATUS10="Done",DATABASE!MT8,IF(STATUS10="This Month",'Salary Process'!R7,'Salary Master'!R6)) -> 0 | MU8: =IF(STATUS10="Done",DATABASE!MU8,IF(STATUS10="This Month",'Salary Process'!S7,'Salary Master'!S6)) -> 0 | MV8: =IF(STATUS10="Done",DATABASE!MV8,IF(STATUS10="This Month",'Salary Process'!T7,'Salary Master'!T6)) -> 0 | MW8: =IF(STATUS10="Done",DATABASE!MW8,IF(STATUS10="This Month",'Salary Process'!U7,'Salary Master'!U6)) -> 0 | MX8: =IF(STATUS10="Done",DATABASE!MX8,IF(STATUS10="This Month",'Salary Process'!V7,'Salary Master'!V6)) -> 0 | MY8: =IF(STATUS10="Done",DATABASE!MY8,IF(STATUS10="This Month",'Salary Process'!W7,'Salary Master'!W6)) -> 0 | MZ8: =IF(STATUS10="Done",DATABASE!MZ8,IF(STATUS10="This Month",'Salary Process'!X7,'Salary Master'!X6)) -> 0 | NA8: =IF(STATUS10="Done",DATABASE!NA8,IF(STATUS10="This Month",'Salary Process'!Y7,'Salary Master'!Y6)) -> 0 | NB8: =IF(STATUS10="Done",DATABASE!NB8,IF(STATUS10="This Month",'Salary Process'!Z7,'Salary Master'!Z6)) -> 0 | NC8: =IF(STATUS10="Done",DATABASE!NC8,IF(STATUS10="This Month",'Salary Process'!AA7,'Salary Master'!AA6)) -> 0 | ND8: =IF(STATUS10="Done",DATABASE!ND8,IF(STATUS10="This Month",'Salary Process'!AB7,'Salary Master'!AB6)) -> 0 | NE8: =IF(STATUS10="Done",DATABASE!NE8,IF(STATUS10="This Month",'Salary Process'!AC7,'Salary Master'!AC6)) -> 0 | NF8: =IF(STATUS10="Done",DATABASE!NF8,IF(STATUS10="This Month",'Salary Process'!AD7,'Salary Master'!AD6)) -> 0 | NG8: =IF(STATUS10="Done",DATABASE!NG8,IF(STATUS10="This Month",'Salary Process'!AE7,'Salary Master'!AE6)) -> 0 | NH8: =IF(STATUS10="Done",DATABASE!NH8,IF(STATUS10="This Month",'Salary Process'!AF7,'Salary Master'!AF6)) -> 0 | NI8: =IF(STATUS10="Done",DATABASE!NI8,IF(STATUS10="This Month",'Salary Process'!AG7,'Salary Master'!AG6)) -> 0 | NJ8: =IF(STATUS10="Done",DATABASE!NJ8,IF(STATUS10="This Month",'Salary Process'!AH7,'Salary Master'!AH6)) -> 0 | NK8: =IF(STATUS10="Done",DATABASE!NK8,IF(STATUS10="This Month",'Salary Process'!AI7,'Salary Master'!AI6)) -> 0 | NL8: =IF(STATUS10="Done",DATABASE!NL8,IF(STATUS10="This Month",'Salary Process'!AJ7,'Salary Master'!AJ6)) -> 0 | NM8: =IF(STATUS10="Done",DATABASE!NM8,IF(STATUS10="This Month",'Salary Process'!AK7,'Salary Master'!AK6)) -> 0 | NN8: =IF(STATUS10="Done",DATABASE!NN8,IF(STATUS10="This Month",'Salary Process'!AL7,'Salary Master'!AL6)) -> 0 | NR8: =IF(STATUS11="Done",DATABASE!NR8,IF(STATUS11="This Month",'Salary Process'!D7,'Salary Master'!D6)) -> 0 | NS8: =IF(STATUS11="Done",DATABASE!NS8,IF(STATUS11="This Month",'Salary Process'!E7,'Salary Master'!E6)) -> 0 | NT8: =IF(STATUS11="Done",DATABASE!NT8,IF(STATUS11="This Month",'Salary Process'!F7,'Salary Master'!F6)) -> 0 | NU8: =IF(STATUS11="Done",DATABASE!NU8,IF(STATUS11="This Month",'Salary Process'!G7,'Salary Master'!G6)) -> 0 | NV8: =IF(STATUS11="Done",DATABASE!NV8,IF(STATUS11="This Month",'Salary Process'!H7,'Salary Master'!H6)) -> 0 | NW8: =IF(STATUS11="Done",DATABASE!NW8,IF(STATUS11="This Month",'Salary Process'!I7,'Salary Master'!I6)) -> 0 | NX8: =IF(STATUS11="Done",DATABASE!NX8,IF(STATUS11="This Month",'Salary Process'!J7,'Salary Master'!J6)) -> 0 | NY8: =IF(STATUS11="Done",DATABASE!NY8,IF(STATUS11="This Month",'Salary Process'!K7,'Salary Master'!K6)) -> 0 | NZ8: =IF(STATUS11="Done",DATABASE!NZ8,IF(STATUS11="This Month",'Salary Process'!L7,'Salary Master'!L6)) -> 0 | OA8: =IF(STATUS11="Done",DATABASE!OA8,IF(STATUS11="This Month",'Salary Process'!M7,'Salary Master'!M6)) -> 0 | OB8: =IF(STATUS11="Done",DATABASE!OB8,IF(STATUS11="This Month",'Salary Process'!N7,'Salary Master'!N6)) -> 0 | OC8: =IF(STATUS11="Done",DATABASE!OC8,IF(STATUS11="This Month",'Salary Process'!O7,'Salary Master'!O6)) -> 0 | OD8: =IF(STATUS11="Done",DATABASE!OD8,IF(STATUS11="This Month",'Salary Process'!P7,'Salary Master'!P6)) -> 0 | OE8: =IF(STATUS11="Done",DATABASE!OE8,IF(STATUS11="This Month",'Salary Process'!Q7,'Salary Master'!Q6)) -> 0 | OF8: =IF(STATUS11="Done",DATABASE!OF8,IF(STATUS11="This Month",'Salary Process'!R7,'Salary Master'!R6)) -> 0 | OG8: =IF(STATUS11="Done",DATABASE!OG8,IF(STATUS11="This Month",'Salary Process'!S7,'Salary Master'!S6)) -> 0 | OH8: =IF(STATUS11="Done",DATABASE!OH8,IF(STATUS11="This Month",'Salary Process'!T7,'Salary Master'!T6)) -> 0 | OI8: =IF(STATUS11="Done",DATABASE!OI8,IF(STATUS11="This Month",'Salary Process'!U7,'Salary Master'!U6)) -> 0 | OJ8: =IF(STATUS11="Done",DATABASE!OJ8,IF(STATUS11="This Month",'Salary Process'!V7,'Salary Master'!V6)) -> 0 | OK8: =IF(STATUS11="Done",DATABASE!OK8,IF(STATUS11="This Month",'Salary Process'!W7,'Salary Master'!W6)) -> 0 | OL8: =IF(STATUS11="Done",DATABASE!OL8,IF(STATUS11="This Month",'Salary Process'!X7,'Salary Master'!X6)) -> 0 | OM8: =IF(STATUS11="Done",DATABASE!OM8,IF(STATUS11="This Month",'Salary Process'!Y7,'Salary Master'!Y6)) -> 0 | ON8: =IF(STATUS11="Done",DATABASE!ON8,IF(STATUS11="This Month",'Salary Process'!Z7,'Salary Master'!Z6)) -> 0 | OO8: =IF(STATUS11="Done",DATABASE!OO8,IF(STATUS11="This Month",'Salary Process'!AA7,'Salary Master'!AA6)) -> 0 | OP8: =IF(STATUS11="Done",DATABASE!OP8,IF(STATUS11="This Month",'Salary Process'!AB7,'Salary Master'!AB6)) -> 0 | OQ8: =IF(STATUS11="Done",DATABASE!OQ8,IF(STATUS11="This Month",'Salary Process'!AC7,'Salary Master'!AC6)) -> 0 | OR8: =IF(STATUS11="Done",DATABASE!OR8,IF(STATUS11="This Month",'Salary Process'!AD7,'Salary Master'!AD6)) -> 0 | OS8: =IF(STATUS11="Done",DATABASE!OS8,IF(STATUS11="This Month",'Salary Process'!AE7,'Salary Master'!AE6)) -> 0 | OT8: =IF(STATUS11="Done",DATABASE!OT8,IF(STATUS11="This Month",'Salary Process'!AF7,'Salary Master'!AF6)) -> 0 | OU8: =IF(STATUS11="Done",DATABASE!OU8,IF(STATUS11="This Month",'Salary Process'!AG7,'Salary Master'!AG6)) -> 0 | OV8: =IF(STATUS11="Done",DATABASE!OV8,IF(STATUS11="This Month",'Salary Process'!AH7,'Salary Master'!AH6)) -> 0 | OW8: =IF(STATUS11="Done",DATABASE!OW8,IF(STATUS11="This Month",'Salary Process'!AI7,'Salary Master'!AI6)) -> 0 | OX8: =IF(STATUS11="Done",DATABASE!OX8,IF(STATUS11="This Month",'Salary Process'!AJ7,'Salary Master'!AJ6)) -> 0 | OY8: =IF(STATUS11="Done",DATABASE!OY8,IF(STATUS11="This Month",'Salary Process'!AK7,'Salary Master'!AK6)) -> 0 | OZ8: =IF(STATUS11="Done",DATABASE!OZ8,IF(STATUS11="This Month",'Salary Process'!AL7,'Salary Master'!AL6)) -> 0 | PD8: =IF(STATUS12="Done",DATABASE!PD8,IF(STATUS12="This Month",'Salary Process'!D7,'Salary Master'!D6)) -> 0 | PE8: =IF(STATUS12="Done",DATABASE!PE8,IF(STATUS12="This Month",'Salary Process'!E7,'Salary Master'!E6)) -> 0 | PF8: =IF(STATUS12="Done",DATABASE!PF8,IF(STATUS12="This Month",'Salary Process'!F7,'Salary Master'!F6)) -> 0 | PG8: =IF(STATUS12="Done",DATABASE!PG8,IF(STATUS12="This Month",'Salary Process'!G7,'Salary Master'!G6)) -> 0 | PH8: =IF(STATUS12="Done",DATABASE!PH8,IF(STATUS12="This Month",'Salary Process'!H7,'Salary Master'!H6)) -> 0 | PI8: =IF(STATUS12="Done",DATABASE!PI8,IF(STATUS12="This Month",'Salary Process'!I7,'Salary Master'!I6)) -> 0 | PJ8: =IF(STATUS12="Done",DATABASE!PJ8,IF(STATUS12="This Month",'Salary Process'!J7,'Salary Master'!J6)) -> 0 | PK8: =IF(STATUS12="Done",DATABASE!PK8,IF(STATUS12="This Month",'Salary Process'!K7,'Salary Master'!K6)) -> 0 | PL8: =IF(STATUS12="Done",DATABASE!PL8,IF(STATUS12="This Month",'Salary Process'!L7,'Salary Master'!L6)) -> 0 | PM8: =IF(STATUS12="Done",DATABASE!PM8,IF(STATUS12="This Month",'Salary Process'!M7,'Salary Master'!M6)) -> 0 | PN8: =IF(STATUS12="Done",DATABASE!PN8,IF(STATUS12="This Month",'Salary Process'!N7,'Salary Master'!N6)) -> 0 | PO8: =IF(STATUS12="Done",DATABASE!PO8,IF(STATUS12="This Month",'Salary Process'!O7,'Salary Master'!O6)) -> 0 | PP8: =IF(STATUS12="Done",DATABASE!PP8,IF(STATUS12="This Month",'Salary Process'!P7,'Salary Master'!P6)) -> 0 | PQ8: =IF(STATUS12="Done",DATABASE!PQ8,IF(STATUS12="This Month",'Salary Process'!Q7,'Salary Master'!Q6)) -> 0 | PR8: =IF(STATUS12="Done",DATABASE!PR8,IF(STATUS12="This Month",'Salary Process'!R7,'Salary Master'!R6)) -> 0 | PS8: =IF(STATUS12="Done",DATABASE!PS8,IF(STATUS12="This Month",'Salary Process'!S7,'Salary Master'!S6)) -> 0 | PT8: =IF(STATUS12="Done",DATABASE!PT8,IF(STATUS12="This Month",'Salary Process'!T7,'Salary Master'!T6)) -> 0 | PU8: =IF(STATUS12="Done",DATABASE!PU8,IF(STATUS12="This Month",'Salary Process'!U7,'Salary Master'!U6)) -> 0 | PV8: =IF(STATUS12="Done",DATABASE!PV8,IF(STATUS12="This Month",'Salary Process'!V7,'Salary Master'!V6)) -> 0 | PW8: =IF(STATUS12="Done",DATABASE!PW8,IF(STATUS12="This Month",'Salary Process'!W7,'Salary Master'!W6)) -> 0 | PX8: =IF(STATUS12="Done",DATABASE!PX8,IF(STATUS12="This Month",'Salary Process'!X7,'Salary Master'!X6)) -> 0 | PY8: =IF(STATUS12="Done",DATABASE!PY8,IF(STATUS12="This Month",'Salary Process'!Y7,'Salary Master'!Y6)) -> 0 | PZ8: =IF(STATUS12="Done",DATABASE!PZ8,IF(STATUS12="This Month",'Salary Process'!Z7,'Salary Master'!Z6)) -> 0 | QA8: =IF(STATUS12="Done",DATABASE!QA8,IF(STATUS12="This Month",'Salary Process'!AA7,'Salary Master'!AA6)) -> 0 | QB8: =IF(STATUS12="Done",DATABASE!QB8,IF(STATUS12="This Month",'Salary Process'!AB7,'Salary Master'!AB6)) -> 0 | QC8: =IF(STATUS12="Done",DATABASE!QC8,IF(STATUS12="This Month",'Salary Process'!AC7,'Salary Master'!AC6)) -> 0 | QD8: =IF(STATUS12="Done",DATABASE!QD8,IF(STATUS12="This Month",'Salary Process'!AD7,'Salary Master'!AD6)) -> 0 | QE8: =IF(STATUS12="Done",DATABASE!QE8,IF(STATUS12="This Month",'Salary Process'!AE7,'Salary Master'!AE6)) -> 0 | QF8: =IF(STATUS12="Done",DATABASE!QF8,IF(STATUS12="This Month",'Salary Process'!AF7,'Salary Master'!AF6)) -> 0 | QG8: =IF(STATUS12="Done",DATABASE!QG8,IF(STATUS12="This Month",'Salary Process'!AG7,'Salary Master'!AG6)) -> 0 | QH8: =IF(STATUS12="Done",DATABASE!QH8,IF(STATUS12="This Month",'Salary Process'!AH7,'Salary Master'!AH6)) -> 0 | QI8: =IF(STATUS12="Done",DATABASE!QI8,IF(STATUS12="This Month",'Salary Process'!AI7,'Salary Master'!AI6)) -> 0 | QJ8: =IF(STATUS12="Done",DATABASE!QJ8,IF(STATUS12="This Month",'Salary Process'!AJ7,'Salary Master'!AJ6)) -> 0 | QK8: =IF(STATUS12="Done",DATABASE!QK8,IF(STATUS12="This Month",'Salary Process'!AK7,'Salary Master'!AK6)) -> 0 | QL8: =IF(STATUS12="Done",DATABASE!QL8,IF(STATUS12="This Month",'Salary Process'!AL7,'Salary Master'!AL6)) -> 0 | QP8: 0 | QQ8: 0 | QR8: 0 | QS8: 0 | QT8: 0 | QU8: 0 | QV8: 0 | QW8: 0 | QX8: 0 | QY8: 0 | QZ8: 0 | RA8: 0 | RB8: 0 | RC8: 0 | RD8: 0 | RE8: 0 | RF8: 0 | RG8: 0 | RH8: 0 | RI8: 0 | RJ8: 0 | RK8: 0 | RL8: 0 | RM8: 0 | RN8: 0 | RO8: 0 | RP8: 0 | RQ8: 0 | RR8: 0 | RS8: 0 | RT8: 0 | RU8: 0 | RV8: 0 | RW8: 0 | RX8: 0 | SB8: 0 | SC8: 0 | SD8: =VLOOKUP(A8,'Tax Master'!A:AD,5,0) -> 0 | SE8: =VLOOKUP(A8,'Tax Master'!A:AD,6,0) -> 0 | SF8: =VLOOKUP(A8,'Tax Master'!A:AD,7,0) -> 0 | SG8: 0 | SH8: =VLOOKUP(A8,'Tax Master'!A:AD,12,0) -> 0 | SI8: 0 | SJ8: =VLOOKUP(A8,'Tax Master'!A:AD,14,0) -> 0 | SK8: =MIN(((QP8+QQ8)*VLOOKUP(A8,'Tax Master'!A:P,16,0)),QS8,(MAX((VLOOKUP(A8,'Tax Master'!$A:$P,15,0)-(QP8+QQ8)*10%),0))) -> 0 | SL8: 0 | SM8: =VLOOKUP(A8,'Tax Master'!A:AD,4,0) -> 0 | SN8: 0 | SO8: =VLOOKUP(A8,'Tax Master'!A:J,9,0) -> 0 | SP8: =VLOOKUP(A8,'Tax Master'!A:J,10,0) -> 0 | SQ8: 0 | SR8: 0 | SS8: 0 | ST8: =VLOOKUP(A8,'Tax Master'!A:T,20,0) -> 0 | SU8: 0 | SV8: =MIN(VLOOKUP(A8,'Tax Master'!A:U,21,0),_80CCD_1) -> 0 | SW8: =VLOOKUP(A8,'Tax Master'!A:AD,22,0)/2 -> 0 | SX8: =VLOOKUP(A8,'Tax Master'!A:AD,23,0) -> 0 | SY8: =VLOOKUP(A8,'Tax Master'!A:AD,24,0) -> 0 | SZ8: =VLOOKUP(A8,'Tax Master'!A:AD,25,0) -> 0 | TA8: =VLOOKUP(A8,'Tax Master'!A:AD,26,0) -> 0 | TB8: =VLOOKUP(A8,'Tax Master'!A:AD,27,0) -> 0 | TC8: =VLOOKUP(A8,'Tax Master'!A:AD,28,0) -> 0 | TD8: 0 | TE8: 0 | TF8: 0 | TG8: 0 | TH8: 0 | TI8: 0 | TJ8: 0 | TK8: =VLOOKUP(A8,'Tax Master'!A:AD,29,0) -> 0 | TL8: 0 | TM8: =VLOOKUP(A8,'Tax Master'!A:AD,30,0) -> 0 | TN8: =IF(STATUS1="Done",DATABASE!T8,0)+IF(STATUS2="Done",DATABASE!BF8,0)+IF(STATUS3="Done",DATABASE!CR8,0)+IF(STATUS4="Done",DATABASE!ED8,0)+IF(STATUS5="Done",DATABASE!FP8,0)+IF(STATUS6="Done",DATABASE!HB8,0)+IF(STATUS7="Done",DATABASE!IN8,0)+IF(STATUS8="Done",DATABASE!JZ8,0)+IF(STATUS9="Done",DATABASE!LL8,0)+IF(STATUS10="Done",DATABASE!MX8,0)+IF(STATUS11="Done",DATABASE!OJ8,0)+IF(STATUS12="Done",DATABASE!PV8,0) -> 0 | TO8: 0 | TP8: 0 | TR8: 0
A9: 4 | B9: =IF(STATUS1="Done",DATABASE!B9,IF(STATUS1="This Month",'Salary Process'!D8,'Salary Master'!D7)) -> 0 | C9: =IF(STATUS1="Done",DATABASE!C9,IF(STATUS1="This Month",'Salary Process'!E8,'Salary Master'!E7)) -> 0 | D9: =IF(STATUS1="Done",DATABASE!D9,IF(STATUS1="This Month",'Salary Process'!F8,'Salary Master'!F7)) -> 0 | E9: =IF(STATUS1="Done",DATABASE!E9,IF(STATUS1="This Month",'Salary Process'!G8,'Salary Master'!G7)) -> 0 | F9: =IF(STATUS1="Done",DATABASE!F9,IF(STATUS1="This Month",'Salary Process'!H8,'Salary Master'!H7)) -> 0 | G9: =IF(STATUS1="Done",DATABASE!G9,IF(STATUS1="This Month",'Salary Process'!I8,'Salary Master'!I7)) -> 0 | H9: =IF(STATUS1="Done",DATABASE!H9,IF(STATUS1="This Month",'Salary Process'!J8,'Salary Master'!J7)) -> 0 | I9: =IF(STATUS1="Done",DATABASE!I9,IF(STATUS1="This Month",'Salary Process'!K8,'Salary Master'!K7)) -> 0 | J9: =IF(STATUS1="Done",DATABASE!J9,IF(STATUS1="This Month",'Salary Process'!L8,'Salary Master'!L7)) -> 0 | K9: =IF(STATUS1="Done",DATABASE!K9,IF(STATUS1="This Month",'Salary Process'!M8,'Salary Master'!M7)) -> 0 | L9: =IF(STATUS1="Done",DATABASE!L9,IF(STATUS1="This Month",'Salary Process'!N8,'Salary Master'!N7)) -> 0 | M9: =IF(STATUS1="Done",DATABASE!M9,IF(STATUS1="This Month",'Salary Process'!O8,'Salary Master'!O7)) -> 0 | N9: =IF(STATUS1="Done",DATABASE!N9,IF(STATUS1="This Month",'Salary Process'!P8,'Salary Master'!P7)) -> 0 | O9: =IF(STATUS1="Done",DATABASE!O9,IF(STATUS1="This Month",'Salary Process'!Q8,'Salary Master'!Q7)) -> 0 | P9: =IF(STATUS1="Done",DATABASE!P9,IF(STATUS1="This Month",'Salary Process'!R8,'Salary Master'!R7)) -> 0 | Q9: =IF(STATUS1="Done",DATABASE!Q9,IF(STATUS1="This Month",'Salary Process'!S8,'Salary Master'!S7)) -> 0 | R9: =IF(STATUS1="Done",DATABASE!R9,IF(STATUS1="This Month",'Salary Process'!T8,'Salary Master'!T7)) -> 0 | S9: =IF(STATUS1="Done",DATABASE!S9,IF(STATUS1="This Month",'Salary Process'!U8,'Salary Master'!U7)) -> 0 | T9: =IF(STATUS1="Done",DATABASE!T9,IF(STATUS1="This Month",'Salary Process'!V8,'Salary Master'!V7)) -> 0 | U9: =IF(STATUS1="Done",DATABASE!U9,IF(STATUS1="This Month",'Salary Process'!W8,'Salary Master'!W7)) -> 0 | V9: =IF(STATUS1="Done",DATABASE!V9,IF(STATUS1="This Month",'Salary Process'!X8,'Salary Master'!X7)) -> 0 | W9: =IF(STATUS1="Done",DATABASE!W9,IF(STATUS1="This Month",'Salary Process'!Y8,'Salary Master'!Y7)) -> 0 | X9: =IF(STATUS1="Done",DATABASE!X9,IF(STATUS1="This Month",'Salary Process'!Z8,'Salary Master'!Z7)) -> 0 | Y9: =IF(STATUS1="Done",DATABASE!Y9,IF(STATUS1="This Month",'Salary Process'!AA8,'Salary Master'!AA7)) -> 0 | Z9: =IF(STATUS1="Done",DATABASE!Z9,IF(STATUS1="This Month",'Salary Process'!AB8,'Salary Master'!AB7)) -> 0 | AA9: =IF(STATUS1="Done",DATABASE!AA9,IF(STATUS1="This Month",'Salary Process'!AC8,'Salary Master'!AC7)) -> 0 | AB9: =IF(STATUS1="Done",DATABASE!AB9,IF(STATUS1="This Month",'Salary Process'!AD8,'Salary Master'!AD7)) -> 0 | AC9: =IF(STATUS1="Done",DATABASE!AC9,IF(STATUS1="This Month",'Salary Process'!AE8,'Salary Master'!AE7)) -> 0 | AD9: =IF(STATUS1="Done",DATABASE!AD9,IF(STATUS1="This Month",'Salary Process'!AF8,'Salary Master'!AF7)) -> 0 | AE9: =IF(STATUS1="Done",DATABASE!AE9,IF(STATUS1="This Month",'Salary Process'!AG8,'Salary Master'!AG7)) -> 0 | AF9: =IF(STATUS1="Done",DATABASE!AF9,IF(STATUS1="This Month",'Salary Process'!AH8,'Salary Master'!AH7)) -> 0 | AG9: =IF(STATUS1="Done",DATABASE!AG9,IF(STATUS1="This Month",'Salary Process'!AI8,'Salary Master'!AI7)) -> 0 | AH9: =IF(STATUS1="Done",DATABASE!AH9,IF(STATUS1="This Month",'Salary Process'!AJ8,'Salary Master'!AJ7)) -> 0 | AI9: =IF(STATUS1="Done",DATABASE!AI9,IF(STATUS1="This Month",'Salary Process'!AK8,'Salary Master'!AK7)) -> 0 | AJ9: =IF(STATUS1="Done",DATABASE!AJ9,IF(STATUS1="This Month",'Salary Process'!AL8,'Salary Master'!AL7)) -> 0 | AN9: =IF(STATUS2="Done",DATABASE!AN9,IF(STATUS2="This Month",'Salary Process'!D8,'Salary Master'!D7)) -> 0 | AO9: =IF(STATUS2="Done",DATABASE!AO9,IF(STATUS2="This Month",'Salary Process'!E8,'Salary Master'!E7)) -> 0 | AP9: =IF(STATUS2="Done",DATABASE!AP9,IF(STATUS2="This Month",'Salary Process'!F8,'Salary Master'!F7)) -> 0 | AQ9: =IF(STATUS2="Done",DATABASE!AQ9,IF(STATUS2="This Month",'Salary Process'!G8,'Salary Master'!G7)) -> 0 | AR9: =IF(STATUS2="Done",DATABASE!AR9,IF(STATUS2="This Month",'Salary Process'!H8,'Salary Master'!H7)) -> 0 | AS9: =IF(STATUS2="Done",DATABASE!AS9,IF(STATUS2="This Month",'Salary Process'!I8,'Salary Master'!I7)) -> 0 | AT9: =IF(STATUS2="Done",DATABASE!AT9,IF(STATUS2="This Month",'Salary Process'!J8,'Salary Master'!J7)) -> 0 | AU9: =IF(STATUS2="Done",DATABASE!AU9,IF(STATUS2="This Month",'Salary Process'!K8,'Salary Master'!K7)) -> 0 | AV9: =IF(STATUS2="Done",DATABASE!AV9,IF(STATUS2="This Month",'Salary Process'!L8,'Salary Master'!L7)) -> 0 | AW9: =IF(STATUS2="Done",DATABASE!AW9,IF(STATUS2="This Month",'Salary Process'!M8,'Salary Master'!M7)) -> 0 | AX9: =IF(STATUS2="Done",DATABASE!AX9,IF(STATUS2="This Month",'Salary Process'!N8,'Salary Master'!N7)) -> 0 | AY9: =IF(STATUS2="Done",DATABASE!AY9,IF(STATUS2="This Month",'Salary Process'!O8,'Salary Master'!O7)) -> 0 | AZ9: =IF(STATUS2="Done",DATABASE!AZ9,IF(STATUS2="This Month",'Salary Process'!P8,'Salary Master'!P7)) -> 0 | BA9: =IF(STATUS2="Done",DATABASE!BA9,IF(STATUS2="This Month",'Salary Process'!Q8,'Salary Master'!Q7)) -> 0 | BB9: =IF(STATUS2="Done",DATABASE!BB9,IF(STATUS2="This Month",'Salary Process'!R8,'Salary Master'!R7)) -> 0 | BC9: =IF(STATUS2="Done",DATABASE!BC9,IF(STATUS2="This Month",'Salary Process'!S8,'Salary Master'!S7)) -> 0 | BD9: =IF(STATUS2="Done",DATABASE!BD9,IF(STATUS2="This Month",'Salary Process'!T8,'Salary Master'!T7)) -> 0 | BE9: =IF(STATUS2="Done",DATABASE!BE9,IF(STATUS2="This Month",'Salary Process'!U8,'Salary Master'!U7)) -> 0 | BF9: =IF(STATUS2="Done",DATABASE!BF9,IF(STATUS2="This Month",'Salary Process'!V8,'Salary Master'!V7)) -> 0 | BG9: =IF(STATUS2="Done",DATABASE!BG9,IF(STATUS2="This Month",'Salary Process'!W8,'Salary Master'!W7)) -> 0 | BH9: =IF(STATUS2="Done",DATABASE!BH9,IF(STATUS2="This Month",'Salary Process'!X8,'Salary Master'!X7)) -> 0 | BI9: =IF(STATUS2="Done",DATABASE!BI9,IF(STATUS2="This Month",'Salary Process'!Y8,'Salary Master'!Y7)) -> 0 | BJ9: =IF(STATUS2="Done",DATABASE!BJ9,IF(STATUS2="This Month",'Salary Process'!Z8,'Salary Master'!Z7)) -> 0 | BK9: =IF(STATUS2="Done",DATABASE!BK9,IF(STATUS2="This Month",'Salary Process'!AA8,'Salary Master'!AA7)) -> 0 | BL9: =IF(STATUS2="Done",DATABASE!BL9,IF(STATUS2="This Month",'Salary Process'!AB8,'Salary Master'!AB7)) -> 0 | BM9: =IF(STATUS2="Done",DATABASE!BM9,IF(STATUS2="This Month",'Salary Process'!AC8,'Salary Master'!AC7)) -> 0 | BN9: =IF(STATUS2="Done",DATABASE!BN9,IF(STATUS2="This Month",'Salary Process'!AD8,'Salary Master'!AD7)) -> 0 | BO9: =IF(STATUS2="Done",DATABASE!BO9,IF(STATUS2="This Month",'Salary Process'!AE8,'Salary Master'!AE7)) -> 0 | BP9: =IF(STATUS2="Done",DATABASE!BP9,IF(STATUS2="This Month",'Salary Process'!AF8,'Salary Master'!AF7)) -> 0 | BQ9: =IF(STATUS2="Done",DATABASE!BQ9,IF(STATUS2="This Month",'Salary Process'!AG8,'Salary Master'!AG7)) -> 0 | BR9: =IF(STATUS2="Done",DATABASE!BR9,IF(STATUS2="This Month",'Salary Process'!AH8,'Salary Master'!AH7)) -> 0 | BS9: =IF(STATUS2="Done",DATABASE!BS9,IF(STATUS2="This Month",'Salary Process'!AI8,'Salary Master'!AI7)) -> 0 | BT9: =IF(STATUS2="Done",DATABASE!BT9,IF(STATUS2="This Month",'Salary Process'!AJ8,'Salary Master'!AJ7)) -> 0 | BU9: =IF(STATUS2="Done",DATABASE!BU9,IF(STATUS2="This Month",'Salary Process'!AK8,'Salary Master'!AK7)) -> 0 | BV9: =IF(STATUS2="Done",DATABASE!BV9,IF(STATUS2="This Month",'Salary Process'!AL8,'Salary Master'!AL7)) -> 0 | BZ9: =IF(STATUS3="Done",DATABASE!BZ9,IF(STATUS3="This Month",'Salary Process'!D8,'Salary Master'!D7)) -> 0 | CA9: =IF(STATUS3="Done",DATABASE!CA9,IF(STATUS3="This Month",'Salary Process'!E8,'Salary Master'!E7)) -> 0 | CB9: =IF(STATUS3="Done",DATABASE!CB9,IF(STATUS3="This Month",'Salary Process'!F8,'Salary Master'!F7)) -> 0 | CC9: =IF(STATUS3="Done",DATABASE!CC9,IF(STATUS3="This Month",'Salary Process'!G8,'Salary Master'!G7)) -> 0 | CD9: =IF(STATUS3="Done",DATABASE!CD9,IF(STATUS3="This Month",'Salary Process'!H8,'Salary Master'!H7)) -> 0 | CE9: =IF(STATUS3="Done",DATABASE!CE9,IF(STATUS3="This Month",'Salary Process'!I8,'Salary Master'!I7)) -> 0 | CF9: =IF(STATUS3="Done",DATABASE!CF9,IF(STATUS3="This Month",'Salary Process'!J8,'Salary Master'!J7)) -> 0 | CG9: =IF(STATUS3="Done",DATABASE!CG9,IF(STATUS3="This Month",'Salary Process'!K8,'Salary Master'!K7)) -> 0 | CH9: =IF(STATUS3="Done",DATABASE!CH9,IF(STATUS3="This Month",'Salary Process'!L8,'Salary Master'!L7)) -> 0 | CI9: =IF(STATUS3="Done",DATABASE!CI9,IF(STATUS3="This Month",'Salary Process'!M8,'Salary Master'!M7)) -> 0 | CJ9: =IF(STATUS3="Done",DATABASE!CJ9,IF(STATUS3="This Month",'Salary Process'!N8,'Salary Master'!N7)) -> 0 | CK9: =IF(STATUS3="Done",DATABASE!CK9,IF(STATUS3="This Month",'Salary Process'!O8,'Salary Master'!O7)) -> 0 | CL9: =IF(STATUS3="Done",DATABASE!CL9,IF(STATUS3="This Month",'Salary Process'!P8,'Salary Master'!P7)) -> 0 | CM9: =IF(STATUS3="Done",DATABASE!CM9,IF(STATUS3="This Month",'Salary Process'!Q8,'Salary Master'!Q7)) -> 0 | CN9: =IF(STATUS3="Done",DATABASE!CN9,IF(STATUS3="This Month",'Salary Process'!R8,'Salary Master'!R7)) -> 0 | CO9: =IF(STATUS3="Done",DATABASE!CO9,IF(STATUS3="This Month",'Salary Process'!S8,'Salary Master'!S7)) -> 0 | CP9: =IF(STATUS3="Done",DATABASE!CP9,IF(STATUS3="This Month",'Salary Process'!T8,'Salary Master'!T7)) -> 0 | CQ9: =IF(STATUS3="Done",DATABASE!CQ9,IF(STATUS3="This Month",'Salary Process'!U8,'Salary Master'!U7)) -> 0 | CR9: =IF(STATUS3="Done",DATABASE!CR9,IF(STATUS3="This Month",'Salary Process'!V8,'Salary Master'!V7)) -> 0 | CS9: =IF(STATUS3="Done",DATABASE!CS9,IF(STATUS3="This Month",'Salary Process'!W8,'Salary Master'!W7)) -> 0 | CT9: =IF(STATUS3="Done",DATABASE!CT9,IF(STATUS3="This Month",'Salary Process'!X8,'Salary Master'!X7)) -> 0 | CU9: =IF(STATUS3="Done",DATABASE!CU9,IF(STATUS3="This Month",'Salary Process'!Y8,'Salary Master'!Y7)) -> 0 | CV9: =IF(STATUS3="Done",DATABASE!CV9,IF(STATUS3="This Month",'Salary Process'!Z8,'Salary Master'!Z7)) -> 0 | CW9: =IF(STATUS3="Done",DATABASE!CW9,IF(STATUS3="This Month",'Salary Process'!AA8,'Salary Master'!AA7)) -> 0 | CX9: =IF(STATUS3="Done",DATABASE!CX9,IF(STATUS3="This Month",'Salary Process'!AB8,'Salary Master'!AB7)) -> 0 | CY9: =IF(STATUS3="Done",DATABASE!CY9,IF(STATUS3="This Month",'Salary Process'!AC8,'Salary Master'!AC7)) -> 0 | CZ9: =IF(STATUS3="Done",DATABASE!CZ9,IF(STATUS3="This Month",'Salary Process'!AD8,'Salary Master'!AD7)) -> 0 | DA9: =IF(STATUS3="Done",DATABASE!DA9,IF(STATUS3="This Month",'Salary Process'!AE8,'Salary Master'!AE7)) -> 0 | DB9: =IF(STATUS3="Done",DATABASE!DB9,IF(STATUS3="This Month",'Salary Process'!AF8,'Salary Master'!AF7)) -> 0 | DC9: =IF(STATUS3="Done",DATABASE!DC9,IF(STATUS3="This Month",'Salary Process'!AG8,'Salary Master'!AG7)) -> 0 | DD9: =IF(STATUS3="Done",DATABASE!DD9,IF(STATUS3="This Month",'Salary Process'!AH8,'Salary Master'!AH7)) -> 0 | DE9: =IF(STATUS3="Done",DATABASE!DE9,IF(STATUS3="This Month",'Salary Process'!AI8,'Salary Master'!AI7)) -> 0 | DF9: =IF(STATUS3="Done",DATABASE!DF9,IF(STATUS3="This Month",'Salary Process'!AJ8,'Salary Master'!AJ7)) -> 0 | DG9: =IF(STATUS3="Done",DATABASE!DG9,IF(STATUS3="This Month",'Salary Process'!AK8,'Salary Master'!AK7)) -> 0 | DH9: =IF(STATUS3="Done",DATABASE!DH9,IF(STATUS3="This Month",'Salary Process'!AL8,'Salary Master'!AL7)) -> 0 | DL9: =IF(STATUS4="Done",DATABASE!DL9,IF(STATUS4="This Month",'Salary Process'!D8,'Salary Master'!D7)) -> 0 | DM9: =IF(STATUS4="Done",DATABASE!DM9,IF(STATUS4="This Month",'Salary Process'!E8,'Salary Master'!E7)) -> 0 | DN9: =IF(STATUS4="Done",DATABASE!DN9,IF(STATUS4="This Month",'Salary Process'!F8,'Salary Master'!F7)) -> 0 | DO9: =IF(STATUS4="Done",DATABASE!DO9,IF(STATUS4="This Month",'Salary Process'!G8,'Salary Master'!G7)) -> 0 | DP9: =IF(STATUS4="Done",DATABASE!DP9,IF(STATUS4="This Month",'Salary Process'!H8,'Salary Master'!H7)) -> 0 | DQ9: =IF(STATUS4="Done",DATABASE!DQ9,IF(STATUS4="This Month",'Salary Process'!I8,'Salary Master'!I7)) -> 0 | DR9: =IF(STATUS4="Done",DATABASE!DR9,IF(STATUS4="This Month",'Salary Process'!J8,'Salary Master'!J7)) -> 0 | DS9: =IF(STATUS4="Done",DATABASE!DS9,IF(STATUS4="This Month",'Salary Process'!K8,'Salary Master'!K7)) -> 0 | DT9: =IF(STATUS4="Done",DATABASE!DT9,IF(STATUS4="This Month",'Salary Process'!L8,'Salary Master'!L7)) -> 0 | DU9: =IF(STATUS4="Done",DATABASE!DU9,IF(STATUS4="This Month",'Salary Process'!M8,'Salary Master'!M7)) -> 0 | DV9: =IF(STATUS4="Done",DATABASE!DV9,IF(STATUS4="This Month",'Salary Process'!N8,'Salary Master'!N7)) -> 0 | DW9: =IF(STATUS4="Done",DATABASE!DW9,IF(STATUS4="This Month",'Salary Process'!O8,'Salary Master'!O7)) -> 0 | DX9: =IF(STATUS4="Done",DATABASE!DX9,IF(STATUS4="This Month",'Salary Process'!P8,'Salary Master'!P7)) -> 0 | DY9: =IF(STATUS4="Done",DATABASE!DY9,IF(STATUS4="This Month",'Salary Process'!Q8,'Salary Master'!Q7)) -> 0 | DZ9: =IF(STATUS4="Done",DATABASE!DZ9,IF(STATUS4="This Month",'Salary Process'!R8,'Salary Master'!R7)) -> 0 | EA9: =IF(STATUS4="Done",DATABASE!EA9,IF(STATUS4="This Month",'Salary Process'!S8,'Salary Master'!S7)) -> 0 | EB9: =IF(STATUS4="Done",DATABASE!EB9,IF(STATUS4="This Month",'Salary Process'!T8,'Salary Master'!T7)) -> 0 | EC9: =IF(STATUS4="Done",DATABASE!EC9,IF(STATUS4="This Month",'Salary Process'!U8,'Salary Master'!U7)) -> 0 | ED9: =IF(STATUS4="Done",DATABASE!ED9,IF(STATUS4="This Month",'Salary Process'!V8,'Salary Master'!V7)) -> 0 | EE9: =IF(STATUS4="Done",DATABASE!EE9,IF(STATUS4="This Month",'Salary Process'!W8,'Salary Master'!W7)) -> 0 | EF9: =IF(STATUS4="Done",DATABASE!EF9,IF(STATUS4="This Month",'Salary Process'!X8,'Salary Master'!X7)) -> 0 | EG9: =IF(STATUS4="Done",DATABASE!EG9,IF(STATUS4="This Month",'Salary Process'!Y8,'Salary Master'!Y7)) -> 0 | EH9: =IF(STATUS4="Done",DATABASE!EH9,IF(STATUS4="This Month",'Salary Process'!Z8,'Salary Master'!Z7)) -> 0 | EI9: =IF(STATUS4="Done",DATABASE!EI9,IF(STATUS4="This Month",'Salary Process'!AA8,'Salary Master'!AA7)) -> 0 | EJ9: =IF(STATUS4="Done",DATABASE!EJ9,IF(STATUS4="This Month",'Salary Process'!AB8,'Salary Master'!AB7)) -> 0 | EK9: =IF(STATUS4="Done",DATABASE!EK9,IF(STATUS4="This Month",'Salary Process'!AC8,'Salary Master'!AC7)) -> 0 | EL9: =IF(STATUS4="Done",DATABASE!EL9,IF(STATUS4="This Month",'Salary Process'!AD8,'Salary Master'!AD7)) -> 0 | EM9: =IF(STATUS4="Done",DATABASE!EM9,IF(STATUS4="This Month",'Salary Process'!AE8,'Salary Master'!AE7)) -> 0 | EN9: =IF(STATUS4="Done",DATABASE!EN9,IF(STATUS4="This Month",'Salary Process'!AF8,'Salary Master'!AF7)) -> 0 | EO9: =IF(STATUS4="Done",DATABASE!EO9,IF(STATUS4="This Month",'Salary Process'!AG8,'Salary Master'!AG7)) -> 0 | EP9: =IF(STATUS4="Done",DATABASE!EP9,IF(STATUS4="This Month",'Salary Process'!AH8,'Salary Master'!AH7)) -> 0 | EQ9: =IF(STATUS4="Done",DATABASE!EQ9,IF(STATUS4="This Month",'Salary Process'!AI8,'Salary Master'!AI7)) -> 0 | ER9: =IF(STATUS4="Done",DATABASE!ER9,IF(STATUS4="This Month",'Salary Process'!AJ8,'Salary Master'!AJ7)) -> 0 | ES9: =IF(STATUS4="Done",DATABASE!ES9,IF(STATUS4="This Month",'Salary Process'!AK8,'Salary Master'!AK7)) -> 0 | ET9: =IF(STATUS4="Done",DATABASE!ET9,IF(STATUS4="This Month",'Salary Process'!AL8,'Salary Master'!AL7)) -> 0 | EX9: =IF(STATUS5="Done",DATABASE!EX9,IF(STATUS5="This Month",'Salary Process'!D8,'Salary Master'!D7)) -> 0 | EY9: =IF(STATUS5="Done",DATABASE!EY9,IF(STATUS5="This Month",'Salary Process'!E8,'Salary Master'!E7)) -> 0 | EZ9: =IF(STATUS5="Done",DATABASE!EZ9,IF(STATUS5="This Month",'Salary Process'!F8,'Salary Master'!F7)) -> 0 | FA9: =IF(STATUS5="Done",DATABASE!FA9,IF(STATUS5="This Month",'Salary Process'!G8,'Salary Master'!G7)) -> 0 | FB9: =IF(STATUS5="Done",DATABASE!FB9,IF(STATUS5="This Month",'Salary Process'!H8,'Salary Master'!H7)) -> 0 | FC9: =IF(STATUS5="Done",DATABASE!FC9,IF(STATUS5="This Month",'Salary Process'!I8,'Salary Master'!I7)) -> 0 | FD9: =IF(STATUS5="Done",DATABASE!FD9,IF(STATUS5="This Month",'Salary Process'!J8,'Salary Master'!J7)) -> 0 | FE9: =IF(STATUS5="Done",DATABASE!FE9,IF(STATUS5="This Month",'Salary Process'!K8,'Salary Master'!K7)) -> 0 | FF9: =IF(STATUS5="Done",DATABASE!FF9,IF(STATUS5="This Month",'Salary Process'!L8,'Salary Master'!L7)) -> 0 | FG9: =IF(STATUS5="Done",DATABASE!FG9,IF(STATUS5="This Month",'Salary Process'!M8,'Salary Master'!M7)) -> 0 | FH9: =IF(STATUS5="Done",DATABASE!FH9,IF(STATUS5="This Month",'Salary Process'!N8,'Salary Master'!N7)) -> 0 | FI9: =IF(STATUS5="Done",DATABASE!FI9,IF(STATUS5="This Month",'Salary Process'!O8,'Salary Master'!O7)) -> 0 | FJ9: =IF(STATUS5="Done",DATABASE!FJ9,IF(STATUS5="This Month",'Salary Process'!P8,'Salary Master'!P7)) -> 0 | FK9: =IF(STATUS5="Done",DATABASE!FK9,IF(STATUS5="This Month",'Salary Process'!Q8,'Salary Master'!Q7)) -> 0 | FL9: =IF(STATUS5="Done",DATABASE!FL9,IF(STATUS5="This Month",'Salary Process'!R8,'Salary Master'!R7)) -> 0 | FM9: =IF(STATUS5="Done",DATABASE!FM9,IF(STATUS5="This Month",'Salary Process'!S8,'Salary Master'!S7)) -> 0 | FN9: =IF(STATUS5="Done",DATABASE!FN9,IF(STATUS5="This Month",'Salary Process'!T8,'Salary Master'!T7)) -> 0 | FO9: =IF(STATUS5="Done",DATABASE!FO9,IF(STATUS5="This Month",'Salary Process'!U8,'Salary Master'!U7)) -> 0 | FP9: =IF(STATUS5="Done",DATABASE!FP9,IF(STATUS5="This Month",'Salary Process'!V8,'Salary Master'!V7)) -> 0 | FQ9: =IF(STATUS5="Done",DATABASE!FQ9,IF(STATUS5="This Month",'Salary Process'!W8,'Salary Master'!W7)) -> 0 | FR9: =IF(STATUS5="Done",DATABASE!FR9,IF(STATUS5="This Month",'Salary Process'!X8,'Salary Master'!X7)) -> 0 | FS9: =IF(STATUS5="Done",DATABASE!FS9,IF(STATUS5="This Month",'Salary Process'!Y8,'Salary Master'!Y7)) -> 0 | FT9: =IF(STATUS5="Done",DATABASE!FT9,IF(STATUS5="This Month",'Salary Process'!Z8,'Salary Master'!Z7)) -> 0 | FU9: =IF(STATUS5="Done",DATABASE!FU9,IF(STATUS5="This Month",'Salary Process'!AA8,'Salary Master'!AA7)) -> 0 | FV9: =IF(STATUS5="Done",DATABASE!FV9,IF(STATUS5="This Month",'Salary Process'!AB8,'Salary Master'!AB7)) -> 0 | FW9: =IF(STATUS5="Done",DATABASE!FW9,IF(STATUS5="This Month",'Salary Process'!AC8,'Salary Master'!AC7)) -> 0 | FX9: =IF(STATUS5="Done",DATABASE!FX9,IF(STATUS5="This Month",'Salary Process'!AD8,'Salary Master'!AD7)) -> 0 | FY9: =IF(STATUS5="Done",DATABASE!FY9,IF(STATUS5="This Month",'Salary Process'!AE8,'Salary Master'!AE7)) -> 0 | FZ9: =IF(STATUS5="Done",DATABASE!FZ9,IF(STATUS5="This Month",'Salary Process'!AF8,'Salary Master'!AF7)) -> 0 | GA9: =IF(STATUS5="Done",DATABASE!GA9,IF(STATUS5="This Month",'Salary Process'!AG8,'Salary Master'!AG7)) -> 0 | GB9: =IF(STATUS5="Done",DATABASE!GB9,IF(STATUS5="This Month",'Salary Process'!AH8,'Salary Master'!AH7)) -> 0 | GC9: =IF(STATUS5="Done",DATABASE!GC9,IF(STATUS5="This Month",'Salary Process'!AI8,'Salary Master'!AI7)) -> 0 | GD9: =IF(STATUS5="Done",DATABASE!GD9,IF(STATUS5="This Month",'Salary Process'!AJ8,'Salary Master'!AJ7)) -> 0 | GE9: =IF(STATUS5="Done",DATABASE!GE9,IF(STATUS5="This Month",'Salary Process'!AK8,'Salary Master'!AK7)) -> 0 | GF9: =IF(STATUS5="Done",DATABASE!GF9,IF(STATUS5="This Month",'Salary Process'!AL8,'Salary Master'!AL7)) -> 0 | GJ9: =IF(STATUS6="Done",DATABASE!GJ9,IF(STATUS6="This Month",'Salary Process'!D8,'Salary Master'!D7)) -> 0 | GK9: =IF(STATUS6="Done",DATABASE!GK9,IF(STATUS6="This Month",'Salary Process'!E8,'Salary Master'!E7)) -> 0 | GL9: =IF(STATUS6="Done",DATABASE!GL9,IF(STATUS6="This Month",'Salary Process'!F8,'Salary Master'!F7)) -> 0 | GM9: =IF(STATUS6="Done",DATABASE!GM9,IF(STATUS6="This Month",'Salary Process'!G8,'Salary Master'!G7)) -> 0 | GN9: =IF(STATUS6="Done",DATABASE!GN9,IF(STATUS6="This Month",'Salary Process'!H8,'Salary Master'!H7)) -> 0 | GO9: =IF(STATUS6="Done",DATABASE!GO9,IF(STATUS6="This Month",'Salary Process'!I8,'Salary Master'!I7)) -> 0 | GP9: =IF(STATUS6="Done",DATABASE!GP9,IF(STATUS6="This Month",'Salary Process'!J8,'Salary Master'!J7)) -> 0 | GQ9: =IF(STATUS6="Done",DATABASE!GQ9,IF(STATUS6="This Month",'Salary Process'!K8,'Salary Master'!K7)) -> 0 | GR9: =IF(STATUS6="Done",DATABASE!GR9,IF(STATUS6="This Month",'Salary Process'!L8,'Salary Master'!L7)) -> 0 | GS9: =IF(STATUS6="Done",DATABASE!GS9,IF(STATUS6="This Month",'Salary Process'!M8,'Salary Master'!M7)) -> 0 | GT9: =IF(STATUS6="Done",DATABASE!GT9,IF(STATUS6="This Month",'Salary Process'!N8,'Salary Master'!N7)) -> 0 | GU9: =IF(STATUS6="Done",DATABASE!GU9,IF(STATUS6="This Month",'Salary Process'!O8,'Salary Master'!O7)) -> 0 | GV9: =IF(STATUS6="Done",DATABASE!GV9,IF(STATUS6="This Month",'Salary Process'!P8,'Salary Master'!P7)) -> 0 | GW9: =IF(STATUS6="Done",DATABASE!GW9,IF(STATUS6="This Month",'Salary Process'!Q8,'Salary Master'!Q7)) -> 0 | GX9: =IF(STATUS6="Done",DATABASE!GX9,IF(STATUS6="This Month",'Salary Process'!R8,'Salary Master'!R7)) -> 0 | GY9: =IF(STATUS6="Done",DATABASE!GY9,IF(STATUS6="This Month",'Salary Process'!S8,'Salary Master'!S7)) -> 0 | GZ9: =IF(STATUS6="Done",DATABASE!GZ9,IF(STATUS6="This Month",'Salary Process'!T8,'Salary Master'!T7)) -> 0 | HA9: =IF(STATUS6="Done",DATABASE!HA9,IF(STATUS6="This Month",'Salary Process'!U8,'Salary Master'!U7)) -> 0 | HB9: =IF(STATUS6="Done",DATABASE!HB9,IF(STATUS6="This Month",'Salary Process'!V8,'Salary Master'!V7)) -> 0 | HC9: =IF(STATUS6="Done",DATABASE!HC9,IF(STATUS6="This Month",'Salary Process'!W8,'Salary Master'!W7)) -> 0 | HD9: =IF(STATUS6="Done",DATABASE!HD9,IF(STATUS6="This Month",'Salary Process'!X8,'Salary Master'!X7)) -> 0 | HE9: =IF(STATUS6="Done",DATABASE!HE9,IF(STATUS6="This Month",'Salary Process'!Y8,'Salary Master'!Y7)) -> 0 | HF9: =IF(STATUS6="Done",DATABASE!HF9,IF(STATUS6="This Month",'Salary Process'!Z8,'Salary Master'!Z7)) -> 0 | HG9: =IF(STATUS6="Done",DATABASE!HG9,IF(STATUS6="This Month",'Salary Process'!AA8,'Salary Master'!AA7)) -> 0 | HH9: =IF(STATUS6="Done",DATABASE!HH9,IF(STATUS6="This Month",'Salary Process'!AB8,'Salary Master'!AB7)) -> 0 | HI9: =IF(STATUS6="Done",DATABASE!HI9,IF(STATUS6="This Month",'Salary Process'!AC8,'Salary Master'!AC7)) -> 0 | HJ9: =IF(STATUS6="Done",DATABASE!HJ9,IF(STATUS6="This Month",'Salary Process'!AD8,'Salary Master'!AD7)) -> 0 | HK9: =IF(STATUS6="Done",DATABASE!HK9,IF(STATUS6="This Month",'Salary Process'!AE8,'Salary Master'!AE7)) -> 0 | HL9: =IF(STATUS6="Done",DATABASE!HL9,IF(STATUS6="This Month",'Salary Process'!AF8,'Salary Master'!AF7)) -> 0 | HM9: =IF(STATUS6="Done",DATABASE!HM9,IF(STATUS6="This Month",'Salary Process'!AG8,'Salary Master'!AG7)) -> 0 | HN9: =IF(STATUS6="Done",DATABASE!HN9,IF(STATUS6="This Month",'Salary Process'!AH8,'Salary Master'!AH7)) -> 0 | HO9: =IF(STATUS6="Done",DATABASE!HO9,IF(STATUS6="This Month",'Salary Process'!AI8,'Salary Master'!AI7)) -> 0 | HP9: =IF(STATUS6="Done",DATABASE!HP9,IF(STATUS6="This Month",'Salary Process'!AJ8,'Salary Master'!AJ7)) -> 0 | HQ9: =IF(STATUS6="Done",DATABASE!HQ9,IF(STATUS6="This Month",'Salary Process'!AK8,'Salary Master'!AK7)) -> 0 | HR9: =IF(STATUS6="Done",DATABASE!HR9,IF(STATUS6="This Month",'Salary Process'!AL8,'Salary Master'!AL7)) -> 0 | HV9: =IF(STATUS7="Done",DATABASE!HV9,IF(STATUS7="This Month",'Salary Process'!D8,'Salary Master'!D7)) -> 0 | HW9: =IF(STATUS7="Done",DATABASE!HW9,IF(STATUS7="This Month",'Salary Process'!E8,'Salary Master'!E7)) -> 0 | HX9: =IF(STATUS7="Done",DATABASE!HX9,IF(STATUS7="This Month",'Salary Process'!F8,'Salary Master'!F7)) -> 0 | HY9: =IF(STATUS7="Done",DATABASE!HY9,IF(STATUS7="This Month",'Salary Process'!G8,'Salary Master'!G7)) -> 0 | HZ9: =IF(STATUS7="Done",DATABASE!HZ9,IF(STATUS7="This Month",'Salary Process'!H8,'Salary Master'!H7)) -> 0 | IA9: =IF(STATUS7="Done",DATABASE!IA9,IF(STATUS7="This Month",'Salary Process'!I8,'Salary Master'!I7)) -> 0 | IB9: =IF(STATUS7="Done",DATABASE!IB9,IF(STATUS7="This Month",'Salary Process'!J8,'Salary Master'!J7)) -> 0 | IC9: =IF(STATUS7="Done",DATABASE!IC9,IF(STATUS7="This Month",'Salary Process'!K8,'Salary Master'!K7)) -> 0 | ID9: =IF(STATUS7="Done",DATABASE!ID9,IF(STATUS7="This Month",'Salary Process'!L8,'Salary Master'!L7)) -> 0 | IE9: =IF(STATUS7="Done",DATABASE!IE9,IF(STATUS7="This Month",'Salary Process'!M8,'Salary Master'!M7)) -> 0 | IF9: =IF(STATUS7="Done",DATABASE!IF9,IF(STATUS7="This Month",'Salary Process'!N8,'Salary Master'!N7)) -> 0 | IG9: =IF(STATUS7="Done",DATABASE!IG9,IF(STATUS7="This Month",'Salary Process'!O8,'Salary Master'!O7)) -> 0 | IH9: =IF(STATUS7="Done",DATABASE!IH9,IF(STATUS7="This Month",'Salary Process'!P8,'Salary Master'!P7)) -> 0 | II9: =IF(STATUS7="Done",DATABASE!II9,IF(STATUS7="This Month",'Salary Process'!Q8,'Salary Master'!Q7)) -> 0 | IJ9: =IF(STATUS7="Done",DATABASE!IJ9,IF(STATUS7="This Month",'Salary Process'!R8,'Salary Master'!R7)) -> 0 | IK9: =IF(STATUS7="Done",DATABASE!IK9,IF(STATUS7="This Month",'Salary Process'!S8,'Salary Master'!S7)) -> 0 | IL9: =IF(STATUS7="Done",DATABASE!IL9,IF(STATUS7="This Month",'Salary Process'!T8,'Salary Master'!T7)) -> 0 | IM9: =IF(STATUS7="Done",DATABASE!IM9,IF(STATUS7="This Month",'Salary Process'!U8,'Salary Master'!U7)) -> 0 | IN9: =IF(STATUS7="Done",DATABASE!IN9,IF(STATUS7="This Month",'Salary Process'!V8,'Salary Master'!V7)) -> 0 | IO9: =IF(STATUS7="Done",DATABASE!IO9,IF(STATUS7="This Month",'Salary Process'!W8,'Salary Master'!W7)) -> 0 | IP9: =IF(STATUS7="Done",DATABASE!IP9,IF(STATUS7="This Month",'Salary Process'!X8,'Salary Master'!X7)) -> 0 | IQ9: =IF(STATUS7="Done",DATABASE!IQ9,IF(STATUS7="This Month",'Salary Process'!Y8,'Salary Master'!Y7)) -> 0 | IR9: =IF(STATUS7="Done",DATABASE!IR9,IF(STATUS7="This Month",'Salary Process'!Z8,'Salary Master'!Z7)) -> 0 | IS9: =IF(STATUS7="Done",DATABASE!IS9,IF(STATUS7="This Month",'Salary Process'!AA8,'Salary Master'!AA7)) -> 0 | IT9: =IF(STATUS7="Done",DATABASE!IT9,IF(STATUS7="This Month",'Salary Process'!AB8,'Salary Master'!AB7)) -> 0 | IU9: =IF(STATUS7="Done",DATABASE!IU9,IF(STATUS7="This Month",'Salary Process'!AC8,'Salary Master'!AC7)) -> 0 | IV9: =IF(STATUS7="Done",DATABASE!IV9,IF(STATUS7="This Month",'Salary Process'!AD8,'Salary Master'!AD7)) -> 0 | IW9: =IF(STATUS7="Done",DATABASE!IW9,IF(STATUS7="This Month",'Salary Process'!AE8,'Salary Master'!AE7)) -> 0 | IX9: =IF(STATUS7="Done",DATABASE!IX9,IF(STATUS7="This Month",'Salary Process'!AF8,'Salary Master'!AF7)) -> 0 | IY9: =IF(STATUS7="Done",DATABASE!IY9,IF(STATUS7="This Month",'Salary Process'!AG8,'Salary Master'!AG7)) -> 0 | IZ9: =IF(STATUS7="Done",DATABASE!IZ9,IF(STATUS7="This Month",'Salary Process'!AH8,'Salary Master'!AH7)) -> 0 | JA9: =IF(STATUS7="Done",DATABASE!JA9,IF(STATUS7="This Month",'Salary Process'!AI8,'Salary Master'!AI7)) -> 0 | JB9: =IF(STATUS7="Done",DATABASE!JB9,IF(STATUS7="This Month",'Salary Process'!AJ8,'Salary Master'!AJ7)) -> 0 | JC9: =IF(STATUS7="Done",DATABASE!JC9,IF(STATUS7="This Month",'Salary Process'!AK8,'Salary Master'!AK7)) -> 0 | JD9: =IF(STATUS7="Done",DATABASE!JD9,IF(STATUS7="This Month",'Salary Process'!AL8,'Salary Master'!AL7)) -> 0 | JH9: =IF(STATUS8="Done",DATABASE!JH9,IF(STATUS8="This Month",'Salary Process'!D8,'Salary Master'!D7)) -> 0 | JI9: =IF(STATUS8="Done",DATABASE!JI9,IF(STATUS8="This Month",'Salary Process'!E8,'Salary Master'!E7)) -> 0 | JJ9: =IF(STATUS8="Done",DATABASE!JJ9,IF(STATUS8="This Month",'Salary Process'!F8,'Salary Master'!F7)) -> 0 | JK9: =IF(STATUS8="Done",DATABASE!JK9,IF(STATUS8="This Month",'Salary Process'!G8,'Salary Master'!G7)) -> 0 | JL9: =IF(STATUS8="Done",DATABASE!JL9,IF(STATUS8="This Month",'Salary Process'!H8,'Salary Master'!H7)) -> 0 | JM9: =IF(STATUS8="Done",DATABASE!JM9,IF(STATUS8="This Month",'Salary Process'!I8,'Salary Master'!I7)) -> 0 | JN9: =IF(STATUS8="Done",DATABASE!JN9,IF(STATUS8="This Month",'Salary Process'!J8,'Salary Master'!J7)) -> 0 | JO9: =IF(STATUS8="Done",DATABASE!JO9,IF(STATUS8="This Month",'Salary Process'!K8,'Salary Master'!K7)) -> 0 | JP9: =IF(STATUS8="Done",DATABASE!JP9,IF(STATUS8="This Month",'Salary Process'!L8,'Salary Master'!L7)) -> 0 | JQ9: =IF(STATUS8="Done",DATABASE!JQ9,IF(STATUS8="This Month",'Salary Process'!M8,'Salary Master'!M7)) -> 0 | JR9: =IF(STATUS8="Done",DATABASE!JR9,IF(STATUS8="This Month",'Salary Process'!N8,'Salary Master'!N7)) -> 0 | JS9: =IF(STATUS8="Done",DATABASE!JS9,IF(STATUS8="This Month",'Salary Process'!O8,'Salary Master'!O7)) -> 0 | JT9: =IF(STATUS8="Done",DATABASE!JT9,IF(STATUS8="This Month",'Salary Process'!P8,'Salary Master'!P7)) -> 0 | JU9: =IF(STATUS8="Done",DATABASE!JU9,IF(STATUS8="This Month",'Salary Process'!Q8,'Salary Master'!Q7)) -> 0 | JV9: =IF(STATUS8="Done",DATABASE!JV9,IF(STATUS8="This Month",'Salary Process'!R8,'Salary Master'!R7)) -> 0 | JW9: =IF(STATUS8="Done",DATABASE!JW9,IF(STATUS8="This Month",'Salary Process'!S8,'Salary Master'!S7)) -> 0 | JX9: =IF(STATUS8="Done",DATABASE!JX9,IF(STATUS8="This Month",'Salary Process'!T8,'Salary Master'!T7)) -> 0 | JY9: =IF(STATUS8="Done",DATABASE!JY9,IF(STATUS8="This Month",'Salary Process'!U8,'Salary Master'!U7)) -> 0 | JZ9: =IF(STATUS8="Done",DATABASE!JZ9,IF(STATUS8="This Month",'Salary Process'!V8,'Salary Master'!V7)) -> 0 | KA9: =IF(STATUS8="Done",DATABASE!KA9,IF(STATUS8="This Month",'Salary Process'!W8,'Salary Master'!W7)) -> 0 | KB9: =IF(STATUS8="Done",DATABASE!KB9,IF(STATUS8="This Month",'Salary Process'!X8,'Salary Master'!X7)) -> 0 | KC9: =IF(STATUS8="Done",DATABASE!KC9,IF(STATUS8="This Month",'Salary Process'!Y8,'Salary Master'!Y7)) -> 0 | KD9: =IF(STATUS8="Done",DATABASE!KD9,IF(STATUS8="This Month",'Salary Process'!Z8,'Salary Master'!Z7)) -> 0 | KE9: =IF(STATUS8="Done",DATABASE!KE9,IF(STATUS8="This Month",'Salary Process'!AA8,'Salary Master'!AA7)) -> 0 | KF9: =IF(STATUS8="Done",DATABASE!KF9,IF(STATUS8="This Month",'Salary Process'!AB8,'Salary Master'!AB7)) -> 0 | KG9: =IF(STATUS8="Done",DATABASE!KG9,IF(STATUS8="This Month",'Salary Process'!AC8,'Salary Master'!AC7)) -> 0 | KH9: =IF(STATUS8="Done",DATABASE!KH9,IF(STATUS8="This Month",'Salary Process'!AD8,'Salary Master'!AD7)) -> 0 | KI9: =IF(STATUS8="Done",DATABASE!KI9,IF(STATUS8="This Month",'Salary Process'!AE8,'Salary Master'!AE7)) -> 0 | KJ9: =IF(STATUS8="Done",DATABASE!KJ9,IF(STATUS8="This Month",'Salary Process'!AF8,'Salary Master'!AF7)) -> 0 | KK9: =IF(STATUS8="Done",DATABASE!KK9,IF(STATUS8="This Month",'Salary Process'!AG8,'Salary Master'!AG7)) -> 0 | KL9: =IF(STATUS8="Done",DATABASE!KL9,IF(STATUS8="This Month",'Salary Process'!AH8,'Salary Master'!AH7)) -> 0 | KM9: =IF(STATUS8="Done",DATABASE!KM9,IF(STATUS8="This Month",'Salary Process'!AI8,'Salary Master'!AI7)) -> 0 | KN9: =IF(STATUS8="Done",DATABASE!KN9,IF(STATUS8="This Month",'Salary Process'!AJ8,'Salary Master'!AJ7)) -> 0 | KO9: =IF(STATUS8="Done",DATABASE!KO9,IF(STATUS8="This Month",'Salary Process'!AK8,'Salary Master'!AK7)) -> 0 | KP9: =IF(STATUS8="Done",DATABASE!KP9,IF(STATUS8="This Month",'Salary Process'!AL8,'Salary Master'!AL7)) -> 0 | KT9: =IF(STATUS9="Done",DATABASE!KT9,IF(STATUS9="This Month",'Salary Process'!D8,'Salary Master'!D7)) -> 0 | KU9: =IF(STATUS9="Done",DATABASE!KU9,IF(STATUS9="This Month",'Salary Process'!E8,'Salary Master'!E7)) -> 0 | KV9: =IF(STATUS9="Done",DATABASE!KV9,IF(STATUS9="This Month",'Salary Process'!F8,'Salary Master'!F7)) -> 0 | KW9: =IF(STATUS9="Done",DATABASE!KW9,IF(STATUS9="This Month",'Salary Process'!G8,'Salary Master'!G7)) -> 0 | KX9: =IF(STATUS9="Done",DATABASE!KX9,IF(STATUS9="This Month",'Salary Process'!H8,'Salary Master'!H7)) -> 0 | KY9: =IF(STATUS9="Done",DATABASE!KY9,IF(STATUS9="This Month",'Salary Process'!I8,'Salary Master'!I7)) -> 0 | KZ9: =IF(STATUS9="Done",DATABASE!KZ9,IF(STATUS9="This Month",'Salary Process'!J8,'Salary Master'!J7)) -> 0 | LA9: =IF(STATUS9="Done",DATABASE!LA9,IF(STATUS9="This Month",'Salary Process'!K8,'Salary Master'!K7)) -> 0 | LB9: =IF(STATUS9="Done",DATABASE!LB9,IF(STATUS9="This Month",'Salary Process'!L8,'Salary Master'!L7)) -> 0 | LC9: =IF(STATUS9="Done",DATABASE!LC9,IF(STATUS9="This Month",'Salary Process'!M8,'Salary Master'!M7)) -> 0 | LD9: =IF(STATUS9="Done",DATABASE!LD9,IF(STATUS9="This Month",'Salary Process'!N8,'Salary Master'!N7)) -> 0 | LE9: =IF(STATUS9="Done",DATABASE!LE9,IF(STATUS9="This Month",'Salary Process'!O8,'Salary Master'!O7)) -> 0 | LF9: =IF(STATUS9="Done",DATABASE!LF9,IF(STATUS9="This Month",'Salary Process'!P8,'Salary Master'!P7)) -> 0 | LG9: =IF(STATUS9="Done",DATABASE!LG9,IF(STATUS9="This Month",'Salary Process'!Q8,'Salary Master'!Q7)) -> 0 | LH9: =IF(STATUS9="Done",DATABASE!LH9,IF(STATUS9="This Month",'Salary Process'!R8,'Salary Master'!R7)) -> 0 | LI9: =IF(STATUS9="Done",DATABASE!LI9,IF(STATUS9="This Month",'Salary Process'!S8,'Salary Master'!S7)) -> 0 | LJ9: =IF(STATUS9="Done",DATABASE!LJ9,IF(STATUS9="This Month",'Salary Process'!T8,'Salary Master'!T7)) -> 0 | LK9: =IF(STATUS9="Done",DATABASE!LK9,IF(STATUS9="This Month",'Salary Process'!U8,'Salary Master'!U7)) -> 0 | LL9: =IF(STATUS9="Done",DATABASE!LL9,IF(STATUS9="This Month",'Salary Process'!V8,'Salary Master'!V7)) -> 0 | LM9: =IF(STATUS9="Done",DATABASE!LM9,IF(STATUS9="This Month",'Salary Process'!W8,'Salary Master'!W7)) -> 0 | LN9: =IF(STATUS9="Done",DATABASE!LN9,IF(STATUS9="This Month",'Salary Process'!X8,'Salary Master'!X7)) -> 0 | LO9: =IF(STATUS9="Done",DATABASE!LO9,IF(STATUS9="This Month",'Salary Process'!Y8,'Salary Master'!Y7)) -> 0 | LP9: =IF(STATUS9="Done",DATABASE!LP9,IF(STATUS9="This Month",'Salary Process'!Z8,'Salary Master'!Z7)) -> 0 | LQ9: =IF(STATUS9="Done",DATABASE!LQ9,IF(STATUS9="This Month",'Salary Process'!AA8,'Salary Master'!AA7)) -> 0 | LR9: =IF(STATUS9="Done",DATABASE!LR9,IF(STATUS9="This Month",'Salary Process'!AB8,'Salary Master'!AB7)) -> 0 | LS9: =IF(STATUS9="Done",DATABASE!LS9,IF(STATUS9="This Month",'Salary Process'!AC8,'Salary Master'!AC7)) -> 0 | LT9: =IF(STATUS9="Done",DATABASE!LT9,IF(STATUS9="This Month",'Salary Process'!AD8,'Salary Master'!AD7)) -> 0 | LU9: =IF(STATUS9="Done",DATABASE!LU9,IF(STATUS9="This Month",'Salary Process'!AE8,'Salary Master'!AE7)) -> 0 | LV9: =IF(STATUS9="Done",DATABASE!LV9,IF(STATUS9="This Month",'Salary Process'!AF8,'Salary Master'!AF7)) -> 0 | LW9: =IF(STATUS9="Done",DATABASE!LW9,IF(STATUS9="This Month",'Salary Process'!AG8,'Salary Master'!AG7)) -> 0 | LX9: =IF(STATUS9="Done",DATABASE!LX9,IF(STATUS9="This Month",'Salary Process'!AH8,'Salary Master'!AH7)) -> 0 | LY9: =IF(STATUS9="Done",DATABASE!LY9,IF(STATUS9="This Month",'Salary Process'!AI8,'Salary Master'!AI7)) -> 0 | LZ9: =IF(STATUS9="Done",DATABASE!LZ9,IF(STATUS9="This Month",'Salary Process'!AJ8,'Salary Master'!AJ7)) -> 0 | MA9: =IF(STATUS9="Done",DATABASE!MA9,IF(STATUS9="This Month",'Salary Process'!AK8,'Salary Master'!AK7)) -> 0 | MB9: =IF(STATUS9="Done",DATABASE!MB9,IF(STATUS9="This Month",'Salary Process'!AL8,'Salary Master'!AL7)) -> 0 | MF9: =IF(STATUS10="Done",DATABASE!MF9,IF(STATUS10="This Month",'Salary Process'!D8,'Salary Master'!D7)) -> 0 | MG9: =IF(STATUS10="Done",DATABASE!MG9,IF(STATUS10="This Month",'Salary Process'!E8,'Salary Master'!E7)) -> 0 | MH9: =IF(STATUS10="Done",DATABASE!MH9,IF(STATUS10="This Month",'Salary Process'!F8,'Salary Master'!F7)) -> 0 | MI9: =IF(STATUS10="Done",DATABASE!MI9,IF(STATUS10="This Month",'Salary Process'!G8,'Salary Master'!G7)) -> 0 | MJ9: =IF(STATUS10="Done",DATABASE!MJ9,IF(STATUS10="This Month",'Salary Process'!H8,'Salary Master'!H7)) -> 0 | MK9: =IF(STATUS10="Done",DATABASE!MK9,IF(STATUS10="This Month",'Salary Process'!I8,'Salary Master'!I7)) -> 0 | ML9: =IF(STATUS10="Done",DATABASE!ML9,IF(STATUS10="This Month",'Salary Process'!J8,'Salary Master'!J7)) -> 0 | MM9: =IF(STATUS10="Done",DATABASE!MM9,IF(STATUS10="This Month",'Salary Process'!K8,'Salary Master'!K7)) -> 0 | MN9: =IF(STATUS10="Done",DATABASE!MN9,IF(STATUS10="This Month",'Salary Process'!L8,'Salary Master'!L7)) -> 0 | MO9: =IF(STATUS10="Done",DATABASE!MO9,IF(STATUS10="This Month",'Salary Process'!M8,'Salary Master'!M7)) -> 0 | MP9: =IF(STATUS10="Done",DATABASE!MP9,IF(STATUS10="This Month",'Salary Process'!N8,'Salary Master'!N7)) -> 0 | MQ9: =IF(STATUS10="Done",DATABASE!MQ9,IF(STATUS10="This Month",'Salary Process'!O8,'Salary Master'!O7)) -> 0 | MR9: =IF(STATUS10="Done",DATABASE!MR9,IF(STATUS10="This Month",'Salary Process'!P8,'Salary Master'!P7)) -> 0 | MS9: =IF(STATUS10="Done",DATABASE!MS9,IF(STATUS10="This Month",'Salary Process'!Q8,'Salary Master'!Q7)) -> 0 | MT9: =IF(STATUS10="Done",DATABASE!MT9,IF(STATUS10="This Month",'Salary Process'!R8,'Salary Master'!R7)) -> 0 | MU9: =IF(STATUS10="Done",DATABASE!MU9,IF(STATUS10="This Month",'Salary Process'!S8,'Salary Master'!S7)) -> 0 | MV9: =IF(STATUS10="Done",DATABASE!MV9,IF(STATUS10="This Month",'Salary Process'!T8,'Salary Master'!T7)) -> 0 | MW9: =IF(STATUS10="Done",DATABASE!MW9,IF(STATUS10="This Month",'Salary Process'!U8,'Salary Master'!U7)) -> 0 | MX9: =IF(STATUS10="Done",DATABASE!MX9,IF(STATUS10="This Month",'Salary Process'!V8,'Salary Master'!V7)) -> 0 | MY9: =IF(STATUS10="Done",DATABASE!MY9,IF(STATUS10="This Month",'Salary Process'!W8,'Salary Master'!W7)) -> 0 | MZ9: =IF(STATUS10="Done",DATABASE!MZ9,IF(STATUS10="This Month",'Salary Process'!X8,'Salary Master'!X7)) -> 0 | NA9: =IF(STATUS10="Done",DATABASE!NA9,IF(STATUS10="This Month",'Salary Process'!Y8,'Salary Master'!Y7)) -> 0 | NB9: =IF(STATUS10="Done",DATABASE!NB9,IF(STATUS10="This Month",'Salary Process'!Z8,'Salary Master'!Z7)) -> 0 | NC9: =IF(STATUS10="Done",DATABASE!NC9,IF(STATUS10="This Month",'Salary Process'!AA8,'Salary Master'!AA7)) -> 0 | ND9: =IF(STATUS10="Done",DATABASE!ND9,IF(STATUS10="This Month",'Salary Process'!AB8,'Salary Master'!AB7)) -> 0 | NE9: =IF(STATUS10="Done",DATABASE!NE9,IF(STATUS10="This Month",'Salary Process'!AC8,'Salary Master'!AC7)) -> 0 | NF9: =IF(STATUS10="Done",DATABASE!NF9,IF(STATUS10="This Month",'Salary Process'!AD8,'Salary Master'!AD7)) -> 0 | NG9: =IF(STATUS10="Done",DATABASE!NG9,IF(STATUS10="This Month",'Salary Process'!AE8,'Salary Master'!AE7)) -> 0 | NH9: =IF(STATUS10="Done",DATABASE!NH9,IF(STATUS10="This Month",'Salary Process'!AF8,'Salary Master'!AF7)) -> 0 | NI9: =IF(STATUS10="Done",DATABASE!NI9,IF(STATUS10="This Month",'Salary Process'!AG8,'Salary Master'!AG7)) -> 0 | NJ9: =IF(STATUS10="Done",DATABASE!NJ9,IF(STATUS10="This Month",'Salary Process'!AH8,'Salary Master'!AH7)) -> 0 | NK9: =IF(STATUS10="Done",DATABASE!NK9,IF(STATUS10="This Month",'Salary Process'!AI8,'Salary Master'!AI7)) -> 0 | NL9: =IF(STATUS10="Done",DATABASE!NL9,IF(STATUS10="This Month",'Salary Process'!AJ8,'Salary Master'!AJ7)) -> 0 | NM9: =IF(STATUS10="Done",DATABASE!NM9,IF(STATUS10="This Month",'Salary Process'!AK8,'Salary Master'!AK7)) -> 0 | NN9: =IF(STATUS10="Done",DATABASE!NN9,IF(STATUS10="This Month",'Salary Process'!AL8,'Salary Master'!AL7)) -> 0 | NR9: =IF(STATUS11="Done",DATABASE!NR9,IF(STATUS11="This Month",'Salary Process'!D8,'Salary Master'!D7)) -> 0 | NS9: =IF(STATUS11="Done",DATABASE!NS9,IF(STATUS11="This Month",'Salary Process'!E8,'Salary Master'!E7)) -> 0 | NT9: =IF(STATUS11="Done",DATABASE!NT9,IF(STATUS11="This Month",'Salary Process'!F8,'Salary Master'!F7)) -> 0 | NU9: =IF(STATUS11="Done",DATABASE!NU9,IF(STATUS11="This Month",'Salary Process'!G8,'Salary Master'!G7)) -> 0 | NV9: =IF(STATUS11="Done",DATABASE!NV9,IF(STATUS11="This Month",'Salary Process'!H8,'Salary Master'!H7)) -> 0 | NW9: =IF(STATUS11="Done",DATABASE!NW9,IF(STATUS11="This Month",'Salary Process'!I8,'Salary Master'!I7)) -> 0 | NX9: =IF(STATUS11="Done",DATABASE!NX9,IF(STATUS11="This Month",'Salary Process'!J8,'Salary Master'!J7)) -> 0 | NY9: =IF(STATUS11="Done",DATABASE!NY9,IF(STATUS11="This Month",'Salary Process'!K8,'Salary Master'!K7)) -> 0 | NZ9: =IF(STATUS11="Done",DATABASE!NZ9,IF(STATUS11="This Month",'Salary Process'!L8,'Salary Master'!L7)) -> 0 | OA9: =IF(STATUS11="Done",DATABASE!OA9,IF(STATUS11="This Month",'Salary Process'!M8,'Salary Master'!M7)) -> 0 | OB9: =IF(STATUS11="Done",DATABASE!OB9,IF(STATUS11="This Month",'Salary Process'!N8,'Salary Master'!N7)) -> 0 | OC9: =IF(STATUS11="Done",DATABASE!OC9,IF(STATUS11="This Month",'Salary Process'!O8,'Salary Master'!O7)) -> 0 | OD9: =IF(STATUS11="Done",DATABASE!OD9,IF(STATUS11="This Month",'Salary Process'!P8,'Salary Master'!P7)) -> 0 | OE9: =IF(STATUS11="Done",DATABASE!OE9,IF(STATUS11="This Month",'Salary Process'!Q8,'Salary Master'!Q7)) -> 0 | OF9: =IF(STATUS11="Done",DATABASE!OF9,IF(STATUS11="This Month",'Salary Process'!R8,'Salary Master'!R7)) -> 0 | OG9: =IF(STATUS11="Done",DATABASE!OG9,IF(STATUS11="This Month",'Salary Process'!S8,'Salary Master'!S7)) -> 0 | OH9: =IF(STATUS11="Done",DATABASE!OH9,IF(STATUS11="This Month",'Salary Process'!T8,'Salary Master'!T7)) -> 0 | OI9: =IF(STATUS11="Done",DATABASE!OI9,IF(STATUS11="This Month",'Salary Process'!U8,'Salary Master'!U7)) -> 0 | OJ9: =IF(STATUS11="Done",DATABASE!OJ9,IF(STATUS11="This Month",'Salary Process'!V8,'Salary Master'!V7)) -> 0 | OK9: =IF(STATUS11="Done",DATABASE!OK9,IF(STATUS11="This Month",'Salary Process'!W8,'Salary Master'!W7)) -> 0 | OL9: =IF(STATUS11="Done",DATABASE!OL9,IF(STATUS11="This Month",'Salary Process'!X8,'Salary Master'!X7)) -> 0 | OM9: =IF(STATUS11="Done",DATABASE!OM9,IF(STATUS11="This Month",'Salary Process'!Y8,'Salary Master'!Y7)) -> 0 | ON9: =IF(STATUS11="Done",DATABASE!ON9,IF(STATUS11="This Month",'Salary Process'!Z8,'Salary Master'!Z7)) -> 0 | OO9: =IF(STATUS11="Done",DATABASE!OO9,IF(STATUS11="This Month",'Salary Process'!AA8,'Salary Master'!AA7)) -> 0 | OP9: =IF(STATUS11="Done",DATABASE!OP9,IF(STATUS11="This Month",'Salary Process'!AB8,'Salary Master'!AB7)) -> 0 | OQ9: =IF(STATUS11="Done",DATABASE!OQ9,IF(STATUS11="This Month",'Salary Process'!AC8,'Salary Master'!AC7)) -> 0 | OR9: =IF(STATUS11="Done",DATABASE!OR9,IF(STATUS11="This Month",'Salary Process'!AD8,'Salary Master'!AD7)) -> 0 | OS9: =IF(STATUS11="Done",DATABASE!OS9,IF(STATUS11="This Month",'Salary Process'!AE8,'Salary Master'!AE7)) -> 0 | OT9: =IF(STATUS11="Done",DATABASE!OT9,IF(STATUS11="This Month",'Salary Process'!AF8,'Salary Master'!AF7)) -> 0 | OU9: =IF(STATUS11="Done",DATABASE!OU9,IF(STATUS11="This Month",'Salary Process'!AG8,'Salary Master'!AG7)) -> 0 | OV9: =IF(STATUS11="Done",DATABASE!OV9,IF(STATUS11="This Month",'Salary Process'!AH8,'Salary Master'!AH7)) -> 0 | OW9: =IF(STATUS11="Done",DATABASE!OW9,IF(STATUS11="This Month",'Salary Process'!AI8,'Salary Master'!AI7)) -> 0 | OX9: =IF(STATUS11="Done",DATABASE!OX9,IF(STATUS11="This Month",'Salary Process'!AJ8,'Salary Master'!AJ7)) -> 0 | OY9: =IF(STATUS11="Done",DATABASE!OY9,IF(STATUS11="This Month",'Salary Process'!AK8,'Salary Master'!AK7)) -> 0 | OZ9: =IF(STATUS11="Done",DATABASE!OZ9,IF(STATUS11="This Month",'Salary Process'!AL8,'Salary Master'!AL7)) -> 0 | PD9: =IF(STATUS12="Done",DATABASE!PD9,IF(STATUS12="This Month",'Salary Process'!D8,'Salary Master'!D7)) -> 0 | PE9: =IF(STATUS12="Done",DATABASE!PE9,IF(STATUS12="This Month",'Salary Process'!E8,'Salary Master'!E7)) -> 0 | PF9: =IF(STATUS12="Done",DATABASE!PF9,IF(STATUS12="This Month",'Salary Process'!F8,'Salary Master'!F7)) -> 0 | PG9: =IF(STATUS12="Done",DATABASE!PG9,IF(STATUS12="This Month",'Salary Process'!G8,'Salary Master'!G7)) -> 0 | PH9: =IF(STATUS12="Done",DATABASE!PH9,IF(STATUS12="This Month",'Salary Process'!H8,'Salary Master'!H7)) -> 0 | PI9: =IF(STATUS12="Done",DATABASE!PI9,IF(STATUS12="This Month",'Salary Process'!I8,'Salary Master'!I7)) -> 0 | PJ9: =IF(STATUS12="Done",DATABASE!PJ9,IF(STATUS12="This Month",'Salary Process'!J8,'Salary Master'!J7)) -> 0 | PK9: =IF(STATUS12="Done",DATABASE!PK9,IF(STATUS12="This Month",'Salary Process'!K8,'Salary Master'!K7)) -> 0 | PL9: =IF(STATUS12="Done",DATABASE!PL9,IF(STATUS12="This Month",'Salary Process'!L8,'Salary Master'!L7)) -> 0 | PM9: =IF(STATUS12="Done",DATABASE!PM9,IF(STATUS12="This Month",'Salary Process'!M8,'Salary Master'!M7)) -> 0 | PN9: =IF(STATUS12="Done",DATABASE!PN9,IF(STATUS12="This Month",'Salary Process'!N8,'Salary Master'!N7)) -> 0 | PO9: =IF(STATUS12="Done",DATABASE!PO9,IF(STATUS12="This Month",'Salary Process'!O8,'Salary Master'!O7)) -> 0 | PP9: =IF(STATUS12="Done",DATABASE!PP9,IF(STATUS12="This Month",'Salary Process'!P8,'Salary Master'!P7)) -> 0 | PQ9: =IF(STATUS12="Done",DATABASE!PQ9,IF(STATUS12="This Month",'Salary Process'!Q8,'Salary Master'!Q7)) -> 0 | PR9: =IF(STATUS12="Done",DATABASE!PR9,IF(STATUS12="This Month",'Salary Process'!R8,'Salary Master'!R7)) -> 0 | PS9: =IF(STATUS12="Done",DATABASE!PS9,IF(STATUS12="This Month",'Salary Process'!S8,'Salary Master'!S7)) -> 0 | PT9: =IF(STATUS12="Done",DATABASE!PT9,IF(STATUS12="This Month",'Salary Process'!T8,'Salary Master'!T7)) -> 0 | PU9: =IF(STATUS12="Done",DATABASE!PU9,IF(STATUS12="This Month",'Salary Process'!U8,'Salary Master'!U7)) -> 0 | PV9: =IF(STATUS12="Done",DATABASE!PV9,IF(STATUS12="This Month",'Salary Process'!V8,'Salary Master'!V7)) -> 0 | PW9: =IF(STATUS12="Done",DATABASE!PW9,IF(STATUS12="This Month",'Salary Process'!W8,'Salary Master'!W7)) -> 0 | PX9: =IF(STATUS12="Done",DATABASE!PX9,IF(STATUS12="This Month",'Salary Process'!X8,'Salary Master'!X7)) -> 0 | PY9: =IF(STATUS12="Done",DATABASE!PY9,IF(STATUS12="This Month",'Salary Process'!Y8,'Salary Master'!Y7)) -> 0 | PZ9: =IF(STATUS12="Done",DATABASE!PZ9,IF(STATUS12="This Month",'Salary Process'!Z8,'Salary Master'!Z7)) -> 0 | QA9: =IF(STATUS12="Done",DATABASE!QA9,IF(STATUS12="This Month",'Salary Process'!AA8,'Salary Master'!AA7)) -> 0 | QB9: =IF(STATUS12="Done",DATABASE!QB9,IF(STATUS12="This Month",'Salary Process'!AB8,'Salary Master'!AB7)) -> 0 | QC9: =IF(STATUS12="Done",DATABASE!QC9,IF(STATUS12="This Month",'Salary Process'!AC8,'Salary Master'!AC7)) -> 0 | QD9: =IF(STATUS12="Done",DATABASE!QD9,IF(STATUS12="This Month",'Salary Process'!AD8,'Salary Master'!AD7)) -> 0 | QE9: =IF(STATUS12="Done",DATABASE!QE9,IF(STATUS12="This Month",'Salary Process'!AE8,'Salary Master'!AE7)) -> 0 | QF9: =IF(STATUS12="Done",DATABASE!QF9,IF(STATUS12="This Month",'Salary Process'!AF8,'Salary Master'!AF7)) -> 0 | QG9: =IF(STATUS12="Done",DATABASE!QG9,IF(STATUS12="This Month",'Salary Process'!AG8,'Salary Master'!AG7)) -> 0 | QH9: =IF(STATUS12="Done",DATABASE!QH9,IF(STATUS12="This Month",'Salary Process'!AH8,'Salary Master'!AH7)) -> 0 | QI9: =IF(STATUS12="Done",DATABASE!QI9,IF(STATUS12="This Month",'Salary Process'!AI8,'Salary Master'!AI7)) -> 0 | QJ9: =IF(STATUS12="Done",DATABASE!QJ9,IF(STATUS12="This Month",'Salary Process'!AJ8,'Salary Master'!AJ7)) -> 0 | QK9: =IF(STATUS12="Done",DATABASE!QK9,IF(STATUS12="This Month",'Salary Process'!AK8,'Salary Master'!AK7)) -> 0 | QL9: =IF(STATUS12="Done",DATABASE!QL9,IF(STATUS12="This Month",'Salary Process'!AL8,'Salary Master'!AL7)) -> 0 | QP9: 0 | QQ9: 0 | QR9: 0 | QS9: 0 | QT9: 0 | QU9: 0 | QV9: 0 | QW9: 0 | QX9: 0 | QY9: 0 | QZ9: 0 | RA9: 0 | RB9: 0 | RC9: 0 | RD9: 0 | RE9: 0 | RF9: 0 | RG9: 0 | RH9: 0 | RI9: 0 | RJ9: 0 | RK9: 0 | RL9: 0 | RM9: 0 | RN9: 0 | RO9: 0 | RP9: 0 | RQ9: 0 | RR9: 0 | RS9: 0 | RT9: 0 | RU9: 0 | RV9: 0 | RW9: 0 | RX9: 0 | SB9: 0 | SC9: 0 | SD9: =VLOOKUP(A9,'Tax Master'!A:AD,5,0) -> 0 | SE9: =VLOOKUP(A9,'Tax Master'!A:AD,6,0) -> 0 | SF9: =VLOOKUP(A9,'Tax Master'!A:AD,7,0) -> 0 | SG9: 0 | SH9: =VLOOKUP(A9,'Tax Master'!A:AD,12,0) -> 0 | SI9: 0 | SJ9: =VLOOKUP(A9,'Tax Master'!A:AD,14,0) -> 0 | SK9: =MIN(((QP9+QQ9)*VLOOKUP(A9,'Tax Master'!A:P,16,0)),QS9,(MAX((VLOOKUP(A9,'Tax Master'!$A:$P,15,0)-(QP9+QQ9)*10%),0))) -> 0 | SL9: 0 | SM9: =VLOOKUP(A9,'Tax Master'!A:AD,4,0) -> 0 | SN9: 0 | SO9: =VLOOKUP(A9,'Tax Master'!A:J,9,0) -> 0 | SP9: =VLOOKUP(A9,'Tax Master'!A:J,10,0) -> 0 | SQ9: 0 | SR9: 0 | SS9: 0 | ST9: =VLOOKUP(A9,'Tax Master'!A:T,20,0) -> 0 | SU9: 0 | SV9: =MIN(VLOOKUP(A9,'Tax Master'!A:U,21,0),_80CCD_1) -> 0 | SW9: =VLOOKUP(A9,'Tax Master'!A:AD,22,0)/2 -> 0 | SX9: =VLOOKUP(A9,'Tax Master'!A:AD,23,0) -> 0 | SY9: =VLOOKUP(A9,'Tax Master'!A:AD,24,0) -> 0 | SZ9: =VLOOKUP(A9,'Tax Master'!A:AD,25,0) -> 0 | TA9: =VLOOKUP(A9,'Tax Master'!A:AD,26,0) -> 0 | TB9: =VLOOKUP(A9,'Tax Master'!A:AD,27,0) -> 0 | TC9: =VLOOKUP(A9,'Tax Master'!A:AD,28,0) -> 0 | TD9: 0 | TE9: 0 | TF9: 0 | TG9: 0 | TH9: 0 | TI9: 0 | TJ9: 0 | TK9: =VLOOKUP(A9,'Tax Master'!A:AD,29,0) -> 0 | TL9: 0 | TM9: =VLOOKUP(A9,'Tax Master'!A:AD,30,0) -> 0 | TN9: =IF(STATUS1="Done",DATABASE!T9,0)+IF(STATUS2="Done",DATABASE!BF9,0)+IF(STATUS3="Done",DATABASE!CR9,0)+IF(STATUS4="Done",DATABASE!ED9,0)+IF(STATUS5="Done",DATABASE!FP9,0)+IF(STATUS6="Done",DATABASE!HB9,0)+IF(STATUS7="Done",DATABASE!IN9,0)+IF(STATUS8="Done",DATABASE!JZ9,0)+IF(STATUS9="Done",DATABASE!LL9,0)+IF(STATUS10="Done",DATABASE!MX9,0)+IF(STATUS11="Done",DATABASE!OJ9,0)+IF(STATUS12="Done",DATABASE!PV9,0) -> 0 | TO9: 0 | TP9: 0 | TR9: 0
A10: 5 | B10: =IF(STATUS1="Done",DATABASE!B10,IF(STATUS1="This Month",'Salary Process'!D9,'Salary Master'!D8)) -> 0 | C10: =IF(STATUS1="Done",DATABASE!C10,IF(STATUS1="This Month",'Salary Process'!E9,'Salary Master'!E8)) -> 0 | D10: =IF(STATUS1="Done",DATABASE!D10,IF(STATUS1="This Month",'Salary Process'!F9,'Salary Master'!F8)) -> 0 | E10: =IF(STATUS1="Done",DATABASE!E10,IF(STATUS1="This Month",'Salary Process'!G9,'Salary Master'!G8)) -> 0 | F10: =IF(STATUS1="Done",DATABASE!F10,IF(STATUS1="This Month",'Salary Process'!H9,'Salary Master'!H8)) -> 0 | G10: =IF(STATUS1="Done",DATABASE!G10,IF(STATUS1="This Month",'Salary Process'!I9,'Salary Master'!I8)) -> 0 | H10: =IF(STATUS1="Done",DATABASE!H10,IF(STATUS1="This Month",'Salary Process'!J9,'Salary Master'!J8)) -> 0 | I10: =IF(STATUS1="Done",DATABASE!I10,IF(STATUS1="This Month",'Salary Process'!K9,'Salary Master'!K8)) -> 0 | J10: =IF(STATUS1="Done",DATABASE!J10,IF(STATUS1="This Month",'Salary Process'!L9,'Salary Master'!L8)) -> 0 | K10: =IF(STATUS1="Done",DATABASE!K10,IF(STATUS1="This Month",'Salary Process'!M9,'Salary Master'!M8)) -> 0 | L10: =IF(STATUS1="Done",DATABASE!L10,IF(STATUS1="This Month",'Salary Process'!N9,'Salary Master'!N8)) -> 0 | M10: =IF(STATUS1="Done",DATABASE!M10,IF(STATUS1="This Month",'Salary Process'!O9,'Salary Master'!O8)) -> 0 | N10: =IF(STATUS1="Done",DATABASE!N10,IF(STATUS1="This Month",'Salary Process'!P9,'Salary Master'!P8)) -> 0 | O10: =IF(STATUS1="Done",DATABASE!O10,IF(STATUS1="This Month",'Salary Process'!Q9,'Salary Master'!Q8)) -> 0 | P10: =IF(STATUS1="Done",DATABASE!P10,IF(STATUS1="This Month",'Salary Process'!R9,'Salary Master'!R8)) -> 0 | Q10: =IF(STATUS1="Done",DATABASE!Q10,IF(STATUS1="This Month",'Salary Process'!S9,'Salary Master'!S8)) -> 0 | R10: =IF(STATUS1="Done",DATABASE!R10,IF(STATUS1="This Month",'Salary Process'!T9,'Salary Master'!T8)) -> 0 | S10: =IF(STATUS1="Done",DATABASE!S10,IF(STATUS1="This Month",'Salary Process'!U9,'Salary Master'!U8)) -> 0 | T10: =IF(STATUS1="Done",DATABASE!T10,IF(STATUS1="This Month",'Salary Process'!V9,'Salary Master'!V8)) -> 0 | U10: =IF(STATUS1="Done",DATABASE!U10,IF(STATUS1="This Month",'Salary Process'!W9,'Salary Master'!W8)) -> 0 | V10: =IF(STATUS1="Done",DATABASE!V10,IF(STATUS1="This Month",'Salary Process'!X9,'Salary Master'!X8)) -> 0 | W10: =IF(STATUS1="Done",DATABASE!W10,IF(STATUS1="This Month",'Salary Process'!Y9,'Salary Master'!Y8)) -> 0 | X10: =IF(STATUS1="Done",DATABASE!X10,IF(STATUS1="This Month",'Salary Process'!Z9,'Salary Master'!Z8)) -> 0 | Y10: =IF(STATUS1="Done",DATABASE!Y10,IF(STATUS1="This Month",'Salary Process'!AA9,'Salary Master'!AA8)) -> 0 | Z10: =IF(STATUS1="Done",DATABASE!Z10,IF(STATUS1="This Month",'Salary Process'!AB9,'Salary Master'!AB8)) -> 0 | AA10: =IF(STATUS1="Done",DATABASE!AA10,IF(STATUS1="This Month",'Salary Process'!AC9,'Salary Master'!AC8)) -> 0 | AB10: =IF(STATUS1="Done",DATABASE!AB10,IF(STATUS1="This Month",'Salary Process'!AD9,'Salary Master'!AD8)) -> 0 | AC10: =IF(STATUS1="Done",DATABASE!AC10,IF(STATUS1="This Month",'Salary Process'!AE9,'Salary Master'!AE8)) -> 0 | AD10: =IF(STATUS1="Done",DATABASE!AD10,IF(STATUS1="This Month",'Salary Process'!AF9,'Salary Master'!AF8)) -> 0 | AE10: =IF(STATUS1="Done",DATABASE!AE10,IF(STATUS1="This Month",'Salary Process'!AG9,'Salary Master'!AG8)) -> 0 | AF10: =IF(STATUS1="Done",DATABASE!AF10,IF(STATUS1="This Month",'Salary Process'!AH9,'Salary Master'!AH8)) -> 0 | AG10: =IF(STATUS1="Done",DATABASE!AG10,IF(STATUS1="This Month",'Salary Process'!AI9,'Salary Master'!AI8)) -> 0 | AH10: =IF(STATUS1="Done",DATABASE!AH10,IF(STATUS1="This Month",'Salary Process'!AJ9,'Salary Master'!AJ8)) -> 0 | AI10: =IF(STATUS1="Done",DATABASE!AI10,IF(STATUS1="This Month",'Salary Process'!AK9,'Salary Master'!AK8)) -> 0 | AJ10: =IF(STATUS1="Done",DATABASE!AJ10,IF(STATUS1="This Month",'Salary Process'!AL9,'Salary Master'!AL8)) -> 0 | AN10: =IF(STATUS2="Done",DATABASE!AN10,IF(STATUS2="This Month",'Salary Process'!D9,'Salary Master'!D8)) -> 0 | AO10: =IF(STATUS2="Done",DATABASE!AO10,IF(STATUS2="This Month",'Salary Process'!E9,'Salary Master'!E8)) -> 0 | AP10: =IF(STATUS2="Done",DATABASE!AP10,IF(STATUS2="This Month",'Salary Process'!F9,'Salary Master'!F8)) -> 0 | AQ10: =IF(STATUS2="Done",DATABASE!AQ10,IF(STATUS2="This Month",'Salary Process'!G9,'Salary Master'!G8)) -> 0 | AR10: =IF(STATUS2="Done",DATABASE!AR10,IF(STATUS2="This Month",'Salary Process'!H9,'Salary Master'!H8)) -> 0 | AS10: =IF(STATUS2="Done",DATABASE!AS10,IF(STATUS2="This Month",'Salary Process'!I9,'Salary Master'!I8)) -> 0 | AT10: =IF(STATUS2="Done",DATABASE!AT10,IF(STATUS2="This Month",'Salary Process'!J9,'Salary Master'!J8)) -> 0 | AU10: =IF(STATUS2="Done",DATABASE!AU10,IF(STATUS2="This Month",'Salary Process'!K9,'Salary Master'!K8)) -> 0 | AV10: =IF(STATUS2="Done",DATABASE!AV10,IF(STATUS2="This Month",'Salary Process'!L9,'Salary Master'!L8)) -> 0 | AW10: =IF(STATUS2="Done",DATABASE!AW10,IF(STATUS2="This Month",'Salary Process'!M9,'Salary Master'!M8)) -> 0 | AX10: =IF(STATUS2="Done",DATABASE!AX10,IF(STATUS2="This Month",'Salary Process'!N9,'Salary Master'!N8)) -> 0 | AY10: =IF(STATUS2="Done",DATABASE!AY10,IF(STATUS2="This Month",'Salary Process'!O9,'Salary Master'!O8)) -> 0 | AZ10: =IF(STATUS2="Done",DATABASE!AZ10,IF(STATUS2="This Month",'Salary Process'!P9,'Salary Master'!P8)) -> 0 | BA10: =IF(STATUS2="Done",DATABASE!BA10,IF(STATUS2="This Month",'Salary Process'!Q9,'Salary Master'!Q8)) -> 0 | BB10: =IF(STATUS2="Done",DATABASE!BB10,IF(STATUS2="This Month",'Salary Process'!R9,'Salary Master'!R8)) -> 0 | BC10: =IF(STATUS2="Done",DATABASE!BC10,IF(STATUS2="This Month",'Salary Process'!S9,'Salary Master'!S8)) -> 0 | BD10: =IF(STATUS2="Done",DATABASE!BD10,IF(STATUS2="This Month",'Salary Process'!T9,'Salary Master'!T8)) -> 0 | BE10: =IF(STATUS2="Done",DATABASE!BE10,IF(STATUS2="This Month",'Salary Process'!U9,'Salary Master'!U8)) -> 0 | BF10: =IF(STATUS2="Done",DATABASE!BF10,IF(STATUS2="This Month",'Salary Process'!V9,'Salary Master'!V8)) -> 0 | BG10: =IF(STATUS2="Done",DATABASE!BG10,IF(STATUS2="This Month",'Salary Process'!W9,'Salary Master'!W8)) -> 0 | BH10: =IF(STATUS2="Done",DATABASE!BH10,IF(STATUS2="This Month",'Salary Process'!X9,'Salary Master'!X8)) -> 0 | BI10: =IF(STATUS2="Done",DATABASE!BI10,IF(STATUS2="This Month",'Salary Process'!Y9,'Salary Master'!Y8)) -> 0 | BJ10: =IF(STATUS2="Done",DATABASE!BJ10,IF(STATUS2="This Month",'Salary Process'!Z9,'Salary Master'!Z8)) -> 0 | BK10: =IF(STATUS2="Done",DATABASE!BK10,IF(STATUS2="This Month",'Salary Process'!AA9,'Salary Master'!AA8)) -> 0 | BL10: =IF(STATUS2="Done",DATABASE!BL10,IF(STATUS2="This Month",'Salary Process'!AB9,'Salary Master'!AB8)) -> 0 | BM10: =IF(STATUS2="Done",DATABASE!BM10,IF(STATUS2="This Month",'Salary Process'!AC9,'Salary Master'!AC8)) -> 0 | BN10: =IF(STATUS2="Done",DATABASE!BN10,IF(STATUS2="This Month",'Salary Process'!AD9,'Salary Master'!AD8)) -> 0 | BO10: =IF(STATUS2="Done",DATABASE!BO10,IF(STATUS2="This Month",'Salary Process'!AE9,'Salary Master'!AE8)) -> 0 | BP10: =IF(STATUS2="Done",DATABASE!BP10,IF(STATUS2="This Month",'Salary Process'!AF9,'Salary Master'!AF8)) -> 0 | BQ10: =IF(STATUS2="Done",DATABASE!BQ10,IF(STATUS2="This Month",'Salary Process'!AG9,'Salary Master'!AG8)) -> 0 | BR10: =IF(STATUS2="Done",DATABASE!BR10,IF(STATUS2="This Month",'Salary Process'!AH9,'Salary Master'!AH8)) -> 0 | BS10: =IF(STATUS2="Done",DATABASE!BS10,IF(STATUS2="This Month",'Salary Process'!AI9,'Salary Master'!AI8)) -> 0 | BT10: =IF(STATUS2="Done",DATABASE!BT10,IF(STATUS2="This Month",'Salary Process'!AJ9,'Salary Master'!AJ8)) -> 0 | BU10: =IF(STATUS2="Done",DATABASE!BU10,IF(STATUS2="This Month",'Salary Process'!AK9,'Salary Master'!AK8)) -> 0 | BV10: =IF(STATUS2="Done",DATABASE!BV10,IF(STATUS2="This Month",'Salary Process'!AL9,'Salary Master'!AL8)) -> 0 | BZ10: =IF(STATUS3="Done",DATABASE!BZ10,IF(STATUS3="This Month",'Salary Process'!D9,'Salary Master'!D8)) -> 0 | CA10: =IF(STATUS3="Done",DATABASE!CA10,IF(STATUS3="This Month",'Salary Process'!E9,'Salary Master'!E8)) -> 0 | CB10: =IF(STATUS3="Done",DATABASE!CB10,IF(STATUS3="This Month",'Salary Process'!F9,'Salary Master'!F8)) -> 0 | CC10: =IF(STATUS3="Done",DATABASE!CC10,IF(STATUS3="This Month",'Salary Process'!G9,'Salary Master'!G8)) -> 0 | CD10: =IF(STATUS3="Done",DATABASE!CD10,IF(STATUS3="This Month",'Salary Process'!H9,'Salary Master'!H8)) -> 0 | CE10: =IF(STATUS3="Done",DATABASE!CE10,IF(STATUS3="This Month",'Salary Process'!I9,'Salary Master'!I8)) -> 0 | CF10: =IF(STATUS3="Done",DATABASE!CF10,IF(STATUS3="This Month",'Salary Process'!J9,'Salary Master'!J8)) -> 0 | CG10: =IF(STATUS3="Done",DATABASE!CG10,IF(STATUS3="This Month",'Salary Process'!K9,'Salary Master'!K8)) -> 0 | CH10: =IF(STATUS3="Done",DATABASE!CH10,IF(STATUS3="This Month",'Salary Process'!L9,'Salary Master'!L8)) -> 0 | CI10: =IF(STATUS3="Done",DATABASE!CI10,IF(STATUS3="This Month",'Salary Process'!M9,'Salary Master'!M8)) -> 0 | CJ10: =IF(STATUS3="Done",DATABASE!CJ10,IF(STATUS3="This Month",'Salary Process'!N9,'Salary Master'!N8)) -> 0 | CK10: =IF(STATUS3="Done",DATABASE!CK10,IF(STATUS3="This Month",'Salary Process'!O9,'Salary Master'!O8)) -> 0 | CL10: =IF(STATUS3="Done",DATABASE!CL10,IF(STATUS3="This Month",'Salary Process'!P9,'Salary Master'!P8)) -> 0 | CM10: =IF(STATUS3="Done",DATABASE!CM10,IF(STATUS3="This Month",'Salary Process'!Q9,'Salary Master'!Q8)) -> 0 | CN10: =IF(STATUS3="Done",DATABASE!CN10,IF(STATUS3="This Month",'Salary Process'!R9,'Salary Master'!R8)) -> 0 | CO10: =IF(STATUS3="Done",DATABASE!CO10,IF(STATUS3="This Month",'Salary Process'!S9,'Salary Master'!S8)) -> 0 | CP10: =IF(STATUS3="Done",DATABASE!CP10,IF(STATUS3="This Month",'Salary Process'!T9,'Salary Master'!T8)) -> 0 | CQ10: =IF(STATUS3="Done",DATABASE!CQ10,IF(STATUS3="This Month",'Salary Process'!U9,'Salary Master'!U8)) -> 0 | CR10: =IF(STATUS3="Done",DATABASE!CR10,IF(STATUS3="This Month",'Salary Process'!V9,'Salary Master'!V8)) -> 0 | CS10: =IF(STATUS3="Done",DATABASE!CS10,IF(STATUS3="This Month",'Salary Process'!W9,'Salary Master'!W8)) -> 0 | CT10: =IF(STATUS3="Done",DATABASE!CT10,IF(STATUS3="This Month",'Salary Process'!X9,'Salary Master'!X8)) -> 0 | CU10: =IF(STATUS3="Done",DATABASE!CU10,IF(STATUS3="This Month",'Salary Process'!Y9,'Salary Master'!Y8)) -> 0 | CV10: =IF(STATUS3="Done",DATABASE!CV10,IF(STATUS3="This Month",'Salary Process'!Z9,'Salary Master'!Z8)) -> 0 | CW10: =IF(STATUS3="Done",DATABASE!CW10,IF(STATUS3="This Month",'Salary Process'!AA9,'Salary Master'!AA8)) -> 0 | CX10: =IF(STATUS3="Done",DATABASE!CX10,IF(STATUS3="This Month",'Salary Process'!AB9,'Salary Master'!AB8)) -> 0 | CY10: =IF(STATUS3="Done",DATABASE!CY10,IF(STATUS3="This Month",'Salary Process'!AC9,'Salary Master'!AC8)) -> 0 | CZ10: =IF(STATUS3="Done",DATABASE!CZ10,IF(STATUS3="This Month",'Salary Process'!AD9,'Salary Master'!AD8)) -> 0 | DA10: =IF(STATUS3="Done",DATABASE!DA10,IF(STATUS3="This Month",'Salary Process'!AE9,'Salary Master'!AE8)) -> 0 | DB10: =IF(STATUS3="Done",DATABASE!DB10,IF(STATUS3="This Month",'Salary Process'!AF9,'Salary Master'!AF8)) -> 0 | DC10: =IF(STATUS3="Done",DATABASE!DC10,IF(STATUS3="This Month",'Salary Process'!AG9,'Salary Master'!AG8)) -> 0 | DD10: =IF(STATUS3="Done",DATABASE!DD10,IF(STATUS3="This Month",'Salary Process'!AH9,'Salary Master'!AH8)) -> 0 | DE10: =IF(STATUS3="Done",DATABASE!DE10,IF(STATUS3="This Month",'Salary Process'!AI9,'Salary Master'!AI8)) -> 0 | DF10: =IF(STATUS3="Done",DATABASE!DF10,IF(STATUS3="This Month",'Salary Process'!AJ9,'Salary Master'!AJ8)) -> 0 | DG10: =IF(STATUS3="Done",DATABASE!DG10,IF(STATUS3="This Month",'Salary Process'!AK9,'Salary Master'!AK8)) -> 0 | DH10: =IF(STATUS3="Done",DATABASE!DH10,IF(STATUS3="This Month",'Salary Process'!AL9,'Salary Master'!AL8)) -> 0 | DL10: =IF(STATUS4="Done",DATABASE!DL10,IF(STATUS4="This Month",'Salary Process'!D9,'Salary Master'!D8)) -> 0 | DM10: =IF(STATUS4="Done",DATABASE!DM10,IF(STATUS4="This Month",'Salary Process'!E9,'Salary Master'!E8)) -> 0 | DN10: =IF(STATUS4="Done",DATABASE!DN10,IF(STATUS4="This Month",'Salary Process'!F9,'Salary Master'!F8)) -> 0 | DO10: =IF(STATUS4="Done",DATABASE!DO10,IF(STATUS4="This Month",'Salary Process'!G9,'Salary Master'!G8)) -> 0 | DP10: =IF(STATUS4="Done",DATABASE!DP10,IF(STATUS4="This Month",'Salary Process'!H9,'Salary Master'!H8)) -> 0 | DQ10: =IF(STATUS4="Done",DATABASE!DQ10,IF(STATUS4="This Month",'Salary Process'!I9,'Salary Master'!I8)) -> 0 | DR10: =IF(STATUS4="Done",DATABASE!DR10,IF(STATUS4="This Month",'Salary Process'!J9,'Salary Master'!J8)) -> 0 | DS10: =IF(STATUS4="Done",DATABASE!DS10,IF(STATUS4="This Month",'Salary Process'!K9,'Salary Master'!K8)) -> 0 | DT10: =IF(STATUS4="Done",DATABASE!DT10,IF(STATUS4="This Month",'Salary Process'!L9,'Salary Master'!L8)) -> 0 | DU10: =IF(STATUS4="Done",DATABASE!DU10,IF(STATUS4="This Month",'Salary Process'!M9,'Salary Master'!M8)) -> 0 | DV10: =IF(STATUS4="Done",DATABASE!DV10,IF(STATUS4="This Month",'Salary Process'!N9,'Salary Master'!N8)) -> 0 | DW10: =IF(STATUS4="Done",DATABASE!DW10,IF(STATUS4="This Month",'Salary Process'!O9,'Salary Master'!O8)) -> 0 | DX10: =IF(STATUS4="Done",DATABASE!DX10,IF(STATUS4="This Month",'Salary Process'!P9,'Salary Master'!P8)) -> 0 | DY10: =IF(STATUS4="Done",DATABASE!DY10,IF(STATUS4="This Month",'Salary Process'!Q9,'Salary Master'!Q8)) -> 0 | DZ10: =IF(STATUS4="Done",DATABASE!DZ10,IF(STATUS4="This Month",'Salary Process'!R9,'Salary Master'!R8)) -> 0 | EA10: =IF(STATUS4="Done",DATABASE!EA10,IF(STATUS4="This Month",'Salary Process'!S9,'Salary Master'!S8)) -> 0 | EB10: =IF(STATUS4="Done",DATABASE!EB10,IF(STATUS4="This Month",'Salary Process'!T9,'Salary Master'!T8)) -> 0 | EC10: =IF(STATUS4="Done",DATABASE!EC10,IF(STATUS4="This Month",'Salary Process'!U9,'Salary Master'!U8)) -> 0 | ED10: =IF(STATUS4="Done",DATABASE!ED10,IF(STATUS4="This Month",'Salary Process'!V9,'Salary Master'!V8)) -> 0 | EE10: =IF(STATUS4="Done",DATABASE!EE10,IF(STATUS4="This Month",'Salary Process'!W9,'Salary Master'!W8)) -> 0 | EF10: =IF(STATUS4="Done",DATABASE!EF10,IF(STATUS4="This Month",'Salary Process'!X9,'Salary Master'!X8)) -> 0 | EG10: =IF(STATUS4="Done",DATABASE!EG10,IF(STATUS4="This Month",'Salary Process'!Y9,'Salary Master'!Y8)) -> 0 | EH10: =IF(STATUS4="Done",DATABASE!EH10,IF(STATUS4="This Month",'Salary Process'!Z9,'Salary Master'!Z8)) -> 0 | EI10: =IF(STATUS4="Done",DATABASE!EI10,IF(STATUS4="This Month",'Salary Process'!AA9,'Salary Master'!AA8)) -> 0 | EJ10: =IF(STATUS4="Done",DATABASE!EJ10,IF(STATUS4="This Month",'Salary Process'!AB9,'Salary Master'!AB8)) -> 0 | EK10: =IF(STATUS4="Done",DATABASE!EK10,IF(STATUS4="This Month",'Salary Process'!AC9,'Salary Master'!AC8)) -> 0 | EL10: =IF(STATUS4="Done",DATABASE!EL10,IF(STATUS4="This Month",'Salary Process'!AD9,'Salary Master'!AD8)) -> 0 | EM10: =IF(STATUS4="Done",DATABASE!EM10,IF(STATUS4="This Month",'Salary Process'!AE9,'Salary Master'!AE8)) -> 0 | EN10: =IF(STATUS4="Done",DATABASE!EN10,IF(STATUS4="This Month",'Salary Process'!AF9,'Salary Master'!AF8)) -> 0 | EO10: =IF(STATUS4="Done",DATABASE!EO10,IF(STATUS4="This Month",'Salary Process'!AG9,'Salary Master'!AG8)) -> 0 | EP10: =IF(STATUS4="Done",DATABASE!EP10,IF(STATUS4="This Month",'Salary Process'!AH9,'Salary Master'!AH8)) -> 0 | EQ10: =IF(STATUS4="Done",DATABASE!EQ10,IF(STATUS4="This Month",'Salary Process'!AI9,'Salary Master'!AI8)) -> 0 | ER10: =IF(STATUS4="Done",DATABASE!ER10,IF(STATUS4="This Month",'Salary Process'!AJ9,'Salary Master'!AJ8)) -> 0 | ES10: =IF(STATUS4="Done",DATABASE!ES10,IF(STATUS4="This Month",'Salary Process'!AK9,'Salary Master'!AK8)) -> 0 | ET10: =IF(STATUS4="Done",DATABASE!ET10,IF(STATUS4="This Month",'Salary Process'!AL9,'Salary Master'!AL8)) -> 0 | EX10: =IF(STATUS5="Done",DATABASE!EX10,IF(STATUS5="This Month",'Salary Process'!D9,'Salary Master'!D8)) -> 0 | EY10: =IF(STATUS5="Done",DATABASE!EY10,IF(STATUS5="This Month",'Salary Process'!E9,'Salary Master'!E8)) -> 0 | EZ10: =IF(STATUS5="Done",DATABASE!EZ10,IF(STATUS5="This Month",'Salary Process'!F9,'Salary Master'!F8)) -> 0 | FA10: =IF(STATUS5="Done",DATABASE!FA10,IF(STATUS5="This Month",'Salary Process'!G9,'Salary Master'!G8)) -> 0 | FB10: =IF(STATUS5="Done",DATABASE!FB10,IF(STATUS5="This Month",'Salary Process'!H9,'Salary Master'!H8)) -> 0 | FC10: =IF(STATUS5="Done",DATABASE!FC10,IF(STATUS5="This Month",'Salary Process'!I9,'Salary Master'!I8)) -> 0 | FD10: =IF(STATUS5="Done",DATABASE!FD10,IF(STATUS5="This Month",'Salary Process'!J9,'Salary Master'!J8)) -> 0 | FE10: =IF(STATUS5="Done",DATABASE!FE10,IF(STATUS5="This Month",'Salary Process'!K9,'Salary Master'!K8)) -> 0 | FF10: =IF(STATUS5="Done",DATABASE!FF10,IF(STATUS5="This Month",'Salary Process'!L9,'Salary Master'!L8)) -> 0 | FG10: =IF(STATUS5="Done",DATABASE!FG10,IF(STATUS5="This Month",'Salary Process'!M9,'Salary Master'!M8)) -> 0 | FH10: =IF(STATUS5="Done",DATABASE!FH10,IF(STATUS5="This Month",'Salary Process'!N9,'Salary Master'!N8)) -> 0 | FI10: =IF(STATUS5="Done",DATABASE!FI10,IF(STATUS5="This Month",'Salary Process'!O9,'Salary Master'!O8)) -> 0 | FJ10: =IF(STATUS5="Done",DATABASE!FJ10,IF(STATUS5="This Month",'Salary Process'!P9,'Salary Master'!P8)) -> 0 | FK10: =IF(STATUS5="Done",DATABASE!FK10,IF(STATUS5="This Month",'Salary Process'!Q9,'Salary Master'!Q8)) -> 0 | FL10: =IF(STATUS5="Done",DATABASE!FL10,IF(STATUS5="This Month",'Salary Process'!R9,'Salary Master'!R8)) -> 0 | FM10: =IF(STATUS5="Done",DATABASE!FM10,IF(STATUS5="This Month",'Salary Process'!S9,'Salary Master'!S8)) -> 0 | FN10: =IF(STATUS5="Done",DATABASE!FN10,IF(STATUS5="This Month",'Salary Process'!T9,'Salary Master'!T8)) -> 0 | FO10: =IF(STATUS5="Done",DATABASE!FO10,IF(STATUS5="This Month",'Salary Process'!U9,'Salary Master'!U8)) -> 0 | FP10: =IF(STATUS5="Done",DATABASE!FP10,IF(STATUS5="This Month",'Salary Process'!V9,'Salary Master'!V8)) -> 0 | FQ10: =IF(STATUS5="Done",DATABASE!FQ10,IF(STATUS5="This Month",'Salary Process'!W9,'Salary Master'!W8)) -> 0 | FR10: =IF(STATUS5="Done",DATABASE!FR10,IF(STATUS5="This Month",'Salary Process'!X9,'Salary Master'!X8)) -> 0 | FS10: =IF(STATUS5="Done",DATABASE!FS10,IF(STATUS5="This Month",'Salary Process'!Y9,'Salary Master'!Y8)) -> 0 | FT10: =IF(STATUS5="Done",DATABASE!FT10,IF(STATUS5="This Month",'Salary Process'!Z9,'Salary Master'!Z8)) -> 0 | FU10: =IF(STATUS5="Done",DATABASE!FU10,IF(STATUS5="This Month",'Salary Process'!AA9,'Salary Master'!AA8)) -> 0 | FV10: =IF(STATUS5="Done",DATABASE!FV10,IF(STATUS5="This Month",'Salary Process'!AB9,'Salary Master'!AB8)) -> 0 | FW10: =IF(STATUS5="Done",DATABASE!FW10,IF(STATUS5="This Month",'Salary Process'!AC9,'Salary Master'!AC8)) -> 0 | FX10: =IF(STATUS5="Done",DATABASE!FX10,IF(STATUS5="This Month",'Salary Process'!AD9,'Salary Master'!AD8)) -> 0 | FY10: =IF(STATUS5="Done",DATABASE!FY10,IF(STATUS5="This Month",'Salary Process'!AE9,'Salary Master'!AE8)) -> 0 | FZ10: =IF(STATUS5="Done",DATABASE!FZ10,IF(STATUS5="This Month",'Salary Process'!AF9,'Salary Master'!AF8)) -> 0 | GA10: =IF(STATUS5="Done",DATABASE!GA10,IF(STATUS5="This Month",'Salary Process'!AG9,'Salary Master'!AG8)) -> 0 | GB10: =IF(STATUS5="Done",DATABASE!GB10,IF(STATUS5="This Month",'Salary Process'!AH9,'Salary Master'!AH8)) -> 0 | GC10: =IF(STATUS5="Done",DATABASE!GC10,IF(STATUS5="This Month",'Salary Process'!AI9,'Salary Master'!AI8)) -> 0 | GD10: =IF(STATUS5="Done",DATABASE!GD10,IF(STATUS5="This Month",'Salary Process'!AJ9,'Salary Master'!AJ8)) -> 0 | GE10: =IF(STATUS5="Done",DATABASE!GE10,IF(STATUS5="This Month",'Salary Process'!AK9,'Salary Master'!AK8)) -> 0 | GF10: =IF(STATUS5="Done",DATABASE!GF10,IF(STATUS5="This Month",'Salary Process'!AL9,'Salary Master'!AL8)) -> 0 | GJ10: =IF(STATUS6="Done",DATABASE!GJ10,IF(STATUS6="This Month",'Salary Process'!D9,'Salary Master'!D8)) -> 0 | GK10: =IF(STATUS6="Done",DATABASE!GK10,IF(STATUS6="This Month",'Salary Process'!E9,'Salary Master'!E8)) -> 0 | GL10: =IF(STATUS6="Done",DATABASE!GL10,IF(STATUS6="This Month",'Salary Process'!F9,'Salary Master'!F8)) -> 0 | GM10: =IF(STATUS6="Done",DATABASE!GM10,IF(STATUS6="This Month",'Salary Process'!G9,'Salary Master'!G8)) -> 0 | GN10: =IF(STATUS6="Done",DATABASE!GN10,IF(STATUS6="This Month",'Salary Process'!H9,'Salary Master'!H8)) -> 0 | GO10: =IF(STATUS6="Done",DATABASE!GO10,IF(STATUS6="This Month",'Salary Process'!I9,'Salary Master'!I8)) -> 0 | GP10: =IF(STATUS6="Done",DATABASE!GP10,IF(STATUS6="This Month",'Salary Process'!J9,'Salary Master'!J8)) -> 0 | GQ10: =IF(STATUS6="Done",DATABASE!GQ10,IF(STATUS6="This Month",'Salary Process'!K9,'Salary Master'!K8)) -> 0 | GR10: =IF(STATUS6="Done",DATABASE!GR10,IF(STATUS6="This Month",'Salary Process'!L9,'Salary Master'!L8)) -> 0 | GS10: =IF(STATUS6="Done",DATABASE!GS10,IF(STATUS6="This Month",'Salary Process'!M9,'Salary Master'!M8)) -> 0 | GT10: =IF(STATUS6="Done",DATABASE!GT10,IF(STATUS6="This Month",'Salary Process'!N9,'Salary Master'!N8)) -> 0 | GU10: =IF(STATUS6="Done",DATABASE!GU10,IF(STATUS6="This Month",'Salary Process'!O9,'Salary Master'!O8)) -> 0 | GV10: =IF(STATUS6="Done",DATABASE!GV10,IF(STATUS6="This Month",'Salary Process'!P9,'Salary Master'!P8)) -> 0 | GW10: =IF(STATUS6="Done",DATABASE!GW10,IF(STATUS6="This Month",'Salary Process'!Q9,'Salary Master'!Q8)) -> 0 | GX10: =IF(STATUS6="Done",DATABASE!GX10,IF(STATUS6="This Month",'Salary Process'!R9,'Salary Master'!R8)) -> 0 | GY10: =IF(STATUS6="Done",DATABASE!GY10,IF(STATUS6="This Month",'Salary Process'!S9,'Salary Master'!S8)) -> 0 | GZ10: =IF(STATUS6="Done",DATABASE!GZ10,IF(STATUS6="This Month",'Salary Process'!T9,'Salary Master'!T8)) -> 0 | HA10: =IF(STATUS6="Done",DATABASE!HA10,IF(STATUS6="This Month",'Salary Process'!U9,'Salary Master'!U8)) -> 0 | HB10: =IF(STATUS6="Done",DATABASE!HB10,IF(STATUS6="This Month",'Salary Process'!V9,'Salary Master'!V8)) -> 0 | HC10: =IF(STATUS6="Done",DATABASE!HC10,IF(STATUS6="This Month",'Salary Process'!W9,'Salary Master'!W8)) -> 0 | HD10: =IF(STATUS6="Done",DATABASE!HD10,IF(STATUS6="This Month",'Salary Process'!X9,'Salary Master'!X8)) -> 0 | HE10: =IF(STATUS6="Done",DATABASE!HE10,IF(STATUS6="This Month",'Salary Process'!Y9,'Salary Master'!Y8)) -> 0 | HF10: =IF(STATUS6="Done",DATABASE!HF10,IF(STATUS6="This Month",'Salary Process'!Z9,'Salary Master'!Z8)) -> 0 | HG10: =IF(STATUS6="Done",DATABASE!HG10,IF(STATUS6="This Month",'Salary Process'!AA9,'Salary Master'!AA8)) -> 0 | HH10: =IF(STATUS6="Done",DATABASE!HH10,IF(STATUS6="This Month",'Salary Process'!AB9,'Salary Master'!AB8)) -> 0 | HI10: =IF(STATUS6="Done",DATABASE!HI10,IF(STATUS6="This Month",'Salary Process'!AC9,'Salary Master'!AC8)) -> 0 | HJ10: =IF(STATUS6="Done",DATABASE!HJ10,IF(STATUS6="This Month",'Salary Process'!AD9,'Salary Master'!AD8)) -> 0 | HK10: =IF(STATUS6="Done",DATABASE!HK10,IF(STATUS6="This Month",'Salary Process'!AE9,'Salary Master'!AE8)) -> 0 | HL10: =IF(STATUS6="Done",DATABASE!HL10,IF(STATUS6="This Month",'Salary Process'!AF9,'Salary Master'!AF8)) -> 0 | HM10: =IF(STATUS6="Done",DATABASE!HM10,IF(STATUS6="This Month",'Salary Process'!AG9,'Salary Master'!AG8)) -> 0 | HN10: =IF(STATUS6="Done",DATABASE!HN10,IF(STATUS6="This Month",'Salary Process'!AH9,'Salary Master'!AH8)) -> 0 | HO10: =IF(STATUS6="Done",DATABASE!HO10,IF(STATUS6="This Month",'Salary Process'!AI9,'Salary Master'!AI8)) -> 0 | HP10: =IF(STATUS6="Done",DATABASE!HP10,IF(STATUS6="This Month",'Salary Process'!AJ9,'Salary Master'!AJ8)) -> 0 | HQ10: =IF(STATUS6="Done",DATABASE!HQ10,IF(STATUS6="This Month",'Salary Process'!AK9,'Salary Master'!AK8)) -> 0 | HR10: =IF(STATUS6="Done",DATABASE!HR10,IF(STATUS6="This Month",'Salary Process'!AL9,'Salary Master'!AL8)) -> 0 | HV10: =IF(STATUS7="Done",DATABASE!HV10,IF(STATUS7="This Month",'Salary Process'!D9,'Salary Master'!D8)) -> 0 | HW10: =IF(STATUS7="Done",DATABASE!HW10,IF(STATUS7="This Month",'Salary Process'!E9,'Salary Master'!E8)) -> 0 | HX10: =IF(STATUS7="Done",DATABASE!HX10,IF(STATUS7="This Month",'Salary Process'!F9,'Salary Master'!F8)) -> 0 | HY10: =IF(STATUS7="Done",DATABASE!HY10,IF(STATUS7="This Month",'Salary Process'!G9,'Salary Master'!G8)) -> 0 | HZ10: =IF(STATUS7="Done",DATABASE!HZ10,IF(STATUS7="This Month",'Salary Process'!H9,'Salary Master'!H8)) -> 0 | IA10: =IF(STATUS7="Done",DATABASE!IA10,IF(STATUS7="This Month",'Salary Process'!I9,'Salary Master'!I8)) -> 0 | IB10: =IF(STATUS7="Done",DATABASE!IB10,IF(STATUS7="This Month",'Salary Process'!J9,'Salary Master'!J8)) -> 0 | IC10: =IF(STATUS7="Done",DATABASE!IC10,IF(STATUS7="This Month",'Salary Process'!K9,'Salary Master'!K8)) -> 0 | ID10: =IF(STATUS7="Done",DATABASE!ID10,IF(STATUS7="This Month",'Salary Process'!L9,'Salary Master'!L8)) -> 0 | IE10: =IF(STATUS7="Done",DATABASE!IE10,IF(STATUS7="This Month",'Salary Process'!M9,'Salary Master'!M8)) -> 0 | IF10: =IF(STATUS7="Done",DATABASE!IF10,IF(STATUS7="This Month",'Salary Process'!N9,'Salary Master'!N8)) -> 0 | IG10: =IF(STATUS7="Done",DATABASE!IG10,IF(STATUS7="This Month",'Salary Process'!O9,'Salary Master'!O8)) -> 0 | IH10: =IF(STATUS7="Done",DATABASE!IH10,IF(STATUS7="This Month",'Salary Process'!P9,'Salary Master'!P8)) -> 0 | II10: =IF(STATUS7="Done",DATABASE!II10,IF(STATUS7="This Month",'Salary Process'!Q9,'Salary Master'!Q8)) -> 0 | IJ10: =IF(STATUS7="Done",DATABASE!IJ10,IF(STATUS7="This Month",'Salary Process'!R9,'Salary Master'!R8)) -> 0 | IK10: =IF(STATUS7="Done",DATABASE!IK10,IF(STATUS7="This Month",'Salary Process'!S9,'Salary Master'!S8)) -> 0 | IL10: =IF(STATUS7="Done",DATABASE!IL10,IF(STATUS7="This Month",'Salary Process'!T9,'Salary Master'!T8)) -> 0 | IM10: =IF(STATUS7="Done",DATABASE!IM10,IF(STATUS7="This Month",'Salary Process'!U9,'Salary Master'!U8)) -> 0 | IN10: =IF(STATUS7="Done",DATABASE!IN10,IF(STATUS7="This Month",'Salary Process'!V9,'Salary Master'!V8)) -> 0 | IO10: =IF(STATUS7="Done",DATABASE!IO10,IF(STATUS7="This Month",'Salary Process'!W9,'Salary Master'!W8)) -> 0 | IP10: =IF(STATUS7="Done",DATABASE!IP10,IF(STATUS7="This Month",'Salary Process'!X9,'Salary Master'!X8)) -> 0 | IQ10: =IF(STATUS7="Done",DATABASE!IQ10,IF(STATUS7="This Month",'Salary Process'!Y9,'Salary Master'!Y8)) -> 0 | IR10: =IF(STATUS7="Done",DATABASE!IR10,IF(STATUS7="This Month",'Salary Process'!Z9,'Salary Master'!Z8)) -> 0 | IS10: =IF(STATUS7="Done",DATABASE!IS10,IF(STATUS7="This Month",'Salary Process'!AA9,'Salary Master'!AA8)) -> 0 | IT10: =IF(STATUS7="Done",DATABASE!IT10,IF(STATUS7="This Month",'Salary Process'!AB9,'Salary Master'!AB8)) -> 0 | IU10: =IF(STATUS7="Done",DATABASE!IU10,IF(STATUS7="This Month",'Salary Process'!AC9,'Salary Master'!AC8)) -> 0 | IV10: =IF(STATUS7="Done",DATABASE!IV10,IF(STATUS7="This Month",'Salary Process'!AD9,'Salary Master'!AD8)) -> 0 | IW10: =IF(STATUS7="Done",DATABASE!IW10,IF(STATUS7="This Month",'Salary Process'!AE9,'Salary Master'!AE8)) -> 0 | IX10: =IF(STATUS7="Done",DATABASE!IX10,IF(STATUS7="This Month",'Salary Process'!AF9,'Salary Master'!AF8)) -> 0 | IY10: =IF(STATUS7="Done",DATABASE!IY10,IF(STATUS7="This Month",'Salary Process'!AG9,'Salary Master'!AG8)) -> 0 | IZ10: =IF(STATUS7="Done",DATABASE!IZ10,IF(STATUS7="This Month",'Salary Process'!AH9,'Salary Master'!AH8)) -> 0 | JA10: =IF(STATUS7="Done",DATABASE!JA10,IF(STATUS7="This Month",'Salary Process'!AI9,'Salary Master'!AI8)) -> 0 | JB10: =IF(STATUS7="Done",DATABASE!JB10,IF(STATUS7="This Month",'Salary Process'!AJ9,'Salary Master'!AJ8)) -> 0 | JC10: =IF(STATUS7="Done",DATABASE!JC10,IF(STATUS7="This Month",'Salary Process'!AK9,'Salary Master'!AK8)) -> 0 | JD10: =IF(STATUS7="Done",DATABASE!JD10,IF(STATUS7="This Month",'Salary Process'!AL9,'Salary Master'!AL8)) -> 0 | JH10: =IF(STATUS8="Done",DATABASE!JH10,IF(STATUS8="This Month",'Salary Process'!D9,'Salary Master'!D8)) -> 0 | JI10: =IF(STATUS8="Done",DATABASE!JI10,IF(STATUS8="This Month",'Salary Process'!E9,'Salary Master'!E8)) -> 0 | JJ10: =IF(STATUS8="Done",DATABASE!JJ10,IF(STATUS8="This Month",'Salary Process'!F9,'Salary Master'!F8)) -> 0 | JK10: =IF(STATUS8="Done",DATABASE!JK10,IF(STATUS8="This Month",'Salary Process'!G9,'Salary Master'!G8)) -> 0 | JL10: =IF(STATUS8="Done",DATABASE!JL10,IF(STATUS8="This Month",'Salary Process'!H9,'Salary Master'!H8)) -> 0 | JM10: =IF(STATUS8="Done",DATABASE!JM10,IF(STATUS8="This Month",'Salary Process'!I9,'Salary Master'!I8)) -> 0 | JN10: =IF(STATUS8="Done",DATABASE!JN10,IF(STATUS8="This Month",'Salary Process'!J9,'Salary Master'!J8)) -> 0 | JO10: =IF(STATUS8="Done",DATABASE!JO10,IF(STATUS8="This Month",'Salary Process'!K9,'Salary Master'!K8)) -> 0 | JP10: =IF(STATUS8="Done",DATABASE!JP10,IF(STATUS8="This Month",'Salary Process'!L9,'Salary Master'!L8)) -> 0 | JQ10: =IF(STATUS8="Done",DATABASE!JQ10,IF(STATUS8="This Month",'Salary Process'!M9,'Salary Master'!M8)) -> 0 | JR10: =IF(STATUS8="Done",DATABASE!JR10,IF(STATUS8="This Month",'Salary Process'!N9,'Salary Master'!N8)) -> 0 | JS10: =IF(STATUS8="Done",DATABASE!JS10,IF(STATUS8="This Month",'Salary Process'!O9,'Salary Master'!O8)) -> 0 | JT10: =IF(STATUS8="Done",DATABASE!JT10,IF(STATUS8="This Month",'Salary Process'!P9,'Salary Master'!P8)) -> 0 | JU10: =IF(STATUS8="Done",DATABASE!JU10,IF(STATUS8="This Month",'Salary Process'!Q9,'Salary Master'!Q8)) -> 0 | JV10: =IF(STATUS8="Done",DATABASE!JV10,IF(STATUS8="This Month",'Salary Process'!R9,'Salary Master'!R8)) -> 0 | JW10: =IF(STATUS8="Done",DATABASE!JW10,IF(STATUS8="This Month",'Salary Process'!S9,'Salary Master'!S8)) -> 0 | JX10: =IF(STATUS8="Done",DATABASE!JX10,IF(STATUS8="This Month",'Salary Process'!T9,'Salary Master'!T8)) -> 0 | JY10: =IF(STATUS8="Done",DATABASE!JY10,IF(STATUS8="This Month",'Salary Process'!U9,'Salary Master'!U8)) -> 0 | JZ10: =IF(STATUS8="Done",DATABASE!JZ10,IF(STATUS8="This Month",'Salary Process'!V9,'Salary Master'!V8)) -> 0 | KA10: =IF(STATUS8="Done",DATABASE!KA10,IF(STATUS8="This Month",'Salary Process'!W9,'Salary Master'!W8)) -> 0 | KB10: =IF(STATUS8="Done",DATABASE!KB10,IF(STATUS8="This Month",'Salary Process'!X9,'Salary Master'!X8)) -> 0 | KC10: =IF(STATUS8="Done",DATABASE!KC10,IF(STATUS8="This Month",'Salary Process'!Y9,'Salary Master'!Y8)) -> 0 | KD10: =IF(STATUS8="Done",DATABASE!KD10,IF(STATUS8="This Month",'Salary Process'!Z9,'Salary Master'!Z8)) -> 0 | KE10: =IF(STATUS8="Done",DATABASE!KE10,IF(STATUS8="This Month",'Salary Process'!AA9,'Salary Master'!AA8)) -> 0 | KF10: =IF(STATUS8="Done",DATABASE!KF10,IF(STATUS8="This Month",'Salary Process'!AB9,'Salary Master'!AB8)) -> 0 | KG10: =IF(STATUS8="Done",DATABASE!KG10,IF(STATUS8="This Month",'Salary Process'!AC9,'Salary Master'!AC8)) -> 0 | KH10: =IF(STATUS8="Done",DATABASE!KH10,IF(STATUS8="This Month",'Salary Process'!AD9,'Salary Master'!AD8)) -> 0 | KI10: =IF(STATUS8="Done",DATABASE!KI10,IF(STATUS8="This Month",'Salary Process'!AE9,'Salary Master'!AE8)) -> 0 | KJ10: =IF(STATUS8="Done",DATABASE!KJ10,IF(STATUS8="This Month",'Salary Process'!AF9,'Salary Master'!AF8)) -> 0 | KK10: =IF(STATUS8="Done",DATABASE!KK10,IF(STATUS8="This Month",'Salary Process'!AG9,'Salary Master'!AG8)) -> 0 | KL10: =IF(STATUS8="Done",DATABASE!KL10,IF(STATUS8="This Month",'Salary Process'!AH9,'Salary Master'!AH8)) -> 0 | KM10: =IF(STATUS8="Done",DATABASE!KM10,IF(STATUS8="This Month",'Salary Process'!AI9,'Salary Master'!AI8)) -> 0 | KN10: =IF(STATUS8="Done",DATABASE!KN10,IF(STATUS8="This Month",'Salary Process'!AJ9,'Salary Master'!AJ8)) -> 0 | KO10: =IF(STATUS8="Done",DATABASE!KO10,IF(STATUS8="This Month",'Salary Process'!AK9,'Salary Master'!AK8)) -> 0 | KP10: =IF(STATUS8="Done",DATABASE!KP10,IF(STATUS8="This Month",'Salary Process'!AL9,'Salary Master'!AL8)) -> 0 | KT10: =IF(STATUS9="Done",DATABASE!KT10,IF(STATUS9="This Month",'Salary Process'!D9,'Salary Master'!D8)) -> 0 | KU10: =IF(STATUS9="Done",DATABASE!KU10,IF(STATUS9="This Month",'Salary Process'!E9,'Salary Master'!E8)) -> 0 | KV10: =IF(STATUS9="Done",DATABASE!KV10,IF(STATUS9="This Month",'Salary Process'!F9,'Salary Master'!F8)) -> 0 | KW10: =IF(STATUS9="Done",DATABASE!KW10,IF(STATUS9="This Month",'Salary Process'!G9,'Salary Master'!G8)) -> 0 | KX10: =IF(STATUS9="Done",DATABASE!KX10,IF(STATUS9="This Month",'Salary Process'!H9,'Salary Master'!H8)) -> 0 | KY10: =IF(STATUS9="Done",DATABASE!KY10,IF(STATUS9="This Month",'Salary Process'!I9,'Salary Master'!I8)) -> 0 | KZ10: =IF(STATUS9="Done",DATABASE!KZ10,IF(STATUS9="This Month",'Salary Process'!J9,'Salary Master'!J8)) -> 0 | LA10: =IF(STATUS9="Done",DATABASE!LA10,IF(STATUS9="This Month",'Salary Process'!K9,'Salary Master'!K8)) -> 0 | LB10: =IF(STATUS9="Done",DATABASE!LB10,IF(STATUS9="This Month",'Salary Process'!L9,'Salary Master'!L8)) -> 0 | LC10: =IF(STATUS9="Done",DATABASE!LC10,IF(STATUS9="This Month",'Salary Process'!M9,'Salary Master'!M8)) -> 0 | LD10: =IF(STATUS9="Done",DATABASE!LD10,IF(STATUS9="This Month",'Salary Process'!N9,'Salary Master'!N8)) -> 0 | LE10: =IF(STATUS9="Done",DATABASE!LE10,IF(STATUS9="This Month",'Salary Process'!O9,'Salary Master'!O8)) -> 0 | LF10: =IF(STATUS9="Done",DATABASE!LF10,IF(STATUS9="This Month",'Salary Process'!P9,'Salary Master'!P8)) -> 0 | LG10: =IF(STATUS9="Done",DATABASE!LG10,IF(STATUS9="This Month",'Salary Process'!Q9,'Salary Master'!Q8)) -> 0 | LH10: =IF(STATUS9="Done",DATABASE!LH10,IF(STATUS9="This Month",'Salary Process'!R9,'Salary Master'!R8)) -> 0 | LI10: =IF(STATUS9="Done",DATABASE!LI10,IF(STATUS9="This Month",'Salary Process'!S9,'Salary Master'!S8)) -> 0 | LJ10: =IF(STATUS9="Done",DATABASE!LJ10,IF(STATUS9="This Month",'Salary Process'!T9,'Salary Master'!T8)) -> 0 | LK10: =IF(STATUS9="Done",DATABASE!LK10,IF(STATUS9="This Month",'Salary Process'!U9,'Salary Master'!U8)) -> 0 | LL10: =IF(STATUS9="Done",DATABASE!LL10,IF(STATUS9="This Month",'Salary Process'!V9,'Salary Master'!V8)) -> 0 | LM10: =IF(STATUS9="Done",DATABASE!LM10,IF(STATUS9="This Month",'Salary Process'!W9,'Salary Master'!W8)) -> 0 | LN10: =IF(STATUS9="Done",DATABASE!LN10,IF(STATUS9="This Month",'Salary Process'!X9,'Salary Master'!X8)) -> 0 | LO10: =IF(STATUS9="Done",DATABASE!LO10,IF(STATUS9="This Month",'Salary Process'!Y9,'Salary Master'!Y8)) -> 0 | LP10: =IF(STATUS9="Done",DATABASE!LP10,IF(STATUS9="This Month",'Salary Process'!Z9,'Salary Master'!Z8)) -> 0 | LQ10: =IF(STATUS9="Done",DATABASE!LQ10,IF(STATUS9="This Month",'Salary Process'!AA9,'Salary Master'!AA8)) -> 0 | LR10: =IF(STATUS9="Done",DATABASE!LR10,IF(STATUS9="This Month",'Salary Process'!AB9,'Salary Master'!AB8)) -> 0 | LS10: =IF(STATUS9="Done",DATABASE!LS10,IF(STATUS9="This Month",'Salary Process'!AC9,'Salary Master'!AC8)) -> 0 | LT10: =IF(STATUS9="Done",DATABASE!LT10,IF(STATUS9="This Month",'Salary Process'!AD9,'Salary Master'!AD8)) -> 0 | LU10: =IF(STATUS9="Done",DATABASE!LU10,IF(STATUS9="This Month",'Salary Process'!AE9,'Salary Master'!AE8)) -> 0 | LV10: =IF(STATUS9="Done",DATABASE!LV10,IF(STATUS9="This Month",'Salary Process'!AF9,'Salary Master'!AF8)) -> 0 | LW10: =IF(STATUS9="Done",DATABASE!LW10,IF(STATUS9="This Month",'Salary Process'!AG9,'Salary Master'!AG8)) -> 0 | LX10: =IF(STATUS9="Done",DATABASE!LX10,IF(STATUS9="This Month",'Salary Process'!AH9,'Salary Master'!AH8)) -> 0 | LY10: =IF(STATUS9="Done",DATABASE!LY10,IF(STATUS9="This Month",'Salary Process'!AI9,'Salary Master'!AI8)) -> 0 | LZ10: =IF(STATUS9="Done",DATABASE!LZ10,IF(STATUS9="This Month",'Salary Process'!AJ9,'Salary Master'!AJ8)) -> 0 | MA10: =IF(STATUS9="Done",DATABASE!MA10,IF(STATUS9="This Month",'Salary Process'!AK9,'Salary Master'!AK8)) -> 0 | MB10: =IF(STATUS9="Done",DATABASE!MB10,IF(STATUS9="This Month",'Salary Process'!AL9,'Salary Master'!AL8)) -> 0 | MF10: =IF(STATUS10="Done",DATABASE!MF10,IF(STATUS10="This Month",'Salary Process'!D9,'Salary Master'!D8)) -> 0 | MG10: =IF(STATUS10="Done",DATABASE!MG10,IF(STATUS10="This Month",'Salary Process'!E9,'Salary Master'!E8)) -> 0 | MH10: =IF(STATUS10="Done",DATABASE!MH10,IF(STATUS10="This Month",'Salary Process'!F9,'Salary Master'!F8)) -> 0 | MI10: =IF(STATUS10="Done",DATABASE!MI10,IF(STATUS10="This Month",'Salary Process'!G9,'Salary Master'!G8)) -> 0 | MJ10: =IF(STATUS10="Done",DATABASE!MJ10,IF(STATUS10="This Month",'Salary Process'!H9,'Salary Master'!H8)) -> 0 | MK10: =IF(STATUS10="Done",DATABASE!MK10,IF(STATUS10="This Month",'Salary Process'!I9,'Salary Master'!I8)) -> 0 | ML10: =IF(STATUS10="Done",DATABASE!ML10,IF(STATUS10="This Month",'Salary Process'!J9,'Salary Master'!J8)) -> 0 | MM10: =IF(STATUS10="Done",DATABASE!MM10,IF(STATUS10="This Month",'Salary Process'!K9,'Salary Master'!K8)) -> 0 | MN10: =IF(STATUS10="Done",DATABASE!MN10,IF(STATUS10="This Month",'Salary Process'!L9,'Salary Master'!L8)) -> 0 | MO10: =IF(STATUS10="Done",DATABASE!MO10,IF(STATUS10="This Month",'Salary Process'!M9,'Salary Master'!M8)) -> 0 | MP10: =IF(STATUS10="Done",DATABASE!MP10,IF(STATUS10="This Month",'Salary Process'!N9,'Salary Master'!N8)) -> 0 | MQ10: =IF(STATUS10="Done",DATABASE!MQ10,IF(STATUS10="This Month",'Salary Process'!O9,'Salary Master'!O8)) -> 0 | MR10: =IF(STATUS10="Done",DATABASE!MR10,IF(STATUS10="This Month",'Salary Process'!P9,'Salary Master'!P8)) -> 0 | MS10: =IF(STATUS10="Done",DATABASE!MS10,IF(STATUS10="This Month",'Salary Process'!Q9,'Salary Master'!Q8)) -> 0 | MT10: =IF(STATUS10="Done",DATABASE!MT10,IF(STATUS10="This Month",'Salary Process'!R9,'Salary Master'!R8)) -> 0 | MU10: =IF(STATUS10="Done",DATABASE!MU10,IF(STATUS10="This Month",'Salary Process'!S9,'Salary Master'!S8)) -> 0 | MV10: =IF(STATUS10="Done",DATABASE!MV10,IF(STATUS10="This Month",'Salary Process'!T9,'Salary Master'!T8)) -> 0 | MW10: =IF(STATUS10="Done",DATABASE!MW10,IF(STATUS10="This Month",'Salary Process'!U9,'Salary Master'!U8)) -> 0 | MX10: =IF(STATUS10="Done",DATABASE!MX10,IF(STATUS10="This Month",'Salary Process'!V9,'Salary Master'!V8)) -> 0 | MY10: =IF(STATUS10="Done",DATABASE!MY10,IF(STATUS10="This Month",'Salary Process'!W9,'Salary Master'!W8)) -> 0 | MZ10: =IF(STATUS10="Done",DATABASE!MZ10,IF(STATUS10="This Month",'Salary Process'!X9,'Salary Master'!X8)) -> 0 | NA10: =IF(STATUS10="Done",DATABASE!NA10,IF(STATUS10="This Month",'Salary Process'!Y9,'Salary Master'!Y8)) -> 0 | NB10: =IF(STATUS10="Done",DATABASE!NB10,IF(STATUS10="This Month",'Salary Process'!Z9,'Salary Master'!Z8)) -> 0 | NC10: =IF(STATUS10="Done",DATABASE!NC10,IF(STATUS10="This Month",'Salary Process'!AA9,'Salary Master'!AA8)) -> 0 | ND10: =IF(STATUS10="Done",DATABASE!ND10,IF(STATUS10="This Month",'Salary Process'!AB9,'Salary Master'!AB8)) -> 0 | NE10: =IF(STATUS10="Done",DATABASE!NE10,IF(STATUS10="This Month",'Salary Process'!AC9,'Salary Master'!AC8)) -> 0 | NF10: =IF(STATUS10="Done",DATABASE!NF10,IF(STATUS10="This Month",'Salary Process'!AD9,'Salary Master'!AD8)) -> 0 | NG10: =IF(STATUS10="Done",DATABASE!NG10,IF(STATUS10="This Month",'Salary Process'!AE9,'Salary Master'!AE8)) -> 0 | NH10: =IF(STATUS10="Done",DATABASE!NH10,IF(STATUS10="This Month",'Salary Process'!AF9,'Salary Master'!AF8)) -> 0 | NI10: =IF(STATUS10="Done",DATABASE!NI10,IF(STATUS10="This Month",'Salary Process'!AG9,'Salary Master'!AG8)) -> 0 | NJ10: =IF(STATUS10="Done",DATABASE!NJ10,IF(STATUS10="This Month",'Salary Process'!AH9,'Salary Master'!AH8)) -> 0 | NK10: =IF(STATUS10="Done",DATABASE!NK10,IF(STATUS10="This Month",'Salary Process'!AI9,'Salary Master'!AI8)) -> 0 | NL10: =IF(STATUS10="Done",DATABASE!NL10,IF(STATUS10="This Month",'Salary Process'!AJ9,'Salary Master'!AJ8)) -> 0 | NM10: =IF(STATUS10="Done",DATABASE!NM10,IF(STATUS10="This Month",'Salary Process'!AK9,'Salary Master'!AK8)) -> 0 | NN10: =IF(STATUS10="Done",DATABASE!NN10,IF(STATUS10="This Month",'Salary Process'!AL9,'Salary Master'!AL8)) -> 0 | NR10: =IF(STATUS11="Done",DATABASE!NR10,IF(STATUS11="This Month",'Salary Process'!D9,'Salary Master'!D8)) -> 0 | NS10: =IF(STATUS11="Done",DATABASE!NS10,IF(STATUS11="This Month",'Salary Process'!E9,'Salary Master'!E8)) -> 0 | NT10: =IF(STATUS11="Done",DATABASE!NT10,IF(STATUS11="This Month",'Salary Process'!F9,'Salary Master'!F8)) -> 0 | NU10: =IF(STATUS11="Done",DATABASE!NU10,IF(STATUS11="This Month",'Salary Process'!G9,'Salary Master'!G8)) -> 0 | NV10: =IF(STATUS11="Done",DATABASE!NV10,IF(STATUS11="This Month",'Salary Process'!H9,'Salary Master'!H8)) -> 0 | NW10: =IF(STATUS11="Done",DATABASE!NW10,IF(STATUS11="This Month",'Salary Process'!I9,'Salary Master'!I8)) -> 0 | NX10: =IF(STATUS11="Done",DATABASE!NX10,IF(STATUS11="This Month",'Salary Process'!J9,'Salary Master'!J8)) -> 0 | NY10: =IF(STATUS11="Done",DATABASE!NY10,IF(STATUS11="This Month",'Salary Process'!K9,'Salary Master'!K8)) -> 0 | NZ10: =IF(STATUS11="Done",DATABASE!NZ10,IF(STATUS11="This Month",'Salary Process'!L9,'Salary Master'!L8)) -> 0 | OA10: =IF(STATUS11="Done",DATABASE!OA10,IF(STATUS11="This Month",'Salary Process'!M9,'Salary Master'!M8)) -> 0 | OB10: =IF(STATUS11="Done",DATABASE!OB10,IF(STATUS11="This Month",'Salary Process'!N9,'Salary Master'!N8)) -> 0 | OC10: =IF(STATUS11="Done",DATABASE!OC10,IF(STATUS11="This Month",'Salary Process'!O9,'Salary Master'!O8)) -> 0 | OD10: =IF(STATUS11="Done",DATABASE!OD10,IF(STATUS11="This Month",'Salary Process'!P9,'Salary Master'!P8)) -> 0 | OE10: =IF(STATUS11="Done",DATABASE!OE10,IF(STATUS11="This Month",'Salary Process'!Q9,'Salary Master'!Q8)) -> 0 | OF10: =IF(STATUS11="Done",DATABASE!OF10,IF(STATUS11="This Month",'Salary Process'!R9,'Salary Master'!R8)) -> 0 | OG10: =IF(STATUS11="Done",DATABASE!OG10,IF(STATUS11="This Month",'Salary Process'!S9,'Salary Master'!S8)) -> 0 | OH10: =IF(STATUS11="Done",DATABASE!OH10,IF(STATUS11="This Month",'Salary Process'!T9,'Salary Master'!T8)) -> 0 | OI10: =IF(STATUS11="Done",DATABASE!OI10,IF(STATUS11="This Month",'Salary Process'!U9,'Salary Master'!U8)) -> 0 | OJ10: =IF(STATUS11="Done",DATABASE!OJ10,IF(STATUS11="This Month",'Salary Process'!V9,'Salary Master'!V8)) -> 0 | OK10: =IF(STATUS11="Done",DATABASE!OK10,IF(STATUS11="This Month",'Salary Process'!W9,'Salary Master'!W8)) -> 0 | OL10: =IF(STATUS11="Done",DATABASE!OL10,IF(STATUS11="This Month",'Salary Process'!X9,'Salary Master'!X8)) -> 0 | OM10: =IF(STATUS11="Done",DATABASE!OM10,IF(STATUS11="This Month",'Salary Process'!Y9,'Salary Master'!Y8)) -> 0 | ON10: =IF(STATUS11="Done",DATABASE!ON10,IF(STATUS11="This Month",'Salary Process'!Z9,'Salary Master'!Z8)) -> 0 | OO10: =IF(STATUS11="Done",DATABASE!OO10,IF(STATUS11="This Month",'Salary Process'!AA9,'Salary Master'!AA8)) -> 0 | OP10: =IF(STATUS11="Done",DATABASE!OP10,IF(STATUS11="This Month",'Salary Process'!AB9,'Salary Master'!AB8)) -> 0 | OQ10: =IF(STATUS11="Done",DATABASE!OQ10,IF(STATUS11="This Month",'Salary Process'!AC9,'Salary Master'!AC8)) -> 0 | OR10: =IF(STATUS11="Done",DATABASE!OR10,IF(STATUS11="This Month",'Salary Process'!AD9,'Salary Master'!AD8)) -> 0 | OS10: =IF(STATUS11="Done",DATABASE!OS10,IF(STATUS11="This Month",'Salary Process'!AE9,'Salary Master'!AE8)) -> 0 | OT10: =IF(STATUS11="Done",DATABASE!OT10,IF(STATUS11="This Month",'Salary Process'!AF9,'Salary Master'!AF8)) -> 0 | OU10: =IF(STATUS11="Done",DATABASE!OU10,IF(STATUS11="This Month",'Salary Process'!AG9,'Salary Master'!AG8)) -> 0 | OV10: =IF(STATUS11="Done",DATABASE!OV10,IF(STATUS11="This Month",'Salary Process'!AH9,'Salary Master'!AH8)) -> 0 | OW10: =IF(STATUS11="Done",DATABASE!OW10,IF(STATUS11="This Month",'Salary Process'!AI9,'Salary Master'!AI8)) -> 0 | OX10: =IF(STATUS11="Done",DATABASE!OX10,IF(STATUS11="This Month",'Salary Process'!AJ9,'Salary Master'!AJ8)) -> 0 | OY10: =IF(STATUS11="Done",DATABASE!OY10,IF(STATUS11="This Month",'Salary Process'!AK9,'Salary Master'!AK8)) -> 0 | OZ10: =IF(STATUS11="Done",DATABASE!OZ10,IF(STATUS11="This Month",'Salary Process'!AL9,'Salary Master'!AL8)) -> 0 | PD10: =IF(STATUS12="Done",DATABASE!PD10,IF(STATUS12="This Month",'Salary Process'!D9,'Salary Master'!D8)) -> 0 | PE10: =IF(STATUS12="Done",DATABASE!PE10,IF(STATUS12="This Month",'Salary Process'!E9,'Salary Master'!E8)) -> 0 | PF10: =IF(STATUS12="Done",DATABASE!PF10,IF(STATUS12="This Month",'Salary Process'!F9,'Salary Master'!F8)) -> 0 | PG10: =IF(STATUS12="Done",DATABASE!PG10,IF(STATUS12="This Month",'Salary Process'!G9,'Salary Master'!G8)) -> 0 | PH10: =IF(STATUS12="Done",DATABASE!PH10,IF(STATUS12="This Month",'Salary Process'!H9,'Salary Master'!H8)) -> 0 | PI10: =IF(STATUS12="Done",DATABASE!PI10,IF(STATUS12="This Month",'Salary Process'!I9,'Salary Master'!I8)) -> 0 | PJ10: =IF(STATUS12="Done",DATABASE!PJ10,IF(STATUS12="This Month",'Salary Process'!J9,'Salary Master'!J8)) -> 0 | PK10: =IF(STATUS12="Done",DATABASE!PK10,IF(STATUS12="This Month",'Salary Process'!K9,'Salary Master'!K8)) -> 0 | PL10: =IF(STATUS12="Done",DATABASE!PL10,IF(STATUS12="This Month",'Salary Process'!L9,'Salary Master'!L8)) -> 0 | PM10: =IF(STATUS12="Done",DATABASE!PM10,IF(STATUS12="This Month",'Salary Process'!M9,'Salary Master'!M8)) -> 0 | PN10: =IF(STATUS12="Done",DATABASE!PN10,IF(STATUS12="This Month",'Salary Process'!N9,'Salary Master'!N8)) -> 0 | PO10: =IF(STATUS12="Done",DATABASE!PO10,IF(STATUS12="This Month",'Salary Process'!O9,'Salary Master'!O8)) -> 0 | PP10: =IF(STATUS12="Done",DATABASE!PP10,IF(STATUS12="This Month",'Salary Process'!P9,'Salary Master'!P8)) -> 0 | PQ10: =IF(STATUS12="Done",DATABASE!PQ10,IF(STATUS12="This Month",'Salary Process'!Q9,'Salary Master'!Q8)) -> 0 | PR10: =IF(STATUS12="Done",DATABASE!PR10,IF(STATUS12="This Month",'Salary Process'!R9,'Salary Master'!R8)) -> 0 | PS10: =IF(STATUS12="Done",DATABASE!PS10,IF(STATUS12="This Month",'Salary Process'!S9,'Salary Master'!S8)) -> 0 | PT10: =IF(STATUS12="Done",DATABASE!PT10,IF(STATUS12="This Month",'Salary Process'!T9,'Salary Master'!T8)) -> 0 | PU10: =IF(STATUS12="Done",DATABASE!PU10,IF(STATUS12="This Month",'Salary Process'!U9,'Salary Master'!U8)) -> 0 | PV10: =IF(STATUS12="Done",DATABASE!PV10,IF(STATUS12="This Month",'Salary Process'!V9,'Salary Master'!V8)) -> 0 | PW10: =IF(STATUS12="Done",DATABASE!PW10,IF(STATUS12="This Month",'Salary Process'!W9,'Salary Master'!W8)) -> 0 | PX10: =IF(STATUS12="Done",DATABASE!PX10,IF(STATUS12="This Month",'Salary Process'!X9,'Salary Master'!X8)) -> 0 | PY10: =IF(STATUS12="Done",DATABASE!PY10,IF(STATUS12="This Month",'Salary Process'!Y9,'Salary Master'!Y8)) -> 0 | PZ10: =IF(STATUS12="Done",DATABASE!PZ10,IF(STATUS12="This Month",'Salary Process'!Z9,'Salary Master'!Z8)) -> 0 | QA10: =IF(STATUS12="Done",DATABASE!QA10,IF(STATUS12="This Month",'Salary Process'!AA9,'Salary Master'!AA8)) -> 0 | QB10: =IF(STATUS12="Done",DATABASE!QB10,IF(STATUS12="This Month",'Salary Process'!AB9,'Salary Master'!AB8)) -> 0 | QC10: =IF(STATUS12="Done",DATABASE!QC10,IF(STATUS12="This Month",'Salary Process'!AC9,'Salary Master'!AC8)) -> 0 | QD10: =IF(STATUS12="Done",DATABASE!QD10,IF(STATUS12="This Month",'Salary Process'!AD9,'Salary Master'!AD8)) -> 0 | QE10: =IF(STATUS12="Done",DATABASE!QE10,IF(STATUS12="This Month",'Salary Process'!AE9,'Salary Master'!AE8)) -> 0 | QF10: =IF(STATUS12="Done",DATABASE!QF10,IF(STATUS12="This Month",'Salary Process'!AF9,'Salary Master'!AF8)) -> 0 | QG10: =IF(STATUS12="Done",DATABASE!QG10,IF(STATUS12="This Month",'Salary Process'!AG9,'Salary Master'!AG8)) -> 0 | QH10: =IF(STATUS12="Done",DATABASE!QH10,IF(STATUS12="This Month",'Salary Process'!AH9,'Salary Master'!AH8)) -> 0 | QI10: =IF(STATUS12="Done",DATABASE!QI10,IF(STATUS12="This Month",'Salary Process'!AI9,'Salary Master'!AI8)) -> 0 | QJ10: =IF(STATUS12="Done",DATABASE!QJ10,IF(STATUS12="This Month",'Salary Process'!AJ9,'Salary Master'!AJ8)) -> 0 | QK10: =IF(STATUS12="Done",DATABASE!QK10,IF(STATUS12="This Month",'Salary Process'!AK9,'Salary Master'!AK8)) -> 0 | QL10: =IF(STATUS12="Done",DATABASE!QL10,IF(STATUS12="This Month",'Salary Process'!AL9,'Salary Master'!AL8)) -> 0 | QP10: 0 | QQ10: 0 | QR10: 0 | QS10: 0 | QT10: 0 | QU10: 0 | QV10: 0 | QW10: 0 | QX10: 0 | QY10: 0 | QZ10: 0 | RA10: 0 | RB10: 0 | RC10: 0 | RD10: 0 | RE10: 0 | RF10: 0 | RG10: 0 | RH10: 0 | RI10: 0 | RJ10: 0 | RK10: 0 | RL10: 0 | RM10: 0 | RN10: 0 | RO10: 0 | RP10: 0 | RQ10: 0 | RR10: 0 | RS10: 0 | RT10: 0 | RU10: 0 | RV10: 0 | RW10: 0 | RX10: 0 | SB10: 0 | SC10: 0 | SD10: =VLOOKUP(A10,'Tax Master'!A:AD,5,0) -> 0 | SE10: =VLOOKUP(A10,'Tax Master'!A:AD,6,0) -> 0 | SF10: =VLOOKUP(A10,'Tax Master'!A:AD,7,0) -> 0 | SG10: 0 | SH10: =VLOOKUP(A10,'Tax Master'!A:AD,12,0) -> 0 | SI10: 0 | SJ10: =VLOOKUP(A10,'Tax Master'!A:AD,14,0) -> 0 | SK10: =MIN(((QP10+QQ10)*VLOOKUP(A10,'Tax Master'!A:P,16,0)),QS10,(MAX((VLOOKUP(A10,'Tax Master'!$A:$P,15,0)-(QP10+QQ10)*10%),0))) -> 0 | SL10: 0 | SM10: =VLOOKUP(A10,'Tax Master'!A:AD,4,0) -> 0 | SN10: 0 | SO10: =VLOOKUP(A10,'Tax Master'!A:J,9,0) -> 0 | SP10: =VLOOKUP(A10,'Tax Master'!A:J,10,0) -> 0 | SQ10: 0 | SR10: 0 | SS10: 0 | ST10: =VLOOKUP(A10,'Tax Master'!A:T,20,0) -> 0 | SU10: 0 | SV10: =MIN(VLOOKUP(A10,'Tax Master'!A:U,21,0),_80CCD_1) -> 0 | SW10: =VLOOKUP(A10,'Tax Master'!A:AD,22,0)/2 -> 0 | SX10: =VLOOKUP(A10,'Tax Master'!A:AD,23,0) -> 0 | SY10: =VLOOKUP(A10,'Tax Master'!A:AD,24,0) -> 0 | SZ10: =VLOOKUP(A10,'Tax Master'!A:AD,25,0) -> 0 | TA10: =VLOOKUP(A10,'Tax Master'!A:AD,26,0) -> 0 | TB10: =VLOOKUP(A10,'Tax Master'!A:AD,27,0) -> 0 | TC10: =VLOOKUP(A10,'Tax Master'!A:AD,28,0) -> 0 | TD10: 0 | TE10: 0 | TF10: 0 | TG10: 0 | TH10: 0 | TI10: 0 | TJ10: 0 | TK10: =VLOOKUP(A10,'Tax Master'!A:AD,29,0) -> 0 | TL10: 0 | TM10: =VLOOKUP(A10,'Tax Master'!A:AD,30,0) -> 0 | TN10: =IF(STATUS1="Done",DATABASE!T10,0)+IF(STATUS2="Done",DATABASE!BF10,0)+IF(STATUS3="Done",DATABASE!CR10,0)+IF(STATUS4="Done",DATABASE!ED10,0)+IF(STATUS5="Done",DATABASE!FP10,0)+IF(STATUS6="Done",DATABASE!HB10,0)+IF(STATUS7="Done",DATABASE!IN10,0)+IF(STATUS8="Done",DATABASE!JZ10,0)+IF(STATUS9="Done",DATABASE!LL10,0)+IF(STATUS10="Done",DATABASE!MX10,0)+IF(STATUS11="Done",DATABASE!OJ10,0)+IF(STATUS12="Done",DATABASE!PV10,0) -> 0 | TO10: 0 | TP10: 0 | TR10: 0
